Workbook

Sheet Cover
A1: 30
C13: Rate Analysis Model V1.01
C14: RAMmodel_RAM2024 12.2.2022
C15: Home / Contents
C16: Start Here
C17: Scenario Builder
C18: Purpose of this Workbook:
C22: Legend:
C24: Tab Colors | H24: Font Colors | L24: Hyperlink Types
C26: Blue Tab | E26: Cover Sheet | H26: Blue Font | I26: Constant Values | L26: Cover Hyperlink | N26: Cover Page
C27: Green Tab | E27: Table of Contents | H27: Black Font | I27: Calculated Values | L27: TOC Hyperlink | N27: TOC
C28: Dark Blue Tabs | E28: Input Sheets | H28: Plum Font | I28: Hyperlinks | L28: Sheet Top Hyperlink | N28: é
C29: Rose Tabs | E29: Assumption Sheets | H29: Red Font | I29: Errors/Checks
C30: Tan Tabs | E30: Calculation/Output Sheets | H30: Black/Yellow | I30: Work in Progress
C31: Teal Tabs | E31: Lookup Sheets | H31: Black/Gold | I31: Modifiable Assumptions
C32: Reb Tabs | E32: Log/Error Sheet | H32: White/Grey | I32: Locked Data
C33: Black Tabs | E33: Locked Data Sheet
C34: Yellow Tabs | E34: REP Settlement Sheets
C35: Purple Tabs | E35: 7b2 Related Sheets

Sheet TOC
A1: 30 | B1: Table of Contents
B2: =Cover!C13 -> Rate Analysis Model V1.01
B3: =Cover!$C$14 -> RAMmodel_RAM2024 12.2.2022
B4: Cover Sheet | F4: PRS | G4: 7(b)(2)
E5: Input | F5: Documentation | G5: Documentation
A6: é | B6: Section & Sheet Titles | D6: Worksheet Name | E6: Datasheet? | F6: Table Number | G6: Table Number
B8: Documentation
B9: 1 | C9: Macro Design Schematic | D9: Macro
B10: Assumption Sheets
B11: =+B9+1 -> 2 | C11: Initialize Assumptions | D11: Init | E11: INPUT
B12: Validation/Error Check/Result Summary
B13: =B11+1 -> 3 | C13: Revenue Check | D13: Rev Check
B14: =+B13+1 -> 4 | C14: Rate Design Summary | D14: RateSummary
B15: =+B14+1 -> 5 | C15: Scenario Results | D15: ScenarioResults
B16: =+B15+1 -> 6 | C16: Expanded Scenario Results | D16: ResultsDetail
B17: Loads and Resources Data
B18: =+B16+1 -> 7 | C18: Load Input Data | D18: Loads | E18: INPUT | F18: Table 2.1.1 | G18: Table 1.1.1
B19: =+B18+1 -> 8 | C19: Load Forecast with Monthly Losses Applied | D19: Loads_MthLoss
B20: 9 | C20: PF Public with Firm Slice Loads | D20: PF Public | E20: INPUT
B21: 10 | C21: PF Exchange Loads | D21: PF Exchange | E21: INPUT
B22: 11 | C22: IP Loads | D22: RAM IP | E22: INPUT
B23: 12 | C23: NR Loads | D23: RAM NR | E23: INPUT
B24: 13 | C24: Resource Input Data | D24: Resources | E24: INPUT | F24: Table 2.1.2 | G24: Table 1.1.2
B25: 14 | C25: Residential Exchange Input Data | D25: ExchangeInputs | E25: INPUT
B26: 15 | C26: Transmission Inputs | D26: TransInputs | E26: INPUT
B27: 16 | C27: Losses Inputs | D27: LossesInputs | E27: INPUT
B28: 17 | C28: REP Settlement Inputs | D28: REPSettlementSchedule
B29: 18 | C29: Calculation of Exchange Transmission Adder | D29: Exchange Trans
B30: 19 | C30: Calculation of Exchange Resource Size and Costs | D30: Exchange Summary | F30: Table 2.1.3 | G30: Table 1.1.3
B31: 20 | C31: Load Resource Study | D31: LR_Balance | F31: Table 2.2.1 | G31: Table 1.2.1
B32: 21 | C32: Load Resource Balance | D32: LR_Adjust | F32: Table 2.2.2 | G32: Table 1.2.2
B33: 22 | C33: Program Case Energy Allocation Factors | D33: ProgAlloc | F33: Table 2.2.3 | G33: Table 1.2.3
B34: Determination of Active Residential Exchange Costs
B35: =+B33+1 -> 23 | C35: Active Exchanging Utilities | D35: Active Exchange
B36: =+B35+1 -> 24 | C36: Exchanging Utilities' ASCs | D36: Exchange ASC
B37: =+B36+1 -> 25 | C37: Exchanging Utilities' Exchange Loads | D37: Exchange Load
B38: =+B37+1 -> 26 | C38: Exchange Resource Costs | D38: Exchange Resource Cost
B39: Ratemaking Revenue Requirement Data
B40: =+B38+1 -> 27 | C40: Disaggregated Costs with TRM and COSA Flags | D40: Cost | E40: INPUT
B41: =+B40+1 -> 28 | C41: Disaggregated Costs with TRM and COSA Flags, Includes Internally Developed Costs | D41: CostPrint | F41: Table 2.3.1 | G41: Table 1.3.1
B42: =+B41+1 -> 29 | C42: Aggregated COSA Costs | D42: ProgCOSA | F42: Table 2.3.2 | G42: Table 1.3.2
B43: =+B42+1 -> 30 | C43: LDD and IRD Costs | D43: LDD_IRD | F43: Table 2.3.3 | G43: Table 1.3.3
B44: Allocation of COSA Costs to Rate Pools
B45: =+B43+1 -> 31 | C45: Allocation of FBS and LDD/IRD Costs | D45: FBS_LDD_IRD_Allocation | F45: Table 2.3.4.1 | G45: Table 1.3.4.1
B46: =+B45+1 -> 32 | C46: Allocation of New Resource and Exchange Costs | D46: NR_EX_Allocation | F46: Table 2.3.4.2 | G46: Table 1.3.4.2
B47: =+B46+1 -> 33 | C47: Allocation of Conservation, BPA Program and Transmission Costs | D47: Cons_Program_Allocation | F47: Table 2.3.4.3 | G47: Table 1.3.4.3
B48: =+B47+1 -> 34 | C48: Initial Cost Allocation | D48: Initial_Cost_Allocation | F48: Table 2.3.5 | G48: Table 1.3.5
B49: =+B48+1 -> 35 | C49: Cost Allocation Summary | D49: Cost_Allocation Summary
B50: Revenue Credits Allocation to Rate Pools
B51: =+B49+1 -> 36 | C51: Revenue Credits | D51: RDS_Credits | F51: Table 2.3.6 | G51: Table 1.3.6
B52: =+B51+1 -> 37 | C52: Revenue Credits Allocated to Loads Recovering FBS Costs | D52: Credits FBS | F52: Tables 2.3.7.1 & 2.3.7.2 | G52: Tables 1.3.7.1 & 1.3.7.2
B53: 38 | C53: Revenue Credits Allocated to Loads Recovering New Resource and Conservation Costs | D53: Credits NR-Cons | F53: Tables 2.3.7.3 & 2.3.7.4 | G53: Tables 1.3.7.3 & 1.3.7.4
B54: 39 | C54: Revenue Credits Allocated to All Loads | D54: Credits Gen-RSS | F54: Tables 2.3.7.5 & 2.3.7.6 | G54: Tables 1.3.7.5 & 1.3.7.6
B55: 40 | C55: Secondary Revenue and Balancing Purchases Input Data | D55: RevSimInputs | E55: INPUT
B56: 41 | C56: Calculation and Allocation of Secondary Revenue Credit | D56: Secondary | F56: Table 2.3.8 | G56: Table 1.3.8
B57: 42 | C57: Calculation and Allocation of FPS Revenue Deficiency | D57: FPS Revenue Deficiency | F57: Table 2.3.9 | G57: Table 1.3.9
B58: Rate Directive Ratemaking
B59: =+B57+1 -> 43 | C59: Calculation of Rates After Initial Allocation of Cost and Credits | D59: Initial Rates | F59: Table 2.3.10 | G59: Table 1.3.10
B60: =+B59+1 -> 44 | C60: Value of Reserves and Industrial Margin Computation | D60: Margin_VOR
B61: 45 | C61: Value of Reserves and Industrial Margin Computation | D61: Margin_VOR_Calc | F61: Table 2.4.1 | G61: Table 1.4.1
B62: 46 | C62: Calculate Annual Scalars Used to Calculate Monthly Rates for First IP-PF Link | D62: Calc Scalar 1 | F62: Table 2.4.2 | G62: Table 1.4.2
B63: 47 | C63: Calculate Monthly Rates Used in First IP - PF Link Calculation | D63: Calc Monthly 1 | F63: Table 2.4.3 | G63: Table 1.4.3
B64: 48 | C64: Calculation of the 7c2 IP-PF Link Amount | D64: IP_PF_Link | F64: Table 2.4.4 | G64: Table 1.4.4
B65: 49 | C65: Allocation of the 7c2 IP-PF Link Amount and Subsequant Rate Calculations | D65: Rates After Link | F65: Table 2.4.5 | G65: Table 1.4.5
B66: 50 | C66: Calculation of the DSI Floor Rate | D66: IP Floor Calc | F66: Table 2.4.6 | G66: Table 1.4.6
B67: 51 | C67: DSI Floor Rate Test 1 | D67: Floor Test 1 | F67: Table 2.4.7 | G67: Table 1.4.7
B68: =B67+1 -> 52 | C68: Calculation of IOU and COU Base Exchange Rates | D68: Base PF Exchange | F68: Table 2.4.8 | G68: Table 1.4.8
B69: REP Settlement Case Rate Directive Ratemaking
B70: =+B68+1 -> 53 | C70: Calculation of REP Adjustment Amount under Settlement | D70: Post-7b2Rates | F70: Table 2.4.9
B71: =B70+1 -> 54 | C71: Rate Analysis Model - Exchange Resource Cost | D71: Base Exchange Cost | F71: Table 2.4.10
B72: =B71+1 -> 55 | C72: Calculation of Settlement Utility Specific PF Exchange Rates | D72: Utility Specific PFx Settle | F72: Table 2.4.11
B73: =+B72+1 -> 56 | C73: 2012 REP Settlement Agreement Section 6 Reallocations | D73: IOU Reallocation Balances | F73: Table 2.4.12
B74: =+B73+1 -> 57 | C74: Allocation of Increase in the PFx Revenue Requirement under Settlement | D74: Rates After Settlement | F74: Table 2.4.13
B75: 58 | C75: Reallocation of REP Net Benefits under Settlement | D75: WP-10 Adjustment | F75: Table 2.4.14
B76: 59 | C76: Rate Computation after Reallocation of REP Benefits under Settlement | D76: Rates After WP-10 Adjustment | F76: Table 2.4.15
B77: 60 | C77: Calculate Annual Scalars Used to Calculate Monthly Rates | D77: Calc Scalar Settlement | F77: Table 2.4.16
B78: 61 | C78: Calculate Monthly Rates Used in First IP - PF Link Calculation | D78: Calc Monthly Settlement | F78: Table 2.4.17
B79: 62 | C79: Initial 7c2 IP-PF Link Calculation | D79: IP_PF_Link Settlement | F79: Table 2.4.18
B80: 63 | C80: Calculation of Rates after IP-PF Link under Settlement | D80: Rates After Link Settlement | F80: Table 2.4.19
B81: 64 | C81: Settlement Revenue Check | D81: Settlement Rev Check
B82: =+B81+1 -> 65 | C82: Net REP Ratemaking Proof Table under Settlement | D82: Net REP Settlement | F82: Table 3.1.7.1
B83: Program Case Rate Directive Ratemaking
B84: =+B82+1 -> 66 | C84: Calculation of the 7b2 Rate Test Trigger | D84: TriggerCalc | G84: Table 1.4.9
B85: =+B84+1 -> 67 | C85: Calculation and Allocation of the 7b2 Rate Protection Amount | D85: 7b2 Allocation | G85: Table 1.4.10
B86: 68 | C86: Calculation of Rates After the Allocation of the 7b2 Rate Protection Amount | D86: Rates After 7b2 | G86: Table 1.4.11
B87: 69 | C87: Calculate Annual Scalars Used to Calculate Monthly Rates for 7b2 Industrial Adjustment 7c2 Delta | D87: Calc Scalar 2 | G87: Table 1.4.12
B88: 70 | C88: Calculate Monthly Rates Used in 7b2 Industrial Adjustment 7c2 Delta | D88: Calc Monthly 2 | G88: Table 1.4.13
B89: 71 | C89: Calculation of the 7b2 Industrial Adjustment 7c2 Delta | D89: IP_PF_Link 2 | G89: Table 1.4.14
B90: 72 | C90: Allocation of the 7b2 Industrial Adjustment 7c2 Delta and Subsequant Rate Calculations | D90: Rates After Link (2) | G90: Table 1.4.15
B91: 73 | C91: DSI Floor Rate Test 2 | D91: Floor Test 2 | G91: Table 1.4.16
B92: 74 | C92: Calculation of Utility Specific PF Exchange Rates | D92: Utility Specifc PFx
B93: 75 | C93: Program Case Revenue Check | D93: Program Rev Check
B94: Rate Pool Unit Cost Tables and Net REP Ratemaking Proof
B95: =+B93+1 -> 76 | C95: PF Rate Pool Unit Cost Table | D95: PF Allocation | F95: Table 2.5.1 | G95: Table 1.5.4
B96: =+B95+1 -> 77 | C96: IP Rate Pool Unit Cost Table | D96: IP Allocation | F96: Table 2.5.2 | G96: Table 1.5.5
B97: =+B96+1 -> 78 | C97: NR Rate Pool Unit Cost Table | D97: NR Allocation | F97: Table 2.5.3 | G97: Table 1.5.6
B98: =+B97+1 -> 79 | C98: Generating Resource Component Contribution Table | D98: Cost Contribution | F98: Table 2.5.4 | G98: Table 1.5.7
B99: =+B98+1 -> 80 | C99: Net REP Ratemaking Proof Table | D99: Net REP
B100: =+B99+1 -> 81 | C100: Reconciliation of REP Benefits for Tiered Rates | D100: REP Benefits | F100: Table 2.4.20
B101: Tiered Rates Methodology (TRM)
B102: =+B100+1 -> 82 | C102: Aggregated TRM Costs | D102: Costs_TRM | F102: Table 3.1.1
B103: =+B102+1 -> 83 | C103: TRM Billing Determinants | D103: TRM_Billing | E103: INPUT
B104: 84 | C104: Unused RHWM Calculation | D104: UnusedRHWM | F104: Table 3.1.2
B105: 85 | C105: NonSlice Cost for Transmission Losses (Composite Credit) | D105: NonSliceLossAdjust | F105: Table 3.1.3
B106: 86 | C106: Balancing Augmentation Adjustment for Change in T1SFCO | D106: T1SFCO | F106: Table 3.1.4
B107: 87 | C107: TRM Market Prices and Demand Rates | D107: MarketInputs | E107: INPUT
B108: 88 | C108: TRM Demand and Load Shaping Charges | D108: LoadShapingandDemand | F108: Table 3.1.5
B109: 89 | C109: PF Load Forecast Deviation Liquidated Damages | D109: LiquidatedDamages | E109: INPUT | F109: Table 3.12
B110: 90 | C110: Tier 2 Rates Inputs | D110: Tier 2 Rates | E110: INPUT
B111: 91 | C111: Sales Calculation for Tier 2 Overhead Cost Adder | D111: Tier2OverheadSales
B112: 92 | C112: TRM Cost Allocation | D112: Cost_Allocation_TRM | F112: Table 3.1.6
B113: 93 | C113: Cost Proof | D113: Cost_Proof | F113: Table 3.1.7.2
B114: 94 | C114: Transfer Service and Unauthorized Increase Charge Inputs | D114: TransferUAIinputs | E114: INPUT
B115: 95 | C115: Transfer Service Charges and Rates | D115: TransferService | E115: INPUT | F115: Table 6.1
B116: 7b2 Case Loads
B117: =+B115+1 -> 96 | C117: 7b2 Conservation Loads | D117: 7b2 Con Load
B118: =+B117+1 -> 97 | C118: 7b2 PF Loads | D118: 7b2 PF Load | G118: Table 2.1
B119: 7b2 Case Loads/Resource Balance and Resource Stack Utilization
B120: =+B118+1 -> 98 | C120: 7b2 Resource Stack | D120: 7b2 Resource Sort | E120: INPUT | G120: Table 2.2.2
B121: =+B120+1 -> 99 | C121: List of Available Resources | D121: 7b2 Resources1 | G121: Table 2.2.3
B122: 100 | C122: Determination of Resources Selected from Resource Stack | D122: 7b2 Resources2 | G122: Table 2.2.9
B123: 101 | C123: Resources Sorted by Least Cost | D123: ConservRes1
B124: 102 | C124: Conservation Resources Selected | D124: ConservRes2 | G124: Table 2.2.4
B125: 103 | C125: Real 2010 Dollar Cost of Resources Selected | D125: ConservRes3 | G125: Table 2.2.5
B126: 104 | C126: Nominal Amortized Cost of Expensed Portion of Conservation Resources Selected | D126: ConservRes4 | G126: Table 2.2.6
B127: 105 | C127: Nominal Annual Cost of Capital Portion of Conservation Resources Selected | D127: ConservRes5 | G127: Table 2.2.7
B128: 106 | C128: Nominal Cost of Non-Conservation Resources Selected | D128: ConservRes6
B129: 107 | C129: Nominal Total Cost of Resources Selected | D129: ConservRes7 | G129: Table 2.2.8
B130: 7b2 Case Rate Directive Ratemaking
B131: =B129+1 -> 108 | C131: 7b2 Case COSA Table | D131: 7b2COSA | G131: Table 2.3.1
B132: =B131+1 -> 109 | C132: 7b2 Case Energy Allocaction Factors | D132: 7b2Alloc | G132: Table 2.2.1
B133: 110 | C133: 7b2 Case FBS and Resource Stack Cost Allocation | D133: 7b2 FBS_Stack_Allo | G133: Table 2.3.2.1
B134: 111 | C134: 7b2 Case LDD/IRD and Reserve Cost Allocation | D134: 7b2 LDD_IRD_Reserve_Allo | G134: Table 2.3.2.2
B135: 112 | C135: 7b2 Case Programs and Transmission Cost Allocation | D135: 7b2 Program_Trans_Allo | G135: Table 2.3.2.3
B136: 113 | C136: 7b2 Case Initial Net Cost Alloction | D136: 7b2 Initial_Cost_Allo | G136: Table 2.3.3
B137: 114 | C137: 7b2 Case Revenue Credit Summary | D137: 7b2 RDS_Credits | G137: Table 2.3.4
B138: 115 | C138: 7b2 Case Revenue Credits Allocated to Loads Served by FBS Resources | D138: 7b2 Credits FBS | G138: Tables 2.3.5.1 & 2.3.5.2
B139: 116 | C139: 7b2 Case Revenue Credits Allocated to All Loads | D139: 7b2 Credits Gen-RSS | G139: Tables 2.3.5.3
B140: 117 | C140: 7b2 Case Calculation and Allocation of Secondary Revenue | D140: 7b2 Secondary | G140: Table 2.3.6
B141: 118 | C141: 7b2 Case FPS Revenue Deficiency Calculation and Allocation | D141: 7b2 FPS Revenue Deficiency
B142: 119 | C142: Calculation of 7b2 Case Rates | D142: 7b2 Rates
B143: =B142+1 -> 120 | C143: 7b2 Case Revenue Check | D143: 7b2 Rev Check
B144: Rate Case Two Year Rate Period Rates Calculations
B145: =+B143+1 -> 121 | C145: Ave. Tier 1 PF Public Rate | D145: PFAveT1_RateOutput | F145: Table 3.1.8.1
B146: =+B145+1 -> 122 | C146: PF Melded Equivalent Rate | D146: PFMeldedEqv_RateOutput | F146: Table 3.1.8.2
B147: 123 | C147: IP Rate | D147: IP_RateOutput | F147: Table 3.1.8.3 | G147: Table 1.5.1
B148: 124 | C148: NR Rate | D148: NR_RateOutput | F148: Table 3.1.8.4
B149: 125 | C149: Load Shaping True-up & Tier 1 Equivalent Rates | D149: LSTUR&PFT1Eqv_RateOutput | F149: Table 3.1.8.5 | G149: Table 1.5.2
B150: 126 | C150: Unbifurcated PF Rate | D150: Unbif PF_RateOutput | G150: Table 1.5.3
B151: 127 | C151: PF Exchange Rate | D151: PF Exchange_RateOutput
B152: 128 | C152: Flat Melded Equivalent PF Public Rate | D152: FlatPFMeldedEqv_RateOutput
B153: Outputs and Checks
B154: =+B152+1 -> 129 | C154: RiskMod Output | D154: RiskMod_Out
B155: =+B154+1 -> 130 | C155: Revenue Requirement Output | D155: RROutput
B156: =+B155+1 -> 131 | C156: Rates Output New | D156: RatesOutputNew
B157: 132 | C157: Revenue Requirement Mapping | D157: RevReqMapping
B158: 133 | C158: Summary | D158: Summary
B159: 134 | C159: Net Revenue | D159: NetRevenue
B160: 135 | C160: Slice True Up Calculation | D160: SliceTrueUp
B161: 136 | C161: Tables | D161: Tables

Sheet Macro
B1: Rate Analysis Model - PF Scenario Load Delta Designations | R1: Not printed in documentation.
A2: TOC | B2: =Cover!$C$14 -> RAMmodel_RAM2024 12.2.2022
A3: é
I4: RAM2010 Macro Diagram

Sheet Init
B1: Initiation Sheet
A2: TOC | B2: =+Cover!C14 -> RAMmodel_RAM2024 12.2.2022
A3: é | B3: Input Parameters | F3: Diurnal Hours | N3: Annual Hours
F4: date | G4: days | H4: hours | I4: #Sun | J4: #Hol | K4: HLH | L4: LLH | N4: year | O4: days | P4: hours
F5: 2014-10-01 | G5: 31 | H5: 744 | I5: 5 | J5: 1 | K5: 432 | L5: 312 | N5: 2011 | O5: 365 | P5: 8760
F6: 2014-11-01 | G6: 28 | H6: 721 | I6: 4 | J6: 0 | K6: 384 | L6: 337 | N6: 2012 | O6: 365 | P6: 8784
F7: 2014-12-01 | G7: 31 | H7: 744 | I7: 4 | J7: 0 | K7: 416 | L7: 328 | N7: 2013 | O7: 365 | P7: 8760
F8: 2015-01-01 | G8: 30 | H8: 744 | I8: 4 | J8: 0 | K8: 416 | L8: 328 | N8: 2014 | O8: 366 | P8: 8760
B9: Base Year | C9: 2024 | F9: 2015-02-01 | G9: 31 | H9: 672 | I9: 5 | J9: 1 | K9: 384 | L9: 288 | N9: 2015 | O9: 365 | P9: 8760
F10: 2015-03-01 | G10: 30 | H10: 743 | I10: 4 | J10: 0 | K10: 416 | L10: 327 | N10: 2016 | O10: 365 | P10: 8784
F11: 2015-04-01 | G11: 31 | H11: 720 | I11: 5 | J11: 1 | K11: 416 | L11: 304 | N11: 2017 | O11: 365 | P11: 8760
C12: Yes or No? | F12: 2015-05-01 | G12: 31 | H12: 744 | I12: 4 | J12: 0 | K12: 400 | L12: 344 | N12: 2016 | O12: 366 | P12: 8784
B13: Run an REP Settlement Scenario ? | C13: Yes | F13: 2015-06-01 | G13: 30 | H13: 720 | I13: 4 | J13: 1 | K13: 416 | L13: 304 | N13: 2017 | O13: 365 | P13: 8760
B14: Slice RTP Changed for Tier 1 System Change | C14: No | F14: 2015-07-01 | G14: 31 | H14: 744 | I14: 5 | J14: 0 | K14: 416 | L14: 328 | N14: 2018 | O14: 365 | P14: 8760
F15: 2015-08-01 | G15: 30 | H15: 744 | I15: 4 | J15: 1 | K15: 416 | L15: 328 | N15: 2019 | O15: 365 | P15: 8760
B16: Years to Finance Expensed Portion of 7b2 Cons | C16: 5 | F16: 2015-09-01 | G16: 31 | H16: 720 | I16: 4 | J16: 1 | K16: 400 | L16: 320 | N16: 2020 | O16: 366 | P16: 8784
F17: 2015-10-01 | G17: 31 | H17: 744 | I17: 5 | J17: 1 | K17: 432 | L17: 312 | N17: 2021 | O17: 365 | P17: 8760
F18: 2015-11-01 | G18: 29 | H18: 721 | I18: 4 | J18: 0 | K18: 384 | L18: 337 | N18: 2022 | O18: 365 | P18: 8760
F19: 2015-12-01 | G19: 31 | H19: 744 | I19: 4 | J19: 0 | K19: 416 | L19: 328 | N19: 2023 | O19: 365 | P19: 8760
F20: 2016-01-01 | G20: 30 | H20: 744 | I20: 5 | J20: 0 | K20: 400 | L20: 344 | N20: 2024 | O20: 366 | P20: 8784
F21: 2016-02-01 | G21: 31 | H21: 696 | I21: 4 | J21: 1 | K21: 400 | L21: 296 | N21: 2025 | O21: 365 | P21: 8760
F22: 2016-03-01 | G22: 30 | H22: 743 | I22: 4 | J22: 0 | K22: 432 | L22: 311 | N22: 2026 | O22: 365 | P22: 8760
F23: 2016-04-01 | G23: 31 | H23: 720 | I23: 5 | J23: 1 | K23: 416 | L23: 304 | N23: 2027 | O23: 365 | P23: 8760
F24: 2016-05-01 | G24: 31 | H24: 744 | I24: 4 | J24: 0 | K24: 400 | L24: 344 | N24: 2028 | O24: 366 | P24: 8784
F25: 2016-06-01 | G25: 30 | H25: 720 | I25: 5 | J25: 1 | K25: 416 | L25: 304 | N25: 2029 | O25: 365 | P25: 8760
F26: 2016-07-01 | G26: 31 | H26: 744 | I26: 4 | J26: 0 | K26: 400 | L26: 344 | N26: 2030 | O26: 365 | P26: 8760
F27: 2016-08-01 | G27: 30 | H27: 744 | I27: 4 | J27: 1 | K27: 432 | L27: 312 | N27: 2031 | O27: 365 | P27: 8760
F28: 2016-09-01 | G28: 31 | H28: 720 | I28: 5 | J28: 1 | K28: 400 | L28: 320 | N28: 2032 | O28: 366 | P28: 8784
F29: 2016-10-01 | G29: 31 | H29: 744 | I29: 4 | J29: 1 | K29: 416 | L29: 328 | N29: 2033 | O29: 365 | P29: 8760
F30: 2016-11-01 | G30: 28 | H30: 721 | I30: 4 | J30: 0 | K30: 400 | L30: 321 | N30: 2034 | O30: 365 | P30: 8760
F31: 2016-12-01 | G31: 31 | H31: 744 | I31: 5 | J31: 0 | K31: 416 | L31: 328 | N31: 2035 | O31: 365 | P31: 8760
F32: 2017-01-01 | G32: 30 | H32: 744 | I32: 4 | J32: 0 | K32: 400 | L32: 344 | N32: 2036 | O32: 366 | P32: 8784
F33: 2017-02-01 | G33: 31 | H33: 672 | I33: 4 | J33: 1 | K33: 384 | L33: 288 | N33: 2037 | O33: 365 | P33: 8760
F34: 2017-03-01 | G34: 30 | H34: 743 | I34: 5 | J34: 0 | K34: 432 | L34: 311 | N34: 2038 | O34: 365 | P34: 8760
F35: 2017-04-01 | G35: 31 | H35: 720 | I35: 4 | J35: 1 | K35: 400 | L35: 320 | N35: 2039 | O35: 365 | P35: 8760
F36: 2017-05-01 | G36: 31 | H36: 744 | I36: 4 | J36: 0 | K36: 416 | L36: 328 | N36: 2040 | O36: 366 | P36: 8784
F37: 2017-06-01 | G37: 30 | H37: 720 | I37: 5 | J37: 1 | K37: 416 | L37: 304 | N37: 2041 | O37: 365 | P37: 8760
F38: 2017-07-01 | G38: 31 | H38: 744 | I38: 4 | J38: 0 | K38: 400 | L38: 344 | N38: 2042 | O38: 365 | P38: 8760
F39: 2017-08-01 | G39: 30 | H39: 744 | I39: 4 | J39: 1 | K39: 432 | L39: 312 | N39: 2043 | O39: 365 | P39: 8760
F40: 2017-09-01 | G40: 31 | H40: 720 | I40: 5 | J40: 1 | K40: 400 | L40: 320 | N40: 2044 | O40: 366 | P40: 8784
F41: 2017-10-01 | G41: 31 | H41: 744 | I41: 4 | J41: 1 | K41: 416 | L41: 328
F42: 2017-11-01 | G42: 28 | H42: 721 | I42: 4 | J42: 0 | K42: 400 | L42: 321
F43: 2017-12-01 | G43: 31 | H43: 744 | I43: 5 | J43: 0 | K43: 400 | L43: 344
F44: 2018-01-01 | G44: 30 | H44: 744 | I44: 4 | J44: 0 | K44: 416 | L44: 328
F45: 2018-02-01 | G45: 31 | H45: 672 | I45: 4 | J45: 1 | K45: 384 | L45: 288
F46: 2018-03-01 | G46: 30 | H46: 743 | I46: 5 | J46: 0 | K46: 432 | L46: 311
F47: 2018-04-01 | G47: 31 | H47: 720 | I47: 4 | J47: 1 | K47: 400 | L47: 320
F48: 2018-05-01 | G48: 31 | H48: 744 | I48: 5 | J48: 0 | K48: 416 | L48: 328
F49: 2018-06-01 | G49: 30 | H49: 720 | I49: 4 | J49: 1 | K49: 416 | L49: 304
F50: 2018-07-01 | G50: 31 | H50: 744 | I50: 4 | J50: 0 | K50: 400 | L50: 344
F51: 2018-08-01 | G51: 30 | H51: 744 | I51: 5 | J51: 1 | K51: 432 | L51: 312
F52: 2018-09-01 | G52: 31 | H52: 720 | I52: 4 | J52: 1 | K52: 384 | L52: 336
F53: 2018-10-01 | G53: 31 | H53: 744 | I53: 4 | J53: 1 | K53: 432 | L53: 312
F54: 2018-11-01 | G54: 28 | H54: 721 | I54: 4 | J54: 0 | K54: 400 | L54: 321
F55: 2018-12-01 | G55: 31 | H55: 744 | I55: 5 | J55: 0 | K55: 400 | L55: 344
F56: 2019-01-01 | G56: 30 | H56: 744 | I56: 4 | J56: 0 | K56: 416 | L56: 328
F57: 2019-02-01 | G57: 31 | H57: 672 | I57: 5 | J57: 1 | K57: 384 | L57: 288
F58: 2019-03-01 | G58: 30 | H58: 743 | I58: 4 | J58: 0 | K58: 416 | L58: 327
F59: 2019-04-01 | G59: 31 | H59: 720 | I59: 4 | J59: 1 | K59: 416 | L59: 304
F60: 2019-05-01 | G60: 31 | H60: 744 | I60: 5 | J60: 0 | K60: 416 | L60: 328
F61: 2019-06-01 | G61: 30 | H61: 720 | I61: 4 | J61: 1 | K61: 400 | L61: 320
F62: 2019-07-01 | G62: 31 | H62: 744 | I62: 4 | J62: 0 | K62: 416 | L62: 328
F63: 2019-08-01 | G63: 30 | H63: 744 | I63: 5 | J63: 1 | K63: 432 | L63: 312
F64: 2019-09-01 | G64: 31 | H64: 720 | I64: 4 | J64: 1 | K64: 384 | L64: 336
F65: 2019-10-01 | G65: 31 | H65: 744 | I65: 5 | J65: 1 | K65: 432 | L65: 312
F66: 2019-11-01 | G66: 29 | H66: 721 | I66: 4 | J66: 0 | K66: 400 | L66: 321
F67: 2019-12-01 | G67: 31 | H67: 744 | I67: 4 | J67: 0 | K67: 400 | L67: 344
F68: 2020-01-01 | G68: 30 | H68: 744 | I68: 4 | J68: 0 | K68: 416 | L68: 328
F69: 2020-02-01 | G69: 31 | H69: 696 | I69: 5 | J69: 1 | K69: 400 | L69: 296
F70: 2020-03-01 | G70: 30 | H70: 743 | I70: 4 | J70: 0 | K70: 416 | L70: 327
F71: 2020-04-01 | G71: 31 | H71: 720 | I71: 5 | J71: 1 | K71: 416 | L71: 304
F72: 2020-05-01 | G72: 31 | H72: 744 | I72: 4 | J72: 0 | K72: 400 | L72: 344
F73: 2020-06-01 | G73: 30 | H73: 720 | I73: 4 | J73: 1 | K73: 416 | L73: 304
F74: 2020-07-01 | G74: 31 | H74: 744 | I74: 5 | J74: 0 | K74: 416 | L74: 328
F75: 2020-08-01 | G75: 30 | H75: 744 | I75: 4 | J75: 1 | K75: 416 | L75: 328
F76: 2020-09-01 | G76: 31 | H76: 720 | I76: 4 | J76: 1 | K76: 400 | L76: 320
F77: 2020-10-01 | G77: 31 | H77: 744 | I77: 5 | J77: 1 | K77: 432 | L77: 312
F78: 2020-11-01 | G78: 28 | H78: 721 | I78: 4 | J78: 0 | K78: 384 | L78: 337
F79: 2020-12-01 | G79: 31 | H79: 744 | I79: 4 | J79: 0 | K79: 416 | L79: 328
F80: 2021-01-01 | G80: 30 | H80: 744 | I80: 5 | J80: 0 | K80: 400 | L80: 344
F81: 2021-02-01 | G81: 31 | H81: 672 | I81: 4 | J81: 1 | K81: 384 | L81: 288
F82: 2021-03-01 | G82: 30 | H82: 743 | I82: 4 | J82: 0 | K82: 432 | L82: 311
F83: 2021-04-01 | G83: 31 | H83: 720 | I83: 5 | J83: 1 | K83: 416 | L83: 304
F84: 2021-05-01 | G84: 31 | H84: 744 | I84: 4 | J84: 0 | K84: 400 | L84: 344
F85: 2021-06-01 | G85: 30 | H85: 720 | I85: 4 | J85: 1 | K85: 416 | L85: 304
F86: 2021-07-01 | G86: 31 | H86: 744 | I86: 5 | J86: 0 | K86: 416 | L86: 328
F87: 2021-08-01 | G87: 30 | H87: 744 | I87: 4 | J87: 1 | K87: 416 | L87: 328
F88: 2021-09-01 | G88: 31 | H88: 720 | I88: 5 | J88: 1 | K88: 400 | L88: 320
F89: 2021-10-01 | G89: 31 | H89: 744 | I89: 4 | J89: 1 | K89: 416 | L89: 328
F90: 2021-11-01 | G90: 28 | H90: 721 | I90: 4 | J90: 0 | K90: 400 | L90: 321
F91: 2021-12-01 | G91: 31 | H91: 744 | I91: 4 | J91: 0 | K91: 416 | L91: 328
F92: 2022-01-01 | G92: 30 | H92: 744 | I92: 5 | J92: 0 | K92: 400 | L92: 344
F93: 2022-02-01 | G93: 31 | H93: 672 | I93: 4 | J93: 1 | K93: 384 | L93: 288
F94: 2022-03-01 | G94: 30 | H94: 743 | I94: 4 | J94: 0 | K94: 432 | L94: 311
F95: 2022-04-01 | G95: 31 | H95: 720 | I95: 5 | J95: 1 | K95: 416 | L95: 304
F96: 2022-05-01 | G96: 31 | H96: 744 | I96: 4 | J96: 0 | K96: 400 | L96: 344
F97: 2022-06-01 | G97: 30 | H97: 720 | I97: 5 | J97: 1 | K97: 416 | L97: 304
F98: 2022-07-01 | G98: 31 | H98: 744 | I98: 4 | J98: 0 | K98: 400 | L98: 344
F99: 2022-08-01 | G99: 30 | H99: 744 | I99: 4 | J99: 1 | K99: 432 | L99: 312
F100: 2022-09-01 | G100: 31 | H100: 720 | I100: 5 | J100: 1 | K100: 400 | L100: 320
F101: 2022-10-01 | G101: 31 | H101: 744 | I101: 4 | J101: 1 | K101: 416 | L101: 328
F102: 2022-11-01 | G102: 28 | H102: 721 | I102: 4 | J102: 0 | K102: 400 | L102: 321
F103: 2022-12-01 | G103: 31 | H103: 744 | I103: 5 | J103: 0 | K103: 416 | L103: 328
F104: 2023-01-01 | G104: 30 | H104: 744 | I104: 4 | J104: 0 | K104: 400 | L104: 344
F105: 2023-02-01 | G105: 31 | H105: 672 | I105: 4 | J105: 1 | K105: 384 | L105: 288
F106: 2023-03-01 | G106: 30 | H106: 743 | I106: 5 | J106: 0 | K106: 432 | L106: 311
F107: 2023-04-01 | G107: 31 | H107: 720 | I107: 4 | J107: 1 | K107: 400 | L107: 320
F108: 2023-05-01 | G108: 31 | H108: 744 | I108: 4 | J108: 0 | K108: 416 | L108: 328
F109: 2023-06-01 | G109: 30 | H109: 720 | I109: 5 | J109: 1 | K109: 416 | L109: 304
F110: 2023-07-01 | G110: 31 | H110: 744 | I110: 4 | J110: 0 | K110: 400 | L110: 344
F111: 2023-08-01 | G111: 30 | H111: 744 | I111: 4 | J111: 1 | K111: 432 | L111: 312
F112: 2023-09-01 | G112: 31 | H112: 720 | I112: 5 | J112: 1 | K112: 400 | L112: 320
F113: 2023-10-01 | H113: 744 | K113: 416 | L113: 328
F114: 2023-11-01 | H114: 721 | K114: 400 | L114: 321
F115: 2023-12-01 | H115: 744 | K115: 400 | L115: 344
F116: 2024-01-01 | H116: 744 | K116: 416 | L116: 328
F117: 2024-02-01 | H117: 696 | K117: 400 | L117: 296
F118: 2024-03-01 | H118: 743 | K118: 416 | L118: 327
F119: 2024-04-01 | H119: 720 | K119: 416 | L119: 304
F120: 2024-05-01 | H120: 744 | K120: 416 | L120: 328
F121: 2024-06-01 | H121: 720 | K121: 400 | L121: 320
F122: 2024-07-01 | H122: 744 | K122: 416 | L122: 328
F123: 2024-08-01 | H123: 744 | K123: 432 | L123: 312
F124: 2024-09-01 | H124: 720 | K124: 384 | L124: 336
F125: 2024-10-01 | H125: 744 | K125: 432 | L125: 312
F126: 2024-11-01 | H126: 721 | K126: 400 | L126: 321
F127: 2024-12-01 | H127: 744 | K127: 400 | L127: 344
F128: 2025-01-01 | H128: 744 | K128: 416 | L128: 328
F129: 2025-02-01 | H129: 672 | K129: 384 | L129: 288
F130: 2025-03-01 | H130: 743 | K130: 416 | L130: 327
F131: 2025-04-01 | H131: 720 | K131: 416 | L131: 304
F132: 2025-05-01 | H132: 744 | K132: 416 | L132: 328
F133: 2025-06-01 | H133: 720 | K133: 400 | L133: 320
F134: 2025-07-01 | H134: 744 | K134: 416 | L134: 328
F135: 2025-08-01 | H135: 744 | K135: 416 | L135: 328
F136: 2025-09-01 | H136: 720 | K136: 400 | L136: 320
F137: 2025-10-01 | H137: 744 | K137: 432 | L137: 312
F138: 2025-11-01 | H138: 721 | K138: 384 | L138: 337
F139: 2025-12-01 | H139: 744 | K139: 416 | L139: 328
F140: 2026-01-01 | H140: 744 | K140: 416 | L140: 328
F141: 2026-02-01 | H141: 672 | K141: 384 | L141: 288
F142: 2026-03-01 | H142: 743 | K142: 416 | L142: 327
F143: 2026-04-01 | H143: 720 | K143: 416 | L143: 304
F144: 2026-05-01 | H144: 744 | K144: 400 | L144: 344
F145: 2026-06-01 | H145: 720 | K145: 416 | L145: 304
F146: 2026-07-01 | H146: 744 | K146: 416 | L146: 328
F147: 2026-08-01 | H147: 744 | K147: 416 | L147: 328
F148: 2026-09-01 | H148: 720 | K148: 400 | L148: 320
F149: 2026-10-01 | H149: 744 | K149: 432 | L149: 312
F150: 2026-11-01 | H150: 721 | K150: 384 | L150: 337
F151: 2026-12-01 | H151: 744 | K151: 416 | L151: 328
F152: 2027-01-01 | H152: 744 | K152: 400 | L152: 344
F153: 2027-02-01 | H153: 672 | K153: 384 | L153: 288
F154: 2027-03-01 | H154: 743 | K154: 432 | L154: 311
F155: 2027-04-01 | H155: 720 | K155: 416 | L155: 304
F156: 2027-05-01 | H156: 744 | K156: 400 | L156: 344
F157: 2027-06-01 | H157: 720 | K157: 416 | L157: 304
F158: 2027-07-01 | H158: 744 | K158: 416 | L158: 328
F159: 2027-08-01 | H159: 744 | K159: 416 | L159: 328
F160: 2027-09-01 | H160: 720 | K160: 400 | L160: 320
F161: 2027-10-01 | H161: 744 | K161: 416 | L161: 328
F162: 2027-11-01 | H162: 721 | K162: 400 | L162: 321
F163: 2027-12-01 | H163: 744 | K163: 416 | L163: 328
F164: 2028-01-01 | H164: 744 | K164: 400 | L164: 344
F165: 2028-02-01 | H165: 696 | K165: 400 | L165: 296
F166: 2028-03-01 | H166: 743 | K166: 432 | L166: 311
F167: 2028-04-01 | H167: 720 | K167: 400 | L167: 320
F168: 2028-05-01 | H168: 744 | K168: 416 | L168: 328
F169: 2028-06-01 | H169: 720 | K169: 416 | L169: 304
F170: 2028-07-01 | H170: 744 | K170: 400 | L170: 344
F171: 2028-08-01 | H171: 744 | K171: 432 | L171: 312
F172: 2028-09-01 | H172: 720 | K172: 400 | L172: 320
F173: 2028-10-01 | H173: 744 | K173: 416 | L173: 328
F174: 2028-11-01 | H174: 721 | K174: 400 | L174: 321
F175: 2028-12-01 | H175: 744 | K175: 400 | L175: 344
F176: 2029-01-01 | H176: 744 | K176: 416 | L176: 328
F177: 2029-02-01 | H177: 672 | K177: 384 | L177: 288
F178: 2029-03-01 | H178: 743 | K178: 432 | L178: 311
F179: 2029-04-01 | H179: 720 | K179: 400 | L179: 320
F180: 2029-05-01 | H180: 744 | K180: 416 | L180: 328
F181: 2029-06-01 | H181: 720 | K181: 416 | L181: 304
F182: 2029-07-01 | H182: 744 | K182: 400 | L182: 344
F183: 2029-08-01 | H183: 744 | K183: 432 | L183: 312
F184: 2029-09-01 | H184: 720 | K184: 384 | L184: 336
F185: 2029-10-01 | H185: 744 | K185: 432 | L185: 312
F186: 2029-11-01 | H186: 721 | K186: 400 | L186: 321
F187: 2029-12-01 | H187: 744 | K187: 400 | L187: 344
F188: 2030-01-01 | H188: 744 | K188: 416 | L188: 328
F189: 2030-02-01 | H189: 672 | K189: 384 | L189: 288
F190: 2030-03-01 | H190: 743 | K190: 416 | L190: 327
F191: 2030-04-01 | H191: 720 | K191: 416 | L191: 304
F192: 2030-05-01 | H192: 744 | K192: 416 | L192: 328
F193: 2030-06-01 | H193: 720 | K193: 400 | L193: 320
F194: 2030-07-01 | H194: 744 | K194: 416 | L194: 328
F195: 2030-08-01 | H195: 744 | K195: 432 | L195: 312
F196: 2030-09-01 | H196: 720 | K196: 384 | L196: 336
F197: 2030-10-01 | K197: 400 | L197: 344
F198: 2030-11-01 | K198: 384 | L198: 288
F199: 2030-12-01 | K199: 432 | L199: 311
F200: 2031-01-01 | K200: 416 | L200: 304
... 92 more rows

Sheet Rev Check
B1: Rate Analysis Model - Modeling Steps Revenue Check | K1: Not printed in documentation.
A2: TOC | B2: =Cover!$C$14 -> RAMmodel_RAM2024 12.2.2022 | K2: =IF(Init!$C$13="Yes","Results Under Settlement","Results while Running 7b2 Rate Test") -> Results Under Settlement
A3: é
C4: Costs
C5: Before 7b2 Revenue Requirements | D5: =+Init!C9 -> 2024 | E5: =+D5+1 -> 2025 | F5: =+E5+1 -> 2026 | G5: =+F5+1 -> 2027 | H5: =+G5+1 -> 2028 | I5: =+H5+1 -> 2029
C6: FBS | D6: =FBS_LDD_IRD_Allocation!C5 -> 2217067.972 | E6: =FBS_LDD_IRD_Allocation!D5 -> 2354186.29 | F6: =FBS_LDD_IRD_Allocation!E5 -> 2076433.664 | G6: =FBS_LDD_IRD_Allocation!F5 -> 2090105.058 | H6: =FBS_LDD_IRD_Allocation!G5 -> 2245952.483 | I6: =FBS_LDD_IRD_Allocation!H5 -> 2224319.513
C7: NR | D7: =FBS_LDD_IRD_Allocation!C6 -> 48160.57035 | E7: =FBS_LDD_IRD_Allocation!D6 -> 49711.25534 | F7: =FBS_LDD_IRD_Allocation!E6 -> 47427.24763 | G7: =FBS_LDD_IRD_Allocation!F6 -> 49136.82883 | H7: =FBS_LDD_IRD_Allocation!G6 -> 29556.73532 | I7: =FBS_LDD_IRD_Allocation!H6 -> 30450.43541
C8: Exchange | D8: =FBS_LDD_IRD_Allocation!C7-D13 -> 3280896.846 | E8: =FBS_LDD_IRD_Allocation!D7-E13 -> 3279525.462 | F8: =FBS_LDD_IRD_Allocation!E7-F13 -> 3327685.559 | G8: =FBS_LDD_IRD_Allocation!F7-G13 -> 3327685.559 | H8: =FBS_LDD_IRD_Allocation!G7-H13 -> 3213799.101 | I8: =FBS_LDD_IRD_Allocation!H7-I13 -> 3205019.874
C9: Conservation | D9: =FBS_LDD_IRD_Allocation!C8 -> 168994.7261 | E9: =FBS_LDD_IRD_Allocation!D8 -> 160131.1961 | F9: =FBS_LDD_IRD_Allocation!E8 -> 156299.0631 | G9: =FBS_LDD_IRD_Allocation!F8 -> 149159.749 | H9: =FBS_LDD_IRD_Allocation!G8 -> 154173.2658 | I9: =FBS_LDD_IRD_Allocation!H8 -> 154450.6634
C10: BPA Programs | D10: =FBS_LDD_IRD_Allocation!C9+FBS_LDD_IRD_Allocation!C10 -> 373331.0292 | E10: =FBS_LDD_IRD_Allocation!D9+FBS_LDD_IRD_Allocation!D10 -> 376515.1384 | F10: =FBS_LDD_IRD_Allocation!E9+FBS_LDD_IRD_Allocation!E10 -> 373811.4918 | G10: =FBS_LDD_IRD_Allocation!F9+FBS_LDD_IRD_Allocation!F10 -> 379740.8869 | H10: =FBS_LDD_IRD_Allocation!G9+FBS_LDD_IRD_Allocation!G10 -> 387059.711 | I10: =FBS_LDD_IRD_Allocation!H9+FBS_LDD_IRD_Allocation!H10 -> 392759.1177
C13: Transmission to Deliver Exchange Sale | D13: =ExchangeInputs!$D$5*'PF Exchange'!D61 -> 256423.234 | E13: =ExchangeInputs!$D$5*'PF Exchange'!E61 -> 256261.4562 | F13: =ExchangeInputs!$D$5*'PF Exchange'!F61 -> 260398.3488 | G13: =ExchangeInputs!$D$5*'PF Exchange'!G61 -> 260398.3488 | H13: =ExchangeInputs!$D$5*'PF Exchange'!H61 -> 244582.2127 | I13: =ExchangeInputs!$D$5*'PF Exchange'!I61 -> 243913.9553
C15: Sub total | D15: =SUM(D6:D13) -> 6344874.378 | E15: 6476330.798 | F15: 6242055.375 | G15: 6256226.43 | H15: 6275123.509 | I15: 6250913.559
C17: Low Density Discount and IRD Expense | D17: =FBS_LDD_IRD_Allocation!C11 -> 59470.85052 | E17: =FBS_LDD_IRD_Allocation!D11 -> 60301.83901 | F17: =FBS_LDD_IRD_Allocation!E11 -> 59886.34476 | G17: =FBS_LDD_IRD_Allocation!F11 -> 59886.34476 | H17: =FBS_LDD_IRD_Allocation!G11 -> 59886.34476 | I17: =FBS_LDD_IRD_Allocation!H11 -> 59886.34476
C19: Annual Revenue Requirement Grand Total | D19: =SUM(D15:D17) -> 6404345.228 | E19: 6536632.637 | F19: 6301941.719 | G19: 6316112.775 | H19: 6335009.853 | I19: 6310799.904
C22: Revenue Credits
C23: Forecast of Secondary Revenues | D23: =Secondary!D30 -> 563160.2969 | E23: =Secondary!E30 -> 565741.441 | F23: =Secondary!F30 -> 529716.6188 | G23: =Secondary!G30 -> 538284.8156 | H23: =Secondary!H30 -> 538335.6171 | I23: =Secondary!I30 -> 545377.3296
C24: Expected Revenue from FPS Contract Sales | D24: =-('FPS Revenue Deficiency'!C12) -> 185966.1226 | E24: =-('FPS Revenue Deficiency'!D12) -> 120921.3801 | F24: =-('FPS Revenue Deficiency'!E12) -> 130811.9898 | G24: =-('FPS Revenue Deficiency'!F12) -> 123339.8077 | H24: =-('FPS Revenue Deficiency'!G12) -> 133793.7864 | I24: =-('FPS Revenue Deficiency'!H12) -> 125806.6038
C25: Expected Revenue from System Obligations | D25: =-RDS_Credits!C15 -> 523.256 | E25: =-RDS_Credits!D15 -> 509.944 | F25: =-RDS_Credits!E15 -> 509.944 | G25: =-RDS_Credits!F15 -> 509.944 | H25: =-RDS_Credits!G15 -> 509.944 | I25: =-RDS_Credits!H15 -> 509.944
C26: Other Revenue Credits | D26: =-(RDS_Credits!C7+RDS_Credits!C19+RDS_Credits!C21+RDS_Credits!C24+SUM(RDS_Credits!C30:'RDS_Credits'!C36)+'Credits Gen-RSS'!C23) -> 264656.0845 | E26: =-(RDS_Credits!D7+RDS_Credits!D19+RDS_Credits!D21+RDS_Credits!D24+SUM(RDS_Credits!D30:'RDS_Credits'!D36)+'Credits Gen-RSS'!D23) -> 267468.8295 | F26: =-(RDS_Credits!E7+RDS_Credits!E19+RDS_Credits!E21+RDS_Credits!E24+SUM(RDS_Credits!E30:'RDS_Credits'!E36)+'Credits Gen-RSS'!E23) -> 267199.5854 | G26: =-(RDS_Credits!F7+RDS_Credits!F19+RDS_Credits!F21+RDS_Credits!F24+SUM(RDS_Credits!F30:'RDS_Credits'!F36)+'Credits Gen-RSS'!F23) -> 267418.2361 | H26: =-(RDS_Credits!G7+RDS_Credits!G19+RDS_Credits!G21+RDS_Credits!G24+SUM(RDS_Credits!G30:'RDS_Credits'!G36)+'Credits Gen-RSS'!G23) -> 267224.8821 | I26: =-(RDS_Credits!H7+RDS_Credits!H19+RDS_Credits!H21+RDS_Credits!H24+SUM(RDS_Credits!H30:'RDS_Credits'!H36)+'Credits Gen-RSS'!H23) -> 267405.5877
C28: Total Revenue Credits | D28: =SUM(D23:D27) -> 1014305.76 | E28: 954641.5946 | F28: 928238.138 | G28: 929552.8033 | H28: 939864.2296 | I28: 939099.4652
C31: Revenues needed from Power Rates | D31: =D19-D28 -> 5390039.468 | E31: 5581991.043 | F31: 5373703.581 | G31: 5386559.972 | H31: 5395145.624 | I31: 5371700.439
C34: Power Revenues After Rate Design Step
D35: =+D5 -> 2024 | E35: =+E5 -> 2025
C36: PF Public | D36: =RateSummary!C32 -> 35.127531 | E36: =RateSummary!D32 -> 36.495268
D37: ='PF Public'!D77 -> 61127.52783 | E37: ='PF Public'!E77 -> 62837.58588
D38: =D36*D37 -> 2147259.129 | E38: =E36*E37 -> 2293274.537
C40: PF Exchange | D40: =RateSummary!C34 -> 69.974948 | E40: =RateSummary!D34 -> 71.009672
D41: ='PF Exchange'!D61 -> 46285.78232 | E41: ='PF Exchange'!E61 -> 46256.58054
D42: =D40*D41 -> 3238845.211 | E42: =E40*E41 -> 3284664.612
C44: IP | D44: =RateSummary!C35 -> 40.717794 | E44: =RateSummary!D35 -> 42.040912
D45: ='RAM IP'!M87 -> 96.624 | E45: ='RAM IP'!N87 -> 96.36
D46: =D44*D45 -> 3934.316127 | E46: =E44*E45 -> 4051.06228
C48: NR | D48: =RateSummary!C36 -> 85.121254 | E48: =RateSummary!D36 -> 85.584435
D49: ='RAM NR'!D68 -> 0.009856 | E49: ='RAM NR'!E68 -> 0.009824
D50: =D48*D49 -> 0.8389550794 | E50: =E48*E49 -> 0.8407814894
C52: Revenues from Power Rates Grand Total | D52: =D38+D42+D46+D50 -> 5390039.495 | E52: =E38+E42+E46+E50 -> 5581991.053
C55: Revenue Check after Standard Ratemaking | D55: =D52-D$31 -> 0.02641047072 | E55: =E52-E$31 -> 0.01007394772

Sheet RateSummary
B1: Rate Analysis Model - Rate Design Step Summary | J1: =IF(Init!$C$13="Yes","Results Under Settlement","Results while Running 7b2 Rate Test") -> Results Under Settlement
A2: TOC | B2: =Cover!$C$14 -> RAMmodel_RAM2024 12.2.2022 | J2: Not printed in documentation.
A3: é
B6: Revenue Under Recovery After Rate Design Step | C6: ='Rev Check'!D55 -> 0.02641047072 | D6: ='Rev Check'!E55 -> 0.01007394772
B10: Rate Design Step | C10: =+Init!C9 -> 2024 | D10: =+C10+1 -> 2025 | E10: =+D10+1 -> 2026 | F10: =+E10+1 -> 2027 | G10: =+F10+1 -> 2028 | H10: =+G10+1 -> 2029
B11: Rates After Initial Allocation
B12: UNBIFURCATED PF | C12: ='Initial Rates'!C22 -> 47.72 | D12: ='Initial Rates'!D22 -> 48.75 | E12: ='Initial Rates'!E22 -> 46.48 | F12: ='Initial Rates'!F22 -> 46.6 | G12: ='Initial Rates'!G22 -> 48.08 | H12: ='Initial Rates'!H22 -> 47.92
B13: IP | C13: ='Initial Rates'!C23 -> 77.47 | D13: ='Initial Rates'!D23 -> 77.94 | E13: ='Initial Rates'!E23 -> 77.58 | F13: ='Initial Rates'!F23 -> 77.59 | G13: ='Initial Rates'!G23 -> 73.7 | H13: ='Initial Rates'!H23 -> 71.28
B14: NR | C14: ='Initial Rates'!C24 -> 77.47 | D14: ='Initial Rates'!D24 -> 77.94 | E14: ='Initial Rates'!E24 -> 77.58 | F14: ='Initial Rates'!F24 -> 77.59 | G14: ='Initial Rates'!G24 -> 73.7 | H14: ='Initial Rates'!H24 -> 71.28
B16: Rate Design Step | C16: =+C10 -> 2024 | D16: 2025 | E16: 2026 | F16: 2027 | G16: 2028 | H16: 2029
B17: Rates After IP-PF Link Allocation
B18: UNBIFURCATED PF (average) | C18: ='Rates After Link'!C42 -> 47.752 | D18: ='Rates After Link'!D42 -> 48.777 | E18: ='Rates After Link'!E42 -> 46.513 | F18: ='Rates After Link'!F42 -> 46.63 | G18: ='Rates After Link'!G42 -> 48.101 | H18: ='Rates After Link'!H42 -> 47.942 | J18: IP Rate Check
B19: UNBIFURCATED PF (flat) | C19: =IP_PF_Link!C15 -> 45.62863805 | D19: =IP_PF_Link!D15 -> 46.60859177 | E19: =IP_PF_Link!E15 -> 44.45049177 | F19: =IP_PF_Link!F15 -> 44.50689177 | G19: =IP_PF_Link!G15 -> 46.03849177 | H19: =IP_PF_Link!H15 -> 45.81929177 | J19: =C20-C19 -> -0.1016380507 | K19: =D20-D19 -> -0.1015917729
B20: IP | C20: ='Rates After Link'!C43 -> 45.527 | D20: ='Rates After Link'!D43 -> 46.507 | E20: ='Rates After Link'!E43 -> 44.349 | F20: ='Rates After Link'!F43 -> 44.406 | G20: ='Rates After Link'!G43 -> 45.937 | H20: ='Rates After Link'!H43 -> 45.718
B21: NR | C21: ='Rates After Link'!C44 -> 77.501 | D21: ='Rates After Link'!D44 -> 77.965 | E21: ='Rates After Link'!E44 -> 77.611 | F21: ='Rates After Link'!F44 -> 77.616 | G21: ='Rates After Link'!G44 -> 73.725 | H21: ='Rates After Link'!H44 -> 71.301
B23: Rate Design Step | C23: =+C10 -> 2024 | D23: =+D10 -> 2025
B24: Rates After REP/7(b)(3) Allocation
B25: PF Public | C25: =IF(Init!$C$13="Yes",'Rates After WP-10 Adjustment'!C40,'Rates After 7b2'!C51) -> 35.108 | D25: =IF(Init!$C$13="Yes",'Rates After WP-10 Adjustment'!D40,'Rates After 7b2'!D51) -> 36.477
B26: PF Exchange | C26: =IF(Init!$C$13="Yes",'Rates After WP-10 Adjustment'!C41,'Rates After 7b2'!C52) -> 69.975 | D26: =IF(Init!$C$13="Yes",'Rates After WP-10 Adjustment'!D41,'Rates After 7b2'!D52) -> 71.01
B27: IP | C27: =IF(Init!$C$13="Yes",'Rates After WP-10 Adjustment'!C42,'Rates After 7b2'!C53) -> 53.128 | D27: =IF(Init!$C$13="Yes",'Rates After WP-10 Adjustment'!D42,'Rates After 7b2'!D53) -> 54.108
B28: NR | C28: =IF(Init!$C$13="Yes",'Rates After WP-10 Adjustment'!C43,'Rates After 7b2'!C54) -> 85.102 | D28: =IF(Init!$C$13="Yes",'Rates After WP-10 Adjustment'!D43,'Rates After 7b2'!D54) -> 85.566
B30: Rate Design Step | C30: =+C10 -> 2024 | D30: =+D10 -> 2025
B31: Rates After IP-PF Link #2 Allocation
B32: PF Public (average) | C32: =IF(Init!$C$13="Yes",'Rates After Link Settlement'!C47,'Rates After Link (2)'!C49) -> 35.127531 | D32: =IF(Init!$C$13="Yes",'Rates After Link Settlement'!D47,'Rates After Link (2)'!D49) -> 36.495268 | J32: IP Rate Check
B33: PF Public (flat) | C33: ='IP_PF_Link Settlement'!C13 -> 33.00402006 | D33: ='IP_PF_Link Settlement'!D13 -> 34.32726901 | J33: =C35-C33 -> 7.713773936 | K33: =D35-D33 -> 7.713642989
B34: PF Exchange | C34: =IF(Init!$C$13="Yes",'Rates After Link Settlement'!C48,'Rates After Link (2)'!C50) -> 69.974948 | D34: =IF(Init!$C$13="Yes",'Rates After Link Settlement'!D48,'Rates After Link (2)'!D50) -> 71.009672 | J34: ='IP_PF_Link Settlement'!C16 -> 7.612530799 | K34: ='IP_PF_Link Settlement'!D16 -> 7.61239296
B35: IP | C35: =IF(Init!$C$13="Yes",'Rates After Link Settlement'!C49,'Rates After Link (2)'!C51) -> 40.717794 | D35: =IF(Init!$C$13="Yes",'Rates After Link Settlement'!D49,'Rates After Link (2)'!D51) -> 42.040912 | J35: =J33-J34 -> 0.1012431367 | K35: =K33-K34 -> 0.1012500292 | L35: =AVERAGE(J35:K35) -> 0.1012465829
B36: NR | C36: =IF(Init!$C$13="Yes",'Rates After Link Settlement'!C50,'Rates After Link (2)'!C52) -> 85.121254 | D36: =IF(Init!$C$13="Yes",'Rates After Link Settlement'!D50,'Rates After Link (2)'!D52) -> 85.584435

Sheet ScenarioResults
B1: Rate Analysis Model - Scenario Summary Box | G1: =IF(Init!$C$13="Yes","Results Under Settlement","Results while Running 7b2 Rate Test") -> Results Under Settlement
A2: TOC | B2: =Cover!$C$14 -> RAMmodel_RAM2024 12.2.2022 | G2: Not printed in documentation.
A3: é | L3: List for Expense Conservation in 7b2
L4: 1
B5: Attachment 1a | G5: From Rate Tables | L5: 2
D6: % above BP-22 | G6: =B7 -> Unbifurcated PF | H6: ='Unbif PF_RateOutput'!E52 -> 48.27 | J6: =C7-H6 -> -0.001626187422 | L6: 3
B7: Unbifurcated PF | C7: ='Rates After Link'!C47 -> 48.26837381 | D7: =C7/H23-1 -> 0.07799488363 | G7: T1 Equivalent PF | H7: =PFAveT1_RateOutput!E52 -> 34.69 | L7: 4
B8: PF Public | C8: =IF(Init!$C$13="Yes",'Rates After Link Settlement'!E47,ROUND((RateSummary!C32+RateSummary!D32)/2,2)) -> 35.81 | D8: =C8/H24-1 -> 0.02695726986 | G8: T1 & T2 Equivalent PF | H8: =PFMeldedEqv_RateOutput!E52 -> 35.82 | J8: =H8-C8 -> 0.01 | L8: 5
B9: PF Exchange | C9: =IF(Init!$C$13="Yes",'Rates After Link Settlement'!E48,'Rates After Link (2)'!C64) -> 70.49 | D9: =C9/H25-1 -> 0.1369354839 | G9: =B9 -> PF Exchange | H9: ='PF Exchange_RateOutput'!E53 -> 70.49 | J9: =H9-C9 -> 0 | L9: 6
B10: IP | C10: =IF(Init!$C$13="Yes",'Rates After Link Settlement'!E49,'Rates After Link (2)'!C66)+I44 -> 41.38 | D10: =C10/H26-1 -> 0.01695748341 | G10: =B10 -> IP | H10: =IP_RateOutput!E52 -> 41.38 | J10: =H10-C10 -> 0 | L10: 7
B11: NR | C11: =IF(Init!$C$13="Yes",'Rates After Link Settlement'!E50,'Rates After Link (2)'!C67)+I45 -> 85.35 | D11: =C11/H27-1 -> 0.08257229833 | G11: =B11 -> NR | H11: =NR_RateOutput!E52 -> 85.35 | J11: =H11-C11 -> 0 | L11: 8
L12: 9
B13: Residential Exchange Benefits | C13: =+Init!C9 -> 2024 | D13: =C13+1 -> 2025 | L13: 10
B14: ='Active Exchange'!D10 -> Avista Corporation | C14: =IF(Init!$C$13="Yes",MAX('Utility Specific PFx Settle'!O27,0),MAX('Utility Specifc PFx'!K24,0)) -> 16149.68951 | D14: =IF(Init!$C$13="Yes",MAX('Utility Specific PFx Settle'!P27,0),MAX('Utility Specifc PFx'!K43,0)) -> 16149.68951 | L14: 11
B15: ='Active Exchange'!D11 -> Idaho Power Company | C15: =IF(Init!$C$13="Yes",MAX('Utility Specific PFx Settle'!O28,0),MAX('Utility Specifc PFx'!K25,0)) -> 22903.00982 | D15: =IF(Init!$C$13="Yes",MAX('Utility Specific PFx Settle'!P28,0),MAX('Utility Specifc PFx'!K44,0)) -> 22903.00982 | E15: =IF(Init!$C$13="No","Deemer Amount","") ->  | L15: 12
B16: ='Active Exchange'!D12 -> NorthWestern Energy, LLC | C16: =IF(Init!$C$13="Yes",MAX('Utility Specific PFx Settle'!O29,0),MAX('Utility Specifc PFx'!K26,0)) -> 5921.955267 | D16: =IF(Init!$C$13="Yes",MAX('Utility Specific PFx Settle'!P29,0),MAX('Utility Specifc PFx'!K45,0)) -> 5921.955267 | L16: Settlement Menu
B17: ='Active Exchange'!D13 -> PacifiCorp | C17: =IF(Init!$C$13="Yes",MAX('Utility Specific PFx Settle'!O30,0),MAX('Utility Specifc PFx'!K27,0)) -> 74664.72493 | D17: =IF(Init!$C$13="Yes",MAX('Utility Specific PFx Settle'!P30,0),MAX('Utility Specifc PFx'!K46,0)) -> 74664.72493 | G17: ="Section 7(b)(3) Load for " & RateSummary!$C$10 -> Section 7(b)(3) Load for 2024 | H17: ='Exchange Load'!D29+'RAM IP'!M83+'RAM NR'!D66 -> 5280.32971 | J17: Trigger | L17: Yes
B18: ='Active Exchange'!D14 -> Portland General Electric Company | C18: =IF(Init!$C$13="Yes",MAX('Utility Specific PFx Settle'!O31,0),MAX('Utility Specifc PFx'!K28,0)) -> 62056.92749 | D18: =IF(Init!$C$13="Yes",MAX('Utility Specific PFx Settle'!P31,0),MAX('Utility Specifc PFx'!K47,0)) -> 62056.92749 | G18: Section 7(b)(2) Rate Test Trigger | H18: 0 | J18: =ROUND(TriggerCalc!J35,2) -> 0 | L18: No
B19: ='Active Exchange'!D15 -> Puget Sound Energy, Inc. | C19: =IF(Init!$C$13="Yes",MAX('Utility Specific PFx Settle'!O32,0),MAX('Utility Specifc PFx'!K29,0)) -> 91903.75267 | D19: =IF(Init!$C$13="Yes",MAX('Utility Specific PFx Settle'!P32,0),MAX('Utility Specifc PFx'!K48,0)) -> 91903.75267 | E19: =IF(Init!$C$13="No", "w/o Deemer $s","") -> 
B20: Net IOU Exchange | C20: =IF(Init!$C$13="No",SUM(C14,C16:C19),SUM(C14:C19)) -> 273600.0597 | D20: =IF(Init!$C$13="No",SUM(D14,D16:D19),SUM(D14:D19)) -> 273600.0597 | E20: =(C20+D20)/2 -> 273600.0597
B21: Refund Amt | C21: =IF(Init!$C$13="Yes",'Utility Specific PFx Settle'!$O$41,0) -> 0 | D21: =IF(Init!$C$13="Yes",'Utility Specific PFx Settle'!$P$41,0) -> 0 | E21: =(C21+D21)/2 -> 0
G22: Previous Rates | H22: Surcharge Adj. | I22: 2 year average
B23: =ExchangeInputs!C15 -> Clark Public Utilities | C23: =IF(Init!$C$13="Yes",MAX('Utility Specific PFx Settle'!O35,0),MAX('Utility Specifc PFx'!K30,0)) -> 0 | D23: =IF(Init!$C$13="Yes",MAX('Utility Specific PFx Settle'!P35,0),MAX('Utility Specifc PFx'!K49,0)) -> 0 | G23: Unbifurcated PF | H23: 44.77606948
B24: =ExchangeInputs!C16 -> Franklin | C24: =IF(Init!$C$13="Yes",MAX('Utility Specific PFx Settle'!O36,0),MAX('Utility Specifc PFx'!K31,0)) -> 0 | D24: =IF(Init!$C$13="Yes",MAX('Utility Specific PFx Settle'!P36,0),MAX('Utility Specifc PFx'!K50,0)) -> 0 | G24: PF Public | H24: =+I24+H43 -> 34.87 | I24: 34.87
B25: =ExchangeInputs!C17 -> Snohomish PUD | C25: =IF(Init!$C$13="Yes",MAX('Utility Specific PFx Settle'!O37,0),MAX('Utility Specifc PFx'!K32,0)) -> 622.8853086 | D25: =IF(Init!$C$13="Yes",MAX('Utility Specific PFx Settle'!P37,0),MAX('Utility Specifc PFx'!K51,0)) -> 617.9199905 | G25: PF Exchange | H25: 62
B26: Net COU Exchange | C26: =SUM(C23:C25) -> 622.8853086 | D26: =SUM(D23:D25) -> 617.9199905 | E26: =(C26+D26)/2 -> 620.4026496 | G26: IP | H26: =I26+H44 -> 40.69 | I26: 40.69
D27: Total | E27: =E20+E21+E26 -> 274220.4623 | G27: NR | H27: =I27+H45 -> 78.84 | I27: 78.84
B29: Annual Average $ (1000s) | C29: BP-22 | D29: BP-24 | E29: Change
B30: Composite Revenues | C30: 2275479.62 | D30: =Cost_Allocation_TRM!$E$59/2 -> 2380886.885 | E30: =(D30-C30)/C30 -> 0.04632309794
B31: Non-Slice Revenues | C31: -287145.3118 | D31: =Cost_Allocation_TRM!$E$60/2 -> -331990.7702 | E31: =-(D31-C31)/C31 -> -0.156176878 | H31: BP-22 | I31: BP-24 | J31: BP-24 Projected | K31: BP-24 max FRP
B32: Slice Revenues | C32: 0 | D32: =Cost_Allocation_TRM!$E$61/2 -> 0 | G32: Surcharges | H32: 0 | I32: 0 | J32: 0 | K32: 0
B33: Load Shaping Revenues | C33: 17897.52721 | D33: =-Cost_Allocation_TRM!$E$44/2 -> 60952.86463 | E33: =(D33-C33)/C33 -> 2.405658441 | G33: Preference Load | H33: 6762.588553 | I33: =AVERAGE(ProgAlloc!C7:D7) -> 7293.789947 | J33: =AVERAGE(ProgAlloc!C7:D7) -> 7293.789947 | K33: =AVERAGE(ProgAlloc!C7:D7) -> 7293.789947
B34: Demand Revenues | C34: 55457.28824 | D34: =-Cost_Allocation_TRM!$E$46/2 -> 61441.53009 | E34: =(D34-C34)/C34 -> 0.107907221 | G34: DSI Load | H34: 12.38530592 | I34: =ProgAlloc!C9 -> 11.35455426 | J34: =I34 -> 11.35455426 | K34: =ProgAlloc!C9 -> 11.35455426
B35: Tier 1 Revenue Requirement | C35: 2061689.123 | D35: =SUM($D$30:$D$34) -> 2171290.509 | E35: =(D35-C35)/C35 -> 0.05316096641 | G35: NR Load | H35: 0.001161245403 | I35: =ProgAlloc!C10 -> 0.001158207024 | J35: =I35 -> 0.001158207024 | K35: =ProgAlloc!C10 -> 0.001158207024
B36: Tier 2 Revenue Requirement | C36: 47492.02244 | D36: =(Cost_Allocation_TRM!$H$13+Cost_Allocation_TRM!$I$13)/2 -> 160289.4708 | E36: =(D36-C36)/C36 -> 2.375082015 | G36: Preference Allocator | H36: =H33/SUM(H$33:H$35) -> 0.9981717324 | I36: =I33/SUM(I$33:I$35) -> 0.9984455187 | J36: =J33/SUM(J$33:J$35) -> 0.9984455187 | K36: 0.9984455187
G37: DSI Allocator | H37: =H34/SUM(H$33:H$35) -> 0.001828096175 | I37: 0.001554322774 | J37: =J34/SUM(J$33:J$35) -> 0.001554322774 | K37: 0.001554322774
B38: Lookback Return (credit) | C38: 0 | D38: 0 | G38: NR Allocator | H38: =H35/SUM(H$33:H$35) -> 1.714021675e-07 | I38: 1.585467392e-07 | J38: =J35/SUM(J$33:J$35) -> 1.585467392e-07 | K38: 1.585467392e-07
B39: Spill Surcharge | C39: 0 | D39: 0 | G39: Preference Surcharge | H39: =H$32*H36 -> 0 | I39: =I$32*I36 -> 0 | J39: =J$32*J36 -> 0 | K39: =K$32*K36 -> 0
B40: FRP Surcharge | C40: 0 | D40: =I39 -> 0 | G40: DSI Surcharge | H40: =H$32*H37 -> 0 | I40: 0 | J40: =J$32*J37 -> 0 | K40: 0
B41: Value of Slice Secondary | C41: -106182.7614 | D41: =(Cost_Allocation_TRM!$H$18+Cost_Allocation_TRM!$I$18)/2 -> -111312.3068 | E41: =-(D41-C41)/C41 -> -0.04830864584 | G41: NR Surcharge | H41: =H$32*H38 -> 0 | I41: 0 | J41: =J$32*J38 -> 0 | K41: 0
B42: Net Power Cost to All PF | C42: =SUM(C35:C41) -> 2002998.384 | D42: =SUM(D35:D41) -> 2220267.673 | E42: =+D42/C42-1 -> 0.1084720242 | G42: Hours | H42: 8760 | I42: =AVERAGE((VLOOKUP(ScenarioResults!$C$13,Init!N:P,3,FALSE)),(VLOOKUP(ScenarioResults!$D$13,Init!N:P,3,FALSE))) -> 8772 | J42: =I42 -> 8772 | K42: =J42 -> 8772
B43: Total PF Load w/Slice (GWh)/yr | C43: 57435.67953 | D43: =('PF Public'!$D$77+'PF Public'!$E$77)/2 -> 61982.55686 | E43: =+D43/C43-1 -> 0.07916468244 | G43: PF Melded Adder | H43: =H39*1000/(H$42*H33) -> 0 | I43: =I39*1000/(I$42*I33) -> 0 | J43: =J39*1000/(J$42*J33) -> 0 | K43: 0
B44: Average Net Cost $/MWh | C44: =C42/C43 -> 34.87376489 | D44: =+D42/D43 -> 35.8208468 | E44: =(D44-C$44)/C$44 -> 0.02715743224 | G44: DSI Adder | H44: =H40*1000/(H$42*H34) -> 0 | I44: 0 | J44: =J40*1000/(J$42*J34) -> 0 | K44: 0
G45: NR Adder | H45: =H41*1000/(H$42*H35) -> 0 | I45: 0 | J45: =J41*1000/(J$42*J35) -> 0 | K45: 0
B46: Tier 1 Load | C46: 55991.19057 | D46: =+(PFAveT1_RateOutput!$E$54/2) -> 59377.94127 | E46: =((C46-D46)*C48)/D46/(C48) -> -0.05703718637
B48: Tier 1 Average Net Cost without FRP ($/MWh) | C48: =C49 -> 34.93 | D48: =ROUND((D35+D37+D38+D39+D41)/D46,2) -> 34.69 | E48: =(D48-C$48)/C$48 -> -0.006870884626
B49: Tier 1 Average Net Cost with max FRP ($/MWh) | C49: =ROUND((C35+C37+C38+C40+C41)/C46,2) -> 34.93 | D49: =ROUND((D35+D38+K39+D41)/D46,2) -> 34.69 | E49: =(D49-C$49)/C$49 -> -0.006870884626
B50: Tier 2 Short-term ($/MWh) | C50: 33.65474222 | D50: =ResultsDetail!D32 -> 61.49577231 | E50: =(D50-C$50)/C$50 -> 0.8272542964
B51: Tier 2 Load Growth ($/MWh) | C51: 33.69 | D51: =Cost_Allocation_TRM!E82 -> 62.04 | E51: =(D51-C$51)/C$51 -> 0.8414959929
D54: % above BP-22
B55: Unbifurcated PF | C55: 48.26837381 | D55: 0.07799488363
B56: PF Public | C56: 35.81 | D56: 0.02695726986
B57: PF Exchange | C57: 70.49 | D57: 0.1369354839
B58: IP | C58: 41.38 | D58: 0.01695748341
B59: NR | C59: 85.35 | D59: 0.08257229833
B61: Residential Exchange Benefits | C61: 2024 | D61: 2025
B62: Avista Corporation | C62: 16149.68951 | D62: 16149.68951
B63: Idaho Power Company | C63: 22903.00982 | D63: 22903.00982
B64: NorthWestern Energy, LLC | C64: 5921.955267 | D64: 5921.955267
B65: PacifiCorp | C65: 74664.72493 | D65: 74664.72493
B66: Portland General Electric Company | C66: 62056.92749 | D66: 62056.92749
B67: Puget Sound Energy, Inc. | C67: 91903.75267 | D67: 91903.75267
B68: Net IOU Exchange | C68: 273600.0597 | D68: 273600.0597 | E68: 273600.0597
B69: Refund Amt | C69: 0 | D69: 0 | E69: 0
B71: Clark Public Utilities | C71: 0 | D71: 0
B72: Franklin | C72: 0 | D72: 0
B73: Snohomish PUD | C73: 622.8853086 | D73: 617.9199905
B74: Net COU Exchange | C74: 622.8853086 | D74: 617.9199905 | E74: 620.4026496
D75: Total | E75: 274220.4623
B77: Annual Average $ (1000s) | C77: BP-22 | D77: BP-24 | E77: Change
B78: Composite Revenues | C78: 2275479.62 | D78: 2380886.885 | E78: 0.04632309794
B79: Non-Slice Revenues | C79: -287145.3118 | D79: -331990.7702 | E79: -0.156176878
B80: Slice Revenues | C80: 0 | D80: 0
B81: Load Shaping Revenues | C81: 17897.52721 | D81: 60952.86463 | E81: 2.405658441
B82: Demand Revenues | C82: 55457.28824 | D82: 61441.53009 | E82: 0.107907221
B83: Tier 1 Revenue Requirement | C83: 2061689.123 | D83: 2171290.509 | E83: 0.05067293592
B84: Tier 2 Revenue Requirement | C84: 47492.02244 | D84: 160289.4708
B86: Lookback Return (credit) | C86: 0 | D86: 0
B87: Spill Surcharge | C87: 0 | D87: 0
B88: FRP Surcharge | C88: 0 | D88: 0
B89: Value of Slice Secondary | C89: -106182.7614 | D89: -111312.3068 | E89: -0.04830864584
B90: Net Power Cost to All PF | C90: 2002998.384 | D90: 2220267.673 | E90: 0.1084720242
B91: Total PF Load w/Slice (GWh)/yr | C91: 57435.67953 | D91: 61982.55686 | E91: -0.07716322277
B92: Average Net Cost $/MWh | C92: 34.87376489 | D92: 35.8208468 | E92: 0.02715743224

Sheet ResultsDetail
B1: Rate Analysis Model - Scenario Summary | G1: =IF(Init!$C$13="Yes","Results Under Settlement","Results while Running 7b2 Rate Test") -> Results Under Settlement
A2: TOC | B2: =Cover!$C$14 -> RAMmodel_RAM2024 12.2.2022 | G2: Not printed in documentation.
A3: é
D6: % above BP-22
B7: Unbifurcated PF | C7: =ScenarioResults!C7 -> 48.26837381 | D7: =C7/ScenarioResults!H23-1 -> 0.07799488363
B8: PF Public (Tier 1 + Tier 2) | C8: =ScenarioResults!C8 -> 35.81 | D8: =C8/ScenarioResults!H24-1 -> 0.02695726986
B9: PF Exchange (IOU) | C9: =ScenarioResults!C9 -> 70.49 | D9: =C9/ScenarioResults!H25-1 -> 0.1369354839
B10: IP with 7(b)(3) | C10: =ScenarioResults!C10 -> 41.38 | D10: =C10/ScenarioResults!H26-1 -> 0.01695748341
B11: NR | C11: =ScenarioResults!C11 -> 85.35 | D11: =C11/ScenarioResults!H27-1 -> 0.08257229833
B14: Annual Average $ (1000s) | C14: =ScenarioResults!C29 -> BP-22 | D14: =ScenarioResults!D29 -> BP-24 | E14: Change
A15: 1 | B15: Composite Rate Revenues | C15: 2275479.62 | D15: =Cost_Allocation_TRM!$E$59/2 -> 2380886.885 | E15: =D15/C15-1 -> 0.04632309794
A16: =+A15+1 -> 2 | B16: Non-Slice Rate Revenues | C16: -287145.3118 | D16: =Cost_Allocation_TRM!$E$60/2 -> -331990.7702 | E16: =-(D16/C16-1) -> -0.156176878
A17: =+A16+1 -> 3 | B17: Slice Rate Revenues | C17: 0 | D17: =Cost_Allocation_TRM!$E$61/2 -> 0
A18: 4 | B18: Load Shaping Rate Revenues | C18: 17897.52721 | D18: =-Cost_Allocation_TRM!$E$44/2 -> 60952.86463 | E18: =D18/C18-1 -> 2.405658441
A19: 5 | B19: Demand Rate Revenues | C19: 55457.28824 | D19: =-Cost_Allocation_TRM!$E$46/2 -> 61441.53009 | E19: =D19/C19-1 -> 0.107907221
A20: 6 | B20: Tier 1 Revenue Requirement | C20: =SUM(C15:C19) -> 2061689.123 | D20: =SUM(D15:D19) -> 2171290.509 | E20: =D20/C20-1 -> 0.05316096641
A21: 7 | B21: Tier 2 Revenue Requirement | C21: 47492.02244 | D21: =(Cost_Allocation_TRM!$H$13+Cost_Allocation_TRM!$I$13)/2 -> 160289.4708
A22: 8 | B22: Value of Slice Surplus | C22: -106182.7614 | D22: =-(Secondary!D28+Secondary!E28)/2 -> -111312.3068 | E22: =-(D22/C22-1) -> -0.04830864584
A23: 9 | B23: Value of CHWM RECs (credit)
A24: 10 | B24: Lookback Return (credit) | C24: 0 | D24: 0
A25: 11 | B25: Net Power Cost to All PF | C25: =SUM(C20:C22) -> 2002998.384 | D25: =SUM(D20:D24) -> 2220267.673 | E25: =D25/C25-1 -> 0.1084720242
A26: 12 | B26: Surcharges | C26: =ScenarioResults!H39 -> 0 | D26: =ScenarioResults!I39 -> 0
A27: 13 | B27: Annual PF Load (w/firm Slice) (GWh) | C27: 57435.67953 | D27: =('PF Public'!$D$77+'PF Public'!$E$77)/2 -> 61982.55686 | E27: =D27/C27-1 -> 0.07916468244
A28: 14 | B28: PF Average Net Cost ($/MWh) | C28: =+(C25+C26)/C27 -> 34.87376489 | D28: =+(D25+D26)/D27 -> 35.8208468 | E28: =D28/C28-1 -> 0.02715743224
A30: =A28+1 -> 15 | B30: Tier 1 Average Net Cost without FRP ($/MWh) | C30: =ScenarioResults!C48 -> 34.93 | D30: =ScenarioResults!D48 -> 34.69 | E30: =D30/C30-1 -> -0.006870884626
A31: =+A30+1 -> 16 | B31: Tier 1 Average Net Cost max FRP ($/MWh) | C31: =ScenarioResults!C49 -> 34.93 | D31: =ScenarioResults!D49 -> 34.69 | E31: =D31/C31-1 -> -0.006870884626
A32: =+A31+1 -> 17 | B32: Tier 2 ($/MWh) | C32: 33.65474222 | D32: =+'Cost Contribution'!F31 -> 61.49577231 | E32: =D32/C32-1 -> 0.8272542964
I34: Power Rates ($/MWh) | J34: =C14 -> BP-22 | K34: =D14 -> BP-24 | L34: Change
B35: Slice Sales | C35: =C14 -> BP-22 | D35: =D14 -> BP-24 | E35: Change | I35: Tier 1 Average Net Cost of Power | J35: =C30 -> 34.93 | K35: =D30 -> 34.69 | L35: =E30 -> -0.006870884626
A36: =+A32+1 -> 18 | B36: Composite+Slice | C36: 536280.5429 | D36: =(Cost_Allocation_TRM!C68*Cost_Allocation_TRM!E71+Cost_Allocation_TRM!D68*Cost_Allocation_TRM!E71+Cost_Allocation_TRM!C68*Cost_Allocation_TRM!E73+Cost_Allocation_TRM!D68*Cost_Allocation_TRM!E73)/2 -> 491767.8243 | I36: Average Non-Slice Rate | J36: =C50 -> 35.64 | K36: =D50 -> 35.62549889 | L36: =E50 -> -0.0004068774186
A37: 19 | B37: Surcharges | I37: Average Slice Rate | J37: =C41 -> 32.59224224 | K37: =D41 -> 31.10504602 | L37: =E41 -> -0.04563037454
A38: 20 | B38: Tier 1 Average Cost ($/MWh) | C38: 40.64709151 | D38: =D36/((Loads!E8+Loads!F8)/1000/2) -> 40.20564849 | E38: =D38/C38-1 -> -0.0108603838 | I38: Average Tier 2 Rate | J38: =C32 -> 33.65474222 | K38: =D32 -> 61.49577231 | L38: =E32 -> 0.8272542964
A39: 21 | B39: Value of Slice Surplus+Credits | C39: -106182.7614 | D39: =D22+((D23+D24)*(Cost_Allocation_TRM!E68/Cost_Allocation_TRM!E66)) -> -111312.3068
A40: 22 | B40: Net Cost of Slice Power | C40: 430097.7816 | D40: =D36+D39 -> 380455.5176 | I40: IP Rate | J40: =ScenarioResults!I26 -> 40.69 | K40: =C10 -> 41.38 | L40: =K40/J40-1 -> 0.01695748341
A41: 23 | B41: Tier 1 Average Net Cost ($/MWh) | C41: =C40/C59 -> 32.59224224 | D41: =D40/((Cost_Allocation_TRM!H36+Cost_Allocation_TRM!I36)/2/1000) -> 31.10504602 | E41: =D41/C41-1 -> -0.04563037454
B44: Non-Slice Sales | C44: =C35 -> BP-22 | D44: =D35 -> BP-24 | E44: Change
A45: =+A41+1 -> 24 | B45: Composite+NonSlice+Shape+Demand | C45: 1525503.5 | D45: ='LSTUR&PFT1Eqv_RateOutput'!D52/2 -> 1679622.194
A46: 25 | B46: Tier 1 Average Cost ($/MWh) | C46: 35.6445936 | D46: =D45/(('LSTUR&PFT1Eqv_RateOutput'!E54)/2) -> 35.62549889 | E46: =D46/C46-1 -> -0.0005356973008
A47: 26 | B47: Credits | C47: 0 | D47: =(D23+D24)*(Cost_Allocation_TRM!E67/Cost_Allocation_TRM!E66) -> 0
A48: 27 | B48: Net Cost of Non-Slice Power | C48: 1525503.5 | D48: =D45+D47 -> 1679622.194
A49: 28 | B49: Surcharges | C49: 39926.8693 | D49: =+ScenarioResults!K39 -> 0
A50: 29 | B50: Tier 1 Average Net Cost without FRP ($/MWh) | C50: =ROUND((C48)/C58,2) -> 35.64 | D50: =(D48)/(('LSTUR&PFT1Eqv_RateOutput'!E54)/2) -> 35.62549889 | E50: =D50/C50-1 -> -0.0004068774186
A51: 30 | B51: Tier 1 Average Net Cost max FRP ($/MWh) | C51: =ROUND((C48+C49)/C58,2) -> 36.58 | D51: =(D48+D49)/(('LSTUR&PFT1Eqv_RateOutput'!E54)/2) -> 35.62549889 | E51: =D51/C51-1 -> -0.02609352409
B54: Tiered PF Rate Components | C54: =C44 -> BP-22 | D54: =D44 -> BP-24 | E54: Change
A55: =+A51+1 -> 31 | B55: Composite Rate ($/ pct/month) | C55: 1998422 | D55: =+Cost_Allocation_TRM!E76 -> 2075946 | E55: =D55/C55-1 -> 0.03879260737
A56: 32 | B56: Non-Slice Rate ($/ pct/month) | C56: -329943 | D56: =+Cost_Allocation_TRM!E77 -> -364823 | E56: =D56/C56-1 -> 0.1057152296
A58: =+A56+1 -> 33 | B58: NonSlice Load | C58: 42797.61236 | D58: =AVERAGE(NonSliceLossAdjust!C5:D5)/1000 -> 47146.62943
A59: 34 | B59: Slice Load | C59: 13196.32379 | D59: =AVERAGE(Cost_Allocation_TRM!H36:I36)/1000 -> 12231.31184
A60: 35 | B60: PF load w/slice | C60: 57435.67953 | D60: =D27 -> 61982.55686
B62: REP Summary Information
B63: Residential Exchange Program Benefits Crosswalk to Prior Rate Period
C64: =ScenarioResults!C29 -> BP-22 | D64: BP-22 REP Benefits | G64: Delta | H64: Change
C65: Final Proposal | D65: Preliminary | E65: Reallocations | F65: Planned | G65: BP-12 vs BP-14
B66: Avista | C66: 14578.39084 | D66: ='Utility Specific PFx Settle'!P8 -> 18154.37098 | E66: ='Utility Specific PFx Settle'!J41-'Utility Specific PFx Settle'!D47 -> -2004.778 | F66: =AVERAGE('Utility Specific PFx Settle'!O27,'Utility Specific PFx Settle'!P27) -> 16149.68951 | G66: =+F66-C66 -> 1571.298664 | H66: =F66/C66-1 -> 0.1077827231
B67: Idaho Power | C67: 22292.12956 | D67: ='Utility Specific PFx Settle'!P9 -> 22902.84516 | E67: ='Utility Specific PFx Settle'!J42-'Utility Specific PFx Settle'!E47 -> 0 | F67: =AVERAGE('Utility Specific PFx Settle'!O28,'Utility Specific PFx Settle'!P28) -> 22903.00982 | G67: =+F67-C67 -> 610.8802671 | H67: =F67/C67-1 -> 0.02740340557
B68: Northwestern | C68: 6133.64217 | D68: ='Utility Specific PFx Settle'!P10 -> 5847.693223 | E68: ='Utility Specific PFx Settle'!J43-'Utility Specific PFx Settle'!F47 -> 74.25566815 | F68: =AVERAGE('Utility Specific PFx Settle'!O29,'Utility Specific PFx Settle'!P29) -> 5921.955267 | G68: -211.686903 | H68: -0.03451243114
B69: PacifiCorp | C69: 63717.75651 | D69: ='Utility Specific PFx Settle'!P11 -> 74664.91384 | E69: ='Utility Specific PFx Settle'!J44-'Utility Specific PFx Settle'!G47 -> 0 | F69: =AVERAGE('Utility Specific PFx Settle'!O30,'Utility Specific PFx Settle'!P30) -> 74664.72493 | G69: 10946.96843 | H69: 0.1718040469
B70: PGE | C70: 58927.04834 | D70: ='Utility Specific PFx Settle'!P12 -> 61278.42701 | E70: ='Utility Specific PFx Settle'!J45-'Utility Specific PFx Settle'!H47 -> 778.1308574 | F70: =AVERAGE('Utility Specific PFx Settle'!O31,'Utility Specific PFx Settle'!P31) -> 62056.92749 | G70: 3129.879152 | H70: 0.05311447358
B71: Puget Sound | C71: 79551.48615 | D71: ='Utility Specific PFx Settle'!P13 -> 90751.74978 | E71: ='Utility Specific PFx Settle'!J46-'Utility Specific PFx Settle'!I47 -> 1152.391474 | F71: =AVERAGE('Utility Specific PFx Settle'!O32,'Utility Specific PFx Settle'!P32) -> 91903.75267 | G71: 12352.26652 | H71: 0.1552738625
B72: Clark | C72: 2087.643771 | D72: ='Utility Specific PFx Settle'!P14 -> 0 | E72: 0 | F72: =IF(SUM(('Utility Specific PFx Settle'!O35,'Utility Specific PFx Settle'!P35))=0,0,AVERAGE('Utility Specific PFx Settle'!O35,'Utility Specific PFx Settle'!P35)) -> 0 | G72: -2087.643771 | H72: -1
B73: Snohomish | C73: 2468.66142 | D73: ='Utility Specific PFx Settle'!P16 -> 620.4026496 | E73: 0 | F73: =IF(SUM(('Utility Specific PFx Settle'!O37,'Utility Specific PFx Settle'!P37))=0,0,AVERAGE('Utility Specific PFx Settle'!O37,'Utility Specific PFx Settle'!P37)) -> 620.4026496 | G73: -1848.258771 | H73: -0.7486886438
B74: Total | C74: =SUM(C66:C73) -> 249756.7588 | D74: =SUM(D66:D73) -> 274220.4026 | E74: =SUM(E66:E73) -> -2.273736754e-13 | F74: =SUM(F66:F73) -> 274220.4623 | G74: =+SUM(G66:G73) -> 24463.70358 | H74: =F74/C74-1 -> 0.09795011636
B75: IOU Total | C75: =SUM(C66:C71) -> 245200.4536 | D75: =SUM(D66:D71) -> 273600 | E75: =SUM(E66:E71) -> 0 | F75: =SUM(F66:F71) -> 273600.0597 | G75: =SUM(G66:G71) -> 28399.60613 | H75: =F75/C75-1 -> 0.1158219967
B76: COU Total | C76: =SUM(C72:C73) -> 4556.305192 | D76: =SUM(D72:D73) -> 620.4026496 | E76: =SUM(E72:E73) -> 0 | F76: =SUM(F72:F73) -> 620.4026496 | G76: =SUM(G72:G73) -> -3935.902542 | H76: =F76/C76-1 -> -0.8638364588
B81: Residential Exchange Program Cost Allocations
E83: =ScenarioResults!C13 -> 2024 | F83: =ScenarioResults!D13 -> 2025
B84: Unconstrained REP Benefits | E84: ='Rates After Settlement'!C14 -> 1046399.316 | F84: ='Rates After Settlement'!D14 -> 1046380.369
B85: 7(b)(2) Rate Protection | E85: =E84*(Loads!E5/(Loads!E5+Loads!E11+Loads!E14))-E93 -> 770957.5978 | F85: =F84*(Loads!F5/(Loads!F5+Loads!F11+Loads!F14))-F93 -> 770979.9888
B86: 7(b)(3) PFx Allocation | E86: ='Rates After Settlement'!C28 -> 772176.3712 | F86: ='Rates After Settlement'!D28 -> 772162.3895
B87: 7(b)(3) IP Allocation | E87: ='WP-10 Adjustment'!C55 -> 734.3879291 | F87: ='WP-10 Adjustment'!D55 -> 732.4031635
B88: 7(b)(3) NR Allocation | E88: ='WP-10 Adjustment'!C56 -> 0.07491020127 | F88: ='WP-10 Adjustment'!D56 -> 0.07466920281
B89: REP Benefits | E89: ='Utility Specific PFx Settle'!O39 -> 274222.945 | F89: ='Utility Specific PFx Settle'!P39 -> 274217.9797
B90: Refund Amounts | E90: ='Utility Specific PFx Settle'!O41 -> 0 | F90: ='Utility Specific PFx Settle'!P41 -> 0
B91: Total REP Costs (Benefits + Refunds) | E91: ='Utility Specific PFx Settle'!O42 -> 274222.945 | F91: ='Utility Specific PFx Settle'!P42 -> 274217.9797
B93: REP Benefits paid by PFp | E93: =E89*(Loads!E5/(Loads!E5+Loads!E11+Loads!E14)) -> 273790.1221 | F93: =F89*(Loads!F5/(Loads!F5+Loads!F11+Loads!F14)) -> 273798.0738
B94: REP Benefits paid by IP | E94: =E89*(Loads!E11/(Loads!E5+Loads!E11+Loads!E14)) -> 432.7787774 | F94: =F89*(Loads!F11/(Loads!F5+Loads!F11+Loads!F14)) -> 419.8630807
B95: REP Benefits paid by NR | E95: =E89*(Loads!E14/(Loads!E5+Loads!E11+Loads!E14)) -> 0.0441450119 | F95: =F89*(Loads!F14/(Loads!F5+Loads!F11+Loads!F14)) -> 0.04280546808

Sheet Loads
B1: Loads (MWh)
A2: TOC | B2: =Cover!$C$14 -> RAMmodel_RAM2024 12.2.2022
A3: é | E3: Annual | L3: HLH | CG3: LLH
E4: =Init!$C$9 -> 2024 | F4: =E4+1 -> 2025 | G4: =F4+1 -> 2026 | H4: =G4+1 -> 2027 | I4: =H4+1 -> 2028 | J4: =I4+1 -> 2029 | L4: =DATE($E$4-1,10,1) -> 2023-10-01 | M4: =EOMONTH(L4,0)+1 -> 2023-11-01 | N4: =EOMONTH(M4,0)+1 -> 2023-12-01 | O4: 2024-01-01 | P4: 2024-02-01 | Q4: 2024-03-01 | R4: 2024-04-01 | S4: 2024-05-01 | T4: 2024-06-01 | U4: 2024-07-01 | V4: 2024-08-01 | W4: 2024-09-01 | X4: 2024-10-01 | Y4: 2024-11-01 | Z4: 2024-12-01 | AA4: 2025-01-01 | AB4: 2025-02-01 | AC4: 2025-03-01 | AD4: 2025-04-01 | AE4: 2025-05-01 | AF4: 2025-06-01 | AG4: 2025-07-01 | AH4: 2025-08-01 | AI4: 2025-09-01 | AJ4: 2025-10-01 | AK4: 2025-11-01 | AL4: 2025-12-01 | AM4: 2026-01-01 | AN4: 2026-02-01 | AO4: 2026-03-01 | AP4: 2026-04-01 | AQ4: 2026-05-01 | AR4: 2026-06-01 | AS4: 2026-07-01 | AT4: 2026-08-01 | AU4: 2026-09-01 | AV4: 2026-10-01 | AW4: 2026-11-01 | AX4: 2026-12-01 | AY4: 2027-01-01 | AZ4: 2027-02-01 | BA4: 2027-03-01 | BB4: 2027-04-01 | BC4: 2027-05-01 | BD4: 2027-06-01 | BE4: 2027-07-01 | BF4: 2027-08-01 | BG4: 2027-09-01 | BH4: 2027-10-01 | BI4: 2027-11-01 | BJ4: 2027-12-01 | BK4: 2028-01-01 | BL4: 2028-02-01 | BM4: 2028-03-01 | BN4: 2028-04-01 | BO4: 2028-05-01 | BP4: 2028-06-01 | BQ4: 2028-07-01 | BR4: 2028-08-01 | BS4: 2028-09-01 | BT4: 2028-10-01 | BU4: 2028-11-01 | BV4: 2028-12-01 | BW4: 2029-01-01 | BX4: 2029-02-01 | BY4: 2029-03-01 | BZ4: =EOMONTH(BY4,0)+1 -> 2029-04-01 | CA4: 2029-05-01 | CB4: 2029-06-01 | CC4: 2029-07-01 | CD4: 2029-08-01 | CE4: 2029-09-01 | CG4: =DATE($E$4-1,10,1) -> 2023-10-01 | CH4: =EOMONTH(CG4,0)+1 -> 2023-11-01 | CI4: =EOMONTH(CH4,0)+1 -> 2023-12-01 | CJ4: 2024-01-01 | CK4: 2024-02-01 | CL4: 2024-03-01 | CM4: 2024-04-01 | CN4: 2024-05-01 | CO4: 2024-06-01 | CP4: 2024-07-01 | CQ4: 2024-08-01 | CR4: 2024-09-01 | CS4: 2024-10-01 | CT4: 2024-11-01 | CU4: 2024-12-01 | CV4: 2025-01-01 | CW4: 2025-02-01 | CX4: 2025-03-01 | CY4: 2025-04-01 | CZ4: 2025-05-01 | DA4: 2025-06-01 | DB4: 2025-07-01 | DC4: 2025-08-01 | DD4: 2025-09-01 | DE4: 2025-10-01 | DF4: 2025-11-01 | DG4: 2025-12-01 | DH4: 2026-01-01 | DI4: 2026-02-01 | DJ4: 2026-03-01 | DK4: 2026-04-01 | DL4: 2026-05-01 | DM4: 2026-06-01 | DN4: 2026-07-01 | DO4: 2026-08-01 | DP4: 2026-09-01 | DQ4: 2026-10-01 | DR4: 2026-11-01 | DS4: 2026-12-01 | DT4: 2027-01-01 | DU4: 2027-02-01 | DV4: 2027-03-01 | DW4: 2027-04-01 | DX4: 2027-05-01 | DY4: 2027-06-01 | DZ4: 2027-07-01 | EA4: 2027-08-01 | EB4: 2027-09-01 | EC4: 2027-10-01 | ED4: 2027-11-01 | EE4: 2027-12-01 | EF4: 2028-01-01 | EG4: 2028-02-01 | EH4: 2028-03-01 | EI4: 2028-04-01 | EJ4: 2028-05-01 | EK4: 2028-06-01 | EL4: 2028-07-01 | EM4: 2028-08-01 | EN4: 2028-09-01 | EO4: 2028-10-01 | EP4: 2028-11-01 | EQ4: 2028-12-01 | ER4: 2029-01-01 | ES4: 2029-02-01 | ET4: 2029-03-01 | EU4: =EOMONTH(ET4,0)+1 -> 2029-04-01 | EV4: 2029-05-01 | EW4: 2029-06-01 | EX4: 2029-07-01 | EY4: 2029-08-01 | EZ4: 2029-09-01
A5: Preference | D5: PRE | E5: =+SUM(E6:E10) -> 61127527.83 | F5: 62837585.88 | G5: 62837585.88 | H5: 62837585.88 | I5: 62837585.88 | J5: 62837585.88 | L5: 2706689.908 | M5: 3132135.216 | N5: 3606257.779 | O5: 3760610.659 | P5: 3268509.484 | Q5: 3251220.806 | R5: 2718652.605 | S5: 2776626.791 | T5: 2735513.36 | U5: 2917864.202 | V5: 3012790.82 | W5: 2613531.336 | X5: 2850530.104 | Y5: 3216267.192 | Z5: 3689927.94 | AA5: 3851458.583 | AB5: 3282893.866 | AC5: 3346700.522 | AD5: 2827256.732 | AE5: 2745897.103 | AF5: 2858597.507 | AG5: 3033612.386 | AH5: 3052514.643 | AI5: 2747221.706 | AJ5: 2850530.104 | AK5: 3216267.192 | AL5: 3689927.94 | AM5: 3851458.583 | AN5: 3282893.866 | AO5: 3346700.522 | AP5: 2827256.732 | AQ5: 2745897.103 | AR5: 2858597.507 | AS5: 3033612.386 | AT5: 3052514.643 | AU5: 2747221.706 | AV5: 2850530.104 | AW5: 3216267.192 | AX5: 3689927.94 | AY5: 3851458.583 | AZ5: 3282893.866 | BA5: 3346700.522 | BB5: 2827256.732 | BC5: 2745897.103 | BD5: 2858597.507 | BE5: 3033612.386 | BF5: 3052514.643 | BG5: 2747221.706 | BH5: 2850530.104 | BI5: 3216267.192 | BJ5: 3689927.94 | BK5: 3851458.583 | BL5: 3282893.866 | BM5: 3346700.522 | BN5: 2827256.732 | BO5: 2745897.103 | BP5: 2858597.507 | BQ5: 3033612.386 | BR5: 3052514.643 | BS5: 2747221.706 | BT5: 2850530.104 | BU5: 3216267.192 | BV5: 3689927.94 | BW5: 3851458.583 | BX5: 3282893.866 | BY5: 3346700.522 | BZ5: 2827256.732 | CA5: 2745897.103 | CB5: 2858597.507 | CC5: 3033612.386 | CD5: 3052514.643 | CE5: 2747221.706 | CG5: 1811819.205 | CH5: 2184724 | CI5: 2625701.135 | CJ5: 2589514.268 | CK5: 2134510.279 | CL5: 2208969.739 | CM5: 1799104.006 | CN5: 1878891.2 | CO5: 1756621.42 | CP5: 1961942.541 | CQ5: 1808354.831 | CR5: 1866972.238 | CS5: 1823081.254 | CT5: 2254008.722 | CU5: 2702120.73 | CV5: 2665847.051 | CW5: 2168825.395 | CX5: 2276267.825 | CY5: 1869487.838 | CZ5: 1886661.727 | DA5: 1822607.592 | DB5: 2048994.651 | DC5: 1925159.804 | DD5: 1891645.013 | DE5: 1823081.254 | DF5: 2254008.722 | DG5: 2702120.73 | DH5: 2665847.051 | DI5: 2168825.395 | DJ5: 2276267.825 | DK5: 1869487.838 | DL5: 1886661.727 | DM5: 1822607.592 | DN5: 2048994.651 | DO5: 1925159.804 | DP5: 1891645.013 | DQ5: 1823081.254 | DR5: 2254008.722 | DS5: 2702120.73 | DT5: 2665847.051 | DU5: 2168825.395 | DV5: 2276267.825 | DW5: 1869487.838 | DX5: 1886661.727 | DY5: 1822607.592 | DZ5: 2048994.651 | EA5: 1925159.804 | EB5: 1891645.013 | EC5: 1823081.254 | ED5: 2254008.722 | EE5: 2702120.73 | EF5: 2665847.051 | EG5: 2168825.395 | EH5: 2276267.825 | EI5: 1869487.838 | EJ5: 1886661.727 | EK5: 1822607.592 | EL5: 2048994.651 | EM5: 1925159.804 | EN5: 1891645.013 | EO5: 1823081.254 | EP5: 2254008.722 | EQ5: 2702120.73 | ER5: 2665847.051 | ES5: 2168825.395 | ET5: 2276267.825 | EU5: 1869487.838 | EV5: 1886661.727 | EW5: 1822607.592 | EX5: 2048994.651 | EY5: 1925159.804 | EZ5: 1891645.013
B6: Block | D6: PRE_BLK | E6: =+SUM(L6:W6,CG6:CR6) -> 4680018.576 | F6: =+SUM(X6:AI6,CS6:DD6) -> 4649142.24 | G6: =+SUM(AJ6:AU6,DE6:DP6) -> 4649142.24 | H6: =+SUM(AV6:BG6,DQ6:EB6) -> 4649142.24 | I6: =+SUM(BH6:BS6,EC6:EN6) -> 4649142.24 | J6: =+SUM(BT6:CE6,EO6:EZ6) -> 4649142.24 | L6: 217353.1256 | M6: 348159.5973 | N6: 358722.8599 | O6: 395977.1904 | P6: 337184.8795 | Q6: 352250.3216 | R6: 166731.6123 | S6: 61912.89086 | T6: 9194.834707 | U6: 140817.9657 | V6: 158409.0183 | W6: 251639.5943 | X6: 216056.028 | Y6: 345829.9292 | Z6: 356342.6232 | AA6: 393375.7759 | AB6: 334847.482 | AC6: 349920.3304 | AD6: 165613.9894 | AE6: 61526.65716 | AF6: 9169.712208 | AG6: 139912.2425 | AH6: 157168.222 | AI6: 250333.9424 | AJ6: 216056.028 | AK6: 345829.9292 | AL6: 356342.6232 | AM6: 393375.7759 | AN6: 334847.482 | AO6: 349920.3304 | AP6: 165613.9894 | AQ6: 61526.65716 | AR6: 9169.712208 | AS6: 139912.2425 | AT6: 157168.222 | AU6: 250333.9424 | AV6: 216056.028 | AW6: 345829.9292 | AX6: 356342.6232 | AY6: 393375.7759 | AZ6: 334847.482 | BA6: 349920.3304 | BB6: 165613.9894 | BC6: 61526.65716 | BD6: 9169.712208 | BE6: 139912.2425 | BF6: 157168.222 | BG6: 250333.9424 | BH6: 216056.028 | BI6: 345829.9292 | BJ6: 356342.6232 | BK6: 393375.7759 | BL6: 334847.482 | BM6: 349920.3304 | BN6: 165613.9894 | BO6: 61526.65716 | BP6: 9169.712208 | BQ6: 139912.2425 | BR6: 157168.222 | BS6: 250333.9424 | BT6: 216056.028 | BU6: 345829.9292 | BV6: 356342.6232 | BW6: 393375.7759 | BX6: 334847.482 | BY6: 349920.3304 | BZ6: 165613.9894 | CA6: 61526.65716 | CB6: 9169.712208 | CC6: 139912.2425 | CD6: 157168.222 | CE6: 250333.9424 | CG6: 145426.1886 | CH6: 234647.9984 | CI6: 242324.8436 | CJ6: 266913.615 | CK6: 226392.6164 | CL6: 237239.3682 | CM6: 111238.2434 | CN6: 41275.26058 | CO6: 6129.889805 | CP6: 94464.40811 | CQ6: 105890.7813 | CR6: 169721.472 | CS6: 144284.9339 | CT6: 233087.9422 | CU6: 240729.3408 | CV6: 265171.3364 | CW6: 225037.5462 | CX6: 235679.4675 | CY6: 110492.9324 | CZ6: 41017.77144 | DA6: 6113.141472 | DB6: 93858.99216 | DC6: 105378.3512 | DD6: 168193.5499 | DE6: 144284.9339 | DF6: 233087.9422 | DG6: 240729.3408 | DH6: 265171.3364 | DI6: 225037.5462 | DJ6: 235679.4675 | DK6: 110492.9324 | DL6: 41017.77144 | DM6: 6113.141472 | DN6: 93858.99216 | DO6: 105378.3512 | DP6: 168193.5499 | DQ6: 144284.9339 | DR6: 233087.9422 | DS6: 240729.3408 | DT6: 265171.3364 | DU6: 225037.5462 | DV6: 235679.4675 | DW6: 110492.9324 | DX6: 41017.77144 | DY6: 6113.141472 | DZ6: 93858.99216 | EA6: 105378.3512 | EB6: 168193.5499 | EC6: 144284.9339 | ED6: 233087.9422 | EE6: 240729.3408 | EF6: 265171.3364 | EG6: 225037.5462 | EH6: 235679.4675 | EI6: 110492.9324 | EJ6: 41017.77144 | EK6: 6113.141472 | EL6: 93858.99216 | EM6: 105378.3512 | EN6: 168193.5499 | EO6: 144284.9339 | EP6: 233087.9422 | EQ6: 240729.3408 | ER6: 265171.3364 | ES6: 225037.5462 | ET6: 235679.4675 | EU6: 110492.9324 | EV6: 41017.77144 | EW6: 6113.141472 | EX6: 93858.99216 | EY6: 105378.3512 | EZ6: 168193.5499
B7: Slice Block | D7: PRE_BLK | E7: =+SUM(L7:W7,CG7:CR7) -> 10827952.78 | F7: =+SUM(X7:AI7,CS7:DD7) -> 11067431.05 | G7: =+SUM(AJ7:AU7,DE7:DP7) -> 11067431.05 | H7: =+SUM(AV7:BG7,DQ7:EB7) -> 11067431.05 | I7: =+SUM(BH7:BS7,EC7:EN7) -> 11067431.05 | J7: =+SUM(BT7:CE7,EO7:EZ7) -> 11067431.05 | L7: 472702.8866 | M7: 528760.8941 | N7: 604143.6006 | O7: 621507.2835 | P7: 532411.8436 | Q7: 530664.718 | R7: 489862.26 | S7: 471451.5674 | T7: 433446.5093 | U7: 465954.8034 | V7: 480804.3353 | W7: 419945.369 | X7: 502263.6446 | Y7: 540141.4347 | Z7: 616513.6259 | AA7: 634362.8169 | AB7: 540645.3591 | AC7: 542095.8046 | AD7: 501003.378 | AE7: 481999.9857 | AF7: 443385.2593 | AG7: 476737.8609 | AH7: 473811.385 | AI7: 447749.998 | AJ7: 502263.6446 | AK7: 540141.4347 | AL7: 616513.6259 | AM7: 634362.8169 | AN7: 540645.3591 | AO7: 542095.8046 | AP7: 501003.378 | AQ7: 481999.9857 | AR7: 443385.2593 | AS7: 476737.8609 | AT7: 473811.385 | AU7: 447749.998 | AV7: 502263.6446 | AW7: 540141.4347 | AX7: 616513.6259 | AY7: 634362.8169 | AZ7: 540645.3591 | BA7: 542095.8046 | BB7: 501003.378 | BC7: 481999.9857 | BD7: 443385.2593 | BE7: 476737.8609 | BF7: 473811.385 | BG7: 447749.998 | BH7: 502263.6446 | BI7: 540141.4347 | BJ7: 616513.6259 | BK7: 634362.8169 | BL7: 540645.3591 | BM7: 542095.8046 | BN7: 501003.378 | BO7: 481999.9857 | BP7: 443385.2593 | BQ7: 476737.8609 | BR7: 473811.385 | BS7: 447749.998 | BT7: 502263.6446 | BU7: 540141.4347 | BV7: 616513.6259 | BW7: 634362.8169 | BX7: 540645.3591 | BY7: 542095.8046 | BZ7: 501003.378 | CA7: 481999.9857 | CB7: 443385.2593 | CC7: 476737.8609 | CD7: 473811.385 | CE7: 447749.998 | CG7: 372708.0452 | CH7: 424330.6175 | CI7: 519563.4965 | CJ7: 490034.5889 | CK7: 393984.7643 | CL7: 417133.0836 | CM7: 357976.2669 | CN7: 371721.4281 | CO7: 346757.2074 | CP7: 367387.4411 | CQ7: 347247.5755 | CR7: 367452.1979 | CS7: 362745.9655 | CT7: 433463.5013 | CU7: 530201.7183 | CV7: 500170.6826 | CW7: 405484.0193 | CX7: 426118.5772 | CY7: 366117.8532 | CZ7: 380038.4502 | DA7: 354708.2075 | DB7: 375889.4672 | DC7: 373582.0536 | DD7: 358199.9984 | DE7: 362745.9655 | DF7: 433463.5013 | DG7: 530201.7183 | DH7: 500170.6826 | DI7: 405484.0193 | DJ7: 426118.5772 | DK7: 366117.8532 | DL7: 380038.4502 | DM7: 354708.2075 | DN7: 375889.4672 | DO7: 373582.0536 | DP7: 358199.9984 | DQ7: 362745.9655 | DR7: 433463.5013 | DS7: 530201.7183 | DT7: 500170.6826 | DU7: 405484.0193 | DV7: 426118.5772 | DW7: 366117.8532 | DX7: 380038.4502 | DY7: 354708.2075 | DZ7: 375889.4672 | EA7: 373582.0536 | EB7: 358199.9984 | EC7: 362745.9655 | ED7: 433463.5013 | EE7: 530201.7183 | EF7: 500170.6826 | EG7: 405484.0193 | EH7: 426118.5772 | EI7: 366117.8532 | EJ7: 380038.4502 | EK7: 354708.2075 | EL7: 375889.4672 | EM7: 373582.0536 | EN7: 358199.9984 | EO7: 362745.9655 | EP7: 433463.5013 | EQ7: 530201.7183 | ER7: 500170.6826 | ES7: 405484.0193 | ET7: 426118.5772 | EU7: 366117.8532 | EV7: 380038.4502 | EW7: 354708.2075 | EX7: 375889.4672 | EY7: 373582.0536 | EZ7: 358199.9984
B8: Slice | D8: PRE_SNB | E8: =+SUM(L8:W8,CG8:CR8) -> 12307662.64 | F8: =+SUM(X8:AI8,CS8:DD8) -> 12154961.03 | G8: =+SUM(AJ8:AU8,DE8:DP8) -> 12154961.03 | H8: 12154961.03 | I8: 12154961.03 | J8: 12154961.03 | L8: 495638.8313 | M8: 645334.828 | N8: 696004.1832 | O8: 738734.1542 | P8: 653976.2128 | Q8: 679636.4768 | R8: 530048.3541 | S8: 727566.5898 | T8: 687809.0158 | U8: 595510.7326 | V8: 609764.9327 | W8: 506835.2986 | X8: 512102.3189 | Y8: 643531.1248 | Z8: 693933.5774 | AA8: 736169.9817 | AB8: 626599.2857 | AC8: 682440.5779 | AD8: 544796.8946 | AE8: 603674.5816 | AF8: 717732.6655 | AG8: 615396.9597 | AH8: 581898.8867 | AI8: 525579.464 | AJ8: 512102.3189 | AK8: 643531.1248 | AL8: 693933.5774 | AM8: 736169.9817 | AN8: 626599.2857 | AO8: 682440.5779 | AP8: 544796.8946 | AQ8: 603674.5816 | AR8: 717732.6655 | AS8: 615396.9597 | AT8: 581898.8867 | AU8: 525579.464 | AV8: 512102.3189 | AW8: 643531.1248 | AX8: 693933.5774 | AY8: 736169.9817 | AZ8: 626599.2857 | BA8: 682440.5779 | BB8: 544796.8946 | BC8: 603674.5816 | BD8: 717732.6655 | BE8: 615396.9597 | BF8: 581898.8867 | BG8: 525579.464 | BH8: 512102.3189 | BI8: 643531.1248 | BJ8: 693933.5774 | BK8: 736169.9817 | BL8: 626599.2857 | BM8: 682440.5779 | BN8: 544796.8946 | BO8: 603674.5816 | BP8: 717732.6655 | BQ8: 615396.9597 | BR8: 581898.8867 | BS8: 525579.464 | BT8: 512102.3189 | BU8: 643531.1248 | BV8: 693933.5774 | BW8: 736169.9817 | BX8: 626599.2857 | BY8: 682440.5779 | BZ8: 544796.8946 | CA8: 603674.5816 | CB8: 717732.6655 | CC8: 615396.9597 | CD8: 581898.8867 | CE8: 525579.464 | CG8: 337601.1821 | CH8: 416648.9613 | CI8: 450082.4356 | CJ8: 451544.2211 | CK8: 372673.1898 | CL8: 439303.6877 | CM8: 344172.893 | CN8: 461028.0986 | CO8: 417735.7559 | CP8: 359501.195 | CQ8: 333674.5642 | CR8: 356836.8458 | CS8: 320301.2998 | CT8: 418729.9677 | CU8: 452460.3367 | CV8: 455793.3063 | CW8: 362332.073 | CX8: 435771.1034 | CY8: 346836.2348 | CZ8: 398509.7195 | DA8: 415035.9874 | DB8: 372769.6354 | DC8: 353198.734 | DD8: 339366.3163 | DE8: 320301.2998 | DF8: 418729.9677 | DG8: 452460.3367 | DH8: 455793.3063 | DI8: 362332.073 | DJ8: 435771.1034 | DK8: 346836.2348 | DL8: 398509.7195 | DM8: 415035.9874 | DN8: 372769.6354 | DO8: 353198.734 | DP8: 339366.3163 | DQ8: 320301.2998 | DR8: 418729.9677 | DS8: 452460.3367 | DT8: 455793.3063 | DU8: 362332.073 | DV8: 435771.1034 | DW8: 346836.2348 | DX8: 398509.7195 | DY8: 415035.9874 | DZ8: 372769.6354 | EA8: 353198.734 | EB8: 339366.3163 | EC8: 320301.2998 | ED8: 418729.9677 | EE8: 452460.3367 | EF8: 455793.3063 | EG8: 362332.073 | EH8: 435771.1034 | EI8: 346836.2348 | EJ8: 398509.7195 | EK8: 415035.9874 | EL8: 372769.6354 | EM8: 353198.734 | EN8: 339366.3163 | EO8: 320301.2998 | EP8: 418729.9677 | EQ8: 452460.3367 | ER8: 455793.3063 | ES8: 362332.073 | ET8: 435771.1034 | EU8: 346836.2348 | EV8: 398509.7195 | EW8: 415035.9874 | EX8: 372769.6354 | EY8: 353198.734 | EZ8: 339366.3163
B9: Load Following | D9: PRE_LDF | E9: 31516145.57 | F9: 31552568.64 | G9: =+SUM(AJ9:AU9,DE9:DP9) -> 31552568.64 | H9: 31552568.64 | I9: 31552568.64 | J9: 31552568.64 | L9: 1435956.413 | M9: 1528194.946 | N9: 1865552.366 | O9: 1919314.134 | P9: 1663026.136 | Q9: 1603729.384 | R9: 1447121.726 | S9: 1430635.588 | T9: 1523364.502 | U9: 1630424.938 | V9: 1675489.3 | W9: 1356443.057 | X9: 1451791.193 | Y9: 1530973.928 | Z9: 1867240.226 | AA9: 1925420.02 | AB9: 1631071.596 | AC9: 1610212.477 | AD9: 1453847.782 | AE9: 1436578.574 | AF9: 1532492.202 | AG9: 1639379.665 | AH9: 1677523.778 | AI9: 1367562.348 | AJ9: 1451791.193 | AK9: 1530973.928 | AL9: 1867240.226 | AM9: 1925420.02 | AN9: 1631071.596 | AO9: 1610212.477 | AP9: 1453847.782 | AQ9: 1436578.574 | AR9: 1532492.202 | AS9: 1639379.665 | AT9: 1677523.778 | AU9: 1367562.348 | AV9: 1451791.193 | AW9: 1530973.928 | AX9: 1867240.226 | AY9: 1925420.02 | AZ9: 1631071.596 | BA9: 1610212.477 | BB9: 1453847.782 | BC9: 1436578.574 | BD9: 1532492.202 | BE9: 1639379.665 | BF9: 1677523.778 | BG9: 1367562.348 | BH9: 1451791.193 | BI9: 1530973.928 | BJ9: 1867240.226 | BK9: 1925420.02 | BL9: 1631071.596 | BM9: 1610212.477 | BN9: 1453847.782 | BO9: 1436578.574 | BP9: 1532492.202 | BQ9: 1639379.665 | BR9: 1677523.778 | BS9: 1367562.348 | BT9: 1451791.193 | BU9: 1530973.928 | BV9: 1867240.226 | BW9: 1925420.02 | BX9: 1631071.596 | BY9: 1610212.477 | BZ9: 1453847.782 | CA9: 1436578.574 | CB9: 1532492.202 | CC9: 1639379.665 | CD9: 1677523.778 | CE9: 1367562.348 | CG9: 889054.8359 | CH9: 1043541.366 | CI9: 1343385.159 | CJ9: 1313937.275 | CK9: 1080849.087 | CL9: 1048554.903 | CM9: 923676.4852 | CN9: 937819.2989 | CO9: 920687.4709 | CP9: 1073485.216 | CQ9: 957751.9754 | CR9: 904150.0072 | CS9: 874200.7781 | CT9: 1043703.396 | CU9: 1344680.691 | CV9: 1316875.128 | CW9: 1063675.103 | CX9: 1051353.535 | CY9: 927655.936 | CZ9: 939285.9661 | DA9: 922130.5687 | DB9: 1078625.864 | DC9: 965180.9805 | DD9: 901106.9073 | DE9: 874200.7781 | DF9: 1043703.396 | DG9: 1344680.691 | DH9: 1316875.128 | DI9: 1063675.103 | DJ9: 1051353.535 | DK9: 927655.936 | DL9: 939285.9661 | DM9: 922130.5687 | DN9: 1078625.864 | DO9: 965180.9805 | DP9: 901106.9073 | DQ9: 874200.7781 | DR9: 1043703.396 | DS9: 1344680.691 | DT9: 1316875.128 | DU9: 1063675.103 | DV9: 1051353.535 | DW9: 927655.936 | DX9: 939285.9661 | DY9: 922130.5687 | DZ9: 1078625.864 | EA9: 965180.9805 | EB9: 901106.9073 | EC9: 874200.7781 | ED9: 1043703.396 | EE9: 1344680.691 | EF9: 1316875.128 | EG9: 1063675.103 | EH9: 1051353.535 | EI9: 927655.936 | EJ9: 939285.9661 | EK9: 922130.5687 | EL9: 1078625.864 | EM9: 965180.9805 | EN9: 901106.9073 | EO9: 874200.7781 | EP9: 1043703.396 | EQ9: 1344680.691 | ER9: 1316875.128 | ES9: 1063675.103 | ET9: 1051353.535 | EU9: 927655.936 | EV9: 939285.9661 | EW9: 922130.5687 | EX9: 1078625.864 | EY9: 965180.9805 | EZ9: 901106.9073
B10: Tier 2 | D10: PRE_T2 | E10: 1795748.256 | F10: 3413482.92 | G10: =+SUM(AJ10:AU10,DE10:DP10) -> 3413482.92 | H10: 3413482.92 | I10: 3413482.92 | J10: 3413482.92 | L10: 85038.65148 | M10: 81684.95084 | N10: 81834.76906 | O10: 85077.89661 | P10: 81910.41148 | Q10: 84939.90615 | R10: 84888.65255 | S10: 85060.15498 | T10: 81698.49755 | U10: 85155.76266 | V10: 88323.23347 | W10: 78668.01723 | X10: 168316.9198 | Y10: 155790.775 | Z10: 155897.8875 | AA10: 162129.9881 | AB10: 149730.1434 | AC10: 162031.3318 | AD10: 161994.688 | AE10: 162117.3037 | AF10: 155817.668 | AG10: 162185.6584 | AH10: 162112.3709 | AI10: 155995.954 | AJ10: 168316.9198 | AK10: 155790.775 | AL10: 155897.8875 | AM10: 162129.9881 | AN10: 149730.1434 | AO10: 162031.3318 | AP10: 161994.688 | AQ10: 162117.3037 | AR10: 155817.668 | AS10: 162185.6584 | AT10: 162112.3709 | AU10: 155995.954 | AV10: 168316.9198 | AW10: 155790.775 | AX10: 155897.8875 | AY10: 162129.9881 | AZ10: 149730.1434 | BA10: 162031.3318 | BB10: 161994.688 | BC10: 162117.3037 | BD10: 155817.668 | BE10: 162185.6584 | BF10: 162112.3709 | BG10: 155995.954 | BH10: 168316.9198 | BI10: 155790.775 | BJ10: 155897.8875 | BK10: 162129.9881 | BL10: 149730.1434 | BM10: 162031.3318 | BN10: 161994.688 | BO10: 162117.3037 | BP10: 155817.668 | BQ10: 162185.6584 | BR10: 162112.3709 | BS10: 155995.954 | BT10: 168316.9198 | BU10: 155790.775 | BV10: 155897.8875 | BW10: 162129.9881 | BX10: 149730.1434 | BY10: 162031.3318 | BZ10: 161994.688 | CA10: 162117.3037 | CB10: 155817.668 | CC10: 162185.6584 | CD10: 162112.3709 | CE10: 155995.954 | CG10: 67028.95357 | CH10: 65555.05643 | CI10: 70345.19966 | CJ10: 67084.56792 | CK10: 60610.62154 | CL10: 66738.69605 | CM10: 62040.11765 | CN10: 67047.11337 | CO10: 65311.09563 | CP10: 67104.28085 | CQ10: 63789.93443 | CR10: 68811.71485 | CS10: 121548.2764 | CT10: 125023.9147 | CU10: 134048.6431 | CV10: 127836.5974 | CW10: 112296.6528 | CX10: 127345.1417 | CY10: 118384.8822 | CZ10: 127809.8193 | DA10: 124619.6866 | DB10: 127850.6912 | DC10: 127819.6849 | DD10: 124778.2413 | DE10: 121548.2764 | DF10: 125023.9147 | DG10: 134048.6431 | DH10: 127836.5974 | DI10: 112296.6528 | DJ10: 127345.1417 | DK10: 118384.8822 | DL10: 127809.8193 | DM10: 124619.6866 | DN10: 127850.6912 | DO10: 127819.6849 | DP10: 124778.2413 | DQ10: 121548.2764 | DR10: 125023.9147 | DS10: 134048.6431 | DT10: 127836.5974 | DU10: 112296.6528 | DV10: 127345.1417 | DW10: 118384.8822 | DX10: 127809.8193 | DY10: 124619.6866 | DZ10: 127850.6912 | EA10: 127819.6849 | EB10: 124778.2413 | EC10: 121548.2764 | ED10: 125023.9147 | EE10: 134048.6431 | EF10: 127836.5974 | EG10: 112296.6528 | EH10: 127345.1417 | EI10: 118384.8822 | EJ10: 127809.8193 | EK10: 124619.6866 | EL10: 127850.6912 | EM10: 127819.6849 | EN10: 124778.2413 | EO10: 121548.2764 | EP10: 125023.9147 | EQ10: 134048.6431 | ER10: 127836.5974 | ES10: 112296.6528 | ET10: 127345.1417 | EU10: 118384.8822 | EV10: 127809.8193 | EW10: 124619.6866 | EX10: 127850.6912 | EY10: 127819.6849 | EZ10: 124778.2413
A11: Industrial | D11: IND | E11: =+SUM(E12:E13) -> 96624 | F11: 96360 | G11: 96360 | H11: 96360 | I11: 96360 | J11: 96360 | L11: 4660.406 | M11: 4350.871 | N11: 4408.261 | O11: 4424.143 | P11: 4303.342 | Q11: 4657.349 | R11: 4477.511 | S11: 4478.292 | T11: 4524.994 | U11: 4421.576 | V11: 4702.721 | W11: 4189.254 | X11: 4660.406 | Y11: 4350.871 | Z11: 4408.261 | AA11: 4424.143 | AB11: 4154.952 | AC11: 4657.349 | AD11: 4477.511 | AE11: 4478.292 | AF11: 4524.994 | AG11: 4421.576 | AH11: 4702.721 | AI11: 4189.254 | AJ11: 4660.406 | AK11: 4350.871 | AL11: 4408.261 | AM11: 4424.143 | AN11: 4154.952 | AO11: 4657.349 | AP11: 4477.511 | AQ11: 4478.292 | AR11: 4524.994 | AS11: 4421.576 | AT11: 4702.721 | AU11: 4189.254 | AV11: 4660.406 | AW11: 4350.871 | AX11: 4408.261 | AY11: 4424.143 | AZ11: 4154.952 | BA11: 4657.349 | BB11: 4477.511 | BC11: 4478.292 | BD11: 4524.994 | BE11: 4421.576 | BF11: 4702.721 | BG11: 4189.254 | BH11: 4660.406 | BI11: 4350.871 | BJ11: 4408.261 | BK11: 4424.143 | BL11: 4154.952 | BM11: 4657.349 | BN11: 4477.511 | BO11: 4478.292 | BP11: 4524.994 | BQ11: 4421.576 | BR11: 4702.721 | BS11: 4189.254 | BT11: 4660.406 | BU11: 4350.871 | BV11: 4408.261 | BW11: 4424.143 | BX11: 4154.952 | BY11: 4657.349 | BZ11: 4477.511 | CA11: 4478.292 | CB11: 4524.994 | CC11: 4421.576 | CD11: 4702.721 | CE11: 4189.254 | CG11: 3523.594 | CH11: 3580.129 | CI11: 3775.739 | CJ11: 3759.857 | CK11: 3352.658 | CL11: 3515.651 | CM11: 3442.489 | CN11: 3705.708 | CO11: 3395.006 | CP11: 3762.424 | CQ11: 3481.279 | CR11: 3730.746 | CS11: 3523.594 | CT11: 3580.129 | CU11: 3775.739 | CV11: 3759.857 | CW11: 3237.048 | CX11: 3515.651 | CY11: 3442.489 | CZ11: 3705.708 | DA11: 3395.006 | DB11: 3762.424 | DC11: 3481.279 | DD11: 3730.746 | DE11: 3523.594 | DF11: 3580.129 | DG11: 3775.739 | DH11: 3759.857 | DI11: 3237.048 | DJ11: 3515.651 | DK11: 3442.489 | DL11: 3705.708 | DM11: 3395.006 | DN11: 3762.424 | DO11: 3481.279 | DP11: 3730.746 | DQ11: 3523.594 | DR11: 3580.129 | DS11: 3775.739 | DT11: 3759.857 | DU11: 3237.048 | DV11: 3515.651 | DW11: 3442.489 | DX11: 3705.708 | DY11: 3395.006 | DZ11: 3762.424 | EA11: 3481.279 | EB11: 3730.746 | EC11: 3523.594 | ED11: 3580.129 | EE11: 3775.739 | EF11: 3759.857 | EG11: 3237.048 | EH11: 3515.651 | EI11: 3442.489 | EJ11: 3705.708 | EK11: 3395.006 | EL11: 3762.424 | EM11: 3481.279 | EN11: 3730.746 | EO11: 3523.594 | EP11: 3580.129 | EQ11: 3775.739 | ER11: 3759.857 | ES11: 3237.048 | ET11: 3515.651 | EU11: 3442.489 | EV11: 3705.708 | EW11: 3395.006 | EX11: 3762.424 | EY11: 3481.279 | EZ11: 3730.746
B12: Smelter | D12: IND_SMT | E12: 0 | F12: 0 | G12: =+SUM(AJ12:AU12,DE12:DP12) -> 0 | H12: 0 | I12: 0 | J12: 0 | L12: 0 | M12: 0 | N12: 0 | O12: 0 | P12: 0 | Q12: 0 | R12: 0 | S12: 0 | T12: 0 | U12: 0 | V12: 0 | W12: 0 | X12: 0 | Y12: 0 | Z12: 0 | AA12: 0 | AB12: 0 | AC12: 0 | AD12: 0 | AE12: 0 | AF12: 0 | AG12: 0 | AH12: 0 | AI12: 0 | AJ12: 0 | AK12: 0 | AL12: 0 | AM12: 0 | AN12: 0 | AO12: 0 | AP12: 0 | AQ12: 0 | AR12: 0 | AS12: 0 | AT12: 0 | AU12: 0 | AV12: 0 | AW12: 0 | AX12: 0 | AY12: 0 | AZ12: 0 | BA12: 0 | BB12: 0 | BC12: 0 | BD12: 0 | BE12: 0 | BF12: 0 | BG12: 0 | BH12: 0 | BI12: 0 | BJ12: 0 | BK12: 0 | BL12: 0 | BM12: 0 | BN12: 0 | BO12: 0 | BP12: 0 | BQ12: 0 | BR12: 0 | BS12: 0 | BT12: 0 | BU12: 0 | BV12: 0 | BW12: 0 | BX12: 0 | BY12: 0 | BZ12: 0 | CA12: 0 | CB12: 0 | CC12: 0 | CD12: 0 | CE12: 0 | CG12: 0 | CH12: 0 | CI12: 0 | CJ12: 0 | CK12: 0 | CL12: 0 | CM12: 0 | CN12: 0 | CO12: 0 | CP12: 0 | CQ12: 0 | CR12: 0 | CS12: 0 | CT12: 0 | CU12: 0 | CV12: 0 | CW12: 0 | CX12: 0 | CY12: 0 | CZ12: 0 | DA12: 0 | DB12: 0 | DC12: 0 | DD12: 0 | DE12: 0 | DF12: 0 | DG12: 0 | DH12: 0 | DI12: 0 | DJ12: 0 | DK12: 0 | DL12: 0 | DM12: 0 | DN12: 0 | DO12: 0 | DP12: 0 | DQ12: 0 | DR12: 0 | DS12: 0 | DT12: 0 | DU12: 0 | DV12: 0 | DW12: 0 | DX12: 0 | DY12: 0 | DZ12: 0 | EA12: 0 | EB12: 0 | EC12: 0 | ED12: 0 | EE12: 0 | EF12: 0 | EG12: 0 | EH12: 0 | EI12: 0 | EJ12: 0 | EK12: 0 | EL12: 0 | EM12: 0 | EN12: 0 | EO12: 0 | EP12: 0 | EQ12: 0 | ER12: 0 | ES12: 0 | ET12: 0 | EU12: 0 | EV12: 0 | EW12: 0 | EX12: 0 | EY12: 0 | EZ12: 0
B13: Other Industrial | D13: IND_OTH | E13: 96624 | F13: 96360 | G13: 96360 | H13: 96360 | I13: 96360 | J13: 96360 | L13: 4660.406 | M13: 4350.871 | N13: 4408.261 | O13: 4424.143 | P13: 4303.342 | Q13: 4657.349 | R13: 4477.511 | S13: 4478.292 | T13: 4524.994 | U13: 4421.576 | V13: 4702.721 | W13: 4189.254 | X13: 4660.406 | Y13: 4350.871 | Z13: 4408.261 | AA13: 4424.143 | AB13: 4154.952 | AC13: 4657.349 | AD13: 4477.511 | AE13: 4478.292 | AF13: 4524.994 | AG13: 4421.576 | AH13: 4702.721 | AI13: 4189.254 | AJ13: 4660.406 | AK13: 4350.871 | AL13: 4408.261 | AM13: 4424.143 | AN13: 4154.952 | AO13: 4657.349 | AP13: 4477.511 | AQ13: 4478.292 | AR13: 4524.994 | AS13: 4421.576 | AT13: 4702.721 | AU13: 4189.254 | AV13: 4660.406 | AW13: 4350.871 | AX13: 4408.261 | AY13: 4424.143 | AZ13: 4154.952 | BA13: 4657.349 | BB13: 4477.511 | BC13: 4478.292 | BD13: 4524.994 | BE13: 4421.576 | BF13: 4702.721 | BG13: 4189.254 | BH13: 4660.406 | BI13: 4350.871 | BJ13: 4408.261 | BK13: 4424.143 | BL13: 4154.952 | BM13: 4657.349 | BN13: 4477.511 | BO13: 4478.292 | BP13: 4524.994 | BQ13: 4421.576 | BR13: 4702.721 | BS13: 4189.254 | BT13: 4660.406 | BU13: 4350.871 | BV13: 4408.261 | BW13: 4424.143 | BX13: 4154.952 | BY13: 4657.349 | BZ13: 4477.511 | CA13: 4478.292 | CB13: 4524.994 | CC13: 4421.576 | CD13: 4702.721 | CE13: 4189.254 | CG13: 3523.594 | CH13: 3580.129 | CI13: 3775.739 | CJ13: 3759.857 | CK13: 3352.658 | CL13: 3515.651 | CM13: 3442.489 | CN13: 3705.708 | CO13: 3395.006 | CP13: 3762.424 | CQ13: 3481.279 | CR13: 3730.746 | CS13: 3523.594 | CT13: 3580.129 | CU13: 3775.739 | CV13: 3759.857 | CW13: 3237.048 | CX13: 3515.651 | CY13: 3442.489 | CZ13: 3705.708 | DA13: 3395.006 | DB13: 3762.424 | DC13: 3481.279 | DD13: 3730.746 | DE13: 3523.594 | DF13: 3580.129 | DG13: 3775.739 | DH13: 3759.857 | DI13: 3237.048 | DJ13: 3515.651 | DK13: 3442.489 | DL13: 3705.708 | DM13: 3395.006 | DN13: 3762.424 | DO13: 3481.279 | DP13: 3730.746 | DQ13: 3523.594 | DR13: 3580.129 | DS13: 3775.739 | DT13: 3759.857 | DU13: 3237.048 | DV13: 3515.651 | DW13: 3442.489 | DX13: 3705.708 | DY13: 3395.006 | DZ13: 3762.424 | EA13: 3481.279 | EB13: 3730.746 | EC13: 3523.594 | ED13: 3580.129 | EE13: 3775.739 | EF13: 3759.857 | EG13: 3237.048 | EH13: 3515.651 | EI13: 3442.489 | EJ13: 3705.708 | EK13: 3395.006 | EL13: 3762.424 | EM13: 3481.279 | EN13: 3730.746 | EO13: 3523.594 | EP13: 3580.129 | EQ13: 3775.739 | ER13: 3759.857 | ES13: 3237.048 | ET13: 3515.651 | EU13: 3442.489 | EV13: 3705.708 | EW13: 3395.006 | EX13: 3762.424 | EY13: 3481.279 | EZ13: 3730.746
A14: New Resource | D14: NR | E14: 9.856 | F14: 9.824 | G14: 9.824 | H14: 9.824 | I14: 9.824 | J14: 9.824 | L14: 0.432 | M14: 0.4 | N14: 0.4 | O14: 0.416 | P14: 0.4 | Q14: 0.416 | R14: 0.416 | S14: 0.4 | T14: 0.416 | U14: 0.416 | V14: 0.416 | W14: 0.4 | X14: 0.432 | Y14: 0.384 | Z14: 0.416 | AA14: 0.4 | AB14: 0.384 | AC14: 0.432 | AD14: 0.416 | AE14: 0.4 | AF14: 0.416 | AG14: 0.416 | AH14: 0.416 | AI14: 0.4 | AJ14: 0.432 | AK14: 0.384 | AL14: 0.416 | AM14: 0.4 | AN14: 0.384 | AO14: 0.432 | AP14: 0.416 | AQ14: 0.4 | AR14: 0.416 | AS14: 0.416 | AT14: 0.416 | AU14: 0.4 | AV14: 0.432 | AW14: 0.384 | AX14: 0.416 | AY14: 0.4 | AZ14: 0.384 | BA14: 0.432 | BB14: 0.416 | BC14: 0.4 | BD14: 0.416 | BE14: 0.416 | BF14: 0.416 | BG14: 0.4 | BH14: 0.432 | BI14: 0.384 | BJ14: 0.416 | BK14: 0.4 | BL14: 0.384 | BM14: 0.432 | BN14: 0.416 | BO14: 0.4 | BP14: 0.416 | BQ14: 0.416 | BR14: 0.416 | BS14: 0.4 | BT14: 0.432 | BU14: 0.384 | BV14: 0.416 | BW14: 0.4 | BX14: 0.384 | BY14: 0.432 | BZ14: 0.416 | CA14: 0.4 | CB14: 0.416 | CC14: 0.416 | CD14: 0.416 | CE14: 0.4 | CG14: 0.432 | CH14: 0.4 | CI14: 0.4 | CJ14: 0.416 | CK14: 0.4 | CL14: 0.416 | CM14: 0.416 | CN14: 0.4 | CO14: 0.416 | CP14: 0.416 | CQ14: 0.416 | CR14: 0.4 | CS14: 0.432 | CT14: 0.384 | CU14: 0.416 | CV14: 0.4 | CW14: 0.384 | CX14: 0.432 | CY14: 0.416 | CZ14: 0.4 | DA14: 0.416 | DB14: 0.416 | DC14: 0.416 | DD14: 0.4 | DE14: 0.432 | DF14: 0.384 | DG14: 0.416 | DH14: 0.4 | DI14: 0.384 | DJ14: 0.432 | DK14: 0.416 | DL14: 0.4 | DM14: 0.416 | DN14: 0.416 | DO14: 0.416 | DP14: 0.4 | DQ14: 0.432 | DR14: 0.384 | DS14: 0.416 | DT14: 0.4 | DU14: 0.384 | DV14: 0.432 | DW14: 0.416 | DX14: 0.4 | DY14: 0.416 | DZ14: 0.416 | EA14: 0.416 | EB14: 0.4 | EC14: 0.432 | ED14: 0.384 | EE14: 0.416 | EF14: 0.4 | EG14: 0.384 | EH14: 0.432 | EI14: 0.416 | EJ14: 0.4 | EK14: 0.416 | EL14: 0.416 | EM14: 0.416 | EN14: 0.4 | EO14: 0.432 | EP14: 0.384 | EQ14: 0.416 | ER14: 0.4 | ES14: 0.384 | ET14: 0.432 | EU14: 0.416 | EV14: 0.4 | EW14: 0.416 | EX14: 0.416 | EY14: 0.416 | EZ14: 0.4
A15: Firm Power and Services | D15: FPS | E15: =+SUM(E16,E27,E38) -> 5883097.998 | F15: 5873660.56 | G15: 5873660.56 | H15: 5873660.56 | I15: 5873660.56 | J15: 5873660.56 | L15: 379069.7273 | M15: 337849.6356 | N15: 350081.5409 | O15: 348871.3641 | P15: 328335.5169 | Q15: 359570.2523 | R15: 415646.0303 | S15: 468333.2158 | T15: 464105.0816 | U15: 498539.2769 | V15: 507109.9756 | W15: 416034.2257 | X15: 379331.4186 | Y15: 337849.6356 | Z15: 350081.5409 | AA15: 348871.3641 | AB15: 316997.5039 | AC15: 359570.2523 | AD15: 415646.0303 | AE15: 468333.2158 | AF15: 464093.9276 | AG15: 493005.0337 | AH15: 510170.5006 | AI15: 416386.2037 | AJ15: 379331.4186 | AK15: 337849.6356 | AL15: 350081.5409 | AM15: 348871.3641 | AN15: 316997.5039 | AO15: 359570.2523 | AP15: 415646.0303 | AQ15: 468333.2158 | AR15: 464093.9276 | AS15: 493005.0337 | AT15: 510170.5006 | AU15: 416386.2037 | AV15: 379331.4186 | AW15: 337849.6356 | AX15: 350081.5409 | AY15: 348871.3641 | AZ15: 316997.5039 | BA15: 359570.2523 | BB15: 415646.0303 | BC15: 468333.2158 | BD15: 464093.9276 | BE15: 493005.0337 | BF15: 510170.5006 | BG15: 416386.2037 | BH15: 379331.4186 | BI15: 337849.6356 | BJ15: 350081.5409 | BK15: 348871.3641 | BL15: 316997.5039 | BM15: 359570.2523 | BN15: 415646.0303 | BO15: 468333.2158 | BP15: 464093.9276 | BQ15: 493005.0337 | BR15: 510170.5006 | BS15: 416386.2037 | BT15: 379331.4186 | BU15: 337849.6356 | BV15: 350081.5409 | BW15: 348871.3641 | BX15: 316997.5039 | BY15: 359570.2523 | BZ15: 415646.0303 | CA15: 468333.2158 | CB15: 464093.9276 | CC15: 493005.0337 | CD15: 510170.5006 | CE15: 416386.2037 | CG15: 59002.81531 | CH15: 7301.756739 | CI15: 7204.633883 | CJ15: 6121.162909 | CK15: 10693.42596 | CL15: 31153.77265 | CM15: 87437.2904 | CN15: 134250.3944 | CO15: 154873.1201 | CP15: 188088.2819 | CQ15: 197754.5354 | CR15: 125670.9654 | CS15: 58740.91505 | CT15: 7301.756739 | CU15: 7204.633883 | CV15: 6121.162909 | CW15: 10357.39496 | CX15: 31153.77265 | CY15: 87437.2904 | CZ15: 134250.3944 | DA15: 154884.274 | DB15: 183652.9251 | DC15: 206900.6174 | DD15: 125318.7954 | DE15: 58740.91505 | DF15: 7301.756739 | DG15: 7204.633883 | DH15: 6121.162909 | DI15: 10357.39496 | DJ15: 31153.77265 | DK15: 87437.2904 | DL15: 134250.3944 | DM15: 154884.274 | DN15: 183652.9251 | DO15: 206900.6174 | DP15: 125318.7954 | DQ15: 58740.91505 | DR15: 7301.756739 | DS15: 7204.633883 | DT15: 6121.162909 | DU15: 10357.39496 | DV15: 31153.77265 | DW15: 87437.2904 | DX15: 134250.3944 | DY15: 154884.274 | DZ15: 183652.9251 | EA15: 206900.6174 | EB15: 125318.7954 | EC15: 58740.91505 | ED15: 7301.756739 | EE15: 7204.633883 | EF15: 6121.162909 | EG15: 10357.39496 | EH15: 31153.77265 | EI15: 87437.2904 | EJ15: 134250.3944 | EK15: 154884.274 | EL15: 183652.9251 | EM15: 206900.6174 | EN15: 125318.7954 | EO15: 58740.91505 | EP15: 7301.756739 | EQ15: 7204.633883 | ER15: 6121.162909 | ES15: 10357.39496 | ET15: 31153.77265 | EU15: 87437.2904 | EV15: 134250.3944 | EW15: 154884.274 | EX15: 183652.9251 | EY15: 206900.6174 | EZ15: 125318.7954
B16: Intraregional Transfer | D16: FPS_IRT | E16: =+SUM(E17:E26) -> 98652.53189 | F16: 98426.04389 | G16: 98426.04389 | H16: 98426.04389 | I16: 98426.04389 | J16: 98426.04389 | L16: 4899.021324 | M16: 4358.384568 | N16: 4590.002877 | O16: 4449.664055 | P16: 4373.40389 | Q16: 4488.095297 | R16: 4356.842292 | S16: 4485.132812 | T16: 4359.184554 | U16: 5261.819863 | V16: 5459.088586 | W16: 4684.723728 | X16: 5081.524575 | Y16: 4358.384568 | Z16: 4590.002877 | AA16: 4449.664055 | AB16: 4222.41189 | AC16: 4488.095297 | AD16: 4356.842292 | AE16: 4485.132812 | AF16: 4348.030629 | AG16: 5301.976663 | AH16: 5308.096586 | AI16: 4835.715728 | AJ16: 5081.524575 | AK16: 4358.384568 | AL16: 4590.002877 | AM16: 4449.664055 | AN16: 4222.41189 | AO16: 4488.095297 | AP16: 4356.842292 | AQ16: 4485.132812 | AR16: 4348.030629 | AS16: 5301.976663 | AT16: 5308.096586 | AU16: 4835.715728 | AV16: 5081.524575 | AW16: 4358.384568 | AX16: 4590.002877 | AY16: 4449.664055 | AZ16: 4222.41189 | BA16: 4488.095297 | BB16: 4356.842292 | BC16: 4485.132812 | BD16: 4348.030629 | BE16: 5301.976663 | BF16: 5308.096586 | BG16: 4835.715728 | BH16: 5081.524575 | BI16: 4358.384568 | BJ16: 4590.002877 | BK16: 4449.664055 | BL16: 4222.41189 | BM16: 4488.095297 | BN16: 4356.842292 | BO16: 4485.132812 | BP16: 4348.030629 | BQ16: 5301.976663 | BR16: 5308.096586 | BS16: 4835.715728 | BT16: 5081.524575 | BU16: 4358.384568 | BV16: 4590.002877 | BW16: 4449.664055 | BX16: 4222.41189 | BY16: 4488.095297 | BZ16: 4356.842292 | CA16: 4485.132812 | CB16: 4348.030629 | CC16: 5301.976663 | CD16: 5308.096586 | CE16: 4835.715728 | CG16: 3806.981305 | CH16: 3462.590739 | CI16: 3846.899883 | CJ16: 3382.996909 | CK16: 3111.730961 | CL16: 3402.943651 | CM16: 3074.327398 | CN16: 3372.471422 | CO16: 3358.952103 | CP16: 4153.771887 | CQ16: 3895.512414 | CR16: 4017.989368 | CS16: 3624.478055 | CT16: 3462.590739 | CU16: 3846.899883 | CV16: 3382.996909 | CW16: 3036.234961 | CX16: 3402.943651 | CY16: 3074.327398 | CZ16: 3372.471422 | DA16: 3370.106027 | DB16: 4113.615087 | DC16: 4046.504414 | DD16: 3866.997368 | DE16: 3624.478055 | DF16: 3462.590739 | DG16: 3846.899883 | DH16: 3382.996909 | DI16: 3036.234961 | DJ16: 3402.943651 | DK16: 3074.327398 | DL16: 3372.471422 | DM16: 3370.106027 | DN16: 4113.615087 | DO16: 4046.504414 | DP16: 3866.997368 | DQ16: 3624.478055 | DR16: 3462.590739 | DS16: 3846.899883 | DT16: 3382.996909 | DU16: 3036.234961 | DV16: 3402.943651 | DW16: 3074.327398 | DX16: 3372.471422 | DY16: 3370.106027 | DZ16: 4113.615087 | EA16: 4046.504414 | EB16: 3866.997368 | EC16: 3624.478055 | ED16: 3462.590739 | EE16: 3846.899883 | EF16: 3382.996909 | EG16: 3036.234961 | EH16: 3402.943651 | EI16: 3074.327398 | EJ16: 3372.471422 | EK16: 3370.106027 | EL16: 4113.615087 | EM16: 4046.504414 | EN16: 3866.997368 | EO16: 3624.478055 | EP16: 3462.590739 | EQ16: 3846.899883 | ER16: 3382.996909 | ES16: 3036.234961 | ET16: 3402.943651 | EU16: 3074.327398 | EV16: 3372.471422 | EW16: 3370.106027 | EX16: 4113.615087 | EY16: 4046.504414 | EZ16: 3866.997368
C17: WNP#3 Settlement | D17: FPS_IRT_WNP | E17: 0 | F17: 0 | G17: 0 | H17: 0 | I17: 0 | J17: 0 | L17: 0 | M17: 0 | N17: 0 | O17: 0 | P17: 0 | Q17: 0 | R17: 0 | S17: 0 | T17: 0 | U17: 0 | V17: 0 | W17: 0 | X17: 0 | Y17: 0 | Z17: 0 | AA17: 0 | AB17: 0 | AC17: 0 | AD17: 0 | AE17: 0 | AF17: 0 | AG17: 0 | AH17: 0 | AI17: 0 | AJ17: 0 | AK17: 0 | AL17: 0 | AM17: 0 | AN17: 0 | AO17: 0 | AP17: 0 | AQ17: 0 | AR17: 0 | AS17: 0 | AT17: 0 | AU17: 0 | AV17: 0 | AW17: 0 | AX17: 0 | AY17: 0 | AZ17: 0 | BA17: 0 | BB17: 0 | BC17: 0 | BD17: 0 | BE17: 0 | BF17: 0 | BG17: 0 | BH17: 0 | BI17: 0 | BJ17: 0 | BK17: 0 | BL17: 0 | BM17: 0 | BN17: 0 | BO17: 0 | BP17: 0 | BQ17: 0 | BR17: 0 | BS17: 0 | BT17: 0 | BU17: 0 | BV17: 0 | BW17: 0 | BX17: 0 | BY17: 0 | BZ17: 0 | CA17: 0 | CB17: 0 | CC17: 0 | CD17: 0 | CE17: 0 | CG17: 0 | CH17: 0 | CI17: 0 | CJ17: 0 | CK17: 0 | CL17: 0 | CM17: 0 | CN17: 0 | CO17: 0 | CP17: 0 | CQ17: 0 | CR17: 0 | CS17: 0 | CT17: 0 | CU17: 0 | CV17: 0 | CW17: 0 | CX17: 0 | CY17: 0 | CZ17: 0 | DA17: 0 | DB17: 0 | DC17: 0 | DD17: 0 | DE17: 0 | DF17: 0 | DG17: 0 | DH17: 0 | DI17: 0 | DJ17: 0 | DK17: 0 | DL17: 0 | DM17: 0 | DN17: 0 | DO17: 0 | DP17: 0 | DQ17: 0 | DR17: 0 | DS17: 0 | DT17: 0 | DU17: 0 | DV17: 0 | DW17: 0 | DX17: 0 | DY17: 0 | DZ17: 0 | EA17: 0 | EB17: 0 | EC17: 0 | ED17: 0 | EE17: 0 | EF17: 0 | EG17: 0 | EH17: 0 | EI17: 0 | EJ17: 0 | EK17: 0 | EL17: 0 | EM17: 0 | EN17: 0 | EO17: 0 | EP17: 0 | EQ17: 0 | ER17: 0 | ES17: 0 | ET17: 0 | EU17: 0 | EV17: 0 | EW17: 0 | EX17: 0 | EY17: 0 | EZ17: 0
C18: Dittmer Station Service | D18: FPS_IRT_DIT | E18: 82894.608 | F18: 82668.12 | G18: 82668.12 | H18: 82668.12 | I18: 82668.12 | J18: 82668.12 | L18: 3925.792 | M18: 3774.8 | N18: 3774.8 | O18: 3925.792 | P18: 3774.8 | Q18: 3925.792 | R18: 3925.792 | S18: 3925.792 | T18: 3774.8 | U18: 3925.792 | V18: 4076.784 | W18: 3623.808 | X18: 4076.784 | Y18: 3774.8 | Z18: 3774.8 | AA18: 3925.792 | AB18: 3623.808 | AC18: 3925.792 | AD18: 3925.792 | AE18: 3925.792 | AF18: 3774.8 | AG18: 3925.792 | AH18: 3925.792 | AI18: 3774.8 | AJ18: 4076.784 | AK18: 3774.8 | AL18: 3774.8 | AM18: 3925.792 | AN18: 3623.808 | AO18: 3925.792 | AP18: 3925.792 | AQ18: 3925.792 | AR18: 3774.8 | AS18: 3925.792 | AT18: 3925.792 | AU18: 3774.8 | AV18: 4076.784 | AW18: 3774.8 | AX18: 3774.8 | AY18: 3925.792 | AZ18: 3623.808 | BA18: 3925.792 | BB18: 3925.792 | BC18: 3925.792 | BD18: 3774.8 | BE18: 3925.792 | BF18: 3925.792 | BG18: 3774.8 | BH18: 4076.784 | BI18: 3774.8 | BJ18: 3774.8 | BK18: 3925.792 | BL18: 3623.808 | BM18: 3925.792 | BN18: 3925.792 | BO18: 3925.792 | BP18: 3774.8 | BQ18: 3925.792 | BR18: 3925.792 | BS18: 3774.8 | BT18: 4076.784 | BU18: 3774.8 | BV18: 3774.8 | BW18: 3925.792 | BX18: 3623.808 | BY18: 3925.792 | BZ18: 3925.792 | CA18: 3925.792 | CB18: 3774.8 | CC18: 3925.792 | CD18: 3925.792 | CE18: 3774.8 | CG18: 3095.336 | CH18: 3029.277 | CI18: 3246.328 | CJ18: 3095.336 | CK18: 2793.352 | CL18: 3085.899 | CM18: 2868.848 | CN18: 3095.336 | CO18: 3019.84 | CP18: 3095.336 | CQ18: 2944.344 | CR18: 3170.832 | CS18: 2944.344 | CT18: 3029.277 | CU18: 3246.328 | CV18: 3095.336 | CW18: 2717.856 | CX18: 3085.899 | CY18: 2868.848 | CZ18: 3095.336 | DA18: 3019.84 | DB18: 3095.336 | DC18: 3095.336 | DD18: 3019.84 | DE18: 2944.344 | DF18: 3029.277 | DG18: 3246.328 | DH18: 3095.336 | DI18: 2717.856 | DJ18: 3085.899 | DK18: 2868.848 | DL18: 3095.336 | DM18: 3019.84 | DN18: 3095.336 | DO18: 3095.336 | DP18: 3019.84 | DQ18: 2944.344 | DR18: 3029.277 | DS18: 3246.328 | DT18: 3095.336 | DU18: 2717.856 | DV18: 3085.899 | DW18: 2868.848 | DX18: 3095.336 | DY18: 3019.84 | DZ18: 3095.336 | EA18: 3095.336 | EB18: 3019.84 | EC18: 2944.344 | ED18: 3029.277 | EE18: 3246.328 | EF18: 3095.336 | EG18: 2717.856 | EH18: 3085.899 | EI18: 2868.848 | EJ18: 3095.336 | EK18: 3019.84 | EL18: 3095.336 | EM18: 3095.336 | EN18: 3019.84 | EO18: 2944.344 | EP18: 3029.277 | EQ18: 3246.328 | ER18: 3095.336 | ES18: 2717.856 | ET18: 3085.899 | EU18: 2868.848 | EV18: 3095.336 | EW18: 3019.84 | EX18: 3095.336 | EY18: 3095.336 | EZ18: 3019.84
C19: Transfer Gen Losses | D19: FPS_IRT_TGL | E19: 15757.92389 | F19: 15757.92389 | G19: 15757.92389 | H19: 15757.92389 | I19: 15757.92389 | J19: 15757.92389 | L19: 973.2293245 | M19: 583.5845675 | N19: 815.2028765 | O19: 523.872055 | P19: 598.6038895 | Q19: 562.303297 | R19: 431.0502915 | S19: 559.3408125 | T19: 584.3845535 | U19: 1336.027863 | V19: 1382.304586 | W19: 1060.915728 | X19: 1004.740575 | Y19: 583.5845675 | Z19: 815.2028765 | AA19: 523.872055 | AB19: 598.6038895 | AC19: 562.303297 | AD19: 431.0502915 | AE19: 559.3408125 | AF19: 573.2306285 | AG19: 1376.184663 | AH19: 1382.304586 | AI19: 1060.915728 | AJ19: 1004.740575 | AK19: 583.5845675 | AL19: 815.2028765 | AM19: 523.872055 | AN19: 598.6038895 | AO19: 562.303297 | AP19: 431.0502915 | AQ19: 559.3408125 | AR19: 573.2306285 | AS19: 1376.184663 | AT19: 1382.304586 | AU19: 1060.915728 | AV19: 1004.740575 | AW19: 583.5845675 | AX19: 815.2028765 | AY19: 523.872055 | AZ19: 598.6038895 | BA19: 562.303297 | BB19: 431.0502915 | BC19: 559.3408125 | BD19: 573.2306285 | BE19: 1376.184663 | BF19: 1382.304586 | BG19: 1060.915728 | BH19: 1004.740575 | BI19: 583.5845675 | BJ19: 815.2028765 | BK19: 523.872055 | BL19: 598.6038895 | BM19: 562.303297 | BN19: 431.0502915 | BO19: 559.3408125 | BP19: 573.2306285 | BQ19: 1376.184663 | BR19: 1382.304586 | BS19: 1060.915728 | BT19: 1004.740575 | BU19: 583.5845675 | BV19: 815.2028765 | BW19: 523.872055 | BX19: 598.6038895 | BY19: 562.303297 | BZ19: 431.0502915 | CA19: 559.3408125 | CB19: 573.2306285 | CC19: 1376.184663 | CD19: 1382.304586 | CE19: 1060.915728 | CG19: 711.6453055 | CH19: 433.3137385 | CI19: 600.571883 | CJ19: 287.6609095 | CK19: 318.3789605 | CL19: 317.0446515 | CM19: 205.479398 | CN19: 277.1354225 | CO19: 339.1121025 | CP19: 1058.435887 | CQ19: 951.168414 | CR19: 847.1573685 | CS19: 680.1340545 | CT19: 433.3137385 | CU19: 600.571883 | CV19: 287.6609095 | CW19: 318.3789605 | CX19: 317.0446515 | CY19: 205.479398 | CZ19: 277.1354225 | DA19: 350.2660275 | DB19: 1018.279087 | DC19: 951.168414 | DD19: 847.1573685 | DE19: 680.1340545 | DF19: 433.3137385 | DG19: 600.571883 | DH19: 287.6609095 | DI19: 318.3789605 | DJ19: 317.0446515 | DK19: 205.479398 | DL19: 277.1354225 | DM19: 350.2660275 | DN19: 1018.279087 | DO19: 951.168414 | DP19: 847.1573685 | DQ19: 680.1340545 | DR19: 433.3137385 | DS19: 600.571883 | DT19: 287.6609095 | DU19: 318.3789605 | DV19: 317.0446515 | DW19: 205.479398 | DX19: 277.1354225 | DY19: 350.2660275 | DZ19: 1018.279087 | EA19: 951.168414 | EB19: 847.1573685 | EC19: 680.1340545 | ED19: 433.3137385 | EE19: 600.571883 | EF19: 287.6609095 | EG19: 318.3789605 | EH19: 317.0446515 | EI19: 205.479398 | EJ19: 277.1354225 | EK19: 350.2660275 | EL19: 1018.279087 | EM19: 951.168414 | EN19: 847.1573685 | EO19: 680.1340545 | EP19: 433.3137385 | EQ19: 600.571883 | ER19: 287.6609095 | ES19: 318.3789605 | ET19: 317.0446515 | EU19: 205.479398 | EV19: 277.1354225 | EW19: 350.2660275 | EX19: 1018.279087 | EY19: 951.168414 | EZ19: 847.1573685
E20: 0 | F20: 0 | G20: 0 | H20: 0 | I20: 0 | J20: 0 | L20: 0 | M20: 0 | N20: 0 | O20: 0 | P20: 0 | Q20: 0 | R20: 0 | S20: 0 | T20: 0 | U20: 0 | V20: 0 | W20: 0 | X20: 0 | Y20: 0 | Z20: 0 | AA20: 0 | AB20: 0 | AC20: 0 | AD20: 0 | AE20: 0 | AF20: 0 | AG20: 0 | AH20: 0 | AI20: 0 | AJ20: 0 | AK20: 0 | AL20: 0 | AM20: 0 | AN20: 0 | AO20: 0 | AP20: 0 | AQ20: 0 | AR20: 0 | AS20: 0 | AT20: 0 | AU20: 0 | AV20: 0 | AW20: 0 | AX20: 0 | AY20: 0 | AZ20: 0 | BA20: 0 | BB20: 0 | BC20: 0 | BD20: 0 | BE20: 0 | BF20: 0 | BG20: 0 | BH20: 0 | BI20: 0 | BJ20: 0 | BK20: 0 | BL20: 0 | BM20: 0 | BN20: 0 | BO20: 0 | BP20: 0 | BQ20: 0 | BR20: 0 | BS20: 0 | BT20: 0 | BU20: 0 | BV20: 0 | BW20: 0 | BX20: 0 | BY20: 0 | BZ20: 0 | CA20: 0 | CB20: 0 | CC20: 0 | CD20: 0 | CE20: 0 | CG20: 0 | CH20: 0 | CI20: 0 | CJ20: 0 | CK20: 0 | CL20: 0 | CM20: 0 | CN20: 0 | CO20: 0 | CP20: 0 | CQ20: 0 | CR20: 0 | CS20: 0 | CT20: 0 | CU20: 0 | CV20: 0 | CW20: 0 | CX20: 0 | CY20: 0 | CZ20: 0 | DA20: 0 | DB20: 0 | DC20: 0 | DD20: 0 | DE20: 0 | DF20: 0 | DG20: 0 | DH20: 0 | DI20: 0 | DJ20: 0 | DK20: 0 | DL20: 0 | DM20: 0 | DN20: 0 | DO20: 0 | DP20: 0 | DQ20: 0 | DR20: 0 | DS20: 0 | DT20: 0 | DU20: 0 | DV20: 0 | DW20: 0 | DX20: 0 | DY20: 0 | DZ20: 0 | EA20: 0 | EB20: 0 | EC20: 0 | ED20: 0 | EE20: 0 | EF20: 0 | EG20: 0 | EH20: 0 | EI20: 0 | EJ20: 0 | EK20: 0 | EL20: 0 | EM20: 0 | EN20: 0 | EO20: 0 | EP20: 0 | EQ20: 0 | ER20: 0 | ES20: 0 | ET20: 0 | EU20: 0 | EV20: 0 | EW20: 0 | EX20: 0 | EY20: 0 | EZ20: 0
E21: 0 | F21: 0 | G21: 0 | H21: 0 | I21: 0 | J21: 0 | L21: 0 | M21: 0 | N21: 0 | O21: 0 | P21: 0 | Q21: 0 | R21: 0 | S21: 0 | T21: 0 | U21: 0 | V21: 0 | W21: 0 | X21: 0 | Y21: 0 | Z21: 0 | AA21: 0 | AB21: 0 | AC21: 0 | AD21: 0 | AE21: 0 | AF21: 0 | AG21: 0 | AH21: 0 | AI21: 0 | AJ21: 0 | AK21: 0 | AL21: 0 | AM21: 0 | AN21: 0 | AO21: 0 | AP21: 0 | AQ21: 0 | AR21: 0 | AS21: 0 | AT21: 0 | AU21: 0 | AV21: 0 | AW21: 0 | AX21: 0 | AY21: 0 | AZ21: 0 | BA21: 0 | BB21: 0 | BC21: 0 | BD21: 0 | BE21: 0 | BF21: 0 | BG21: 0 | BH21: 0 | BI21: 0 | BJ21: 0 | BK21: 0 | BL21: 0 | BM21: 0 | BN21: 0 | BO21: 0 | BP21: 0 | BQ21: 0 | BR21: 0 | BS21: 0 | BT21: 0 | BU21: 0 | BV21: 0 | BW21: 0 | BX21: 0 | BY21: 0 | BZ21: 0 | CA21: 0 | CB21: 0 | CC21: 0 | CD21: 0 | CE21: 0 | CG21: 0 | CH21: 0 | CI21: 0 | CJ21: 0 | CK21: 0 | CL21: 0 | CM21: 0 | CN21: 0 | CO21: 0 | CP21: 0 | CQ21: 0 | CR21: 0 | CS21: 0 | CT21: 0 | CU21: 0 | CV21: 0 | CW21: 0 | CX21: 0 | CY21: 0 | CZ21: 0 | DA21: 0 | DB21: 0 | DC21: 0 | DD21: 0 | DE21: 0 | DF21: 0 | DG21: 0 | DH21: 0 | DI21: 0 | DJ21: 0 | DK21: 0 | DL21: 0 | DM21: 0 | DN21: 0 | DO21: 0 | DP21: 0 | DQ21: 0 | DR21: 0 | DS21: 0 | DT21: 0 | DU21: 0 | DV21: 0 | DW21: 0 | DX21: 0 | DY21: 0 | DZ21: 0 | EA21: 0 | EB21: 0 | EC21: 0 | ED21: 0 | EE21: 0 | EF21: 0 | EG21: 0 | EH21: 0 | EI21: 0 | EJ21: 0 | EK21: 0 | EL21: 0 | EM21: 0 | EN21: 0 | EO21: 0 | EP21: 0 | EQ21: 0 | ER21: 0 | ES21: 0 | ET21: 0 | EU21: 0 | EV21: 0 | EW21: 0 | EX21: 0 | EY21: 0 | EZ21: 0
E22: 0 | F22: 0 | G22: 0 | H22: 0 | I22: 0 | J22: 0 | L22: 0 | M22: 0 | N22: 0 | O22: 0 | P22: 0 | Q22: 0 | R22: 0 | S22: 0 | T22: 0 | U22: 0 | V22: 0 | W22: 0 | X22: 0 | Y22: 0 | Z22: 0 | AA22: 0 | AB22: 0 | AC22: 0 | AD22: 0 | AE22: 0 | AF22: 0 | AG22: 0 | AH22: 0 | AI22: 0 | AJ22: 0 | AK22: 0 | AL22: 0 | AM22: 0 | AN22: 0 | AO22: 0 | AP22: 0 | AQ22: 0 | AR22: 0 | AS22: 0 | AT22: 0 | AU22: 0 | AV22: 0 | AW22: 0 | AX22: 0 | AY22: 0 | AZ22: 0 | BA22: 0 | BB22: 0 | BC22: 0 | BD22: 0 | BE22: 0 | BF22: 0 | BG22: 0 | BH22: 0 | BI22: 0 | BJ22: 0 | BK22: 0 | BL22: 0 | BM22: 0 | BN22: 0 | BO22: 0 | BP22: 0 | BQ22: 0 | BR22: 0 | BS22: 0 | BT22: 0 | BU22: 0 | BV22: 0 | BW22: 0 | BX22: 0 | BY22: 0 | BZ22: 0 | CA22: 0 | CB22: 0 | CC22: 0 | CD22: 0 | CE22: 0 | CG22: 0 | CH22: 0 | CI22: 0 | CJ22: 0 | CK22: 0 | CL22: 0 | CM22: 0 | CN22: 0 | CO22: 0 | CP22: 0 | CQ22: 0 | CR22: 0 | CS22: 0 | CT22: 0 | CU22: 0 | CV22: 0 | CW22: 0 | CX22: 0 | CY22: 0 | CZ22: 0 | DA22: 0 | DB22: 0 | DC22: 0 | DD22: 0 | DE22: 0 | DF22: 0 | DG22: 0 | DH22: 0 | DI22: 0 | DJ22: 0 | DK22: 0 | DL22: 0 | DM22: 0 | DN22: 0 | DO22: 0 | DP22: 0 | DQ22: 0 | DR22: 0 | DS22: 0 | DT22: 0 | DU22: 0 | DV22: 0 | DW22: 0 | DX22: 0 | DY22: 0 | DZ22: 0 | EA22: 0 | EB22: 0 | EC22: 0 | ED22: 0 | EE22: 0 | EF22: 0 | EG22: 0 | EH22: 0 | EI22: 0 | EJ22: 0 | EK22: 0 | EL22: 0 | EM22: 0 | EN22: 0 | EO22: 0 | EP22: 0 | EQ22: 0 | ER22: 0 | ES22: 0 | ET22: 0 | EU22: 0 | EV22: 0 | EW22: 0 | EX22: 0 | EY22: 0 | EZ22: 0
E23: 0 | F23: 0 | G23: 0 | H23: 0 | I23: 0 | J23: 0 | L23: 0 | M23: 0 | N23: 0 | O23: 0 | P23: 0 | Q23: 0 | R23: 0 | S23: 0 | T23: 0 | U23: 0 | V23: 0 | W23: 0 | X23: 0 | Y23: 0 | Z23: 0 | AA23: 0 | AB23: 0 | AC23: 0 | AD23: 0 | AE23: 0 | AF23: 0 | AG23: 0 | AH23: 0 | AI23: 0 | AJ23: 0 | AK23: 0 | AL23: 0 | AM23: 0 | AN23: 0 | AO23: 0 | AP23: 0 | AQ23: 0 | AR23: 0 | AS23: 0 | AT23: 0 | AU23: 0 | AV23: 0 | AW23: 0 | AX23: 0 | AY23: 0 | AZ23: 0 | BA23: 0 | BB23: 0 | BC23: 0 | BD23: 0 | BE23: 0 | BF23: 0 | BG23: 0 | BH23: 0 | BI23: 0 | BJ23: 0 | BK23: 0 | BL23: 0 | BM23: 0 | BN23: 0 | BO23: 0 | BP23: 0 | BQ23: 0 | BR23: 0 | BS23: 0 | BT23: 0 | BU23: 0 | BV23: 0 | BW23: 0 | BX23: 0 | BY23: 0 | BZ23: 0 | CA23: 0 | CB23: 0 | CC23: 0 | CD23: 0 | CE23: 0 | CG23: 0 | CH23: 0 | CI23: 0 | CJ23: 0 | CK23: 0 | CL23: 0 | CM23: 0 | CN23: 0 | CO23: 0 | CP23: 0 | CQ23: 0 | CR23: 0 | CS23: 0 | CT23: 0 | CU23: 0 | CV23: 0 | CW23: 0 | CX23: 0 | CY23: 0 | CZ23: 0 | DA23: 0 | DB23: 0 | DC23: 0 | DD23: 0 | DE23: 0 | DF23: 0 | DG23: 0 | DH23: 0 | DI23: 0 | DJ23: 0 | DK23: 0 | DL23: 0 | DM23: 0 | DN23: 0 | DO23: 0 | DP23: 0 | DQ23: 0 | DR23: 0 | DS23: 0 | DT23: 0 | DU23: 0 | DV23: 0 | DW23: 0 | DX23: 0 | DY23: 0 | DZ23: 0 | EA23: 0 | EB23: 0 | EC23: 0 | ED23: 0 | EE23: 0 | EF23: 0 | EG23: 0 | EH23: 0 | EI23: 0 | EJ23: 0 | EK23: 0 | EL23: 0 | EM23: 0 | EN23: 0 | EO23: 0 | EP23: 0 | EQ23: 0 | ER23: 0 | ES23: 0 | ET23: 0 | EU23: 0 | EV23: 0 | EW23: 0 | EX23: 0 | EY23: 0 | EZ23: 0
E24: 0 | F24: 0 | G24: 0 | H24: 0 | I24: 0 | J24: 0 | L24: 0 | M24: 0 | N24: 0 | O24: 0 | P24: 0 | Q24: 0 | R24: 0 | S24: 0 | T24: 0 | U24: 0 | V24: 0 | W24: 0 | X24: 0 | Y24: 0 | Z24: 0 | AA24: 0 | AB24: 0 | AC24: 0 | AD24: 0 | AE24: 0 | AF24: 0 | AG24: 0 | AH24: 0 | AI24: 0 | AJ24: 0 | AK24: 0 | AL24: 0 | AM24: 0 | AN24: 0 | AO24: 0 | AP24: 0 | AQ24: 0 | AR24: 0 | AS24: 0 | AT24: 0 | AU24: 0 | AV24: 0 | AW24: 0 | AX24: 0 | AY24: 0 | AZ24: 0 | BA24: 0 | BB24: 0 | BC24: 0 | BD24: 0 | BE24: 0 | BF24: 0 | BG24: 0 | BH24: 0 | BI24: 0 | BJ24: 0 | BK24: 0 | BL24: 0 | BM24: 0 | BN24: 0 | BO24: 0 | BP24: 0 | BQ24: 0 | BR24: 0 | BS24: 0 | BT24: 0 | BU24: 0 | BV24: 0 | BW24: 0 | BX24: 0 | BY24: 0 | BZ24: 0 | CA24: 0 | CB24: 0 | CC24: 0 | CD24: 0 | CE24: 0 | CG24: 0 | CH24: 0 | CI24: 0 | CJ24: 0 | CK24: 0 | CL24: 0 | CM24: 0 | CN24: 0 | CO24: 0 | CP24: 0 | CQ24: 0 | CR24: 0 | CS24: 0 | CT24: 0 | CU24: 0 | CV24: 0 | CW24: 0 | CX24: 0 | CY24: 0 | CZ24: 0 | DA24: 0 | DB24: 0 | DC24: 0 | DD24: 0 | DE24: 0 | DF24: 0 | DG24: 0 | DH24: 0 | DI24: 0 | DJ24: 0 | DK24: 0 | DL24: 0 | DM24: 0 | DN24: 0 | DO24: 0 | DP24: 0 | DQ24: 0 | DR24: 0 | DS24: 0 | DT24: 0 | DU24: 0 | DV24: 0 | DW24: 0 | DX24: 0 | DY24: 0 | DZ24: 0 | EA24: 0 | EB24: 0 | EC24: 0 | ED24: 0 | EE24: 0 | EF24: 0 | EG24: 0 | EH24: 0 | EI24: 0 | EJ24: 0 | EK24: 0 | EL24: 0 | EM24: 0 | EN24: 0 | EO24: 0 | EP24: 0 | EQ24: 0 | ER24: 0 | ES24: 0 | ET24: 0 | EU24: 0 | EV24: 0 | EW24: 0 | EX24: 0 | EY24: 0 | EZ24: 0
E25: 0 | F25: 0 | G25: 0 | H25: 0 | I25: 0 | J25: 0 | L25: 0 | M25: 0 | N25: 0 | O25: 0 | P25: 0 | Q25: 0 | R25: 0 | S25: 0 | T25: 0 | U25: 0 | V25: 0 | W25: 0 | X25: 0 | Y25: 0 | Z25: 0 | AA25: 0 | AB25: 0 | AC25: 0 | AD25: 0 | AE25: 0 | AF25: 0 | AG25: 0 | AH25: 0 | AI25: 0 | AJ25: 0 | AK25: 0 | AL25: 0 | AM25: 0 | AN25: 0 | AO25: 0 | AP25: 0 | AQ25: 0 | AR25: 0 | AS25: 0 | AT25: 0 | AU25: 0 | AV25: 0 | AW25: 0 | AX25: 0 | AY25: 0 | AZ25: 0 | BA25: 0 | BB25: 0 | BC25: 0 | BD25: 0 | BE25: 0 | BF25: 0 | BG25: 0 | BH25: 0 | BI25: 0 | BJ25: 0 | BK25: 0 | BL25: 0 | BM25: 0 | BN25: 0 | BO25: 0 | BP25: 0 | BQ25: 0 | BR25: 0 | BS25: 0 | BT25: 0 | BU25: 0 | BV25: 0 | BW25: 0 | BX25: 0 | BY25: 0 | BZ25: 0 | CA25: 0 | CB25: 0 | CC25: 0 | CD25: 0 | CE25: 0 | CG25: 0 | CH25: 0 | CI25: 0 | CJ25: 0 | CK25: 0 | CL25: 0 | CM25: 0 | CN25: 0 | CO25: 0 | CP25: 0 | CQ25: 0 | CR25: 0 | CS25: 0 | CT25: 0 | CU25: 0 | CV25: 0 | CW25: 0 | CX25: 0 | CY25: 0 | CZ25: 0 | DA25: 0 | DB25: 0 | DC25: 0 | DD25: 0 | DE25: 0 | DF25: 0 | DG25: 0 | DH25: 0 | DI25: 0 | DJ25: 0 | DK25: 0 | DL25: 0 | DM25: 0 | DN25: 0 | DO25: 0 | DP25: 0 | DQ25: 0 | DR25: 0 | DS25: 0 | DT25: 0 | DU25: 0 | DV25: 0 | DW25: 0 | DX25: 0 | DY25: 0 | DZ25: 0 | EA25: 0 | EB25: 0 | EC25: 0 | ED25: 0 | EE25: 0 | EF25: 0 | EG25: 0 | EH25: 0 | EI25: 0 | EJ25: 0 | EK25: 0 | EL25: 0 | EM25: 0 | EN25: 0 | EO25: 0 | EP25: 0 | EQ25: 0 | ER25: 0 | ES25: 0 | ET25: 0 | EU25: 0 | EV25: 0 | EW25: 0 | EX25: 0 | EY25: 0 | EZ25: 0
E26: 0 | F26: 0 | G26: 0 | H26: 0 | I26: 0 | J26: 0 | L26: 0 | M26: 0 | N26: 0 | O26: 0 | P26: 0 | Q26: 0 | R26: 0 | S26: 0 | T26: 0 | U26: 0 | V26: 0 | W26: 0 | X26: 0 | Y26: 0 | Z26: 0 | AA26: 0 | AB26: 0 | AC26: 0 | AD26: 0 | AE26: 0 | AF26: 0 | AG26: 0 | AH26: 0 | AI26: 0 | AJ26: 0 | AK26: 0 | AL26: 0 | AM26: 0 | AN26: 0 | AO26: 0 | AP26: 0 | AQ26: 0 | AR26: 0 | AS26: 0 | AT26: 0 | AU26: 0 | AV26: 0 | AW26: 0 | AX26: 0 | AY26: 0 | AZ26: 0 | BA26: 0 | BB26: 0 | BC26: 0 | BD26: 0 | BE26: 0 | BF26: 0 | BG26: 0 | BH26: 0 | BI26: 0 | BJ26: 0 | BK26: 0 | BL26: 0 | BM26: 0 | BN26: 0 | BO26: 0 | BP26: 0 | BQ26: 0 | BR26: 0 | BS26: 0 | BT26: 0 | BU26: 0 | BV26: 0 | BW26: 0 | BX26: 0 | BY26: 0 | BZ26: 0 | CA26: 0 | CB26: 0 | CC26: 0 | CD26: 0 | CE26: 0 | CG26: 0 | CH26: 0 | CI26: 0 | CJ26: 0 | CK26: 0 | CL26: 0 | CM26: 0 | CN26: 0 | CO26: 0 | CP26: 0 | CQ26: 0 | CR26: 0 | CS26: 0 | CT26: 0 | CU26: 0 | CV26: 0 | CW26: 0 | CX26: 0 | CY26: 0 | CZ26: 0 | DA26: 0 | DB26: 0 | DC26: 0 | DD26: 0 | DE26: 0 | DF26: 0 | DG26: 0 | DH26: 0 | DI26: 0 | DJ26: 0 | DK26: 0 | DL26: 0 | DM26: 0 | DN26: 0 | DO26: 0 | DP26: 0 | DQ26: 0 | DR26: 0 | DS26: 0 | DT26: 0 | DU26: 0 | DV26: 0 | DW26: 0 | DX26: 0 | DY26: 0 | DZ26: 0 | EA26: 0 | EB26: 0 | EC26: 0 | ED26: 0 | EE26: 0 | EF26: 0 | EG26: 0 | EH26: 0 | EI26: 0 | EJ26: 0 | EK26: 0 | EL26: 0 | EM26: 0 | EN26: 0 | EO26: 0 | EP26: 0 | EQ26: 0 | ER26: 0 | ES26: 0 | ET26: 0 | EU26: 0 | EV26: 0 | EW26: 0 | EX26: 0 | EY26: 0 | EZ26: 0
B27: FBS Obligation | D27: FPS_FBS | E27: =+SUM(E28:E37) -> 5784445.466 | F27: 5775234.516 | G27: 5775234.516 | H27: 5775234.516 | I27: 5775234.516 | J27: 5775234.516 | L27: 374170.706 | M27: 333491.251 | N27: 345491.538 | O27: 344421.7 | P27: 323962.113 | Q27: 355082.157 | R27: 411289.188 | S27: 463848.083 | T27: 459745.897 | U27: 493277.457 | V27: 501650.887 | W27: 411349.502 | X27: 374249.894 | Y27: 333491.251 | Z27: 345491.538 | AA27: 344421.7 | AB27: 312775.092 | AC27: 355082.157 | AD27: 411289.188 | AE27: 463848.083 | AF27: 459745.897 | AG27: 487703.057 | AH27: 504862.404 | AI27: 411550.488 | AJ27: 374249.894 | AK27: 333491.251 | AL27: 345491.538 | AM27: 344421.7 | AN27: 312775.092 | AO27: 355082.157 | AP27: 411289.188 | AQ27: 463848.083 | AR27: 459745.897 | AS27: 487703.057 | AT27: 504862.404 | AU27: 411550.488 | AV27: 374249.894 | AW27: 333491.251 | AX27: 345491.538 | AY27: 344421.7 | AZ27: 312775.092 | BA27: 355082.157 | BB27: 411289.188 | BC27: 463848.083 | BD27: 459745.897 | BE27: 487703.057 | BF27: 504862.404 | BG27: 411550.488 | BH27: 374249.894 | BI27: 333491.251 | BJ27: 345491.538 | BK27: 344421.7 | BL27: 312775.092 | BM27: 355082.157 | BN27: 411289.188 | BO27: 463848.083 | BP27: 459745.897 | BQ27: 487703.057 | BR27: 504862.404 | BS27: 411550.488 | BT27: 374249.894 | BU27: 333491.251 | BV27: 345491.538 | BW27: 344421.7 | BX27: 312775.092 | BY27: 355082.157 | BZ27: 411289.188 | CA27: 463848.083 | CB27: 459745.897 | CC27: 487703.057 | CD27: 504862.404 | CE27: 411550.488 | CG27: 55195.834 | CH27: 3839.166 | CI27: 3357.734 | CJ27: 2738.166 | CK27: 7581.695 | CL27: 27750.829 | CM27: 84362.963 | CN27: 130877.923 | CO27: 151514.168 | CP27: 183934.51 | CQ27: 193859.023 | CR27: 121652.976 | CS27: 55116.437 | CT27: 3839.166 | CU27: 3357.734 | CV27: 2738.166 | CW27: 7321.16 | CX27: 27750.829 | CY27: 84362.963 | CZ27: 130877.923 | DA27: 151514.168 | DB27: 179539.31 | DC27: 202854.113 | DD27: 121451.798 | DE27: 55116.437 | DF27: 3839.166 | DG27: 3357.734 | DH27: 2738.166 | DI27: 7321.16 | DJ27: 27750.829 | DK27: 84362.963 | DL27: 130877.923 | DM27: 151514.168 | DN27: 179539.31 | DO27: 202854.113 | DP27: 121451.798 | DQ27: 55116.437 | DR27: 3839.166 | DS27: 3357.734 | DT27: 2738.166 | DU27: 7321.16 | DV27: 27750.829 | DW27: 84362.963 | DX27: 130877.923 | DY27: 151514.168 | DZ27: 179539.31 | EA27: 202854.113 | EB27: 121451.798 | EC27: 55116.437 | ED27: 3839.166 | EE27: 3357.734 | EF27: 2738.166 | EG27: 7321.16 | EH27: 27750.829 | EI27: 84362.963 | EJ27: 130877.923 | EK27: 151514.168 | EL27: 179539.31 | EM27: 202854.113 | EN27: 121451.798 | EO27: 55116.437 | EP27: 3839.166 | EQ27: 3357.734 | ER27: 2738.166 | ES27: 7321.16 | ET27: 27750.829 | EU27: 84362.963 | EV27: 130877.923 | EW27: 151514.168 | EX27: 179539.31 | EY27: 202854.113 | EZ27: 121451.798
C28: Canadian Entitlement | D28: FPS_FBS_CDN | E28: 3990570.128 | F28: 3979667.12 | G28: 3979667.12 | H28: 3979667.12 | I28: 3979667.12 | J28: 3979667.12 | L28: 337999.168 | M28: 327550 | N28: 337998.8 | O28: 337999.168 | P28: 316192.8 | Q28: 337544.896 | R28: 327095.808 | S28: 337999.168 | T28: 327096 | U28: 337999.168 | V28: 337998.96 | W28: 327096.192 | X28: 337998.96 | Y28: 327550 | Z28: 337998.8 | AA28: 337999.168 | AB28: 305289.984 | AC28: 337544.896 | AD28: 327095.808 | AE28: 337999.168 | AF28: 327096 | AG28: 337999.168 | AH28: 337999.168 | AI28: 327096 | AJ28: 337998.96 | AK28: 327550 | AL28: 337998.8 | AM28: 337999.168 | AN28: 305289.984 | AO28: 337544.896 | AP28: 327095.808 | AQ28: 337999.168 | AR28: 327096 | AS28: 337999.168 | AT28: 337999.168 | AU28: 327096 | AV28: 337998.96 | AW28: 327550 | AX28: 337998.8 | AY28: 337999.168 | AZ28: 305289.984 | BA28: 337544.896 | BB28: 327095.808 | BC28: 337999.168 | BD28: 327096 | BE28: 337999.168 | BF28: 337999.168 | BG28: 327096 | BH28: 337998.96 | BI28: 327550 | BJ28: 337998.8 | BK28: 337999.168 | BL28: 305289.984 | BM28: 337544.896 | BN28: 327095.808 | BO28: 337999.168 | BP28: 327096 | BQ28: 337999.168 | BR28: 337999.168 | BS28: 327096 | BT28: 337998.96 | BU28: 327550 | BV28: 337998.8 | BW28: 337999.168 | BX28: 305289.984 | BY28: 337544.896 | BZ28: 327095.808 | CA28: 337999.168 | CB28: 327096 | CC28: 337999.168 | CD28: 337999.168 | CE28: 327096 | CG28: 0 | CH28: 0 | CI28: 0 | CJ28: 0 | CK28: 0 | CL28: 0 | CM28: 0 | CN28: 0 | CO28: 0 | CP28: 0 | CQ28: 0 | CR28: 0 | CS28: 0 | CT28: 0 | CU28: 0 | CV28: 0 | CW28: 0 | CX28: 0 | CY28: 0 | CZ28: 0 | DA28: 0 | DB28: 0 | DC28: 0 | DD28: 0 | DE28: 0 | DF28: 0 | DG28: 0 | DH28: 0 | DI28: 0 | DJ28: 0 | DK28: 0 | DL28: 0 | DM28: 0 | DN28: 0 | DO28: 0 | DP28: 0 | DQ28: 0 | DR28: 0 | DS28: 0 | DT28: 0 | DU28: 0 | DV28: 0 | DW28: 0 | DX28: 0 | DY28: 0 | DZ28: 0 | EA28: 0 | EB28: 0 | EC28: 0 | ED28: 0 | EE28: 0 | EF28: 0 | EG28: 0 | EH28: 0 | EI28: 0 | EJ28: 0 | EK28: 0 | EL28: 0 | EM28: 0 | EN28: 0 | EO28: 0 | EP28: 0 | EQ28: 0 | ER28: 0 | ES28: 0 | ET28: 0 | EU28: 0 | EV28: 0 | EW28: 0 | EX28: 0 | EY28: 0 | EZ28: 0
C29: USBR Pump Load | D29: FPS_FBS_UBR | E29: 1648915.404 | F29: 1648482.854 | G29: 1648482.854 | H29: 1648482.854 | I29: 1648482.854 | J29: 1648482.854 | L29: 36171.538 | M29: 3141.251 | N29: 4692.738 | O29: 3510.532 | P29: 4969.313 | Q29: 17537.261 | R29: 84193.38 | S29: 125848.915 | T29: 132649.897 | U29: 143339.089 | V29: 98384.727 | W29: 84253.31 | X29: 36250.934 | Y29: 3141.251 | Z29: 4692.738 | AA29: 3510.532 | AB29: 4797.108 | AC29: 17537.261 | AD29: 84193.38 | AE29: 125848.915 | AF29: 132649.897 | AG29: 143339.089 | AH29: 98056.836 | AI29: 84454.488 | AJ29: 36250.934 | AK29: 3141.251 | AL29: 4692.738 | AM29: 3510.532 | AN29: 4797.108 | AO29: 17537.261 | AP29: 84193.38 | AQ29: 125848.915 | AR29: 132649.897 | AS29: 143339.089 | AT29: 98056.836 | AU29: 84454.488 | AV29: 36250.934 | AW29: 3141.251 | AX29: 4692.738 | AY29: 3510.532 | AZ29: 4797.108 | BA29: 17537.261 | BB29: 84193.38 | BC29: 125848.915 | BD29: 132649.897 | BE29: 143339.089 | BF29: 98056.836 | BG29: 84454.488 | BH29: 36250.934 | BI29: 3141.251 | BJ29: 4692.738 | BK29: 3510.532 | BL29: 4797.108 | BM29: 17537.261 | BN29: 84193.38 | BO29: 125848.915 | BP29: 132649.897 | BQ29: 143339.089 | BR29: 98056.836 | BS29: 84454.488 | BT29: 36250.934 | BU29: 3141.251 | BV29: 4692.738 | BW29: 3510.532 | BX29: 4797.108 | BY29: 17537.261 | BZ29: 84193.38 | CA29: 125848.915 | CB29: 132649.897 | CC29: 143339.089 | CD29: 98056.836 | CE29: 84454.488 | CG29: 55195.834 | CH29: 3832.104 | CI29: 3350.854 | CJ29: 2731.278 | CK29: 7574.591 | CL29: 27750.829 | CM29: 84362.963 | CN29: 130877.923 | CO29: 151514.168 | CP29: 174520.91 | CQ29: 146859.023 | CR29: 121652.976 | CS29: 55116.437 | CT29: 3832.104 | CU29: 3350.854 | CV29: 2731.278 | CW29: 7314.248 | CX29: 27750.829 | CY29: 84362.963 | CZ29: 130877.923 | DA29: 151514.168 | DB29: 174520.91 | DC29: 147186.913 | DD29: 121451.798 | DE29: 55116.437 | DF29: 3832.104 | DG29: 3350.854 | DH29: 2731.278 | DI29: 7314.248 | DJ29: 27750.829 | DK29: 84362.963 | DL29: 130877.923 | DM29: 151514.168 | DN29: 174520.91 | DO29: 147186.913 | DP29: 121451.798 | DQ29: 55116.437 | DR29: 3832.104 | DS29: 3350.854 | DT29: 2731.278 | DU29: 7314.248 | DV29: 27750.829 | DW29: 84362.963 | DX29: 130877.923 | DY29: 151514.168 | DZ29: 174520.91 | EA29: 147186.913 | EB29: 121451.798 | EC29: 55116.437 | ED29: 3832.104 | EE29: 3350.854 | EF29: 2731.278 | EG29: 7314.248 | EH29: 27750.829 | EI29: 84362.963 | EJ29: 130877.923 | EK29: 151514.168 | EL29: 174520.91 | EM29: 147186.913 | EN29: 121451.798 | EO29: 55116.437 | EP29: 3832.104 | EQ29: 3350.854 | ER29: 2731.278 | ES29: 7314.248 | ET29: 27750.829 | EU29: 84362.963 | EV29: 130877.923 | EW29: 151514.168 | EX29: 174520.91 | EY29: 147186.913 | EZ29: 121451.798
C30: Hungry Horse | D30: FPS_FBS_HH | E30: 0 | F30: 0 | G30: 0 | H30: 0 | I30: 0 | J30: 0 | L30: 0 | M30: 0 | N30: 0 | O30: 0 | P30: 0 | Q30: 0 | R30: 0 | S30: 0 | T30: 0 | U30: 0 | V30: 0 | W30: 0 | X30: 0 | Y30: 0 | Z30: 0 | AA30: 0 | AB30: 0 | AC30: 0 | AD30: 0 | AE30: 0 | AF30: 0 | AG30: 0 | AH30: 0 | AI30: 0 | AJ30: 0 | AK30: 0 | AL30: 0 | AM30: 0 | AN30: 0 | AO30: 0 | AP30: 0 | AQ30: 0 | AR30: 0 | AS30: 0 | AT30: 0 | AU30: 0 | AV30: 0 | AW30: 0 | AX30: 0 | AY30: 0 | AZ30: 0 | BA30: 0 | BB30: 0 | BC30: 0 | BD30: 0 | BE30: 0 | BF30: 0 | BG30: 0 | BH30: 0 | BI30: 0 | BJ30: 0 | BK30: 0 | BL30: 0 | BM30: 0 | BN30: 0 | BO30: 0 | BP30: 0 | BQ30: 0 | BR30: 0 | BS30: 0 | BT30: 0 | BU30: 0 | BV30: 0 | BW30: 0 | BX30: 0 | BY30: 0 | BZ30: 0 | CA30: 0 | CB30: 0 | CC30: 0 | CD30: 0 | CE30: 0 | CG30: 0 | CH30: 0 | CI30: 0 | CJ30: 0 | CK30: 0 | CL30: 0 | CM30: 0 | CN30: 0 | CO30: 0 | CP30: 0 | CQ30: 0 | CR30: 0 | CS30: 0 | CT30: 0 | CU30: 0 | CV30: 0 | CW30: 0 | CX30: 0 | CY30: 0 | CZ30: 0 | DA30: 0 | DB30: 0 | DC30: 0 | DD30: 0 | DE30: 0 | DF30: 0 | DG30: 0 | DH30: 0 | DI30: 0 | DJ30: 0 | DK30: 0 | DL30: 0 | DM30: 0 | DN30: 0 | DO30: 0 | DP30: 0 | DQ30: 0 | DR30: 0 | DS30: 0 | DT30: 0 | DU30: 0 | DV30: 0 | DW30: 0 | DX30: 0 | DY30: 0 | DZ30: 0 | EA30: 0 | EB30: 0 | EC30: 0 | ED30: 0 | EE30: 0 | EF30: 0 | EG30: 0 | EH30: 0 | EI30: 0 | EJ30: 0 | EK30: 0 | EL30: 0 | EM30: 0 | EN30: 0 | EO30: 0 | EP30: 0 | EQ30: 0 | ER30: 0 | ES30: 0 | ET30: 0 | EU30: 0 | EV30: 0 | EW30: 0 | EX30: 0 | EY30: 0 | EZ30: 0
C31: Upper Baker | D31: FPS_FBS_UPB | E31: 11339.934 | F31: 11227.742 | G31: 11227.742 | H31: 11227.742 | I31: 11227.742 | J31: 11227.742 | L31: 0 | M31: 2800 | N31: 2800 | O31: 2912 | P31: 2800 | Q31: 0 | R31: 0 | S31: 0 | T31: 0 | U31: 0 | V31: 0 | W31: 0 | X31: 0 | Y31: 2800 | Z31: 2800 | AA31: 2912 | AB31: 2688 | AC31: 0 | AD31: 0 | AE31: 0 | AF31: 0 | AG31: 0 | AH31: 0 | AI31: 0 | AJ31: 0 | AK31: 2800 | AL31: 2800 | AM31: 2912 | AN31: 2688 | AO31: 0 | AP31: 0 | AQ31: 0 | AR31: 0 | AS31: 0 | AT31: 0 | AU31: 0 | AV31: 0 | AW31: 2800 | AX31: 2800 | AY31: 2912 | AZ31: 2688 | BA31: 0 | BB31: 0 | BC31: 0 | BD31: 0 | BE31: 0 | BF31: 0 | BG31: 0 | BH31: 0 | BI31: 2800 | BJ31: 2800 | BK31: 2912 | BL31: 2688 | BM31: 0 | BN31: 0 | BO31: 0 | BP31: 0 | BQ31: 0 | BR31: 0 | BS31: 0 | BT31: 0 | BU31: 2800 | BV31: 2800 | BW31: 2912 | BX31: 2688 | BY31: 0 | BZ31: 0 | CA31: 0 | CB31: 0 | CC31: 0 | CD31: 0 | CE31: 0 | CG31: 0 | CH31: 7.062 | CI31: 6.88 | CJ31: 6.888 | CK31: 7.104 | CL31: 0 | CM31: 0 | CN31: 0 | CO31: 0 | CP31: 0 | CQ31: 0 | CR31: 0 | CS31: 0 | CT31: 7.062 | CU31: 6.88 | CV31: 6.888 | CW31: 6.912 | CX31: 0 | CY31: 0 | CZ31: 0 | DA31: 0 | DB31: 0 | DC31: 0 | DD31: 0 | DE31: 0 | DF31: 7.062 | DG31: 6.88 | DH31: 6.888 | DI31: 6.912 | DJ31: 0 | DK31: 0 | DL31: 0 | DM31: 0 | DN31: 0 | DO31: 0 | DP31: 0 | DQ31: 0 | DR31: 7.062 | DS31: 6.88 | DT31: 6.888 | DU31: 6.912 | DV31: 0 | DW31: 0 | DX31: 0 | DY31: 0 | DZ31: 0 | EA31: 0 | EB31: 0 | EC31: 0 | ED31: 7.062 | EE31: 6.88 | EF31: 6.888 | EG31: 6.912 | EH31: 0 | EI31: 0 | EJ31: 0 | EK31: 0 | EL31: 0 | EM31: 0 | EN31: 0 | EO31: 0 | EP31: 7.062 | EQ31: 6.88 | ER31: 6.888 | ES31: 6.912 | ET31: 0 | EU31: 0 | EV31: 0 | EW31: 0 | EX31: 0 | EY31: 0 | EZ31: 0
C32: Non-Treaty Storage | D32: FPS_FBS_NTS | E32: 133620 | F32: 135856.8 | G32: 135856.8 | H32: 135856.8 | I32: 135856.8 | J32: 135856.8 | L32: 0 | M32: 0 | N32: 0 | O32: 0 | P32: 0 | Q32: 0 | R32: 0 | S32: 0 | T32: 0 | U32: 11939.2 | V32: 65267.2 | W32: 0 | X32: 0 | Y32: 0 | Z32: 0 | AA32: 0 | AB32: 0 | AC32: 0 | AD32: 0 | AE32: 0 | AF32: 0 | AG32: 6364.8 | AH32: 68806.4 | AI32: 0 | AJ32: 0 | AK32: 0 | AL32: 0 | AM32: 0 | AN32: 0 | AO32: 0 | AP32: 0 | AQ32: 0 | AR32: 0 | AS32: 6364.8 | AT32: 68806.4 | AU32: 0 | AV32: 0 | AW32: 0 | AX32: 0 | AY32: 0 | AZ32: 0 | BA32: 0 | BB32: 0 | BC32: 0 | BD32: 0 | BE32: 6364.8 | BF32: 68806.4 | BG32: 0 | BH32: 0 | BI32: 0 | BJ32: 0 | BK32: 0 | BL32: 0 | BM32: 0 | BN32: 0 | BO32: 0 | BP32: 0 | BQ32: 6364.8 | BR32: 68806.4 | BS32: 0 | BT32: 0 | BU32: 0 | BV32: 0 | BW32: 0 | BX32: 0 | BY32: 0 | BZ32: 0 | CA32: 0 | CB32: 0 | CC32: 6364.8 | CD32: 68806.4 | CE32: 0 | CG32: 0 | CH32: 0 | CI32: 0 | CJ32: 0 | CK32: 0 | CL32: 0 | CM32: 0 | CN32: 0 | CO32: 0 | CP32: 9413.6 | CQ32: 47000 | CR32: 0 | CS32: 0 | CT32: 0 | CU32: 0 | CV32: 0 | CW32: 0 | CX32: 0 | CY32: 0 | CZ32: 0 | DA32: 0 | DB32: 5018.4 | DC32: 55667.2 | DD32: 0 | DE32: 0 | DF32: 0 | DG32: 0 | DH32: 0 | DI32: 0 | DJ32: 0 | DK32: 0 | DL32: 0 | DM32: 0 | DN32: 5018.4 | DO32: 55667.2 | DP32: 0 | DQ32: 0 | DR32: 0 | DS32: 0 | DT32: 0 | DU32: 0 | DV32: 0 | DW32: 0 | DX32: 0 | DY32: 0 | DZ32: 5018.4 | EA32: 55667.2 | EB32: 0 | EC32: 0 | ED32: 0 | EE32: 0 | EF32: 0 | EG32: 0 | EH32: 0 | EI32: 0 | EJ32: 0 | EK32: 0 | EL32: 5018.4 | EM32: 55667.2 | EN32: 0 | EO32: 0 | EP32: 0 | EQ32: 0 | ER32: 0 | ES32: 0 | ET32: 0 | EU32: 0 | EV32: 0 | EW32: 0 | EX32: 5018.4 | EY32: 55667.2 | EZ32: 0
C33: Libby Coordination | D33: FPS_FBS_LCA | E33: 0 | F33: 0 | G33: 0 | H33: 0 | I33: 0 | J33: 0 | L33: 0 | M33: 0 | N33: 0 | O33: 0 | P33: 0 | Q33: 0 | R33: 0 | S33: 0 | T33: 0 | U33: 0 | V33: 0 | W33: 0 | X33: 0 | Y33: 0 | Z33: 0 | AA33: 0 | AB33: 0 | AC33: 0 | AD33: 0 | AE33: 0 | AF33: 0 | AG33: 0 | AH33: 0 | AI33: 0 | AJ33: 0 | AK33: 0 | AL33: 0 | AM33: 0 | AN33: 0 | AO33: 0 | AP33: 0 | AQ33: 0 | AR33: 0 | AS33: 0 | AT33: 0 | AU33: 0 | AV33: 0 | AW33: 0 | AX33: 0 | AY33: 0 | AZ33: 0 | BA33: 0 | BB33: 0 | BC33: 0 | BD33: 0 | BE33: 0 | BF33: 0 | BG33: 0 | BH33: 0 | BI33: 0 | BJ33: 0 | BK33: 0 | BL33: 0 | BM33: 0 | BN33: 0 | BO33: 0 | BP33: 0 | BQ33: 0 | BR33: 0 | BS33: 0 | BT33: 0 | BU33: 0 | BV33: 0 | BW33: 0 | BX33: 0 | BY33: 0 | BZ33: 0 | CA33: 0 | CB33: 0 | CC33: 0 | CD33: 0 | CE33: 0 | CG33: 0 | CH33: 0 | CI33: 0 | CJ33: 0 | CK33: 0 | CL33: 0 | CM33: 0 | CN33: 0 | CO33: 0 | CP33: 0 | CQ33: 0 | CR33: 0 | CS33: 0 | CT33: 0 | CU33: 0 | CV33: 0 | CW33: 0 | CX33: 0 | CY33: 0 | CZ33: 0 | DA33: 0 | DB33: 0 | DC33: 0 | DD33: 0 | DE33: 0 | DF33: 0 | DG33: 0 | DH33: 0 | DI33: 0 | DJ33: 0 | DK33: 0 | DL33: 0 | DM33: 0 | DN33: 0 | DO33: 0 | DP33: 0 | DQ33: 0 | DR33: 0 | DS33: 0 | DT33: 0 | DU33: 0 | DV33: 0 | DW33: 0 | DX33: 0 | DY33: 0 | DZ33: 0 | EA33: 0 | EB33: 0 | EC33: 0 | ED33: 0 | EE33: 0 | EF33: 0 | EG33: 0 | EH33: 0 | EI33: 0 | EJ33: 0 | EK33: 0 | EL33: 0 | EM33: 0 | EN33: 0 | EO33: 0 | EP33: 0 | EQ33: 0 | ER33: 0 | ES33: 0 | ET33: 0 | EU33: 0 | EV33: 0 | EW33: 0 | EX33: 0 | EY33: 0 | EZ33: 0
E34: 0 | F34: 0 | G34: 0 | H34: 0 | I34: 0 | J34: 0 | L34: 0 | M34: 0 | N34: 0 | O34: 0 | P34: 0 | Q34: 0 | R34: 0 | S34: 0 | T34: 0 | U34: 0 | V34: 0 | W34: 0 | X34: 0 | Y34: 0 | Z34: 0 | AA34: 0 | AB34: 0 | AC34: 0 | AD34: 0 | AE34: 0 | AF34: 0 | AG34: 0 | AH34: 0 | AI34: 0 | AJ34: 0 | AK34: 0 | AL34: 0 | AM34: 0 | AN34: 0 | AO34: 0 | AP34: 0 | AQ34: 0 | AR34: 0 | AS34: 0 | AT34: 0 | AU34: 0 | AV34: 0 | AW34: 0 | AX34: 0 | AY34: 0 | AZ34: 0 | BA34: 0 | BB34: 0 | BC34: 0 | BD34: 0 | BE34: 0 | BF34: 0 | BG34: 0 | BH34: 0 | BI34: 0 | BJ34: 0 | BK34: 0 | BL34: 0 | BM34: 0 | BN34: 0 | BO34: 0 | BP34: 0 | BQ34: 0 | BR34: 0 | BS34: 0 | BT34: 0 | BU34: 0 | BV34: 0 | BW34: 0 | BX34: 0 | BY34: 0 | BZ34: 0 | CA34: 0 | CB34: 0 | CC34: 0 | CD34: 0 | CE34: 0 | CG34: 0 | CH34: 0 | CI34: 0 | CJ34: 0 | CK34: 0 | CL34: 0 | CM34: 0 | CN34: 0 | CO34: 0 | CP34: 0 | CQ34: 0 | CR34: 0 | CS34: 0 | CT34: 0 | CU34: 0 | CV34: 0 | CW34: 0 | CX34: 0 | CY34: 0 | CZ34: 0 | DA34: 0 | DB34: 0 | DC34: 0 | DD34: 0 | DE34: 0 | DF34: 0 | DG34: 0 | DH34: 0 | DI34: 0 | DJ34: 0 | DK34: 0 | DL34: 0 | DM34: 0 | DN34: 0 | DO34: 0 | DP34: 0 | DQ34: 0 | DR34: 0 | DS34: 0 | DT34: 0 | DU34: 0 | DV34: 0 | DW34: 0 | DX34: 0 | DY34: 0 | DZ34: 0 | EA34: 0 | EB34: 0 | EC34: 0 | ED34: 0 | EE34: 0 | EF34: 0 | EG34: 0 | EH34: 0 | EI34: 0 | EJ34: 0 | EK34: 0 | EL34: 0 | EM34: 0 | EN34: 0 | EO34: 0 | EP34: 0 | EQ34: 0 | ER34: 0 | ES34: 0 | ET34: 0 | EU34: 0 | EV34: 0 | EW34: 0 | EX34: 0 | EY34: 0 | EZ34: 0
E35: 0 | F35: 0 | G35: 0 | H35: 0 | I35: 0 | J35: 0 | L35: 0 | M35: 0 | N35: 0 | O35: 0 | P35: 0 | Q35: 0 | R35: 0 | S35: 0 | T35: 0 | U35: 0 | V35: 0 | W35: 0 | X35: 0 | Y35: 0 | Z35: 0 | AA35: 0 | AB35: 0 | AC35: 0 | AD35: 0 | AE35: 0 | AF35: 0 | AG35: 0 | AH35: 0 | AI35: 0 | AJ35: 0 | AK35: 0 | AL35: 0 | AM35: 0 | AN35: 0 | AO35: 0 | AP35: 0 | AQ35: 0 | AR35: 0 | AS35: 0 | AT35: 0 | AU35: 0 | AV35: 0 | AW35: 0 | AX35: 0 | AY35: 0 | AZ35: 0 | BA35: 0 | BB35: 0 | BC35: 0 | BD35: 0 | BE35: 0 | BF35: 0 | BG35: 0 | BH35: 0 | BI35: 0 | BJ35: 0 | BK35: 0 | BL35: 0 | BM35: 0 | BN35: 0 | BO35: 0 | BP35: 0 | BQ35: 0 | BR35: 0 | BS35: 0 | BT35: 0 | BU35: 0 | BV35: 0 | BW35: 0 | BX35: 0 | BY35: 0 | BZ35: 0 | CA35: 0 | CB35: 0 | CC35: 0 | CD35: 0 | CE35: 0 | CG35: 0 | CH35: 0 | CI35: 0 | CJ35: 0 | CK35: 0 | CL35: 0 | CM35: 0 | CN35: 0 | CO35: 0 | CP35: 0 | CQ35: 0 | CR35: 0 | CS35: 0 | CT35: 0 | CU35: 0 | CV35: 0 | CW35: 0 | CX35: 0 | CY35: 0 | CZ35: 0 | DA35: 0 | DB35: 0 | DC35: 0 | DD35: 0 | DE35: 0 | DF35: 0 | DG35: 0 | DH35: 0 | DI35: 0 | DJ35: 0 | DK35: 0 | DL35: 0 | DM35: 0 | DN35: 0 | DO35: 0 | DP35: 0 | DQ35: 0 | DR35: 0 | DS35: 0 | DT35: 0 | DU35: 0 | DV35: 0 | DW35: 0 | DX35: 0 | DY35: 0 | DZ35: 0 | EA35: 0 | EB35: 0 | EC35: 0 | ED35: 0 | EE35: 0 | EF35: 0 | EG35: 0 | EH35: 0 | EI35: 0 | EJ35: 0 | EK35: 0 | EL35: 0 | EM35: 0 | EN35: 0 | EO35: 0 | EP35: 0 | EQ35: 0 | ER35: 0 | ES35: 0 | ET35: 0 | EU35: 0 | EV35: 0 | EW35: 0 | EX35: 0 | EY35: 0 | EZ35: 0
E36: 0 | F36: 0 | G36: 0 | H36: 0 | I36: 0 | J36: 0 | L36: 0 | M36: 0 | N36: 0 | O36: 0 | P36: 0 | Q36: 0 | R36: 0 | S36: 0 | T36: 0 | U36: 0 | V36: 0 | W36: 0 | X36: 0 | Y36: 0 | Z36: 0 | AA36: 0 | AB36: 0 | AC36: 0 | AD36: 0 | AE36: 0 | AF36: 0 | AG36: 0 | AH36: 0 | AI36: 0 | AJ36: 0 | AK36: 0 | AL36: 0 | AM36: 0 | AN36: 0 | AO36: 0 | AP36: 0 | AQ36: 0 | AR36: 0 | AS36: 0 | AT36: 0 | AU36: 0 | AV36: 0 | AW36: 0 | AX36: 0 | AY36: 0 | AZ36: 0 | BA36: 0 | BB36: 0 | BC36: 0 | BD36: 0 | BE36: 0 | BF36: 0 | BG36: 0 | BH36: 0 | BI36: 0 | BJ36: 0 | BK36: 0 | BL36: 0 | BM36: 0 | BN36: 0 | BO36: 0 | BP36: 0 | BQ36: 0 | BR36: 0 | BS36: 0 | BT36: 0 | BU36: 0 | BV36: 0 | BW36: 0 | BX36: 0 | BY36: 0 | BZ36: 0 | CA36: 0 | CB36: 0 | CC36: 0 | CD36: 0 | CE36: 0 | CG36: 0 | CH36: 0 | CI36: 0 | CJ36: 0 | CK36: 0 | CL36: 0 | CM36: 0 | CN36: 0 | CO36: 0 | CP36: 0 | CQ36: 0 | CR36: 0 | CS36: 0 | CT36: 0 | CU36: 0 | CV36: 0 | CW36: 0 | CX36: 0 | CY36: 0 | CZ36: 0 | DA36: 0 | DB36: 0 | DC36: 0 | DD36: 0 | DE36: 0 | DF36: 0 | DG36: 0 | DH36: 0 | DI36: 0 | DJ36: 0 | DK36: 0 | DL36: 0 | DM36: 0 | DN36: 0 | DO36: 0 | DP36: 0 | DQ36: 0 | DR36: 0 | DS36: 0 | DT36: 0 | DU36: 0 | DV36: 0 | DW36: 0 | DX36: 0 | DY36: 0 | DZ36: 0 | EA36: 0 | EB36: 0 | EC36: 0 | ED36: 0 | EE36: 0 | EF36: 0 | EG36: 0 | EH36: 0 | EI36: 0 | EJ36: 0 | EK36: 0 | EL36: 0 | EM36: 0 | EN36: 0 | EO36: 0 | EP36: 0 | EQ36: 0 | ER36: 0 | ES36: 0 | ET36: 0 | EU36: 0 | EV36: 0 | EW36: 0 | EX36: 0 | EY36: 0 | EZ36: 0
E37: 0 | F37: 0 | G37: 0 | H37: 0 | I37: 0 | J37: 0 | L37: 0 | M37: 0 | N37: 0 | O37: 0 | P37: 0 | Q37: 0 | R37: 0 | S37: 0 | T37: 0 | U37: 0 | V37: 0 | W37: 0 | X37: 0 | Y37: 0 | Z37: 0 | AA37: 0 | AB37: 0 | AC37: 0 | AD37: 0 | AE37: 0 | AF37: 0 | AG37: 0 | AH37: 0 | AI37: 0 | AJ37: 0 | AK37: 0 | AL37: 0 | AM37: 0 | AN37: 0 | AO37: 0 | AP37: 0 | AQ37: 0 | AR37: 0 | AS37: 0 | AT37: 0 | AU37: 0 | AV37: 0 | AW37: 0 | AX37: 0 | AY37: 0 | AZ37: 0 | BA37: 0 | BB37: 0 | BC37: 0 | BD37: 0 | BE37: 0 | BF37: 0 | BG37: 0 | BH37: 0 | BI37: 0 | BJ37: 0 | BK37: 0 | BL37: 0 | BM37: 0 | BN37: 0 | BO37: 0 | BP37: 0 | BQ37: 0 | BR37: 0 | BS37: 0 | BT37: 0 | BU37: 0 | BV37: 0 | BW37: 0 | BX37: 0 | BY37: 0 | BZ37: 0 | CA37: 0 | CB37: 0 | CC37: 0 | CD37: 0 | CE37: 0 | CG37: 0 | CH37: 0 | CI37: 0 | CJ37: 0 | CK37: 0 | CL37: 0 | CM37: 0 | CN37: 0 | CO37: 0 | CP37: 0 | CQ37: 0 | CR37: 0 | CS37: 0 | CT37: 0 | CU37: 0 | CV37: 0 | CW37: 0 | CX37: 0 | CY37: 0 | CZ37: 0 | DA37: 0 | DB37: 0 | DC37: 0 | DD37: 0 | DE37: 0 | DF37: 0 | DG37: 0 | DH37: 0 | DI37: 0 | DJ37: 0 | DK37: 0 | DL37: 0 | DM37: 0 | DN37: 0 | DO37: 0 | DP37: 0 | DQ37: 0 | DR37: 0 | DS37: 0 | DT37: 0 | DU37: 0 | DV37: 0 | DW37: 0 | DX37: 0 | DY37: 0 | DZ37: 0 | EA37: 0 | EB37: 0 | EC37: 0 | ED37: 0 | EE37: 0 | EF37: 0 | EG37: 0 | EH37: 0 | EI37: 0 | EJ37: 0 | EK37: 0 | EL37: 0 | EM37: 0 | EN37: 0 | EO37: 0 | EP37: 0 | EQ37: 0 | ER37: 0 | ES37: 0 | ET37: 0 | EU37: 0 | EV37: 0 | EW37: 0 | EX37: 0 | EY37: 0 | EZ37: 0
B38: Seasonal or Capacity Exchange | D38: FPS_EXS | E38: =+SUM(E39:E48) -> 0 | F38: 0 | G38: 0 | H38: 0 | I38: 0 | J38: 0 | L38: 0 | M38: 0 | N38: 0 | O38: 0 | P38: 0 | Q38: 0 | R38: 0 | S38: 0 | T38: 0 | U38: 0 | V38: 0 | W38: 0 | X38: 0 | Y38: 0 | Z38: 0 | AA38: 0 | AB38: 0 | AC38: 0 | AD38: 0 | AE38: 0 | AF38: 0 | AG38: 0 | AH38: 0 | AI38: 0 | AJ38: 0 | AK38: 0 | AL38: 0 | AM38: 0 | AN38: 0 | AO38: 0 | AP38: 0 | AQ38: 0 | AR38: 0 | AS38: 0 | AT38: 0 | AU38: 0 | AV38: 0 | AW38: 0 | AX38: 0 | AY38: 0 | AZ38: 0 | BA38: 0 | BB38: 0 | BC38: 0 | BD38: 0 | BE38: 0 | BF38: 0 | BG38: 0 | BH38: 0 | BI38: 0 | BJ38: 0 | BK38: 0 | BL38: 0 | BM38: 0 | BN38: 0 | BO38: 0 | BP38: 0 | BQ38: 0 | BR38: 0 | BS38: 0 | BT38: 0 | BU38: 0 | BV38: 0 | BW38: 0 | BX38: 0 | BY38: 0 | BZ38: 0 | CA38: 0 | CB38: 0 | CC38: 0 | CD38: 0 | CE38: 0 | CG38: 0 | CH38: 0 | CI38: 0 | CJ38: 0 | CK38: 0 | CL38: 0 | CM38: 0 | CN38: 0 | CO38: 0 | CP38: 0 | CQ38: 0 | CR38: 0 | CS38: 0 | CT38: 0 | CU38: 0 | CV38: 0 | CW38: 0 | CX38: 0 | CY38: 0 | CZ38: 0 | DA38: 0 | DB38: 0 | DC38: 0 | DD38: 0 | DE38: 0 | DF38: 0 | DG38: 0 | DH38: 0 | DI38: 0 | DJ38: 0 | DK38: 0 | DL38: 0 | DM38: 0 | DN38: 0 | DO38: 0 | DP38: 0 | DQ38: 0 | DR38: 0 | DS38: 0 | DT38: 0 | DU38: 0 | DV38: 0 | DW38: 0 | DX38: 0 | DY38: 0 | DZ38: 0 | EA38: 0 | EB38: 0 | EC38: 0 | ED38: 0 | EE38: 0 | EF38: 0 | EG38: 0 | EH38: 0 | EI38: 0 | EJ38: 0 | EK38: 0 | EL38: 0 | EM38: 0 | EN38: 0 | EO38: 0 | EP38: 0 | EQ38: 0 | ER38: 0 | ES38: 0 | ET38: 0 | EU38: 0 | EV38: 0 | EW38: 0 | EX38: 0 | EY38: 0 | EZ38: 0
C39: Riverside Capacity | D39: FPS_EXS_RVC | E39: 0 | F39: 0 | G39: 0 | H39: 0 | I39: 0 | J39: 0 | L39: 0 | M39: 0 | N39: 0 | O39: 0 | P39: 0 | Q39: 0 | R39: 0 | S39: 0 | T39: 0 | U39: 0 | V39: 0 | W39: 0 | X39: 0 | Y39: 0 | Z39: 0 | AA39: 0 | AB39: 0 | AC39: 0 | AD39: 0 | AE39: 0 | AF39: 0 | AG39: 0 | AH39: 0 | AI39: 0 | AJ39: 0 | AK39: 0 | AL39: 0 | AM39: 0 | AN39: 0 | AO39: 0 | AP39: 0 | AQ39: 0 | AR39: 0 | AS39: 0 | AT39: 0 | AU39: 0 | AV39: 0 | AW39: 0 | AX39: 0 | AY39: 0 | AZ39: 0 | BA39: 0 | BB39: 0 | BC39: 0 | BD39: 0 | BE39: 0 | BF39: 0 | BG39: 0 | BH39: 0 | BI39: 0 | BJ39: 0 | BK39: 0 | BL39: 0 | BM39: 0 | BN39: 0 | BO39: 0 | BP39: 0 | BQ39: 0 | BR39: 0 | BS39: 0 | BT39: 0 | BU39: 0 | BV39: 0 | BW39: 0 | BX39: 0 | BY39: 0 | BZ39: 0 | CA39: 0 | CB39: 0 | CC39: 0 | CD39: 0 | CE39: 0 | CG39: 0 | CH39: 0 | CI39: 0 | CJ39: 0 | CK39: 0 | CL39: 0 | CM39: 0 | CN39: 0 | CO39: 0 | CP39: 0 | CQ39: 0 | CR39: 0 | CS39: 0 | CT39: 0 | CU39: 0 | CV39: 0 | CW39: 0 | CX39: 0 | CY39: 0 | CZ39: 0 | DA39: 0 | DB39: 0 | DC39: 0 | DD39: 0 | DE39: 0 | DF39: 0 | DG39: 0 | DH39: 0 | DI39: 0 | DJ39: 0 | DK39: 0 | DL39: 0 | DM39: 0 | DN39: 0 | DO39: 0 | DP39: 0 | DQ39: 0 | DR39: 0 | DS39: 0 | DT39: 0 | DU39: 0 | DV39: 0 | DW39: 0 | DX39: 0 | DY39: 0 | DZ39: 0 | EA39: 0 | EB39: 0 | EC39: 0 | ED39: 0 | EE39: 0 | EF39: 0 | EG39: 0 | EH39: 0 | EI39: 0 | EJ39: 0 | EK39: 0 | EL39: 0 | EM39: 0 | EN39: 0 | EO39: 0 | EP39: 0 | EQ39: 0 | ER39: 0 | ES39: 0 | ET39: 0 | EU39: 0 | EV39: 0 | EW39: 0 | EX39: 0 | EY39: 0 | EZ39: 0
C40: Riverside Seasonal | D40: FPS_EXS_RVS | E40: 0 | F40: 0 | G40: 0 | H40: 0 | I40: 0 | J40: 0 | L40: 0 | M40: 0 | N40: 0 | O40: 0 | P40: 0 | Q40: 0 | R40: 0 | S40: 0 | T40: 0 | U40: 0 | V40: 0 | W40: 0 | X40: 0 | Y40: 0 | Z40: 0 | AA40: 0 | AB40: 0 | AC40: 0 | AD40: 0 | AE40: 0 | AF40: 0 | AG40: 0 | AH40: 0 | AI40: 0 | AJ40: 0 | AK40: 0 | AL40: 0 | AM40: 0 | AN40: 0 | AO40: 0 | AP40: 0 | AQ40: 0 | AR40: 0 | AS40: 0 | AT40: 0 | AU40: 0 | AV40: 0 | AW40: 0 | AX40: 0 | AY40: 0 | AZ40: 0 | BA40: 0 | BB40: 0 | BC40: 0 | BD40: 0 | BE40: 0 | BF40: 0 | BG40: 0 | BH40: 0 | BI40: 0 | BJ40: 0 | BK40: 0 | BL40: 0 | BM40: 0 | BN40: 0 | BO40: 0 | BP40: 0 | BQ40: 0 | BR40: 0 | BS40: 0 | BT40: 0 | BU40: 0 | BV40: 0 | BW40: 0 | BX40: 0 | BY40: 0 | BZ40: 0 | CA40: 0 | CB40: 0 | CC40: 0 | CD40: 0 | CE40: 0 | CG40: 0 | CH40: 0 | CI40: 0 | CJ40: 0 | CK40: 0 | CL40: 0 | CM40: 0 | CN40: 0 | CO40: 0 | CP40: 0 | CQ40: 0 | CR40: 0 | CS40: 0 | CT40: 0 | CU40: 0 | CV40: 0 | CW40: 0 | CX40: 0 | CY40: 0 | CZ40: 0 | DA40: 0 | DB40: 0 | DC40: 0 | DD40: 0 | DE40: 0 | DF40: 0 | DG40: 0 | DH40: 0 | DI40: 0 | DJ40: 0 | DK40: 0 | DL40: 0 | DM40: 0 | DN40: 0 | DO40: 0 | DP40: 0 | DQ40: 0 | DR40: 0 | DS40: 0 | DT40: 0 | DU40: 0 | DV40: 0 | DW40: 0 | DX40: 0 | DY40: 0 | DZ40: 0 | EA40: 0 | EB40: 0 | EC40: 0 | ED40: 0 | EE40: 0 | EF40: 0 | EG40: 0 | EH40: 0 | EI40: 0 | EJ40: 0 | EK40: 0 | EL40: 0 | EM40: 0 | EN40: 0 | EO40: 0 | EP40: 0 | EQ40: 0 | ER40: 0 | ES40: 0 | ET40: 0 | EU40: 0 | EV40: 0 | EW40: 0 | EX40: 0 | EY40: 0 | EZ40: 0
C41: Pasadena Capacity | D41: FPS_EXS_PAC | E41: 0 | F41: 0 | G41: 0 | H41: 0 | I41: 0 | J41: 0 | L41: 0 | M41: 0 | N41: 0 | O41: 0 | P41: 0 | Q41: 0 | R41: 0 | S41: 0 | T41: 0 | U41: 0 | V41: 0 | W41: 0 | X41: 0 | Y41: 0 | Z41: 0 | AA41: 0 | AB41: 0 | AC41: 0 | AD41: 0 | AE41: 0 | AF41: 0 | AG41: 0 | AH41: 0 | AI41: 0 | AJ41: 0 | AK41: 0 | AL41: 0 | AM41: 0 | AN41: 0 | AO41: 0 | AP41: 0 | AQ41: 0 | AR41: 0 | AS41: 0 | AT41: 0 | AU41: 0 | AV41: 0 | AW41: 0 | AX41: 0 | AY41: 0 | AZ41: 0 | BA41: 0 | BB41: 0 | BC41: 0 | BD41: 0 | BE41: 0 | BF41: 0 | BG41: 0 | BH41: 0 | BI41: 0 | BJ41: 0 | BK41: 0 | BL41: 0 | BM41: 0 | BN41: 0 | BO41: 0 | BP41: 0 | BQ41: 0 | BR41: 0 | BS41: 0 | BT41: 0 | BU41: 0 | BV41: 0 | BW41: 0 | BX41: 0 | BY41: 0 | BZ41: 0 | CA41: 0 | CB41: 0 | CC41: 0 | CD41: 0 | CE41: 0 | CG41: 0 | CH41: 0 | CI41: 0 | CJ41: 0 | CK41: 0 | CL41: 0 | CM41: 0 | CN41: 0 | CO41: 0 | CP41: 0 | CQ41: 0 | CR41: 0 | CS41: 0 | CT41: 0 | CU41: 0 | CV41: 0 | CW41: 0 | CX41: 0 | CY41: 0 | CZ41: 0 | DA41: 0 | DB41: 0 | DC41: 0 | DD41: 0 | DE41: 0 | DF41: 0 | DG41: 0 | DH41: 0 | DI41: 0 | DJ41: 0 | DK41: 0 | DL41: 0 | DM41: 0 | DN41: 0 | DO41: 0 | DP41: 0 | DQ41: 0 | DR41: 0 | DS41: 0 | DT41: 0 | DU41: 0 | DV41: 0 | DW41: 0 | DX41: 0 | DY41: 0 | DZ41: 0 | EA41: 0 | EB41: 0 | EC41: 0 | ED41: 0 | EE41: 0 | EF41: 0 | EG41: 0 | EH41: 0 | EI41: 0 | EJ41: 0 | EK41: 0 | EL41: 0 | EM41: 0 | EN41: 0 | EO41: 0 | EP41: 0 | EQ41: 0 | ER41: 0 | ES41: 0 | ET41: 0 | EU41: 0 | EV41: 0 | EW41: 0 | EX41: 0 | EY41: 0 | EZ41: 0
C42: Pasadena Seasonal | D42: FPS_EXS_PAS | E42: 0 | F42: 0 | G42: 0 | H42: 0 | I42: 0 | J42: 0 | L42: 0 | M42: 0 | N42: 0 | O42: 0 | P42: 0 | Q42: 0 | R42: 0 | S42: 0 | T42: 0 | U42: 0 | V42: 0 | W42: 0 | X42: 0 | Y42: 0 | Z42: 0 | AA42: 0 | AB42: 0 | AC42: 0 | AD42: 0 | AE42: 0 | AF42: 0 | AG42: 0 | AH42: 0 | AI42: 0 | AJ42: 0 | AK42: 0 | AL42: 0 | AM42: 0 | AN42: 0 | AO42: 0 | AP42: 0 | AQ42: 0 | AR42: 0 | AS42: 0 | AT42: 0 | AU42: 0 | AV42: 0 | AW42: 0 | AX42: 0 | AY42: 0 | AZ42: 0 | BA42: 0 | BB42: 0 | BC42: 0 | BD42: 0 | BE42: 0 | BF42: 0 | BG42: 0 | BH42: 0 | BI42: 0 | BJ42: 0 | BK42: 0 | BL42: 0 | BM42: 0 | BN42: 0 | BO42: 0 | BP42: 0 | BQ42: 0 | BR42: 0 | BS42: 0 | BT42: 0 | BU42: 0 | BV42: 0 | BW42: 0 | BX42: 0 | BY42: 0 | BZ42: 0 | CA42: 0 | CB42: 0 | CC42: 0 | CD42: 0 | CE42: 0 | CG42: 0 | CH42: 0 | CI42: 0 | CJ42: 0 | CK42: 0 | CL42: 0 | CM42: 0 | CN42: 0 | CO42: 0 | CP42: 0 | CQ42: 0 | CR42: 0 | CS42: 0 | CT42: 0 | CU42: 0 | CV42: 0 | CW42: 0 | CX42: 0 | CY42: 0 | CZ42: 0 | DA42: 0 | DB42: 0 | DC42: 0 | DD42: 0 | DE42: 0 | DF42: 0 | DG42: 0 | DH42: 0 | DI42: 0 | DJ42: 0 | DK42: 0 | DL42: 0 | DM42: 0 | DN42: 0 | DO42: 0 | DP42: 0 | DQ42: 0 | DR42: 0 | DS42: 0 | DT42: 0 | DU42: 0 | DV42: 0 | DW42: 0 | DX42: 0 | DY42: 0 | DZ42: 0 | EA42: 0 | EB42: 0 | EC42: 0 | ED42: 0 | EE42: 0 | EF42: 0 | EG42: 0 | EH42: 0 | EI42: 0 | EJ42: 0 | EK42: 0 | EL42: 0 | EM42: 0 | EN42: 0 | EO42: 0 | EP42: 0 | EQ42: 0 | ER42: 0 | ES42: 0 | ET42: 0 | EU42: 0 | EV42: 0 | EW42: 0 | EX42: 0 | EY42: 0 | EZ42: 0
C43: PG&E | D43: FPS_EXS_PGE | E43: 0 | F43: 0 | G43: 0 | H43: 0 | I43: 0 | J43: 0 | L43: 0 | M43: 0 | N43: 0 | O43: 0 | P43: 0 | Q43: 0 | R43: 0 | S43: 0 | T43: 0 | U43: 0 | V43: 0 | W43: 0 | X43: 0 | Y43: 0 | Z43: 0 | AA43: 0 | AB43: 0 | AC43: 0 | AD43: 0 | AE43: 0 | AF43: 0 | AG43: 0 | AH43: 0 | AI43: 0 | AJ43: 0 | AK43: 0 | AL43: 0 | AM43: 0 | AN43: 0 | AO43: 0 | AP43: 0 | AQ43: 0 | AR43: 0 | AS43: 0 | AT43: 0 | AU43: 0 | AV43: 0 | AW43: 0 | AX43: 0 | AY43: 0 | AZ43: 0 | BA43: 0 | BB43: 0 | BC43: 0 | BD43: 0 | BE43: 0 | BF43: 0 | BG43: 0 | BH43: 0 | BI43: 0 | BJ43: 0 | BK43: 0 | BL43: 0 | BM43: 0 | BN43: 0 | BO43: 0 | BP43: 0 | BQ43: 0 | BR43: 0 | BS43: 0 | BT43: 0 | BU43: 0 | BV43: 0 | BW43: 0 | BX43: 0 | BY43: 0 | BZ43: 0 | CA43: 0 | CB43: 0 | CC43: 0 | CD43: 0 | CE43: 0 | CG43: 0 | CH43: 0 | CI43: 0 | CJ43: 0 | CK43: 0 | CL43: 0 | CM43: 0 | CN43: 0 | CO43: 0 | CP43: 0 | CQ43: 0 | CR43: 0 | CS43: 0 | CT43: 0 | CU43: 0 | CV43: 0 | CW43: 0 | CX43: 0 | CY43: 0 | CZ43: 0 | DA43: 0 | DB43: 0 | DC43: 0 | DD43: 0 | DE43: 0 | DF43: 0 | DG43: 0 | DH43: 0 | DI43: 0 | DJ43: 0 | DK43: 0 | DL43: 0 | DM43: 0 | DN43: 0 | DO43: 0 | DP43: 0 | DQ43: 0 | DR43: 0 | DS43: 0 | DT43: 0 | DU43: 0 | DV43: 0 | DW43: 0 | DX43: 0 | DY43: 0 | DZ43: 0 | EA43: 0 | EB43: 0 | EC43: 0 | ED43: 0 | EE43: 0 | EF43: 0 | EG43: 0 | EH43: 0 | EI43: 0 | EJ43: 0 | EK43: 0 | EL43: 0 | EM43: 0 | EN43: 0 | EO43: 0 | EP43: 0 | EQ43: 0 | ER43: 0 | ES43: 0 | ET43: 0 | EU43: 0 | EV43: 0 | EW43: 0 | EX43: 0 | EY43: 0 | EZ43: 0
C44: Intertie Losses | D44: FPS_EXS_LSS | E44: 0 | F44: 0 | G44: 0 | H44: 0 | I44: 0 | J44: 0 | L44: 0 | M44: 0 | N44: 0 | O44: 0 | P44: 0 | Q44: 0 | R44: 0 | S44: 0 | T44: 0 | U44: 0 | V44: 0 | W44: 0 | X44: 0 | Y44: 0 | Z44: 0 | AA44: 0 | AB44: 0 | AC44: 0 | AD44: 0 | AE44: 0 | AF44: 0 | AG44: 0 | AH44: 0 | AI44: 0 | AJ44: 0 | AK44: 0 | AL44: 0 | AM44: 0 | AN44: 0 | AO44: 0 | AP44: 0 | AQ44: 0 | AR44: 0 | AS44: 0 | AT44: 0 | AU44: 0 | AV44: 0 | AW44: 0 | AX44: 0 | AY44: 0 | AZ44: 0 | BA44: 0 | BB44: 0 | BC44: 0 | BD44: 0 | BE44: 0 | BF44: 0 | BG44: 0 | BH44: 0 | BI44: 0 | BJ44: 0 | BK44: 0 | BL44: 0 | BM44: 0 | BN44: 0 | BO44: 0 | BP44: 0 | BQ44: 0 | BR44: 0 | BS44: 0 | BT44: 0 | BU44: 0 | BV44: 0 | BW44: 0 | BX44: 0 | BY44: 0 | BZ44: 0 | CA44: 0 | CB44: 0 | CC44: 0 | CD44: 0 | CE44: 0 | CG44: 0 | CH44: 0 | CI44: 0 | CJ44: 0 | CK44: 0 | CL44: 0 | CM44: 0 | CN44: 0 | CO44: 0 | CP44: 0 | CQ44: 0 | CR44: 0 | CS44: 0 | CT44: 0 | CU44: 0 | CV44: 0 | CW44: 0 | CX44: 0 | CY44: 0 | CZ44: 0 | DA44: 0 | DB44: 0 | DC44: 0 | DD44: 0 | DE44: 0 | DF44: 0 | DG44: 0 | DH44: 0 | DI44: 0 | DJ44: 0 | DK44: 0 | DL44: 0 | DM44: 0 | DN44: 0 | DO44: 0 | DP44: 0 | DQ44: 0 | DR44: 0 | DS44: 0 | DT44: 0 | DU44: 0 | DV44: 0 | DW44: 0 | DX44: 0 | DY44: 0 | DZ44: 0 | EA44: 0 | EB44: 0 | EC44: 0 | ED44: 0 | EE44: 0 | EF44: 0 | EG44: 0 | EH44: 0 | EI44: 0 | EJ44: 0 | EK44: 0 | EL44: 0 | EM44: 0 | EN44: 0 | EO44: 0 | EP44: 0 | EQ44: 0 | ER44: 0 | ES44: 0 | ET44: 0 | EU44: 0 | EV44: 0 | EW44: 0 | EX44: 0 | EY44: 0 | EZ44: 0
C45: PacifiCorp | D45: FPS_EXS_PPL | E45: 0 | F45: 0 | G45: 0 | H45: 0 | I45: 0 | J45: 0 | L45: 0 | M45: 0 | N45: 0 | O45: 0 | P45: 0 | Q45: 0 | R45: 0 | S45: 0 | T45: 0 | U45: 0 | V45: 0 | W45: 0 | X45: 0 | Y45: 0 | Z45: 0 | AA45: 0 | AB45: 0 | AC45: 0 | AD45: 0 | AE45: 0 | AF45: 0 | AG45: 0 | AH45: 0 | AI45: 0 | AJ45: 0 | AK45: 0 | AL45: 0 | AM45: 0 | AN45: 0 | AO45: 0 | AP45: 0 | AQ45: 0 | AR45: 0 | AS45: 0 | AT45: 0 | AU45: 0 | AV45: 0 | AW45: 0 | AX45: 0 | AY45: 0 | AZ45: 0 | BA45: 0 | BB45: 0 | BC45: 0 | BD45: 0 | BE45: 0 | BF45: 0 | BG45: 0 | BH45: 0 | BI45: 0 | BJ45: 0 | BK45: 0 | BL45: 0 | BM45: 0 | BN45: 0 | BO45: 0 | BP45: 0 | BQ45: 0 | BR45: 0 | BS45: 0 | BT45: 0 | BU45: 0 | BV45: 0 | BW45: 0 | BX45: 0 | BY45: 0 | BZ45: 0 | CA45: 0 | CB45: 0 | CC45: 0 | CD45: 0 | CE45: 0 | CG45: 0 | CH45: 0 | CI45: 0 | CJ45: 0 | CK45: 0 | CL45: 0 | CM45: 0 | CN45: 0 | CO45: 0 | CP45: 0 | CQ45: 0 | CR45: 0 | CS45: 0 | CT45: 0 | CU45: 0 | CV45: 0 | CW45: 0 | CX45: 0 | CY45: 0 | CZ45: 0 | DA45: 0 | DB45: 0 | DC45: 0 | DD45: 0 | DE45: 0 | DF45: 0 | DG45: 0 | DH45: 0 | DI45: 0 | DJ45: 0 | DK45: 0 | DL45: 0 | DM45: 0 | DN45: 0 | DO45: 0 | DP45: 0 | DQ45: 0 | DR45: 0 | DS45: 0 | DT45: 0 | DU45: 0 | DV45: 0 | DW45: 0 | DX45: 0 | DY45: 0 | DZ45: 0 | EA45: 0 | EB45: 0 | EC45: 0 | ED45: 0 | EE45: 0 | EF45: 0 | EG45: 0 | EH45: 0 | EI45: 0 | EJ45: 0 | EK45: 0 | EL45: 0 | EM45: 0 | EN45: 0 | EO45: 0 | EP45: 0 | EQ45: 0 | ER45: 0 | ES45: 0 | ET45: 0 | EU45: 0 | EV45: 0 | EW45: 0 | EX45: 0 | EY45: 0 | EZ45: 0
E46: 0 | F46: 0 | G46: 0 | H46: 0 | I46: 0 | J46: 0 | L46: 0 | M46: 0 | N46: 0 | O46: 0 | P46: 0 | Q46: 0 | R46: 0 | S46: 0 | T46: 0 | U46: 0 | V46: 0 | W46: 0 | X46: 0 | Y46: 0 | Z46: 0 | AA46: 0 | AB46: 0 | AC46: 0 | AD46: 0 | AE46: 0 | AF46: 0 | AG46: 0 | AH46: 0 | AI46: 0 | AJ46: 0 | AK46: 0 | AL46: 0 | AM46: 0 | AN46: 0 | AO46: 0 | AP46: 0 | AQ46: 0 | AR46: 0 | AS46: 0 | AT46: 0 | AU46: 0 | AV46: 0 | AW46: 0 | AX46: 0 | AY46: 0 | AZ46: 0 | BA46: 0 | BB46: 0 | BC46: 0 | BD46: 0 | BE46: 0 | BF46: 0 | BG46: 0 | BH46: 0 | BI46: 0 | BJ46: 0 | BK46: 0 | BL46: 0 | BM46: 0 | BN46: 0 | BO46: 0 | BP46: 0 | BQ46: 0 | BR46: 0 | BS46: 0 | BT46: 0 | BU46: 0 | BV46: 0 | BW46: 0 | BX46: 0 | BY46: 0 | BZ46: 0 | CA46: 0 | CB46: 0 | CC46: 0 | CD46: 0 | CE46: 0 | CG46: 0 | CH46: 0 | CI46: 0 | CJ46: 0 | CK46: 0 | CL46: 0 | CM46: 0 | CN46: 0 | CO46: 0 | CP46: 0 | CQ46: 0 | CR46: 0 | CS46: 0 | CT46: 0 | CU46: 0 | CV46: 0 | CW46: 0 | CX46: 0 | CY46: 0 | CZ46: 0 | DA46: 0 | DB46: 0 | DC46: 0 | DD46: 0 | DE46: 0 | DF46: 0 | DG46: 0 | DH46: 0 | DI46: 0 | DJ46: 0 | DK46: 0 | DL46: 0 | DM46: 0 | DN46: 0 | DO46: 0 | DP46: 0 | DQ46: 0 | DR46: 0 | DS46: 0 | DT46: 0 | DU46: 0 | DV46: 0 | DW46: 0 | DX46: 0 | DY46: 0 | DZ46: 0 | EA46: 0 | EB46: 0 | EC46: 0 | ED46: 0 | EE46: 0 | EF46: 0 | EG46: 0 | EH46: 0 | EI46: 0 | EJ46: 0 | EK46: 0 | EL46: 0 | EM46: 0 | EN46: 0 | EO46: 0 | EP46: 0 | EQ46: 0 | ER46: 0 | ES46: 0 | ET46: 0 | EU46: 0 | EV46: 0 | EW46: 0 | EX46: 0 | EY46: 0 | EZ46: 0
E47: 0 | F47: 0 | G47: 0 | H47: 0 | I47: 0 | J47: 0 | L47: 0 | M47: 0 | N47: 0 | O47: 0 | P47: 0 | Q47: 0 | R47: 0 | S47: 0 | T47: 0 | U47: 0 | V47: 0 | W47: 0 | X47: 0 | Y47: 0 | Z47: 0 | AA47: 0 | AB47: 0 | AC47: 0 | AD47: 0 | AE47: 0 | AF47: 0 | AG47: 0 | AH47: 0 | AI47: 0 | AJ47: 0 | AK47: 0 | AL47: 0 | AM47: 0 | AN47: 0 | AO47: 0 | AP47: 0 | AQ47: 0 | AR47: 0 | AS47: 0 | AT47: 0 | AU47: 0 | AV47: 0 | AW47: 0 | AX47: 0 | AY47: 0 | AZ47: 0 | BA47: 0 | BB47: 0 | BC47: 0 | BD47: 0 | BE47: 0 | BF47: 0 | BG47: 0 | BH47: 0 | BI47: 0 | BJ47: 0 | BK47: 0 | BL47: 0 | BM47: 0 | BN47: 0 | BO47: 0 | BP47: 0 | BQ47: 0 | BR47: 0 | BS47: 0 | BT47: 0 | BU47: 0 | BV47: 0 | BW47: 0 | BX47: 0 | BY47: 0 | BZ47: 0 | CA47: 0 | CB47: 0 | CC47: 0 | CD47: 0 | CE47: 0 | CG47: 0 | CH47: 0 | CI47: 0 | CJ47: 0 | CK47: 0 | CL47: 0 | CM47: 0 | CN47: 0 | CO47: 0 | CP47: 0 | CQ47: 0 | CR47: 0 | CS47: 0 | CT47: 0 | CU47: 0 | CV47: 0 | CW47: 0 | CX47: 0 | CY47: 0 | CZ47: 0 | DA47: 0 | DB47: 0 | DC47: 0 | DD47: 0 | DE47: 0 | DF47: 0 | DG47: 0 | DH47: 0 | DI47: 0 | DJ47: 0 | DK47: 0 | DL47: 0 | DM47: 0 | DN47: 0 | DO47: 0 | DP47: 0 | DQ47: 0 | DR47: 0 | DS47: 0 | DT47: 0 | DU47: 0 | DV47: 0 | DW47: 0 | DX47: 0 | DY47: 0 | DZ47: 0 | EA47: 0 | EB47: 0 | EC47: 0 | ED47: 0 | EE47: 0 | EF47: 0 | EG47: 0 | EH47: 0 | EI47: 0 | EJ47: 0 | EK47: 0 | EL47: 0 | EM47: 0 | EN47: 0 | EO47: 0 | EP47: 0 | EQ47: 0 | ER47: 0 | ES47: 0 | ET47: 0 | EU47: 0 | EV47: 0 | EW47: 0 | EX47: 0 | EY47: 0 | EZ47: 0
E48: 0 | F48: 0 | G48: 0 | H48: 0 | I48: 0 | J48: 0 | L48: 0 | M48: 0 | N48: 0 | O48: 0 | P48: 0 | Q48: 0 | R48: 0 | S48: 0 | T48: 0 | U48: 0 | V48: 0 | W48: 0 | X48: 0 | Y48: 0 | Z48: 0 | AA48: 0 | AB48: 0 | AC48: 0 | AD48: 0 | AE48: 0 | AF48: 0 | AG48: 0 | AH48: 0 | AI48: 0 | AJ48: 0 | AK48: 0 | AL48: 0 | AM48: 0 | AN48: 0 | AO48: 0 | AP48: 0 | AQ48: 0 | AR48: 0 | AS48: 0 | AT48: 0 | AU48: 0 | AV48: 0 | AW48: 0 | AX48: 0 | AY48: 0 | AZ48: 0 | BA48: 0 | BB48: 0 | BC48: 0 | BD48: 0 | BE48: 0 | BF48: 0 | BG48: 0 | BH48: 0 | BI48: 0 | BJ48: 0 | BK48: 0 | BL48: 0 | BM48: 0 | BN48: 0 | BO48: 0 | BP48: 0 | BQ48: 0 | BR48: 0 | BS48: 0 | BT48: 0 | BU48: 0 | BV48: 0 | BW48: 0 | BX48: 0 | BY48: 0 | BZ48: 0 | CA48: 0 | CB48: 0 | CC48: 0 | CD48: 0 | CE48: 0 | CG48: 0 | CH48: 0 | CI48: 0 | CJ48: 0 | CK48: 0 | CL48: 0 | CM48: 0 | CN48: 0 | CO48: 0 | CP48: 0 | CQ48: 0 | CR48: 0 | CS48: 0 | CT48: 0 | CU48: 0 | CV48: 0 | CW48: 0 | CX48: 0 | CY48: 0 | CZ48: 0 | DA48: 0 | DB48: 0 | DC48: 0 | DD48: 0 | DE48: 0 | DF48: 0 | DG48: 0 | DH48: 0 | DI48: 0 | DJ48: 0 | DK48: 0 | DL48: 0 | DM48: 0 | DN48: 0 | DO48: 0 | DP48: 0 | DQ48: 0 | DR48: 0 | DS48: 0 | DT48: 0 | DU48: 0 | DV48: 0 | DW48: 0 | DX48: 0 | DY48: 0 | DZ48: 0 | EA48: 0 | EB48: 0 | EC48: 0 | ED48: 0 | EE48: 0 | EF48: 0 | EG48: 0 | EH48: 0 | EI48: 0 | EJ48: 0 | EK48: 0 | EL48: 0 | EM48: 0 | EN48: 0 | EO48: 0 | EP48: 0 | EQ48: 0 | ER48: 0 | ES48: 0 | ET48: 0 | EU48: 0 | EV48: 0 | EW48: 0 | EX48: 0 | EY48: 0 | EZ48: 0
A49: Firm Surplus Sale | D49: FSS | E49: =+SUM(L49:W49,CG49:CR49) -> 0 | F49: 0 | G49: 0 | H49: 0 | I49: 0 | J49: 0 | L49: 0 | M49: 0 | N49: 0 | O49: 0 | P49: 0 | Q49: 0 | R49: 0 | S49: 0 | T49: 0 | U49: 0 | V49: 0 | W49: 0 | X49: 0 | Y49: 0 | Z49: 0 | AA49: 0 | AB49: 0 | AC49: 0 | AD49: 0 | AE49: 0 | AF49: 0 | AG49: 0 | AH49: 0 | AI49: 0 | AJ49: 0 | AK49: 0 | AL49: 0 | AM49: 0 | AN49: 0 | AO49: 0 | AP49: 0 | AQ49: 0 | AR49: 0 | AS49: 0 | AT49: 0 | AU49: 0 | AV49: 0 | AW49: 0 | AX49: 0 | AY49: 0 | AZ49: 0 | BA49: 0 | BB49: 0 | BC49: 0 | BD49: 0 | BE49: 0 | BF49: 0 | BG49: 0 | BH49: 0 | BI49: 0 | BJ49: 0 | BK49: 0 | BL49: 0 | BM49: 0 | BN49: 0 | BO49: 0 | BP49: 0 | BQ49: 0 | BR49: 0 | BS49: 0 | BT49: 0 | BU49: 0 | BV49: 0 | BW49: 0 | BX49: 0 | BY49: 0 | BZ49: 0 | CA49: 0 | CB49: 0 | CC49: 0 | CD49: 0 | CE49: 0 | CG49: 0 | CH49: 0 | CI49: 0 | CJ49: 0 | CK49: 0 | CL49: 0 | CM49: 0 | CN49: 0 | CO49: 0 | CP49: 0 | CQ49: 0 | CR49: 0 | CS49: 0 | CT49: 0 | CU49: 0 | CV49: 0 | CW49: 0 | CX49: 0 | CY49: 0 | CZ49: 0 | DA49: 0 | DB49: 0 | DC49: 0 | DD49: 0 | DE49: 0 | DF49: 0 | DG49: 0 | DH49: 0 | DI49: 0 | DJ49: 0 | DK49: 0 | DL49: 0 | DM49: 0 | DN49: 0 | DO49: 0 | DP49: 0 | DQ49: 0 | DR49: 0 | DS49: 0 | DT49: 0 | DU49: 0 | DV49: 0 | DW49: 0 | DX49: 0 | DY49: 0 | DZ49: 0 | EA49: 0 | EB49: 0 | EC49: 0 | ED49: 0 | EE49: 0 | EF49: 0 | EG49: 0 | EH49: 0 | EI49: 0 | EJ49: 0 | EK49: 0 | EL49: 0 | EM49: 0 | EN49: 0 | EO49: 0 | EP49: 0 | EQ49: 0 | ER49: 0 | ES49: 0 | ET49: 0 | EU49: 0 | EV49: 0 | EW49: 0 | EX49: 0 | EY49: 0 | EZ49: 0
A50: Presale of Secondary | D50: PRS | E50: 0 | F50: 0 | G50: 0 | H50: 0 | I50: 0 | J50: 0 | L50: 0 | M50: 0 | N50: 0 | O50: 0 | P50: 0 | Q50: 0 | R50: 0 | S50: 0 | T50: 0 | U50: 0 | V50: 0 | W50: 0 | X50: 0 | Y50: 0 | Z50: 0 | AA50: 0 | AB50: 0 | AC50: 0 | AD50: 0 | AE50: 0 | AF50: 0 | AG50: 0 | AH50: 0 | AI50: 0 | AJ50: 0 | AK50: 0 | AL50: 0 | AM50: 0 | AN50: 0 | AO50: 0 | AP50: 0 | AQ50: 0 | AR50: 0 | AS50: 0 | AT50: 0 | AU50: 0 | AV50: 0 | AW50: 0 | AX50: 0 | AY50: 0 | AZ50: 0 | BA50: 0 | BB50: 0 | BC50: 0 | BD50: 0 | BE50: 0 | BF50: 0 | BG50: 0 | BH50: 0 | BI50: 0 | BJ50: 0 | BK50: 0 | BL50: 0 | BM50: 0 | BN50: 0 | BO50: 0 | BP50: 0 | BQ50: 0 | BR50: 0 | BS50: 0 | BT50: 0 | BU50: 0 | BV50: 0 | BW50: 0 | BX50: 0 | BY50: 0 | BZ50: 0 | CA50: 0 | CB50: 0 | CC50: 0 | CD50: 0 | CE50: 0 | CG50: 0 | CH50: 0 | CI50: 0 | CJ50: 0 | CK50: 0 | CL50: 0 | CM50: 0 | CN50: 0 | CO50: 0 | CP50: 0 | CQ50: 0 | CR50: 0 | CS50: 0 | CT50: 0 | CU50: 0 | CV50: 0 | CW50: 0 | CX50: 0 | CY50: 0 | CZ50: 0 | DA50: 0 | DB50: 0 | DC50: 0 | DD50: 0 | DE50: 0 | DF50: 0 | DG50: 0 | DH50: 0 | DI50: 0 | DJ50: 0 | DK50: 0 | DL50: 0 | DM50: 0 | DN50: 0 | DO50: 0 | DP50: 0 | DQ50: 0 | DR50: 0 | DS50: 0 | DT50: 0 | DU50: 0 | DV50: 0 | DW50: 0 | DX50: 0 | DY50: 0 | DZ50: 0 | EA50: 0 | EB50: 0 | EC50: 0 | ED50: 0 | EE50: 0 | EF50: 0 | EG50: 0 | EH50: 0 | EI50: 0 | EJ50: 0 | EK50: 0 | EL50: 0 | EM50: 0 | EN50: 0 | EO50: 0 | EP50: 0 | EQ50: 0 | ER50: 0 | ES50: 0 | ET50: 0 | EU50: 0 | EV50: 0 | EW50: 0 | EX50: 0 | EY50: 0 | EZ50: 0
A51: Conservation | D51: CON | E51: 0 | F51: 0 | G51: 0 | H51: 0 | I51: 0 | J51: 0 | L51: 0 | M51: 0 | N51: 0 | O51: 0 | P51: 0 | Q51: 0 | R51: 0 | S51: 0 | T51: 0 | U51: 0 | V51: 0 | W51: 0 | X51: 0 | Y51: 0 | Z51: 0 | AA51: 0 | AB51: 0 | AC51: 0 | AD51: 0 | AE51: 0 | AF51: 0 | AG51: 0 | AH51: 0 | AI51: 0 | AJ51: 0 | AK51: 0 | AL51: 0 | AM51: 0 | AN51: 0 | AO51: 0 | AP51: 0 | AQ51: 0 | AR51: 0 | AS51: 0 | AT51: 0 | AU51: 0 | AV51: 0 | AW51: 0 | AX51: 0 | AY51: 0 | AZ51: 0 | BA51: 0 | BB51: 0 | BC51: 0 | BD51: 0 | BE51: 0 | BF51: 0 | BG51: 0 | BH51: 0 | BI51: 0 | BJ51: 0 | BK51: 0 | BL51: 0 | BM51: 0 | BN51: 0 | BO51: 0 | BP51: 0 | BQ51: 0 | BR51: 0 | BS51: 0 | BT51: 0 | BU51: 0 | BV51: 0 | BW51: 0 | BX51: 0 | BY51: 0 | BZ51: 0 | CA51: 0 | CB51: 0 | CC51: 0 | CD51: 0 | CE51: 0 | CG51: 0 | CH51: 0 | CI51: 0 | CJ51: 0 | CK51: 0 | CL51: 0 | CM51: 0 | CN51: 0 | CO51: 0 | CP51: 0 | CQ51: 0 | CR51: 0 | CS51: 0 | CT51: 0 | CU51: 0 | CV51: 0 | CW51: 0 | CX51: 0 | CY51: 0 | CZ51: 0 | DA51: 0 | DB51: 0 | DC51: 0 | DD51: 0 | DE51: 0 | DF51: 0 | DG51: 0 | DH51: 0 | DI51: 0 | DJ51: 0 | DK51: 0 | DL51: 0 | DM51: 0 | DN51: 0 | DO51: 0 | DP51: 0 | DQ51: 0 | DR51: 0 | DS51: 0 | DT51: 0 | DU51: 0 | DV51: 0 | DW51: 0 | DX51: 0 | DY51: 0 | DZ51: 0 | EA51: 0 | EB51: 0 | EC51: 0 | ED51: 0 | EE51: 0 | EF51: 0 | EG51: 0 | EH51: 0 | EI51: 0 | EJ51: 0 | EK51: 0 | EL51: 0 | EM51: 0 | EN51: 0 | EO51: 0 | EP51: 0 | EQ51: 0 | ER51: 0 | ES51: 0 | ET51: 0 | EU51: 0 | EV51: 0 | EW51: 0 | EX51: 0 | EY51: 0 | EZ51: 0
A54: Loss Percentage | E54: =Loads_MthLoss!E54 -> 0.03222711859 | F54: =Loads_MthLoss!F54 -> 0.03222819863 | G54: =Loads_MthLoss!G54 -> 0.03222819863 | H54: =Loads_MthLoss!H54 -> 0.03222819863 | I54: =Loads_MthLoss!I54 -> 0.03222819863 | J54: =Loads_MthLoss!J54 -> 0.03207729012 | L54: 0.03199174407 | M54: 0.03199174407 | N54: 0.03199174407 | O54: 0.03199174407 | P54: 0.03199174407 | Q54: 0.03199174407 | R54: 0.03199174407 | S54: 0.03199174407 | T54: 0.03199174407 | U54: 0.03199174407 | V54: 0.03199174407 | W54: 0.03199174407 | X54: 0.03199174407 | Y54: 0.03199174407 | Z54: 0.03199174407 | AA54: 0.03199174407 | AB54: 0.03199174407 | AC54: 0.03199174407 | AD54: 0.03199174407 | AE54: 0.03199174407 | AF54: 0.03199174407 | AG54: 0.03199174407 | AH54: 0.03199174407 | AI54: 0.03199174407 | AJ54: 0.03199174407 | AK54: 0.03199174407 | AL54: 0.03199174407 | AM54: 0.03199174407 | AN54: 0.03199174407 | AO54: 0.03199174407 | AP54: 0.03199174407 | AQ54: 0.03199174407 | AR54: 0.03199174407 | AS54: 0.03199174407 | AT54: 0.03199174407 | AU54: 0.03199174407 | AV54: 0.03199174407 | AW54: 0.03199174407 | AX54: 0.03199174407 | AY54: 0.03199174407 | AZ54: 0.03199174407 | BA54: 0.03199174407 | BB54: 0.03199174407 | BC54: 0.03199174407 | BD54: 0.03199174407 | BE54: 0.03199174407 | BF54: 0.03199174407 | BG54: 0.03199174407 | BH54: 0.03199174407 | BI54: 0.03199174407 | BJ54: 0.03199174407 | BK54: 0.03199174407 | BL54: 0.03199174407 | BM54: 0.03199174407 | BN54: 0.03199174407 | BO54: 0.03199174407 | BP54: 0.03199174407 | BQ54: 0.03199174407 | BR54: 0.03199174407 | BS54: 0.03199174407 | BT54: 0.03199174407 | BU54: 0.03199174407 | BV54: 0.03199174407 | BW54: 0.03199174407 | BX54: 0.03199174407 | BY54: 0.03199174407 | BZ54: 0.03199174407 | CA54: 0.03199174407 | CB54: 0.03199174407 | CC54: 0.03199174407 | CD54: 0.03199174407 | CE54: 0.03199174407 | CG54: 0.03199174407 | CH54: 0.03199174407 | CI54: 0.03199174407 | CJ54: 0.03199174407 | CK54: 0.03199174407 | CL54: 0.03199174407 | CM54: 0.03199174407 | CN54: 0.03199174407 | CO54: 0.03199174407 | CP54: 0.03199174407 | CQ54: 0.03199174407 | CR54: 0.03199174407 | CS54: 0.03199174407 | CT54: 0.03199174407 | CU54: 0.03199174407 | CV54: 0.03199174407 | CW54: 0.03199174407 | CX54: 0.03199174407 | CY54: 0.03199174407 | CZ54: 0.03199174407 | DA54: 0.03199174407 | DB54: 0.03199174407 | DC54: 0.03199174407 | DD54: 0.03199174407 | DE54: 0.03199174407 | DF54: 0.03199174407 | DG54: 0.03199174407 | DH54: 0.03199174407 | DI54: 0.03199174407 | DJ54: 0.03199174407 | DK54: 0.03199174407 | DL54: 0.03199174407 | DM54: 0.03199174407 | DN54: 0.03199174407 | DO54: 0.03199174407 | DP54: 0.03199174407 | DQ54: 0.03199174407 | DR54: 0.03199174407 | DS54: 0.03199174407 | DT54: 0.03199174407 | DU54: 0.03199174407 | DV54: 0.03199174407 | DW54: 0.03199174407 | DX54: 0.03199174407 | DY54: 0.03199174407 | DZ54: 0.03199174407 | EA54: 0.03199174407 | EB54: 0.03199174407 | EC54: 0.03199174407 | ED54: 0.03199174407 | EE54: 0.03199174407 | EF54: 0.03199174407 | EG54: 0.03199174407 | EH54: 0.03199174407 | EI54: 0.03199174407 | EJ54: 0.03199174407 | EK54: 0.03199174407 | EL54: 0.03199174407 | EM54: 0.03199174407 | EN54: 0.03199174407 | EO54: 0.03199174407 | EP54: 0.03199174407 | EQ54: 0.03199174407 | ER54: 0.03199174407 | ES54: 0.03199174407 | ET54: 0.03199174407 | EU54: 0.03199174407 | EV54: 0.03199174407 | EW54: 0.03199174407 | EX54: 0.03199174407 | EY54: 0.03199174407 | EZ54: 0.03199174407

Sheet Loads_MthLoss
B1: Loads (MWh)
A2: TOC | B2: =Cover!$C$14 -> RAMmodel_RAM2024 12.2.2022
A3: é | E3: Annual
E4: =Init!$C$9 -> 2024 | F4: =E4+1 -> 2025 | G4: =F4+1 -> 2026 | H4: =G4+1 -> 2027 | I4: =H4+1 -> 2028 | J4: =I4+1 -> 2029
A5: Preference | D5: PRE | E5: =+SUM(E6:E10) -> 63097178.18 | F5: 64862418.35 | G5: 64862418.35 | H5: 64862418.35 | I5: 64862418.35 | J5: 64851012.3
B6: Block | D6: PRE_BLK | E6: =+Loads!E6+((SUMPRODUCT(Loads!L6:W6,LossesInput!$C$20:$N$20)+SUMPRODUCT(Loads!CG6:CR6,LossesInput!$C$20:$N$20))) -> 4830513.397 | F6: =+Loads!F6+((SUMPRODUCT(Loads!X6:AI6,LossesInput!$O$20:$Z$20)+SUMPRODUCT(Loads!CS6:DD6,LossesInput!$O$20:$Z$20))) -> 4798644.223 | G6: =+Loads!G6+SUMPRODUCT(Loads!AJ6:AU6,LossesInput!$AA$20:$AL$20)+SUMPRODUCT(LossesInput!$AA$20:$AL$20,Loads!DE6:DP6) -> 4798644.223 | H6: =+Loads!H6+SUMPRODUCT(Loads!AV6:BG6,LossesInput!$AY$20:$BJ$20)+SUMPRODUCT(LossesInput!$AY$20:$BJ$20,Loads!DQ6:EB6) -> 4798644.223 | I6: =+Loads!I6+SUMPRODUCT(Loads!BH6:BS6,LossesInput!$AY$20:$BJ$20)+SUMPRODUCT(LossesInput!$AY$20:$BJ$20,Loads!EC6:EN6) -> 4798644.223 | J6: =+Loads!J6+SUMPRODUCT(Loads!BT6:CE6,LossesInput!$BK$20:$BV$20)+SUMPRODUCT(LossesInput!$BK$20:$BV$20,Loads!EO6:EZ6) -> 4795884.132
B7: Slice Block | D7: PRE_BLK | E7: =+Loads!E7+((SUMPRODUCT(Loads!L7:W7,LossesInput!$C$20:$N$20)+SUMPRODUCT(Loads!CG7:CR7,LossesInput!$C$20:$N$20))) -> 11176812.28 | F7: =+Loads!F7+((SUMPRODUCT(Loads!X7:AI7,LossesInput!$O$20:$Z$20)+SUMPRODUCT(Loads!CS7:DD7,LossesInput!$O$20:$Z$20))) -> 11424007.5 | G7: =+Loads!G7+SUMPRODUCT(Loads!AJ7:AU7,LossesInput!$AA$20:$AL$20)+SUMPRODUCT(LossesInput!$AA$20:$AL$20,Loads!DE7:DP7) -> 11424007.5 | H7: =+Loads!H7+SUMPRODUCT(Loads!AV7:BG7,LossesInput!$AY$20:$BJ$20)+SUMPRODUCT(LossesInput!$AY$20:$BJ$20,Loads!DQ7:EB7) -> 11424007.5 | I7: =+Loads!I7+SUMPRODUCT(Loads!BH7:BS7,LossesInput!$AY$20:$BJ$20)+SUMPRODUCT(LossesInput!$AY$20:$BJ$20,Loads!EC7:EN7) -> 11424007.5 | J7: =+Loads!J7+SUMPRODUCT(Loads!BT7:CE7,LossesInput!$BK$20:$BV$20)+SUMPRODUCT(LossesInput!$BK$20:$BV$20,Loads!EO7:EZ7) -> 11421673.4
B8: Slice | D8: PRE_SNB | E8: =+Loads!E8+((SUMPRODUCT(Loads!L8:W8,LossesInput!$C$20:$N$20)+SUMPRODUCT(Loads!CG8:CR8,LossesInput!$C$20:$N$20))) -> 12704317.94 | F8: =+Loads!F8+((SUMPRODUCT(Loads!X8:AI8,LossesInput!$O$20:$Z$20)+SUMPRODUCT(Loads!CS8:DD8,LossesInput!$O$20:$Z$20))) -> 12546742.61 | G8: =+Loads!G8+SUMPRODUCT(Loads!AJ8:AU8,LossesInput!$AA$20:$AL$20)+SUMPRODUCT(LossesInput!$AA$20:$AL$20,Loads!DE8:DP8) -> 12546742.61 | H8: =+Loads!H8+SUMPRODUCT(Loads!AV8:BG8,LossesInput!$AY$20:$BJ$20)+SUMPRODUCT(LossesInput!$AY$20:$BJ$20,Loads!DQ8:EB8) -> 12546742.61 | I8: =+Loads!I8+SUMPRODUCT(Loads!BH8:BS8,LossesInput!$AY$20:$BJ$20)+SUMPRODUCT(LossesInput!$AY$20:$BJ$20,Loads!EC8:EN8) -> 12546742.61 | J8: =+Loads!J8+SUMPRODUCT(Loads!BT8:CE8,LossesInput!$BK$20:$BV$20)+SUMPRODUCT(LossesInput!$BK$20:$BV$20,Loads!EO8:EZ8) -> 12545213.05
B9: Load Following | D9: PRE_LDF | E9: =+Loads!E9+((SUMPRODUCT(Loads!L9:W9,LossesInput!$C$20:$N$20)+SUMPRODUCT(Loads!CG9:CR9,LossesInput!$C$20:$N$20))) -> 32531905.39 | F9: =+Loads!F9+((SUMPRODUCT(Loads!X9:AI9,LossesInput!$O$20:$Z$20)+SUMPRODUCT(Loads!CS9:DD9,LossesInput!$O$20:$Z$20))) -> 32569515.76 | G9: =+Loads!G9+SUMPRODUCT(Loads!AJ9:AU9,LossesInput!$AA$20:$AL$20)+SUMPRODUCT(LossesInput!$AA$20:$AL$20,Loads!DE9:DP9) -> 32569515.76 | H9: =+Loads!H9+SUMPRODUCT(Loads!AV9:BG9,LossesInput!$AY$20:$BJ$20)+SUMPRODUCT(LossesInput!$AY$20:$BJ$20,Loads!DQ9:EB9) -> 32569515.76 | I9: =+Loads!I9+SUMPRODUCT(Loads!BH9:BS9,LossesInput!$AY$20:$BJ$20)+SUMPRODUCT(LossesInput!$AY$20:$BJ$20,Loads!EC9:EN9) -> 32569515.76 | J9: =+Loads!J9+SUMPRODUCT(Loads!BT9:CE9,LossesInput!$BK$20:$BV$20)+SUMPRODUCT(LossesInput!$BK$20:$BV$20,Loads!EO9:EZ9) -> 32565155.79
B10: Tier 2 | D10: PRE_T2 | E10: =+Loads!E10+((SUMPRODUCT(Loads!L10:W10,LossesInput!$C$20:$N$20)+SUMPRODUCT(Loads!CG10:CR10,LossesInput!$C$20:$N$20))) -> 1853629.179 | F10: =+Loads!F10+((SUMPRODUCT(Loads!X10:AI10,LossesInput!$O$20:$Z$20)+SUMPRODUCT(Loads!CS10:DD10,LossesInput!$O$20:$Z$20))) -> 3523508.268 | G10: =+Loads!G10+SUMPRODUCT(Loads!AJ10:AU10,LossesInput!$AA$20:$AL$20)+SUMPRODUCT(LossesInput!$AA$20:$AL$20,Loads!DE10:DP10) -> 3523508.268 | H10: =+Loads!H10+SUMPRODUCT(Loads!AV10:BG10,LossesInput!$AY$20:$BJ$20)+SUMPRODUCT(LossesInput!$AY$20:$BJ$20,Loads!DQ10:EB10) -> 3523508.268 | I10: =+Loads!I10+SUMPRODUCT(Loads!BH10:BS10,LossesInput!$AY$20:$BJ$20)+SUMPRODUCT(LossesInput!$AY$20:$BJ$20,Loads!EC10:EN10) -> 3523508.268 | J10: =+Loads!J10+SUMPRODUCT(Loads!BT10:CE10,LossesInput!$BK$20:$BV$20)+SUMPRODUCT(LossesInput!$BK$20:$BV$20,Loads!EO10:EZ10) -> 3523085.933
A11: Industrial | D11: IND | E11: =+SUM(E12:E13) -> 99738.40466 | F11: 99465.93072 | G11: 99465.93072 | H11: 99465.93072 | I11: 99465.93072 | J11: 99454.00655
B12: Smelter | D12: IND_SMT | E12: =+Loads!E12+((SUMPRODUCT(Loads!L12:W12,LossesInput!$C$20:$N$20)+SUMPRODUCT(Loads!CG12:CR12,LossesInput!$C$20:$N$20))) -> 0 | F12: =+Loads!F12+((SUMPRODUCT(Loads!X12:AI12,LossesInput!$O$20:$Z$20)+SUMPRODUCT(Loads!CS12:DD12,LossesInput!$O$20:$Z$20))) -> 0 | G12: =+Loads!G12+SUMPRODUCT(Loads!AJ12:AU12,LossesInput!$AA$20:$AL$20)+SUMPRODUCT(LossesInput!$AA$20:$AL$20,Loads!DE12:DP12) -> 0 | H12: =+Loads!H12+SUMPRODUCT(Loads!AV12:BG12,LossesInput!$AY$20:$BJ$20)+SUMPRODUCT(LossesInput!$AY$20:$BJ$20,Loads!DQ12:EB12) -> 0 | I12: =+Loads!I12+SUMPRODUCT(Loads!BH12:BS12,LossesInput!$AY$20:$BJ$20)+SUMPRODUCT(LossesInput!$AY$20:$BJ$20,Loads!EC12:EN12) -> 0 | J12: =+Loads!J12+SUMPRODUCT(Loads!BT12:CE12,LossesInput!$BK$20:$BV$20)+SUMPRODUCT(LossesInput!$BK$20:$BV$20,Loads!EO12:EZ12) -> 0
B13: Other Industrial | D13: IND_OTH | E13: =+Loads!E13+((SUMPRODUCT(Loads!L13:W13,LossesInput!$C$20:$N$20)+SUMPRODUCT(Loads!CG13:CR13,LossesInput!$C$20:$N$20))) -> 99738.40466 | F13: =+Loads!F13+((SUMPRODUCT(Loads!X13:AI13,LossesInput!$O$20:$Z$20)+SUMPRODUCT(Loads!CS13:DD13,LossesInput!$O$20:$Z$20))) -> 99465.93072 | G13: =+Loads!G13+SUMPRODUCT(Loads!AJ13:AU13,LossesInput!$AA$20:$AL$20)+SUMPRODUCT(LossesInput!$AA$20:$AL$20,Loads!DE13:DP13) -> 99465.93072 | H13: =+Loads!H13+SUMPRODUCT(Loads!AV13:BG13,LossesInput!$AY$20:$BJ$20)+SUMPRODUCT(LossesInput!$AY$20:$BJ$20,Loads!DQ13:EB13) -> 99465.93072 | I13: =+Loads!I13+SUMPRODUCT(Loads!BH13:BS13,LossesInput!$AY$20:$BJ$20)+SUMPRODUCT(LossesInput!$AY$20:$BJ$20,Loads!EC13:EN13) -> 99465.93072 | J13: =+Loads!J13+SUMPRODUCT(Loads!BT13:CE13,LossesInput!$BK$20:$BV$20)+SUMPRODUCT(LossesInput!$BK$20:$BV$20,Loads!EO13:EZ13) -> 99454.00655
A14: New Resource | D14: NR | E14: =+Loads!E14+((SUMPRODUCT(Loads!L14:W14,LossesInput!$C$20:$N$20)+SUMPRODUCT(Loads!CG14:CR14,LossesInput!$C$20:$N$20))) -> 10.1736905 | F14: =+Loads!F14+((SUMPRODUCT(Loads!X14:AI14,LossesInput!$O$20:$Z$20)+SUMPRODUCT(Loads!CS14:DD14,LossesInput!$O$20:$Z$20))) -> 10.14066335 | G14: =+Loads!G14+SUMPRODUCT(Loads!AJ14:AU14,LossesInput!$AA$20:$AL$20)+SUMPRODUCT(LossesInput!$AA$20:$AL$20,Loads!DE14:DP14) -> 10.14066335 | H14: =+Loads!H14+SUMPRODUCT(Loads!AV14:BG14,LossesInput!$AY$20:$BJ$20)+SUMPRODUCT(LossesInput!$AY$20:$BJ$20,Loads!DQ14:EB14) -> 10.14066335 | I14: =+Loads!I14+SUMPRODUCT(Loads!BH14:BS14,LossesInput!$AY$20:$BJ$20)+SUMPRODUCT(LossesInput!$AY$20:$BJ$20,Loads!EC14:EN14) -> 10.14066335 | J14: =+Loads!J14+SUMPRODUCT(Loads!BT14:CE14,LossesInput!$BK$20:$BV$20)+SUMPRODUCT(LossesInput!$BK$20:$BV$20,Loads!EO14:EZ14) -> 10.13951324
A15: Firm Power and Services | D15: FPS | E15: =+SUM(E16,E27,E38) -> 6073006.538 | F15: 6063267.367 | G15: 6063267.367 | H15: 6063267.367 | I15: 6063267.367 | J15: 6064301.691
B16: Intraregional Transfer | D16: FPS_IRT | E16: =+SUM(E17:E26) -> 101833.2214 | F16: 101599.4635 | G16: 101599.4635 | H16: 101599.4635 | I16: 101599.4635 | J16: 101592.8415
C17: WNP#3 Settlement | D17: FPS_IRT_WNP | E17: =+Loads!E17+((SUMPRODUCT(Loads!L17:W17,LossesInput!$C$20:$N$20)+SUMPRODUCT(Loads!CG17:CR17,LossesInput!$C$20:$N$20))) -> 0 | F17: =+Loads!F17+((SUMPRODUCT(Loads!X17:AI17,LossesInput!$O$20:$Z$20)+SUMPRODUCT(Loads!CS17:DD17,LossesInput!$O$20:$Z$20))) -> 0 | G17: =+Loads!G17+SUMPRODUCT(Loads!AJ17:AU17,LossesInput!$AA$20:$AL$20)+SUMPRODUCT(LossesInput!$AA$20:$AL$20,Loads!DE17:DP17) -> 0 | H17: =+Loads!H17+SUMPRODUCT(Loads!AV17:BG17,LossesInput!$AY$20:$BJ$20)+SUMPRODUCT(LossesInput!$AY$20:$BJ$20,Loads!DQ17:EB17) -> 0 | I17: =+Loads!I17+SUMPRODUCT(Loads!BH17:BS17,LossesInput!$AY$20:$BJ$20)+SUMPRODUCT(LossesInput!$AY$20:$BJ$20,Loads!EC17:EN17) -> 0 | J17: =+Loads!J17+SUMPRODUCT(Loads!BT17:CE17,LossesInput!$BK$20:$BV$20)+SUMPRODUCT(LossesInput!$BK$20:$BV$20,Loads!EO17:EZ17) -> 0
C18: Dittmer Station Service | D18: FPS_IRT_DIT | E18: =+Loads!E18+((SUMPRODUCT(Loads!L18:W18,LossesInput!$C$20:$N$20)+SUMPRODUCT(Loads!CG18:CR18,LossesInput!$C$20:$N$20))) -> 85566.48407 | F18: =+Loads!F18+((SUMPRODUCT(Loads!X18:AI18,LossesInput!$O$20:$Z$20)+SUMPRODUCT(Loads!CS18:DD18,LossesInput!$O$20:$Z$20))) -> 85332.7262 | G18: =+Loads!G18+SUMPRODUCT(Loads!AJ18:AU18,LossesInput!$AA$20:$AL$20)+SUMPRODUCT(LossesInput!$AA$20:$AL$20,Loads!DE18:DP18) -> 85332.7262 | H18: =+Loads!H18+SUMPRODUCT(Loads!AV18:BG18,LossesInput!$AY$20:$BJ$20)+SUMPRODUCT(LossesInput!$AY$20:$BJ$20,Loads!DQ18:EB18) -> 85332.7262 | I18: =+Loads!I18+SUMPRODUCT(Loads!BH18:BS18,LossesInput!$AY$20:$BJ$20)+SUMPRODUCT(LossesInput!$AY$20:$BJ$20,Loads!EC18:EN18) -> 85332.7262 | J18: =+Loads!J18+SUMPRODUCT(Loads!BT18:CE18,LossesInput!$BK$20:$BV$20)+SUMPRODUCT(LossesInput!$BK$20:$BV$20,Loads!EO18:EZ18) -> 85322.49634
C19: Transfer Gen Losses | D19: FPS_IRT_TGL | E19: =+Loads!E19+((SUMPRODUCT(Loads!L19:W19,LossesInput!$C$20:$N$20)+SUMPRODUCT(Loads!CG19:CR19,LossesInput!$C$20:$N$20))) -> 16266.73734 | F19: =+Loads!F19+((SUMPRODUCT(Loads!X19:AI19,LossesInput!$O$20:$Z$20)+SUMPRODUCT(Loads!CS19:DD19,LossesInput!$O$20:$Z$20))) -> 16266.73734 | G19: =+Loads!G19+SUMPRODUCT(Loads!AJ19:AU19,LossesInput!$AA$20:$AL$20)+SUMPRODUCT(LossesInput!$AA$20:$AL$20,Loads!DE19:DP19) -> 16266.73734 | H19: =+Loads!H19+SUMPRODUCT(Loads!AV19:BG19,LossesInput!$AY$20:$BJ$20)+SUMPRODUCT(LossesInput!$AY$20:$BJ$20,Loads!DQ19:EB19) -> 16266.73734 | I19: =+Loads!I19+SUMPRODUCT(Loads!BH19:BS19,LossesInput!$AY$20:$BJ$20)+SUMPRODUCT(LossesInput!$AY$20:$BJ$20,Loads!EC19:EN19) -> 16266.73734 | J19: =+Loads!J19+SUMPRODUCT(Loads!BT19:CE19,LossesInput!$BK$20:$BV$20)+SUMPRODUCT(LossesInput!$BK$20:$BV$20,Loads!EO19:EZ19) -> 16270.34519
E20: =+SUM(L20:W20,CG20:CR20) -> 0 | F20: =+SUM(X20:AI20,CS20:DD20) -> 0 | G20: =+SUM(AJ20:AU20,DE20:DP20) -> 0 | H20: =+SUM(AV20:BG20,DQ20:EB20) -> 0 | I20: =+SUM(BH20:BS20,EC20:EN20) -> 0 | J20: =+SUM(BT20:CE20,EO20:EZ20) -> 0
E21: 0 | F21: 0 | G21: 0 | H21: 0 | I21: 0 | J21: 0
E22: 0 | F22: 0 | G22: 0 | H22: 0 | I22: 0 | J22: 0
E23: 0 | F23: 0 | G23: 0 | H23: 0 | I23: 0 | J23: 0
E24: 0 | F24: 0 | G24: 0 | H24: 0 | I24: 0 | J24: 0
E25: 0 | F25: 0 | G25: 0 | H25: 0 | I25: 0 | J25: 0
E26: 0 | F26: 0 | G26: 0 | H26: 0 | I26: 0 | J26: 0
B27: FBS Obligation | D27: FPS_FBS | E27: =+SUM(E28:E37) -> 5971173.317 | F27: 5961667.904 | G27: 5961667.904 | H27: 5961667.904 | I27: 5961667.904 | J27: 5962708.849
C28: Canadian Entitlement | D28: FPS_FBS_CDN | E28: =+Loads!E28+((SUMPRODUCT(Loads!L28:W28,LossesInput!$C$20:$N$20)+SUMPRODUCT(Loads!CG28:CR28,LossesInput!$C$20:$N$20))) -> 4119195.006 | F28: =+Loads!F28+((SUMPRODUCT(Loads!X28:AI28,LossesInput!$O$20:$Z$20)+SUMPRODUCT(Loads!CS28:DD28,LossesInput!$O$20:$Z$20))) -> 4107942.03 | G28: =+Loads!G28+SUMPRODUCT(Loads!AJ28:AU28,LossesInput!$AA$20:$AL$20)+SUMPRODUCT(LossesInput!$AA$20:$AL$20,Loads!DE28:DP28) -> 4107942.03 | H28: =+Loads!H28+SUMPRODUCT(Loads!AV28:BG28,LossesInput!$AY$20:$BJ$20)+SUMPRODUCT(LossesInput!$AY$20:$BJ$20,Loads!DQ28:EB28) -> 4107942.03 | I28: =+Loads!I28+SUMPRODUCT(Loads!BH28:BS28,LossesInput!$AY$20:$BJ$20)+SUMPRODUCT(LossesInput!$AY$20:$BJ$20,Loads!EC28:EN28) -> 4107942.03 | J28: =+Loads!J28+SUMPRODUCT(Loads!BT28:CE28,LossesInput!$BK$20:$BV$20)+SUMPRODUCT(LossesInput!$BK$20:$BV$20,Loads!EO28:EZ28) -> 4107449.563
C29: USBR Pump Load | D29: FPS_FBS_UBR | E29: =+Loads!E29+((SUMPRODUCT(Loads!L29:W29,LossesInput!$C$20:$N$20)+SUMPRODUCT(Loads!CG29:CR29,LossesInput!$C$20:$N$20))) -> 1702294.212 | F29: =+Loads!F29+((SUMPRODUCT(Loads!X29:AI29,LossesInput!$O$20:$Z$20)+SUMPRODUCT(Loads!CS29:DD29,LossesInput!$O$20:$Z$20))) -> 1701847.777 | G29: =+Loads!G29+SUMPRODUCT(Loads!AJ29:AU29,LossesInput!$AA$20:$AL$20)+SUMPRODUCT(LossesInput!$AA$20:$AL$20,Loads!DE29:DP29) -> 1701847.777 | H29: =+Loads!H29+SUMPRODUCT(Loads!AV29:BG29,LossesInput!$AY$20:$BJ$20)+SUMPRODUCT(LossesInput!$AY$20:$BJ$20,Loads!DQ29:EB29) -> 1701847.777 | I29: =+Loads!I29+SUMPRODUCT(Loads!BH29:BS29,LossesInput!$AY$20:$BJ$20)+SUMPRODUCT(LossesInput!$AY$20:$BJ$20,Loads!EC29:EN29) -> 1701847.777 | J29: =+Loads!J29+SUMPRODUCT(Loads!BT29:CE29,LossesInput!$BK$20:$BV$20)+SUMPRODUCT(LossesInput!$BK$20:$BV$20,Loads!EO29:EZ29) -> 1703072.51
C30: Hungry Horse | D30: FPS_FBS_HH | E30: =+Loads!E30+((SUMPRODUCT(Loads!L30:W30,LossesInput!$C$20:$N$20)+SUMPRODUCT(Loads!CG30:CR30,LossesInput!$C$20:$N$20))) -> 0 | F30: =+Loads!F30+((SUMPRODUCT(Loads!X30:AI30,LossesInput!$O$20:$Z$20)+SUMPRODUCT(Loads!CS30:DD30,LossesInput!$O$20:$Z$20))) -> 0 | G30: =+Loads!G30+SUMPRODUCT(Loads!AJ30:AU30,LossesInput!$AA$20:$AL$20)+SUMPRODUCT(LossesInput!$AA$20:$AL$20,Loads!DE30:DP30) -> 0 | H30: =+Loads!H30+SUMPRODUCT(Loads!AV30:BG30,LossesInput!$AY$20:$BJ$20)+SUMPRODUCT(LossesInput!$AY$20:$BJ$20,Loads!DQ30:EB30) -> 0 | I30: =+Loads!I30+SUMPRODUCT(Loads!BH30:BS30,LossesInput!$AY$20:$BJ$20)+SUMPRODUCT(LossesInput!$AY$20:$BJ$20,Loads!EC30:EN30) -> 0 | J30: =+Loads!J30+SUMPRODUCT(Loads!BT30:CE30,LossesInput!$BK$20:$BV$20)+SUMPRODUCT(LossesInput!$BK$20:$BV$20,Loads!EO30:EZ30) -> 0
C31: Upper Baker | D31: FPS_FBS_UPB | E31: =+Loads!E31+((SUMPRODUCT(Loads!L31:W31,LossesInput!$C$20:$N$20)+SUMPRODUCT(Loads!CG31:CR31,LossesInput!$C$20:$N$20))) -> 11703.9261 | F31: =+Loads!F31+((SUMPRODUCT(Loads!X31:AI31,LossesInput!$O$20:$Z$20)+SUMPRODUCT(Loads!CS31:DD31,LossesInput!$O$20:$Z$20))) -> 11588.13293 | G31: =+Loads!G31+SUMPRODUCT(Loads!AJ31:AU31,LossesInput!$AA$20:$AL$20)+SUMPRODUCT(LossesInput!$AA$20:$AL$20,Loads!DE31:DP31) -> 11588.13293 | H31: =+Loads!H31+SUMPRODUCT(Loads!AV31:BG31,LossesInput!$AY$20:$BJ$20)+SUMPRODUCT(LossesInput!$AY$20:$BJ$20,Loads!DQ31:EB31) -> 11588.13293 | I31: =+Loads!I31+SUMPRODUCT(Loads!BH31:BS31,LossesInput!$AY$20:$BJ$20)+SUMPRODUCT(LossesInput!$AY$20:$BJ$20,Loads!EC31:EN31) -> 11588.13293 | J31: =+Loads!J31+SUMPRODUCT(Loads!BT31:CE31,LossesInput!$BK$20:$BV$20)+SUMPRODUCT(LossesInput!$BK$20:$BV$20,Loads!EO31:EZ31) -> 11577.37884
C32: Non-Treaty Storage | D32: FPS_FBS_NTS | E32: =+Loads!E32+((SUMPRODUCT(Loads!L32:W32,LossesInput!$C$20:$N$20)+SUMPRODUCT(Loads!CG32:CR32,LossesInput!$C$20:$N$20))) -> 137980.1735 | F32: =+Loads!F32+((SUMPRODUCT(Loads!X32:AI32,LossesInput!$O$20:$Z$20)+SUMPRODUCT(Loads!CS32:DD32,LossesInput!$O$20:$Z$20))) -> 140289.9628 | G32: =+Loads!G32+SUMPRODUCT(Loads!AJ32:AU32,LossesInput!$AA$20:$AL$20)+SUMPRODUCT(LossesInput!$AA$20:$AL$20,Loads!DE32:DP32) -> 140289.9628 | H32: =+Loads!H32+SUMPRODUCT(Loads!AV32:BG32,LossesInput!$AY$20:$BJ$20)+SUMPRODUCT(LossesInput!$AY$20:$BJ$20,Loads!DQ32:EB32) -> 140289.9628 | I32: =+Loads!I32+SUMPRODUCT(Loads!BH32:BS32,LossesInput!$AY$20:$BJ$20)+SUMPRODUCT(LossesInput!$AY$20:$BJ$20,Loads!EC32:EN32) -> 140289.9628 | J32: =+Loads!J32+SUMPRODUCT(Loads!BT32:CE32,LossesInput!$BK$20:$BV$20)+SUMPRODUCT(LossesInput!$BK$20:$BV$20,Loads!EO32:EZ32) -> 140609.3976
C33: Libby Coordination | D33: FPS_FBS_LCA | E33: =+Loads!E33+((SUMPRODUCT(Loads!L33:W33,LossesInput!$C$20:$N$20)+SUMPRODUCT(Loads!CG33:CR33,LossesInput!$C$20:$N$20))) -> 0 | F33: =+Loads!F33+((SUMPRODUCT(Loads!X33:AI33,LossesInput!$O$20:$Z$20)+SUMPRODUCT(Loads!CS33:DD33,LossesInput!$O$20:$Z$20))) -> 0 | G33: =+Loads!G33+SUMPRODUCT(Loads!AJ33:AU33,LossesInput!$AA$20:$AL$20)+SUMPRODUCT(LossesInput!$AA$20:$AL$20,Loads!DE33:DP33) -> 0 | H33: =+Loads!H33+SUMPRODUCT(Loads!AV33:BG33,LossesInput!$AY$20:$BJ$20)+SUMPRODUCT(LossesInput!$AY$20:$BJ$20,Loads!DQ33:EB33) -> 0 | I33: =+Loads!I33+SUMPRODUCT(Loads!BH33:BS33,LossesInput!$AY$20:$BJ$20)+SUMPRODUCT(LossesInput!$AY$20:$BJ$20,Loads!EC33:EN33) -> 0 | J33: =+Loads!J33+SUMPRODUCT(Loads!BT33:CE33,LossesInput!$BK$20:$BV$20)+SUMPRODUCT(LossesInput!$BK$20:$BV$20,Loads!EO33:EZ33) -> 0
E34: 0 | F34: 0 | G34: 0 | H34: 0 | I34: 0 | J34: 0
E35: 0 | F35: 0 | G35: 0 | H35: 0 | I35: 0 | J35: 0
E36: 0 | F36: 0 | G36: 0 | H36: 0 | I36: 0 | J36: 0
E37: 0 | F37: 0 | G37: 0 | H37: 0 | I37: 0 | J37: 0
B38: Seasonal or Capacity Exchange | D38: FPS_EXS | E38: =+SUM(E39:E48) -> 0 | F38: 0 | G38: 0 | H38: 0 | I38: 0 | J38: 0
C39: Riverside Capacity | D39: FPS_EXS_RVC | E39: =+Loads!E39+((SUMPRODUCT(Loads!L39:W39,LossesInput!$C$20:$N$20)+SUMPRODUCT(Loads!CG39:CR39,LossesInput!$C$20:$N$20))) -> 0 | F39: =+Loads!F39+((SUMPRODUCT(Loads!X39:AI39,LossesInput!$O$20:$Z$20)+SUMPRODUCT(Loads!CS39:DD39,LossesInput!$O$20:$Z$20))) -> 0 | G39: =+Loads!G39+SUMPRODUCT(Loads!AJ39:AU39,LossesInput!$AA$20:$AL$20)+SUMPRODUCT(LossesInput!$AA$20:$AL$20,Loads!DE39:DP39) -> 0 | H39: =+Loads!H39+SUMPRODUCT(Loads!AV39:BG39,LossesInput!$AY$20:$BJ$20)+SUMPRODUCT(LossesInput!$AY$20:$BJ$20,Loads!DQ39:EB39) -> 0 | I39: =+Loads!I39+SUMPRODUCT(Loads!BH39:BS39,LossesInput!$AY$20:$BJ$20)+SUMPRODUCT(LossesInput!$AY$20:$BJ$20,Loads!EC39:EN39) -> 0 | J39: =+Loads!J39+SUMPRODUCT(Loads!BT39:CE39,LossesInput!$BK$20:$BV$20)+SUMPRODUCT(LossesInput!$BK$20:$BV$20,Loads!EO39:EZ39) -> 0
C40: Riverside Seasonal | D40: FPS_EXS_RVS | E40: =+Loads!E40+((SUMPRODUCT(Loads!L40:W40,LossesInput!$C$20:$N$20)+SUMPRODUCT(Loads!CG40:CR40,LossesInput!$C$20:$N$20))) -> 0 | F40: =+Loads!F40+((SUMPRODUCT(Loads!X40:AI40,LossesInput!$O$20:$Z$20)+SUMPRODUCT(Loads!CS40:DD40,LossesInput!$O$20:$Z$20))) -> 0 | G40: =+Loads!G40+SUMPRODUCT(Loads!AJ40:AU40,LossesInput!$AA$20:$AL$20)+SUMPRODUCT(LossesInput!$AA$20:$AL$20,Loads!DE40:DP40) -> 0 | H40: =+Loads!H40+SUMPRODUCT(Loads!AV40:BG40,LossesInput!$AY$20:$BJ$20)+SUMPRODUCT(LossesInput!$AY$20:$BJ$20,Loads!DQ40:EB40) -> 0 | I40: =+Loads!I40+SUMPRODUCT(Loads!BH40:BS40,LossesInput!$AY$20:$BJ$20)+SUMPRODUCT(LossesInput!$AY$20:$BJ$20,Loads!EC40:EN40) -> 0 | J40: =+Loads!J40+SUMPRODUCT(Loads!BT40:CE40,LossesInput!$BK$20:$BV$20)+SUMPRODUCT(LossesInput!$BK$20:$BV$20,Loads!EO40:EZ40) -> 0
C41: Pasadena Capacity | D41: FPS_EXS_PAC | E41: =+Loads!E41+((SUMPRODUCT(Loads!L41:W41,LossesInput!$C$20:$N$20)+SUMPRODUCT(Loads!CG41:CR41,LossesInput!$C$20:$N$20))) -> 0 | F41: =+Loads!F41+((SUMPRODUCT(Loads!X41:AI41,LossesInput!$O$20:$Z$20)+SUMPRODUCT(Loads!CS41:DD41,LossesInput!$O$20:$Z$20))) -> 0 | G41: =+Loads!G41+SUMPRODUCT(Loads!AJ41:AU41,LossesInput!$AA$20:$AL$20)+SUMPRODUCT(LossesInput!$AA$20:$AL$20,Loads!DE41:DP41) -> 0 | H41: =+Loads!H41+SUMPRODUCT(Loads!AV41:BG41,LossesInput!$AY$20:$BJ$20)+SUMPRODUCT(LossesInput!$AY$20:$BJ$20,Loads!DQ41:EB41) -> 0 | I41: =+Loads!I41+SUMPRODUCT(Loads!BH41:BS41,LossesInput!$AY$20:$BJ$20)+SUMPRODUCT(LossesInput!$AY$20:$BJ$20,Loads!EC41:EN41) -> 0 | J41: =+Loads!J41+SUMPRODUCT(Loads!BT41:CE41,LossesInput!$BK$20:$BV$20)+SUMPRODUCT(LossesInput!$BK$20:$BV$20,Loads!EO41:EZ41) -> 0
C42: Pasadena Seasonal | D42: FPS_EXS_PAS | E42: =+Loads!E42+((SUMPRODUCT(Loads!L42:W42,LossesInput!$C$20:$N$20)+SUMPRODUCT(Loads!CG42:CR42,LossesInput!$C$20:$N$20))) -> 0 | F42: =+Loads!F42+((SUMPRODUCT(Loads!X42:AI42,LossesInput!$O$20:$Z$20)+SUMPRODUCT(Loads!CS42:DD42,LossesInput!$O$20:$Z$20))) -> 0 | G42: =+Loads!G42+SUMPRODUCT(Loads!AJ42:AU42,LossesInput!$AA$20:$AL$20)+SUMPRODUCT(LossesInput!$AA$20:$AL$20,Loads!DE42:DP42) -> 0 | H42: =+Loads!H42+SUMPRODUCT(Loads!AV42:BG42,LossesInput!$AY$20:$BJ$20)+SUMPRODUCT(LossesInput!$AY$20:$BJ$20,Loads!DQ42:EB42) -> 0 | I42: =+Loads!I42+SUMPRODUCT(Loads!BH42:BS42,LossesInput!$AY$20:$BJ$20)+SUMPRODUCT(LossesInput!$AY$20:$BJ$20,Loads!EC42:EN42) -> 0 | J42: =+Loads!J42+SUMPRODUCT(Loads!BT42:CE42,LossesInput!$BK$20:$BV$20)+SUMPRODUCT(LossesInput!$BK$20:$BV$20,Loads!EO42:EZ42) -> 0
C43: PG&E | D43: FPS_EXS_PGE | E43: =+Loads!E43+((SUMPRODUCT(Loads!L43:W43,LossesInput!$C$20:$N$20)+SUMPRODUCT(Loads!CG43:CR43,LossesInput!$C$20:$N$20))) -> 0 | F43: =+Loads!F43+((SUMPRODUCT(Loads!X43:AI43,LossesInput!$O$20:$Z$20)+SUMPRODUCT(Loads!CS43:DD43,LossesInput!$O$20:$Z$20))) -> 0 | G43: =+Loads!G43+SUMPRODUCT(Loads!AJ43:AU43,LossesInput!$AA$20:$AL$20)+SUMPRODUCT(LossesInput!$AA$20:$AL$20,Loads!DE43:DP43) -> 0 | H43: =+Loads!H43+SUMPRODUCT(Loads!AV43:BG43,LossesInput!$AY$20:$BJ$20)+SUMPRODUCT(LossesInput!$AY$20:$BJ$20,Loads!DQ43:EB43) -> 0 | I43: =+Loads!I43+SUMPRODUCT(Loads!BH43:BS43,LossesInput!$AY$20:$BJ$20)+SUMPRODUCT(LossesInput!$AY$20:$BJ$20,Loads!EC43:EN43) -> 0 | J43: =+Loads!J43+SUMPRODUCT(Loads!BT43:CE43,LossesInput!$BK$20:$BV$20)+SUMPRODUCT(LossesInput!$BK$20:$BV$20,Loads!EO43:EZ43) -> 0
C44: Intertie Losses | D44: FPS_EXS_LSS | E44: =+Loads!E44+((SUMPRODUCT(Loads!L44:W44,LossesInput!$C$20:$N$20)+SUMPRODUCT(Loads!CG44:CR44,LossesInput!$C$20:$N$20))) -> 0 | F44: =+Loads!F44+((SUMPRODUCT(Loads!X44:AI44,LossesInput!$O$20:$Z$20)+SUMPRODUCT(Loads!CS44:DD44,LossesInput!$O$20:$Z$20))) -> 0 | G44: =+Loads!G44+SUMPRODUCT(Loads!AJ44:AU44,LossesInput!$AA$20:$AL$20)+SUMPRODUCT(LossesInput!$AA$20:$AL$20,Loads!DE44:DP44) -> 0 | H44: =+Loads!H44+SUMPRODUCT(Loads!AV44:BG44,LossesInput!$AY$20:$BJ$20)+SUMPRODUCT(LossesInput!$AY$20:$BJ$20,Loads!DQ44:EB44) -> 0 | I44: =+Loads!I44+SUMPRODUCT(Loads!BH44:BS44,LossesInput!$AY$20:$BJ$20)+SUMPRODUCT(LossesInput!$AY$20:$BJ$20,Loads!EC44:EN44) -> 0 | J44: =+Loads!J44+SUMPRODUCT(Loads!BT44:CE44,LossesInput!$BK$20:$BV$20)+SUMPRODUCT(LossesInput!$BK$20:$BV$20,Loads!EO44:EZ44) -> 0
C45: PacifiCorp | D45: FPS_EXS_PPL | E45: =+Loads!E45+((SUMPRODUCT(Loads!L45:W45,LossesInput!$C$20:$N$20)+SUMPRODUCT(Loads!CG45:CR45,LossesInput!$C$20:$N$20))) -> 0 | F45: =+Loads!F45+((SUMPRODUCT(Loads!X45:AI45,LossesInput!$O$20:$Z$20)+SUMPRODUCT(Loads!CS45:DD45,LossesInput!$O$20:$Z$20))) -> 0 | G45: =+Loads!G45+SUMPRODUCT(Loads!AJ45:AU45,LossesInput!$AA$20:$AL$20)+SUMPRODUCT(LossesInput!$AA$20:$AL$20,Loads!DE45:DP45) -> 0 | H45: =+Loads!H45+SUMPRODUCT(Loads!AV45:BG45,LossesInput!$AY$20:$BJ$20)+SUMPRODUCT(LossesInput!$AY$20:$BJ$20,Loads!DQ45:EB45) -> 0 | I45: =+Loads!I45+SUMPRODUCT(Loads!BH45:BS45,LossesInput!$AY$20:$BJ$20)+SUMPRODUCT(LossesInput!$AY$20:$BJ$20,Loads!EC45:EN45) -> 0 | J45: =+Loads!J45+SUMPRODUCT(Loads!BT45:CE45,LossesInput!$BK$20:$BV$20)+SUMPRODUCT(LossesInput!$BK$20:$BV$20,Loads!EO45:EZ45) -> 0
E46: 0 | F46: 0 | G46: 0 | H46: 0 | I46: 0 | J46: 0
E47: 0 | F47: 0 | G47: 0 | H47: 0 | I47: 0 | J47: 0
E48: 0 | F48: 0 | G48: 0 | H48: 0 | I48: 0 | J48: 0
A49: Firm Surplus Sale | D49: FSS | E49: =+Loads!E49+((SUMPRODUCT(Loads!L49:W49,LossesInput!$C$20:$N$20)+SUMPRODUCT(Loads!CG49:CR49,LossesInput!$C$20:$N$20))) -> 0 | F49: =+Loads!F49+((SUMPRODUCT(Loads!X49:AI49,LossesInput!$O$20:$Z$20)+SUMPRODUCT(Loads!CS49:DD49,LossesInput!$O$20:$Z$20))) -> 0 | G49: =+Loads!G49+SUMPRODUCT(Loads!AJ49:AU49,LossesInput!$AA$20:$AL$20)+SUMPRODUCT(LossesInput!$AA$20:$AL$20,Loads!DE49:DP49) -> 0 | H49: =+Loads!H49+SUMPRODUCT(Loads!AV49:BG49,LossesInput!$AY$20:$BJ$20)+SUMPRODUCT(LossesInput!$AY$20:$BJ$20,Loads!DQ49:EB49) -> 0 | I49: =+Loads!I49+SUMPRODUCT(Loads!BH49:BS49,LossesInput!$AY$20:$BJ$20)+SUMPRODUCT(LossesInput!$AY$20:$BJ$20,Loads!EC49:EN49) -> 0 | J49: =+Loads!J49+SUMPRODUCT(Loads!BT49:CE49,LossesInput!$BK$20:$BV$20)+SUMPRODUCT(LossesInput!$BK$20:$BV$20,Loads!EO49:EZ49) -> 0
A50: Presale of Secondary | D50: PRS | E50: =+Loads!E50+((SUMPRODUCT(Loads!L50:W50,LossesInput!$C$20:$N$20)+SUMPRODUCT(Loads!CG50:CR50,LossesInput!$C$20:$N$20))) -> 0 | F50: =+Loads!F50+((SUMPRODUCT(Loads!X50:AI50,LossesInput!$O$20:$Z$20)+SUMPRODUCT(Loads!CS50:DD50,LossesInput!$O$20:$Z$20))) -> 0 | G50: =+Loads!G50+SUMPRODUCT(Loads!AJ50:AU50,LossesInput!$AA$20:$AL$20)+SUMPRODUCT(LossesInput!$AA$20:$AL$20,Loads!DE50:DP50) -> 0 | H50: =+Loads!H50+SUMPRODUCT(Loads!AV50:BG50,LossesInput!$AY$20:$BJ$20)+SUMPRODUCT(LossesInput!$AY$20:$BJ$20,Loads!DQ50:EB50) -> 0 | I50: =+Loads!I50+SUMPRODUCT(Loads!BH50:BS50,LossesInput!$AY$20:$BJ$20)+SUMPRODUCT(LossesInput!$AY$20:$BJ$20,Loads!EC50:EN50) -> 0 | J50: =+Loads!J50+SUMPRODUCT(Loads!BT50:CE50,LossesInput!$BK$20:$BV$20)+SUMPRODUCT(LossesInput!$BK$20:$BV$20,Loads!EO50:EZ50) -> 0
A51: Conservation | D51: CON | E51: =+Loads!E51+((SUMPRODUCT(Loads!L51:W51,LossesInput!$C$20:$N$20)+SUMPRODUCT(Loads!CG51:CR51,LossesInput!$C$20:$N$20))) -> 0 | F51: =+Loads!F51+((SUMPRODUCT(Loads!X51:AI51,LossesInput!$O$20:$Z$20)+SUMPRODUCT(Loads!CS51:DD51,LossesInput!$O$20:$Z$20))) -> 0 | G51: =+Loads!G51+SUMPRODUCT(Loads!AJ51:AU51,LossesInput!$AA$20:$AL$20)+SUMPRODUCT(LossesInput!$AA$20:$AL$20,Loads!DE51:DP51) -> 0 | H51: =+Loads!H51+SUMPRODUCT(Loads!AV51:BG51,LossesInput!$AY$20:$BJ$20)+SUMPRODUCT(LossesInput!$AY$20:$BJ$20,Loads!DQ51:EB51) -> 0 | I51: =+Loads!I51+SUMPRODUCT(Loads!BH51:BS51,LossesInput!$AY$20:$BJ$20)+SUMPRODUCT(LossesInput!$AY$20:$BJ$20,Loads!EC51:EN51) -> 0 | J51: =+Loads!J51+SUMPRODUCT(Loads!BT51:CE51,LossesInput!$BK$20:$BV$20)+SUMPRODUCT(LossesInput!$BK$20:$BV$20,Loads!EO51:EZ51) -> 0
A54: Loss Percentage | E54: =(((SUM(E5,E11,E14,E15,E49,E50,E51)-SUM(Loads!E5,Loads!E11,Loads!E14,Loads!E15,Loads!E49,Loads!E50,Loads!E51))/VLOOKUP(E4,Init!$N:$P,3,0))/(SUM(Loads!E5,Loads!E11,Loads!E14,Loads!E15,Loads!E49,Loads!E50,Loads!E51)/VLOOKUP(E4,Init!$N:$P,3,0))) -> 0.03222711859 | F54: =(((SUM(F5,F11,F14,F15,F49,F50,F51)-SUM(Loads!F5,Loads!F11,Loads!F14,Loads!F15,Loads!F49,Loads!F50,Loads!F51))/VLOOKUP(F4,Init!$N:$P,3,0))/(SUM(Loads!F5,Loads!F11,Loads!F14,Loads!F15,Loads!F49,Loads!F50,Loads!F51)/VLOOKUP(F4,Init!$N:$P,3,0))) -> 0.03222819863 | G54: =(((SUM(G5,G11,G14,G15,G49,G50,G51)-SUM(Loads!G5,Loads!G11,Loads!G14,Loads!G15,Loads!G49,Loads!G50,Loads!G51))/VLOOKUP(G4,Init!$N:$P,3,0))/(SUM(Loads!G5,Loads!G11,Loads!G14,Loads!G15,Loads!G49,Loads!G50,Loads!G51)/VLOOKUP(G4,Init!$N:$P,3,0))) -> 0.03222819863 | H54: =(((SUM(H5,H11,H14,H15,H49,H50,H51)-SUM(Loads!H5,Loads!H11,Loads!H14,Loads!H15,Loads!H49,Loads!H50,Loads!H51))/VLOOKUP(H4,Init!$N:$P,3,0))/(SUM(Loads!H5,Loads!H11,Loads!H14,Loads!H15,Loads!H49,Loads!H50,Loads!H51)/VLOOKUP(H4,Init!$N:$P,3,0))) -> 0.03222819863 | I54: =(((SUM(I5,I11,I14,I15,I49,I50,I51)-SUM(Loads!I5,Loads!I11,Loads!I14,Loads!I15,Loads!I49,Loads!I50,Loads!I51))/VLOOKUP(I4,Init!$N:$P,3,0))/(SUM(Loads!I5,Loads!I11,Loads!I14,Loads!I15,Loads!I49,Loads!I50,Loads!I51)/VLOOKUP(I4,Init!$N:$P,3,0))) -> 0.03222819863 | J54: =(((SUM(J5,J11,J14,J15,J49,J50,J51)-SUM(Loads!J5,Loads!J11,Loads!J14,Loads!J15,Loads!J49,Loads!J50,Loads!J51))/VLOOKUP(J4,Init!$N:$P,3,0))/(SUM(Loads!J5,Loads!J11,Loads!J14,Loads!J15,Loads!J49,Loads!J50,Loads!J51)/VLOOKUP(J4,Init!$N:$P,3,0))) -> 0.03207729012

Sheet PF Public
B1: Billing Determinants Needed for Rates Analysis Model | O1: Not printed in documentation.
A2: TOC | B2: =Cover!$C$14 -> RAMmodel_RAM2024 12.2.2022 | U2: Not printed in documentation.
A3: é
D4: =+DATE(Init!$C$9-1,10,1) -> 2023-10-01 | E4: =+EOMONTH(D4,0)+1 -> 2023-11-01 | F4: 2023-12-01 | G4: 2024-01-01 | H4: 2024-02-01 | I4: 2024-03-01 | J4: 2024-04-01 | K4: 2024-05-01 | L4: 2024-06-01 | M4: 2024-07-01 | N4: 2024-08-01 | O4: 2024-09-01 | P4: 2024-10-01 | Q4: 2024-11-01 | R4: 2024-12-01 | S4: 2025-01-01 | T4: 2025-02-01 | U4: 2025-03-01 | V4: 2025-04-01 | W4: 2025-05-01 | X4: 2025-06-01 | Y4: 2025-07-01 | Z4: 2025-08-01 | AA4: 2025-09-01 | AB4: 2025-10-01 | AC4: 2025-11-01 | AD4: 2025-12-01 | AE4: 2026-01-01 | AF4: 2026-02-01 | AG4: 2026-03-01 | AH4: 2026-04-01 | AI4: 2026-05-01 | AJ4: 2026-06-01 | AK4: =+EOMONTH(AJ4,0)+1 -> 2026-07-01 | AL4: 2026-08-01 | AM4: 2026-09-01 | AN4: 2026-10-01 | AO4: 2026-11-01 | AP4: 2026-12-01 | AQ4: 2027-01-01 | AR4: 2027-02-01 | AS4: 2027-03-01 | AT4: 2027-04-01 | AU4: 2027-05-01 | AV4: 2027-06-01 | AW4: 2027-07-01 | AX4: 2027-08-01 | AY4: 2027-09-01 | AZ4: 2027-10-01 | BA4: 2027-11-01 | BB4: 2027-12-01 | BC4: 2028-01-01 | BD4: 2028-02-01 | BE4: 2028-03-01 | BF4: 2028-04-01 | BG4: 2028-05-01 | BH4: 2028-06-01 | BI4: 2028-07-01 | BJ4: 2028-08-01 | BK4: 2028-09-01 | BL4: 2028-10-01 | BM4: 2028-11-01 | BN4: 2028-12-01 | BO4: 2029-01-01 | BP4: 2029-02-01 | BQ4: =+EOMONTH(BP4,0)+1 -> 2029-03-01 | BR4: 2029-04-01 | BS4: 2029-05-01 | BT4: 2029-06-01 | BU4: 2029-07-01 | BV4: 2029-08-01 | BW4: 2029-09-01
B5: Public without Undistributed Conservation
B6: HLH | C6: PRE | D6: =+INDEX(Loads!$L:$CE,MATCH($C6,Loads!$D:$D,0),MATCH(D$4,Loads!$L$4:$CE$4,0)) -> 2706689.908 | E6: =+INDEX(Loads!$L:$CE,MATCH($C6,Loads!$D:$D,0),MATCH(E$4,Loads!$L$4:$CE$4,0)) -> 3132135.216 | F6: =+INDEX(Loads!$L:$CE,MATCH($C6,Loads!$D:$D,0),MATCH(F$4,Loads!$L$4:$CE$4,0)) -> 3606257.779 | G6: =+INDEX(Loads!$L:$CE,MATCH($C6,Loads!$D:$D,0),MATCH(G$4,Loads!$L$4:$CE$4,0)) -> 3760610.659 | H6: =+INDEX(Loads!$L:$CE,MATCH($C6,Loads!$D:$D,0),MATCH(H$4,Loads!$L$4:$CE$4,0)) -> 3268509.484 | I6: =+INDEX(Loads!$L:$CE,MATCH($C6,Loads!$D:$D,0),MATCH(I$4,Loads!$L$4:$CE$4,0)) -> 3251220.806 | J6: =+INDEX(Loads!$L:$CE,MATCH($C6,Loads!$D:$D,0),MATCH(J$4,Loads!$L$4:$CE$4,0)) -> 2718652.605 | K6: =+INDEX(Loads!$L:$CE,MATCH($C6,Loads!$D:$D,0),MATCH(K$4,Loads!$L$4:$CE$4,0)) -> 2776626.791 | L6: =+INDEX(Loads!$L:$CE,MATCH($C6,Loads!$D:$D,0),MATCH(L$4,Loads!$L$4:$CE$4,0)) -> 2735513.36 | M6: =+INDEX(Loads!$L:$CE,MATCH($C6,Loads!$D:$D,0),MATCH(M$4,Loads!$L$4:$CE$4,0)) -> 2917864.202 | N6: =+INDEX(Loads!$L:$CE,MATCH($C6,Loads!$D:$D,0),MATCH(N$4,Loads!$L$4:$CE$4,0)) -> 3012790.82 | O6: =+INDEX(Loads!$L:$CE,MATCH($C6,Loads!$D:$D,0),MATCH(O$4,Loads!$L$4:$CE$4,0)) -> 2613531.336 | P6: =+INDEX(Loads!$L:$CE,MATCH($C6,Loads!$D:$D,0),MATCH(P$4,Loads!$L$4:$CE$4,0)) -> 2850530.104 | Q6: =+INDEX(Loads!$L:$CE,MATCH($C6,Loads!$D:$D,0),MATCH(Q$4,Loads!$L$4:$CE$4,0)) -> 3216267.192 | R6: =+INDEX(Loads!$L:$CE,MATCH($C6,Loads!$D:$D,0),MATCH(R$4,Loads!$L$4:$CE$4,0)) -> 3689927.94 | S6: =+INDEX(Loads!$L:$CE,MATCH($C6,Loads!$D:$D,0),MATCH(S$4,Loads!$L$4:$CE$4,0)) -> 3851458.583 | T6: =+INDEX(Loads!$L:$CE,MATCH($C6,Loads!$D:$D,0),MATCH(T$4,Loads!$L$4:$CE$4,0)) -> 3282893.866 | U6: =+INDEX(Loads!$L:$CE,MATCH($C6,Loads!$D:$D,0),MATCH(U$4,Loads!$L$4:$CE$4,0)) -> 3346700.522 | V6: =+INDEX(Loads!$L:$CE,MATCH($C6,Loads!$D:$D,0),MATCH(V$4,Loads!$L$4:$CE$4,0)) -> 2827256.732 | W6: =+INDEX(Loads!$L:$CE,MATCH($C6,Loads!$D:$D,0),MATCH(W$4,Loads!$L$4:$CE$4,0)) -> 2745897.103 | X6: =+INDEX(Loads!$L:$CE,MATCH($C6,Loads!$D:$D,0),MATCH(X$4,Loads!$L$4:$CE$4,0)) -> 2858597.507 | Y6: =+INDEX(Loads!$L:$CE,MATCH($C6,Loads!$D:$D,0),MATCH(Y$4,Loads!$L$4:$CE$4,0)) -> 3033612.386 | Z6: =+INDEX(Loads!$L:$CE,MATCH($C6,Loads!$D:$D,0),MATCH(Z$4,Loads!$L$4:$CE$4,0)) -> 3052514.643 | AA6: =+INDEX(Loads!$L:$CE,MATCH($C6,Loads!$D:$D,0),MATCH(AA$4,Loads!$L$4:$CE$4,0)) -> 2747221.706 | AB6: =+INDEX(Loads!$L:$CE,MATCH($C6,Loads!$D:$D,0),MATCH(AB$4,Loads!$L$4:$CE$4,0)) -> 2850530.104 | AC6: =+INDEX(Loads!$L:$CE,MATCH($C6,Loads!$D:$D,0),MATCH(AC$4,Loads!$L$4:$CE$4,0)) -> 3216267.192 | AD6: =+INDEX(Loads!$L:$CE,MATCH($C6,Loads!$D:$D,0),MATCH(AD$4,Loads!$L$4:$CE$4,0)) -> 3689927.94 | AE6: =+INDEX(Loads!$L:$CE,MATCH($C6,Loads!$D:$D,0),MATCH(AE$4,Loads!$L$4:$CE$4,0)) -> 3851458.583 | AF6: =+INDEX(Loads!$L:$CE,MATCH($C6,Loads!$D:$D,0),MATCH(AF$4,Loads!$L$4:$CE$4,0)) -> 3282893.866 | AG6: =+INDEX(Loads!$L:$CE,MATCH($C6,Loads!$D:$D,0),MATCH(AG$4,Loads!$L$4:$CE$4,0)) -> 3346700.522 | AH6: =+INDEX(Loads!$L:$CE,MATCH($C6,Loads!$D:$D,0),MATCH(AH$4,Loads!$L$4:$CE$4,0)) -> 2827256.732 | AI6: =+INDEX(Loads!$L:$CE,MATCH($C6,Loads!$D:$D,0),MATCH(AI$4,Loads!$L$4:$CE$4,0)) -> 2745897.103 | AJ6: =+INDEX(Loads!$L:$CE,MATCH($C6,Loads!$D:$D,0),MATCH(AJ$4,Loads!$L$4:$CE$4,0)) -> 2858597.507 | AK6: =+INDEX(Loads!$L:$CE,MATCH($C6,Loads!$D:$D,0),MATCH(AK$4,Loads!$L$4:$CE$4,0)) -> 3033612.386 | AL6: =+INDEX(Loads!$L:$CE,MATCH($C6,Loads!$D:$D,0),MATCH(AL$4,Loads!$L$4:$CE$4,0)) -> 3052514.643 | AM6: =+INDEX(Loads!$L:$CE,MATCH($C6,Loads!$D:$D,0),MATCH(AM$4,Loads!$L$4:$CE$4,0)) -> 2747221.706 | AN6: =+INDEX(Loads!$L:$CE,MATCH($C6,Loads!$D:$D,0),MATCH(AN$4,Loads!$L$4:$CE$4,0)) -> 2850530.104 | AO6: =+INDEX(Loads!$L:$CE,MATCH($C6,Loads!$D:$D,0),MATCH(AO$4,Loads!$L$4:$CE$4,0)) -> 3216267.192 | AP6: =+INDEX(Loads!$L:$CE,MATCH($C6,Loads!$D:$D,0),MATCH(AP$4,Loads!$L$4:$CE$4,0)) -> 3689927.94 | AQ6: =+INDEX(Loads!$L:$CE,MATCH($C6,Loads!$D:$D,0),MATCH(AQ$4,Loads!$L$4:$CE$4,0)) -> 3851458.583 | AR6: =+INDEX(Loads!$L:$CE,MATCH($C6,Loads!$D:$D,0),MATCH(AR$4,Loads!$L$4:$CE$4,0)) -> 3282893.866 | AS6: =+INDEX(Loads!$L:$CE,MATCH($C6,Loads!$D:$D,0),MATCH(AS$4,Loads!$L$4:$CE$4,0)) -> 3346700.522 | AT6: =+INDEX(Loads!$L:$CE,MATCH($C6,Loads!$D:$D,0),MATCH(AT$4,Loads!$L$4:$CE$4,0)) -> 2827256.732 | AU6: =+INDEX(Loads!$L:$CE,MATCH($C6,Loads!$D:$D,0),MATCH(AU$4,Loads!$L$4:$CE$4,0)) -> 2745897.103 | AV6: =+INDEX(Loads!$L:$CE,MATCH($C6,Loads!$D:$D,0),MATCH(AV$4,Loads!$L$4:$CE$4,0)) -> 2858597.507 | AW6: =+INDEX(Loads!$L:$CE,MATCH($C6,Loads!$D:$D,0),MATCH(AW$4,Loads!$L$4:$CE$4,0)) -> 3033612.386 | AX6: =+INDEX(Loads!$L:$CE,MATCH($C6,Loads!$D:$D,0),MATCH(AX$4,Loads!$L$4:$CE$4,0)) -> 3052514.643 | AY6: =+INDEX(Loads!$L:$CE,MATCH($C6,Loads!$D:$D,0),MATCH(AY$4,Loads!$L$4:$CE$4,0)) -> 2747221.706 | AZ6: =+INDEX(Loads!$L:$CE,MATCH($C6,Loads!$D:$D,0),MATCH(AZ$4,Loads!$L$4:$CE$4,0)) -> 2850530.104 | BA6: =+INDEX(Loads!$L:$CE,MATCH($C6,Loads!$D:$D,0),MATCH(BA$4,Loads!$L$4:$CE$4,0)) -> 3216267.192 | BB6: =+INDEX(Loads!$L:$CE,MATCH($C6,Loads!$D:$D,0),MATCH(BB$4,Loads!$L$4:$CE$4,0)) -> 3689927.94 | BC6: =+INDEX(Loads!$L:$CE,MATCH($C6,Loads!$D:$D,0),MATCH(BC$4,Loads!$L$4:$CE$4,0)) -> 3851458.583 | BD6: =+INDEX(Loads!$L:$CE,MATCH($C6,Loads!$D:$D,0),MATCH(BD$4,Loads!$L$4:$CE$4,0)) -> 3282893.866 | BE6: =+INDEX(Loads!$L:$CE,MATCH($C6,Loads!$D:$D,0),MATCH(BE$4,Loads!$L$4:$CE$4,0)) -> 3346700.522 | BF6: =+INDEX(Loads!$L:$CE,MATCH($C6,Loads!$D:$D,0),MATCH(BF$4,Loads!$L$4:$CE$4,0)) -> 2827256.732 | BG6: =+INDEX(Loads!$L:$CE,MATCH($C6,Loads!$D:$D,0),MATCH(BG$4,Loads!$L$4:$CE$4,0)) -> 2745897.103 | BH6: =+INDEX(Loads!$L:$CE,MATCH($C6,Loads!$D:$D,0),MATCH(BH$4,Loads!$L$4:$CE$4,0)) -> 2858597.507 | BI6: =+INDEX(Loads!$L:$CE,MATCH($C6,Loads!$D:$D,0),MATCH(BI$4,Loads!$L$4:$CE$4,0)) -> 3033612.386 | BJ6: =+INDEX(Loads!$L:$CE,MATCH($C6,Loads!$D:$D,0),MATCH(BJ$4,Loads!$L$4:$CE$4,0)) -> 3052514.643 | BK6: =+INDEX(Loads!$L:$CE,MATCH($C6,Loads!$D:$D,0),MATCH(BK$4,Loads!$L$4:$CE$4,0)) -> 2747221.706 | BL6: =+INDEX(Loads!$L:$CE,MATCH($C6,Loads!$D:$D,0),MATCH(BL$4,Loads!$L$4:$CE$4,0)) -> 2850530.104 | BM6: =+INDEX(Loads!$L:$CE,MATCH($C6,Loads!$D:$D,0),MATCH(BM$4,Loads!$L$4:$CE$4,0)) -> 3216267.192 | BN6: =+INDEX(Loads!$L:$CE,MATCH($C6,Loads!$D:$D,0),MATCH(BN$4,Loads!$L$4:$CE$4,0)) -> 3689927.94 | BO6: =+INDEX(Loads!$L:$CE,MATCH($C6,Loads!$D:$D,0),MATCH(BO$4,Loads!$L$4:$CE$4,0)) -> 3851458.583 | BP6: =+INDEX(Loads!$L:$CE,MATCH($C6,Loads!$D:$D,0),MATCH(BP$4,Loads!$L$4:$CE$4,0)) -> 3282893.866 | BQ6: =+INDEX(Loads!$L:$CE,MATCH($C6,Loads!$D:$D,0),MATCH(BQ$4,Loads!$L$4:$CE$4,0)) -> 3346700.522 | BR6: =+INDEX(Loads!$L:$CE,MATCH($C6,Loads!$D:$D,0),MATCH(BR$4,Loads!$L$4:$CE$4,0)) -> 2827256.732 | BS6: =+INDEX(Loads!$L:$CE,MATCH($C6,Loads!$D:$D,0),MATCH(BS$4,Loads!$L$4:$CE$4,0)) -> 2745897.103 | BT6: =+INDEX(Loads!$L:$CE,MATCH($C6,Loads!$D:$D,0),MATCH(BT$4,Loads!$L$4:$CE$4,0)) -> 2858597.507 | BU6: =+INDEX(Loads!$L:$CE,MATCH($C6,Loads!$D:$D,0),MATCH(BU$4,Loads!$L$4:$CE$4,0)) -> 3033612.386 | BV6: =+INDEX(Loads!$L:$CE,MATCH($C6,Loads!$D:$D,0),MATCH(BV$4,Loads!$L$4:$CE$4,0)) -> 3052514.643 | BW6: =+INDEX(Loads!$L:$CE,MATCH($C6,Loads!$D:$D,0),MATCH(BW$4,Loads!$L$4:$CE$4,0)) -> 2747221.706
B7: LLH | C7: PRE | D7: =+INDEX(Loads!$CG:$EZ,MATCH($C7,Loads!$D:$D,0),MATCH(D$4,Loads!$CG$4:$EZ$4,0)) -> 1811819.205 | E7: =+INDEX(Loads!$CG:$EZ,MATCH($C7,Loads!$D:$D,0),MATCH(E$4,Loads!$CG$4:$EZ$4,0)) -> 2184724 | F7: =+INDEX(Loads!$CG:$EZ,MATCH($C7,Loads!$D:$D,0),MATCH(F$4,Loads!$CG$4:$EZ$4,0)) -> 2625701.135 | G7: =+INDEX(Loads!$CG:$EZ,MATCH($C7,Loads!$D:$D,0),MATCH(G$4,Loads!$CG$4:$EZ$4,0)) -> 2589514.268 | H7: =+INDEX(Loads!$CG:$EZ,MATCH($C7,Loads!$D:$D,0),MATCH(H$4,Loads!$CG$4:$EZ$4,0)) -> 2134510.279 | I7: =+INDEX(Loads!$CG:$EZ,MATCH($C7,Loads!$D:$D,0),MATCH(I$4,Loads!$CG$4:$EZ$4,0)) -> 2208969.739 | J7: =+INDEX(Loads!$CG:$EZ,MATCH($C7,Loads!$D:$D,0),MATCH(J$4,Loads!$CG$4:$EZ$4,0)) -> 1799104.006 | K7: =+INDEX(Loads!$CG:$EZ,MATCH($C7,Loads!$D:$D,0),MATCH(K$4,Loads!$CG$4:$EZ$4,0)) -> 1878891.2 | L7: =+INDEX(Loads!$CG:$EZ,MATCH($C7,Loads!$D:$D,0),MATCH(L$4,Loads!$CG$4:$EZ$4,0)) -> 1756621.42 | M7: =+INDEX(Loads!$CG:$EZ,MATCH($C7,Loads!$D:$D,0),MATCH(M$4,Loads!$CG$4:$EZ$4,0)) -> 1961942.541 | N7: =+INDEX(Loads!$CG:$EZ,MATCH($C7,Loads!$D:$D,0),MATCH(N$4,Loads!$CG$4:$EZ$4,0)) -> 1808354.831 | O7: =+INDEX(Loads!$CG:$EZ,MATCH($C7,Loads!$D:$D,0),MATCH(O$4,Loads!$CG$4:$EZ$4,0)) -> 1866972.238 | P7: =+INDEX(Loads!$CG:$EZ,MATCH($C7,Loads!$D:$D,0),MATCH(P$4,Loads!$CG$4:$EZ$4,0)) -> 1823081.254 | Q7: =+INDEX(Loads!$CG:$EZ,MATCH($C7,Loads!$D:$D,0),MATCH(Q$4,Loads!$CG$4:$EZ$4,0)) -> 2254008.722 | R7: =+INDEX(Loads!$CG:$EZ,MATCH($C7,Loads!$D:$D,0),MATCH(R$4,Loads!$CG$4:$EZ$4,0)) -> 2702120.73 | S7: =+INDEX(Loads!$CG:$EZ,MATCH($C7,Loads!$D:$D,0),MATCH(S$4,Loads!$CG$4:$EZ$4,0)) -> 2665847.051 | T7: =+INDEX(Loads!$CG:$EZ,MATCH($C7,Loads!$D:$D,0),MATCH(T$4,Loads!$CG$4:$EZ$4,0)) -> 2168825.395 | U7: =+INDEX(Loads!$CG:$EZ,MATCH($C7,Loads!$D:$D,0),MATCH(U$4,Loads!$CG$4:$EZ$4,0)) -> 2276267.825 | V7: =+INDEX(Loads!$CG:$EZ,MATCH($C7,Loads!$D:$D,0),MATCH(V$4,Loads!$CG$4:$EZ$4,0)) -> 1869487.838 | W7: =+INDEX(Loads!$CG:$EZ,MATCH($C7,Loads!$D:$D,0),MATCH(W$4,Loads!$CG$4:$EZ$4,0)) -> 1886661.727 | X7: =+INDEX(Loads!$CG:$EZ,MATCH($C7,Loads!$D:$D,0),MATCH(X$4,Loads!$CG$4:$EZ$4,0)) -> 1822607.592 | Y7: =+INDEX(Loads!$CG:$EZ,MATCH($C7,Loads!$D:$D,0),MATCH(Y$4,Loads!$CG$4:$EZ$4,0)) -> 2048994.651 | Z7: =+INDEX(Loads!$CG:$EZ,MATCH($C7,Loads!$D:$D,0),MATCH(Z$4,Loads!$CG$4:$EZ$4,0)) -> 1925159.804 | AA7: =+INDEX(Loads!$CG:$EZ,MATCH($C7,Loads!$D:$D,0),MATCH(AA$4,Loads!$CG$4:$EZ$4,0)) -> 1891645.013 | AB7: =+INDEX(Loads!$CG:$EZ,MATCH($C7,Loads!$D:$D,0),MATCH(AB$4,Loads!$CG$4:$EZ$4,0)) -> 1823081.254 | AC7: =+INDEX(Loads!$CG:$EZ,MATCH($C7,Loads!$D:$D,0),MATCH(AC$4,Loads!$CG$4:$EZ$4,0)) -> 2254008.722 | AD7: =+INDEX(Loads!$CG:$EZ,MATCH($C7,Loads!$D:$D,0),MATCH(AD$4,Loads!$CG$4:$EZ$4,0)) -> 2702120.73 | AE7: =+INDEX(Loads!$CG:$EZ,MATCH($C7,Loads!$D:$D,0),MATCH(AE$4,Loads!$CG$4:$EZ$4,0)) -> 2665847.051 | AF7: =+INDEX(Loads!$CG:$EZ,MATCH($C7,Loads!$D:$D,0),MATCH(AF$4,Loads!$CG$4:$EZ$4,0)) -> 2168825.395 | AG7: =+INDEX(Loads!$CG:$EZ,MATCH($C7,Loads!$D:$D,0),MATCH(AG$4,Loads!$CG$4:$EZ$4,0)) -> 2276267.825 | AH7: =+INDEX(Loads!$CG:$EZ,MATCH($C7,Loads!$D:$D,0),MATCH(AH$4,Loads!$CG$4:$EZ$4,0)) -> 1869487.838 | AI7: =+INDEX(Loads!$CG:$EZ,MATCH($C7,Loads!$D:$D,0),MATCH(AI$4,Loads!$CG$4:$EZ$4,0)) -> 1886661.727 | AJ7: =+INDEX(Loads!$CG:$EZ,MATCH($C7,Loads!$D:$D,0),MATCH(AJ$4,Loads!$CG$4:$EZ$4,0)) -> 1822607.592 | AK7: =+INDEX(Loads!$CG:$EZ,MATCH($C7,Loads!$D:$D,0),MATCH(AK$4,Loads!$CG$4:$EZ$4,0)) -> 2048994.651 | AL7: =+INDEX(Loads!$CG:$EZ,MATCH($C7,Loads!$D:$D,0),MATCH(AL$4,Loads!$CG$4:$EZ$4,0)) -> 1925159.804 | AM7: =+INDEX(Loads!$CG:$EZ,MATCH($C7,Loads!$D:$D,0),MATCH(AM$4,Loads!$CG$4:$EZ$4,0)) -> 1891645.013 | AN7: =+INDEX(Loads!$CG:$EZ,MATCH($C7,Loads!$D:$D,0),MATCH(AN$4,Loads!$CG$4:$EZ$4,0)) -> 1823081.254 | AO7: =+INDEX(Loads!$CG:$EZ,MATCH($C7,Loads!$D:$D,0),MATCH(AO$4,Loads!$CG$4:$EZ$4,0)) -> 2254008.722 | AP7: =+INDEX(Loads!$CG:$EZ,MATCH($C7,Loads!$D:$D,0),MATCH(AP$4,Loads!$CG$4:$EZ$4,0)) -> 2702120.73 | AQ7: =+INDEX(Loads!$CG:$EZ,MATCH($C7,Loads!$D:$D,0),MATCH(AQ$4,Loads!$CG$4:$EZ$4,0)) -> 2665847.051 | AR7: =+INDEX(Loads!$CG:$EZ,MATCH($C7,Loads!$D:$D,0),MATCH(AR$4,Loads!$CG$4:$EZ$4,0)) -> 2168825.395 | AS7: =+INDEX(Loads!$CG:$EZ,MATCH($C7,Loads!$D:$D,0),MATCH(AS$4,Loads!$CG$4:$EZ$4,0)) -> 2276267.825 | AT7: =+INDEX(Loads!$CG:$EZ,MATCH($C7,Loads!$D:$D,0),MATCH(AT$4,Loads!$CG$4:$EZ$4,0)) -> 1869487.838 | AU7: =+INDEX(Loads!$CG:$EZ,MATCH($C7,Loads!$D:$D,0),MATCH(AU$4,Loads!$CG$4:$EZ$4,0)) -> 1886661.727 | AV7: =+INDEX(Loads!$CG:$EZ,MATCH($C7,Loads!$D:$D,0),MATCH(AV$4,Loads!$CG$4:$EZ$4,0)) -> 1822607.592 | AW7: =+INDEX(Loads!$CG:$EZ,MATCH($C7,Loads!$D:$D,0),MATCH(AW$4,Loads!$CG$4:$EZ$4,0)) -> 2048994.651 | AX7: =+INDEX(Loads!$CG:$EZ,MATCH($C7,Loads!$D:$D,0),MATCH(AX$4,Loads!$CG$4:$EZ$4,0)) -> 1925159.804 | AY7: =+INDEX(Loads!$CG:$EZ,MATCH($C7,Loads!$D:$D,0),MATCH(AY$4,Loads!$CG$4:$EZ$4,0)) -> 1891645.013 | AZ7: =+INDEX(Loads!$CG:$EZ,MATCH($C7,Loads!$D:$D,0),MATCH(AZ$4,Loads!$CG$4:$EZ$4,0)) -> 1823081.254 | BA7: =+INDEX(Loads!$CG:$EZ,MATCH($C7,Loads!$D:$D,0),MATCH(BA$4,Loads!$CG$4:$EZ$4,0)) -> 2254008.722 | BB7: =+INDEX(Loads!$CG:$EZ,MATCH($C7,Loads!$D:$D,0),MATCH(BB$4,Loads!$CG$4:$EZ$4,0)) -> 2702120.73 | BC7: =+INDEX(Loads!$CG:$EZ,MATCH($C7,Loads!$D:$D,0),MATCH(BC$4,Loads!$CG$4:$EZ$4,0)) -> 2665847.051 | BD7: =+INDEX(Loads!$CG:$EZ,MATCH($C7,Loads!$D:$D,0),MATCH(BD$4,Loads!$CG$4:$EZ$4,0)) -> 2168825.395 | BE7: =+INDEX(Loads!$CG:$EZ,MATCH($C7,Loads!$D:$D,0),MATCH(BE$4,Loads!$CG$4:$EZ$4,0)) -> 2276267.825 | BF7: =+INDEX(Loads!$CG:$EZ,MATCH($C7,Loads!$D:$D,0),MATCH(BF$4,Loads!$CG$4:$EZ$4,0)) -> 1869487.838 | BG7: =+INDEX(Loads!$CG:$EZ,MATCH($C7,Loads!$D:$D,0),MATCH(BG$4,Loads!$CG$4:$EZ$4,0)) -> 1886661.727 | BH7: =+INDEX(Loads!$CG:$EZ,MATCH($C7,Loads!$D:$D,0),MATCH(BH$4,Loads!$CG$4:$EZ$4,0)) -> 1822607.592 | BI7: =+INDEX(Loads!$CG:$EZ,MATCH($C7,Loads!$D:$D,0),MATCH(BI$4,Loads!$CG$4:$EZ$4,0)) -> 2048994.651 | BJ7: =+INDEX(Loads!$CG:$EZ,MATCH($C7,Loads!$D:$D,0),MATCH(BJ$4,Loads!$CG$4:$EZ$4,0)) -> 1925159.804 | BK7: =+INDEX(Loads!$CG:$EZ,MATCH($C7,Loads!$D:$D,0),MATCH(BK$4,Loads!$CG$4:$EZ$4,0)) -> 1891645.013 | BL7: =+INDEX(Loads!$CG:$EZ,MATCH($C7,Loads!$D:$D,0),MATCH(BL$4,Loads!$CG$4:$EZ$4,0)) -> 1823081.254 | BM7: =+INDEX(Loads!$CG:$EZ,MATCH($C7,Loads!$D:$D,0),MATCH(BM$4,Loads!$CG$4:$EZ$4,0)) -> 2254008.722 | BN7: =+INDEX(Loads!$CG:$EZ,MATCH($C7,Loads!$D:$D,0),MATCH(BN$4,Loads!$CG$4:$EZ$4,0)) -> 2702120.73 | BO7: =+INDEX(Loads!$CG:$EZ,MATCH($C7,Loads!$D:$D,0),MATCH(BO$4,Loads!$CG$4:$EZ$4,0)) -> 2665847.051 | BP7: =+INDEX(Loads!$CG:$EZ,MATCH($C7,Loads!$D:$D,0),MATCH(BP$4,Loads!$CG$4:$EZ$4,0)) -> 2168825.395 | BQ7: =+INDEX(Loads!$CG:$EZ,MATCH($C7,Loads!$D:$D,0),MATCH(BQ$4,Loads!$CG$4:$EZ$4,0)) -> 2276267.825 | BR7: =+INDEX(Loads!$CG:$EZ,MATCH($C7,Loads!$D:$D,0),MATCH(BR$4,Loads!$CG$4:$EZ$4,0)) -> 1869487.838 | BS7: =+INDEX(Loads!$CG:$EZ,MATCH($C7,Loads!$D:$D,0),MATCH(BS$4,Loads!$CG$4:$EZ$4,0)) -> 1886661.727 | BT7: =+INDEX(Loads!$CG:$EZ,MATCH($C7,Loads!$D:$D,0),MATCH(BT$4,Loads!$CG$4:$EZ$4,0)) -> 1822607.592 | BU7: =+INDEX(Loads!$CG:$EZ,MATCH($C7,Loads!$D:$D,0),MATCH(BU$4,Loads!$CG$4:$EZ$4,0)) -> 2048994.651 | BV7: =+INDEX(Loads!$CG:$EZ,MATCH($C7,Loads!$D:$D,0),MATCH(BV$4,Loads!$CG$4:$EZ$4,0)) -> 1925159.804 | BW7: =+INDEX(Loads!$CG:$EZ,MATCH($C7,Loads!$D:$D,0),MATCH(BW$4,Loads!$CG$4:$EZ$4,0)) -> 1891645.013
B8: Undistrubuted Conservation
B9: HLH | C9: CON | D9: =+INDEX(Loads!$L:$CE,MATCH($C9,Loads!$D:$D,0),MATCH(D$4,Loads!$L$4:$CE$4,0)) -> 0 | E9: =+INDEX(Loads!$L:$CE,MATCH($C9,Loads!$D:$D,0),MATCH(E$4,Loads!$L$4:$CE$4,0)) -> 0 | F9: =+INDEX(Loads!$L:$CE,MATCH($C9,Loads!$D:$D,0),MATCH(F$4,Loads!$L$4:$CE$4,0)) -> 0 | G9: =+INDEX(Loads!$L:$CE,MATCH($C9,Loads!$D:$D,0),MATCH(G$4,Loads!$L$4:$CE$4,0)) -> 0 | H9: =+INDEX(Loads!$L:$CE,MATCH($C9,Loads!$D:$D,0),MATCH(H$4,Loads!$L$4:$CE$4,0)) -> 0 | I9: =+INDEX(Loads!$L:$CE,MATCH($C9,Loads!$D:$D,0),MATCH(I$4,Loads!$L$4:$CE$4,0)) -> 0 | J9: =+INDEX(Loads!$L:$CE,MATCH($C9,Loads!$D:$D,0),MATCH(J$4,Loads!$L$4:$CE$4,0)) -> 0 | K9: =+INDEX(Loads!$L:$CE,MATCH($C9,Loads!$D:$D,0),MATCH(K$4,Loads!$L$4:$CE$4,0)) -> 0 | L9: =+INDEX(Loads!$L:$CE,MATCH($C9,Loads!$D:$D,0),MATCH(L$4,Loads!$L$4:$CE$4,0)) -> 0 | M9: =+INDEX(Loads!$L:$CE,MATCH($C9,Loads!$D:$D,0),MATCH(M$4,Loads!$L$4:$CE$4,0)) -> 0 | N9: =+INDEX(Loads!$L:$CE,MATCH($C9,Loads!$D:$D,0),MATCH(N$4,Loads!$L$4:$CE$4,0)) -> 0 | O9: =+INDEX(Loads!$L:$CE,MATCH($C9,Loads!$D:$D,0),MATCH(O$4,Loads!$L$4:$CE$4,0)) -> 0 | P9: =+INDEX(Loads!$L:$CE,MATCH($C9,Loads!$D:$D,0),MATCH(P$4,Loads!$L$4:$CE$4,0)) -> 0 | Q9: =+INDEX(Loads!$L:$CE,MATCH($C9,Loads!$D:$D,0),MATCH(Q$4,Loads!$L$4:$CE$4,0)) -> 0 | R9: =+INDEX(Loads!$L:$CE,MATCH($C9,Loads!$D:$D,0),MATCH(R$4,Loads!$L$4:$CE$4,0)) -> 0 | S9: =+INDEX(Loads!$L:$CE,MATCH($C9,Loads!$D:$D,0),MATCH(S$4,Loads!$L$4:$CE$4,0)) -> 0 | T9: =+INDEX(Loads!$L:$CE,MATCH($C9,Loads!$D:$D,0),MATCH(T$4,Loads!$L$4:$CE$4,0)) -> 0 | U9: =+INDEX(Loads!$L:$CE,MATCH($C9,Loads!$D:$D,0),MATCH(U$4,Loads!$L$4:$CE$4,0)) -> 0 | V9: =+INDEX(Loads!$L:$CE,MATCH($C9,Loads!$D:$D,0),MATCH(V$4,Loads!$L$4:$CE$4,0)) -> 0 | W9: =+INDEX(Loads!$L:$CE,MATCH($C9,Loads!$D:$D,0),MATCH(W$4,Loads!$L$4:$CE$4,0)) -> 0 | X9: =+INDEX(Loads!$L:$CE,MATCH($C9,Loads!$D:$D,0),MATCH(X$4,Loads!$L$4:$CE$4,0)) -> 0 | Y9: =+INDEX(Loads!$L:$CE,MATCH($C9,Loads!$D:$D,0),MATCH(Y$4,Loads!$L$4:$CE$4,0)) -> 0 | Z9: =+INDEX(Loads!$L:$CE,MATCH($C9,Loads!$D:$D,0),MATCH(Z$4,Loads!$L$4:$CE$4,0)) -> 0 | AA9: =+INDEX(Loads!$L:$CE,MATCH($C9,Loads!$D:$D,0),MATCH(AA$4,Loads!$L$4:$CE$4,0)) -> 0 | AB9: =+INDEX(Loads!$L:$CE,MATCH($C9,Loads!$D:$D,0),MATCH(AB$4,Loads!$L$4:$CE$4,0)) -> 0 | AC9: =+INDEX(Loads!$L:$CE,MATCH($C9,Loads!$D:$D,0),MATCH(AC$4,Loads!$L$4:$CE$4,0)) -> 0 | AD9: =+INDEX(Loads!$L:$CE,MATCH($C9,Loads!$D:$D,0),MATCH(AD$4,Loads!$L$4:$CE$4,0)) -> 0 | AE9: =+INDEX(Loads!$L:$CE,MATCH($C9,Loads!$D:$D,0),MATCH(AE$4,Loads!$L$4:$CE$4,0)) -> 0 | AF9: =+INDEX(Loads!$L:$CE,MATCH($C9,Loads!$D:$D,0),MATCH(AF$4,Loads!$L$4:$CE$4,0)) -> 0 | AG9: =+INDEX(Loads!$L:$CE,MATCH($C9,Loads!$D:$D,0),MATCH(AG$4,Loads!$L$4:$CE$4,0)) -> 0 | AH9: =+INDEX(Loads!$L:$CE,MATCH($C9,Loads!$D:$D,0),MATCH(AH$4,Loads!$L$4:$CE$4,0)) -> 0 | AI9: =+INDEX(Loads!$L:$CE,MATCH($C9,Loads!$D:$D,0),MATCH(AI$4,Loads!$L$4:$CE$4,0)) -> 0 | AJ9: =+INDEX(Loads!$L:$CE,MATCH($C9,Loads!$D:$D,0),MATCH(AJ$4,Loads!$L$4:$CE$4,0)) -> 0 | AK9: =+INDEX(Loads!$L:$CE,MATCH($C9,Loads!$D:$D,0),MATCH(AK$4,Loads!$L$4:$CE$4,0)) -> 0 | AL9: =+INDEX(Loads!$L:$CE,MATCH($C9,Loads!$D:$D,0),MATCH(AL$4,Loads!$L$4:$CE$4,0)) -> 0 | AM9: =+INDEX(Loads!$L:$CE,MATCH($C9,Loads!$D:$D,0),MATCH(AM$4,Loads!$L$4:$CE$4,0)) -> 0 | AN9: =+INDEX(Loads!$L:$CE,MATCH($C9,Loads!$D:$D,0),MATCH(AN$4,Loads!$L$4:$CE$4,0)) -> 0 | AO9: =+INDEX(Loads!$L:$CE,MATCH($C9,Loads!$D:$D,0),MATCH(AO$4,Loads!$L$4:$CE$4,0)) -> 0 | AP9: =+INDEX(Loads!$L:$CE,MATCH($C9,Loads!$D:$D,0),MATCH(AP$4,Loads!$L$4:$CE$4,0)) -> 0 | AQ9: =+INDEX(Loads!$L:$CE,MATCH($C9,Loads!$D:$D,0),MATCH(AQ$4,Loads!$L$4:$CE$4,0)) -> 0 | AR9: =+INDEX(Loads!$L:$CE,MATCH($C9,Loads!$D:$D,0),MATCH(AR$4,Loads!$L$4:$CE$4,0)) -> 0 | AS9: =+INDEX(Loads!$L:$CE,MATCH($C9,Loads!$D:$D,0),MATCH(AS$4,Loads!$L$4:$CE$4,0)) -> 0 | AT9: =+INDEX(Loads!$L:$CE,MATCH($C9,Loads!$D:$D,0),MATCH(AT$4,Loads!$L$4:$CE$4,0)) -> 0 | AU9: =+INDEX(Loads!$L:$CE,MATCH($C9,Loads!$D:$D,0),MATCH(AU$4,Loads!$L$4:$CE$4,0)) -> 0 | AV9: =+INDEX(Loads!$L:$CE,MATCH($C9,Loads!$D:$D,0),MATCH(AV$4,Loads!$L$4:$CE$4,0)) -> 0 | AW9: =+INDEX(Loads!$L:$CE,MATCH($C9,Loads!$D:$D,0),MATCH(AW$4,Loads!$L$4:$CE$4,0)) -> 0 | AX9: =+INDEX(Loads!$L:$CE,MATCH($C9,Loads!$D:$D,0),MATCH(AX$4,Loads!$L$4:$CE$4,0)) -> 0 | AY9: =+INDEX(Loads!$L:$CE,MATCH($C9,Loads!$D:$D,0),MATCH(AY$4,Loads!$L$4:$CE$4,0)) -> 0 | AZ9: =+INDEX(Loads!$L:$CE,MATCH($C9,Loads!$D:$D,0),MATCH(AZ$4,Loads!$L$4:$CE$4,0)) -> 0 | BA9: =+INDEX(Loads!$L:$CE,MATCH($C9,Loads!$D:$D,0),MATCH(BA$4,Loads!$L$4:$CE$4,0)) -> 0 | BB9: =+INDEX(Loads!$L:$CE,MATCH($C9,Loads!$D:$D,0),MATCH(BB$4,Loads!$L$4:$CE$4,0)) -> 0 | BC9: =+INDEX(Loads!$L:$CE,MATCH($C9,Loads!$D:$D,0),MATCH(BC$4,Loads!$L$4:$CE$4,0)) -> 0 | BD9: =+INDEX(Loads!$L:$CE,MATCH($C9,Loads!$D:$D,0),MATCH(BD$4,Loads!$L$4:$CE$4,0)) -> 0 | BE9: =+INDEX(Loads!$L:$CE,MATCH($C9,Loads!$D:$D,0),MATCH(BE$4,Loads!$L$4:$CE$4,0)) -> 0 | BF9: =+INDEX(Loads!$L:$CE,MATCH($C9,Loads!$D:$D,0),MATCH(BF$4,Loads!$L$4:$CE$4,0)) -> 0 | BG9: =+INDEX(Loads!$L:$CE,MATCH($C9,Loads!$D:$D,0),MATCH(BG$4,Loads!$L$4:$CE$4,0)) -> 0 | BH9: =+INDEX(Loads!$L:$CE,MATCH($C9,Loads!$D:$D,0),MATCH(BH$4,Loads!$L$4:$CE$4,0)) -> 0 | BI9: =+INDEX(Loads!$L:$CE,MATCH($C9,Loads!$D:$D,0),MATCH(BI$4,Loads!$L$4:$CE$4,0)) -> 0 | BJ9: =+INDEX(Loads!$L:$CE,MATCH($C9,Loads!$D:$D,0),MATCH(BJ$4,Loads!$L$4:$CE$4,0)) -> 0 | BK9: =+INDEX(Loads!$L:$CE,MATCH($C9,Loads!$D:$D,0),MATCH(BK$4,Loads!$L$4:$CE$4,0)) -> 0 | BL9: =+INDEX(Loads!$L:$CE,MATCH($C9,Loads!$D:$D,0),MATCH(BL$4,Loads!$L$4:$CE$4,0)) -> 0 | BM9: =+INDEX(Loads!$L:$CE,MATCH($C9,Loads!$D:$D,0),MATCH(BM$4,Loads!$L$4:$CE$4,0)) -> 0 | BN9: =+INDEX(Loads!$L:$CE,MATCH($C9,Loads!$D:$D,0),MATCH(BN$4,Loads!$L$4:$CE$4,0)) -> 0 | BO9: =+INDEX(Loads!$L:$CE,MATCH($C9,Loads!$D:$D,0),MATCH(BO$4,Loads!$L$4:$CE$4,0)) -> 0 | BP9: =+INDEX(Loads!$L:$CE,MATCH($C9,Loads!$D:$D,0),MATCH(BP$4,Loads!$L$4:$CE$4,0)) -> 0 | BQ9: =+INDEX(Loads!$L:$CE,MATCH($C9,Loads!$D:$D,0),MATCH(BQ$4,Loads!$L$4:$CE$4,0)) -> 0 | BR9: =+INDEX(Loads!$L:$CE,MATCH($C9,Loads!$D:$D,0),MATCH(BR$4,Loads!$L$4:$CE$4,0)) -> 0 | BS9: =+INDEX(Loads!$L:$CE,MATCH($C9,Loads!$D:$D,0),MATCH(BS$4,Loads!$L$4:$CE$4,0)) -> 0 | BT9: =+INDEX(Loads!$L:$CE,MATCH($C9,Loads!$D:$D,0),MATCH(BT$4,Loads!$L$4:$CE$4,0)) -> 0 | BU9: =+INDEX(Loads!$L:$CE,MATCH($C9,Loads!$D:$D,0),MATCH(BU$4,Loads!$L$4:$CE$4,0)) -> 0 | BV9: =+INDEX(Loads!$L:$CE,MATCH($C9,Loads!$D:$D,0),MATCH(BV$4,Loads!$L$4:$CE$4,0)) -> 0 | BW9: =+INDEX(Loads!$L:$CE,MATCH($C9,Loads!$D:$D,0),MATCH(BW$4,Loads!$L$4:$CE$4,0)) -> 0
B10: LLH | C10: CON | D10: =+INDEX(Loads!$CG:$EZ,MATCH($C10,Loads!$D:$D,0),MATCH(D$4,Loads!$CG$4:$EZ$4,0)) -> 0 | E10: =+INDEX(Loads!$CG:$EZ,MATCH($C10,Loads!$D:$D,0),MATCH(E$4,Loads!$CG$4:$EZ$4,0)) -> 0 | F10: =+INDEX(Loads!$CG:$EZ,MATCH($C10,Loads!$D:$D,0),MATCH(F$4,Loads!$CG$4:$EZ$4,0)) -> 0 | G10: =+INDEX(Loads!$CG:$EZ,MATCH($C10,Loads!$D:$D,0),MATCH(G$4,Loads!$CG$4:$EZ$4,0)) -> 0 | H10: =+INDEX(Loads!$CG:$EZ,MATCH($C10,Loads!$D:$D,0),MATCH(H$4,Loads!$CG$4:$EZ$4,0)) -> 0 | I10: =+INDEX(Loads!$CG:$EZ,MATCH($C10,Loads!$D:$D,0),MATCH(I$4,Loads!$CG$4:$EZ$4,0)) -> 0 | J10: =+INDEX(Loads!$CG:$EZ,MATCH($C10,Loads!$D:$D,0),MATCH(J$4,Loads!$CG$4:$EZ$4,0)) -> 0 | K10: =+INDEX(Loads!$CG:$EZ,MATCH($C10,Loads!$D:$D,0),MATCH(K$4,Loads!$CG$4:$EZ$4,0)) -> 0 | L10: =+INDEX(Loads!$CG:$EZ,MATCH($C10,Loads!$D:$D,0),MATCH(L$4,Loads!$CG$4:$EZ$4,0)) -> 0 | M10: =+INDEX(Loads!$CG:$EZ,MATCH($C10,Loads!$D:$D,0),MATCH(M$4,Loads!$CG$4:$EZ$4,0)) -> 0 | N10: =+INDEX(Loads!$CG:$EZ,MATCH($C10,Loads!$D:$D,0),MATCH(N$4,Loads!$CG$4:$EZ$4,0)) -> 0 | O10: =+INDEX(Loads!$CG:$EZ,MATCH($C10,Loads!$D:$D,0),MATCH(O$4,Loads!$CG$4:$EZ$4,0)) -> 0 | P10: =+INDEX(Loads!$CG:$EZ,MATCH($C10,Loads!$D:$D,0),MATCH(P$4,Loads!$CG$4:$EZ$4,0)) -> 0 | Q10: =+INDEX(Loads!$CG:$EZ,MATCH($C10,Loads!$D:$D,0),MATCH(Q$4,Loads!$CG$4:$EZ$4,0)) -> 0 | R10: =+INDEX(Loads!$CG:$EZ,MATCH($C10,Loads!$D:$D,0),MATCH(R$4,Loads!$CG$4:$EZ$4,0)) -> 0 | S10: =+INDEX(Loads!$CG:$EZ,MATCH($C10,Loads!$D:$D,0),MATCH(S$4,Loads!$CG$4:$EZ$4,0)) -> 0 | T10: =+INDEX(Loads!$CG:$EZ,MATCH($C10,Loads!$D:$D,0),MATCH(T$4,Loads!$CG$4:$EZ$4,0)) -> 0 | U10: =+INDEX(Loads!$CG:$EZ,MATCH($C10,Loads!$D:$D,0),MATCH(U$4,Loads!$CG$4:$EZ$4,0)) -> 0 | V10: =+INDEX(Loads!$CG:$EZ,MATCH($C10,Loads!$D:$D,0),MATCH(V$4,Loads!$CG$4:$EZ$4,0)) -> 0 | W10: =+INDEX(Loads!$CG:$EZ,MATCH($C10,Loads!$D:$D,0),MATCH(W$4,Loads!$CG$4:$EZ$4,0)) -> 0 | X10: =+INDEX(Loads!$CG:$EZ,MATCH($C10,Loads!$D:$D,0),MATCH(X$4,Loads!$CG$4:$EZ$4,0)) -> 0 | Y10: =+INDEX(Loads!$CG:$EZ,MATCH($C10,Loads!$D:$D,0),MATCH(Y$4,Loads!$CG$4:$EZ$4,0)) -> 0 | Z10: =+INDEX(Loads!$CG:$EZ,MATCH($C10,Loads!$D:$D,0),MATCH(Z$4,Loads!$CG$4:$EZ$4,0)) -> 0 | AA10: =+INDEX(Loads!$CG:$EZ,MATCH($C10,Loads!$D:$D,0),MATCH(AA$4,Loads!$CG$4:$EZ$4,0)) -> 0 | AB10: =+INDEX(Loads!$CG:$EZ,MATCH($C10,Loads!$D:$D,0),MATCH(AB$4,Loads!$CG$4:$EZ$4,0)) -> 0 | AC10: =+INDEX(Loads!$CG:$EZ,MATCH($C10,Loads!$D:$D,0),MATCH(AC$4,Loads!$CG$4:$EZ$4,0)) -> 0 | AD10: =+INDEX(Loads!$CG:$EZ,MATCH($C10,Loads!$D:$D,0),MATCH(AD$4,Loads!$CG$4:$EZ$4,0)) -> 0 | AE10: =+INDEX(Loads!$CG:$EZ,MATCH($C10,Loads!$D:$D,0),MATCH(AE$4,Loads!$CG$4:$EZ$4,0)) -> 0 | AF10: =+INDEX(Loads!$CG:$EZ,MATCH($C10,Loads!$D:$D,0),MATCH(AF$4,Loads!$CG$4:$EZ$4,0)) -> 0 | AG10: =+INDEX(Loads!$CG:$EZ,MATCH($C10,Loads!$D:$D,0),MATCH(AG$4,Loads!$CG$4:$EZ$4,0)) -> 0 | AH10: =+INDEX(Loads!$CG:$EZ,MATCH($C10,Loads!$D:$D,0),MATCH(AH$4,Loads!$CG$4:$EZ$4,0)) -> 0 | AI10: =+INDEX(Loads!$CG:$EZ,MATCH($C10,Loads!$D:$D,0),MATCH(AI$4,Loads!$CG$4:$EZ$4,0)) -> 0 | AJ10: =+INDEX(Loads!$CG:$EZ,MATCH($C10,Loads!$D:$D,0),MATCH(AJ$4,Loads!$CG$4:$EZ$4,0)) -> 0 | AK10: =+INDEX(Loads!$CG:$EZ,MATCH($C10,Loads!$D:$D,0),MATCH(AK$4,Loads!$CG$4:$EZ$4,0)) -> 0 | AL10: =+INDEX(Loads!$CG:$EZ,MATCH($C10,Loads!$D:$D,0),MATCH(AL$4,Loads!$CG$4:$EZ$4,0)) -> 0 | AM10: =+INDEX(Loads!$CG:$EZ,MATCH($C10,Loads!$D:$D,0),MATCH(AM$4,Loads!$CG$4:$EZ$4,0)) -> 0 | AN10: =+INDEX(Loads!$CG:$EZ,MATCH($C10,Loads!$D:$D,0),MATCH(AN$4,Loads!$CG$4:$EZ$4,0)) -> 0 | AO10: =+INDEX(Loads!$CG:$EZ,MATCH($C10,Loads!$D:$D,0),MATCH(AO$4,Loads!$CG$4:$EZ$4,0)) -> 0 | AP10: =+INDEX(Loads!$CG:$EZ,MATCH($C10,Loads!$D:$D,0),MATCH(AP$4,Loads!$CG$4:$EZ$4,0)) -> 0 | AQ10: =+INDEX(Loads!$CG:$EZ,MATCH($C10,Loads!$D:$D,0),MATCH(AQ$4,Loads!$CG$4:$EZ$4,0)) -> 0 | AR10: =+INDEX(Loads!$CG:$EZ,MATCH($C10,Loads!$D:$D,0),MATCH(AR$4,Loads!$CG$4:$EZ$4,0)) -> 0 | AS10: =+INDEX(Loads!$CG:$EZ,MATCH($C10,Loads!$D:$D,0),MATCH(AS$4,Loads!$CG$4:$EZ$4,0)) -> 0 | AT10: =+INDEX(Loads!$CG:$EZ,MATCH($C10,Loads!$D:$D,0),MATCH(AT$4,Loads!$CG$4:$EZ$4,0)) -> 0 | AU10: =+INDEX(Loads!$CG:$EZ,MATCH($C10,Loads!$D:$D,0),MATCH(AU$4,Loads!$CG$4:$EZ$4,0)) -> 0 | AV10: =+INDEX(Loads!$CG:$EZ,MATCH($C10,Loads!$D:$D,0),MATCH(AV$4,Loads!$CG$4:$EZ$4,0)) -> 0 | AW10: =+INDEX(Loads!$CG:$EZ,MATCH($C10,Loads!$D:$D,0),MATCH(AW$4,Loads!$CG$4:$EZ$4,0)) -> 0 | AX10: =+INDEX(Loads!$CG:$EZ,MATCH($C10,Loads!$D:$D,0),MATCH(AX$4,Loads!$CG$4:$EZ$4,0)) -> 0 | AY10: =+INDEX(Loads!$CG:$EZ,MATCH($C10,Loads!$D:$D,0),MATCH(AY$4,Loads!$CG$4:$EZ$4,0)) -> 0 | AZ10: =+INDEX(Loads!$CG:$EZ,MATCH($C10,Loads!$D:$D,0),MATCH(AZ$4,Loads!$CG$4:$EZ$4,0)) -> 0 | BA10: =+INDEX(Loads!$CG:$EZ,MATCH($C10,Loads!$D:$D,0),MATCH(BA$4,Loads!$CG$4:$EZ$4,0)) -> 0 | BB10: =+INDEX(Loads!$CG:$EZ,MATCH($C10,Loads!$D:$D,0),MATCH(BB$4,Loads!$CG$4:$EZ$4,0)) -> 0 | BC10: =+INDEX(Loads!$CG:$EZ,MATCH($C10,Loads!$D:$D,0),MATCH(BC$4,Loads!$CG$4:$EZ$4,0)) -> 0 | BD10: =+INDEX(Loads!$CG:$EZ,MATCH($C10,Loads!$D:$D,0),MATCH(BD$4,Loads!$CG$4:$EZ$4,0)) -> 0 | BE10: =+INDEX(Loads!$CG:$EZ,MATCH($C10,Loads!$D:$D,0),MATCH(BE$4,Loads!$CG$4:$EZ$4,0)) -> 0 | BF10: =+INDEX(Loads!$CG:$EZ,MATCH($C10,Loads!$D:$D,0),MATCH(BF$4,Loads!$CG$4:$EZ$4,0)) -> 0 | BG10: =+INDEX(Loads!$CG:$EZ,MATCH($C10,Loads!$D:$D,0),MATCH(BG$4,Loads!$CG$4:$EZ$4,0)) -> 0 | BH10: =+INDEX(Loads!$CG:$EZ,MATCH($C10,Loads!$D:$D,0),MATCH(BH$4,Loads!$CG$4:$EZ$4,0)) -> 0 | BI10: =+INDEX(Loads!$CG:$EZ,MATCH($C10,Loads!$D:$D,0),MATCH(BI$4,Loads!$CG$4:$EZ$4,0)) -> 0 | BJ10: =+INDEX(Loads!$CG:$EZ,MATCH($C10,Loads!$D:$D,0),MATCH(BJ$4,Loads!$CG$4:$EZ$4,0)) -> 0 | BK10: =+INDEX(Loads!$CG:$EZ,MATCH($C10,Loads!$D:$D,0),MATCH(BK$4,Loads!$CG$4:$EZ$4,0)) -> 0 | BL10: =+INDEX(Loads!$CG:$EZ,MATCH($C10,Loads!$D:$D,0),MATCH(BL$4,Loads!$CG$4:$EZ$4,0)) -> 0 | BM10: =+INDEX(Loads!$CG:$EZ,MATCH($C10,Loads!$D:$D,0),MATCH(BM$4,Loads!$CG$4:$EZ$4,0)) -> 0 | BN10: =+INDEX(Loads!$CG:$EZ,MATCH($C10,Loads!$D:$D,0),MATCH(BN$4,Loads!$CG$4:$EZ$4,0)) -> 0 | BO10: =+INDEX(Loads!$CG:$EZ,MATCH($C10,Loads!$D:$D,0),MATCH(BO$4,Loads!$CG$4:$EZ$4,0)) -> 0 | BP10: =+INDEX(Loads!$CG:$EZ,MATCH($C10,Loads!$D:$D,0),MATCH(BP$4,Loads!$CG$4:$EZ$4,0)) -> 0 | BQ10: =+INDEX(Loads!$CG:$EZ,MATCH($C10,Loads!$D:$D,0),MATCH(BQ$4,Loads!$CG$4:$EZ$4,0)) -> 0 | BR10: =+INDEX(Loads!$CG:$EZ,MATCH($C10,Loads!$D:$D,0),MATCH(BR$4,Loads!$CG$4:$EZ$4,0)) -> 0 | BS10: =+INDEX(Loads!$CG:$EZ,MATCH($C10,Loads!$D:$D,0),MATCH(BS$4,Loads!$CG$4:$EZ$4,0)) -> 0 | BT10: =+INDEX(Loads!$CG:$EZ,MATCH($C10,Loads!$D:$D,0),MATCH(BT$4,Loads!$CG$4:$EZ$4,0)) -> 0 | BU10: =+INDEX(Loads!$CG:$EZ,MATCH($C10,Loads!$D:$D,0),MATCH(BU$4,Loads!$CG$4:$EZ$4,0)) -> 0 | BV10: =+INDEX(Loads!$CG:$EZ,MATCH($C10,Loads!$D:$D,0),MATCH(BV$4,Loads!$CG$4:$EZ$4,0)) -> 0 | BW10: =+INDEX(Loads!$CG:$EZ,MATCH($C10,Loads!$D:$D,0),MATCH(BW$4,Loads!$CG$4:$EZ$4,0)) -> 0
B11: Public Load
B12: HLH | C12: PRE | D12: =+D6+D9 -> 2706689.908 | E12: =+E6+E9 -> 3132135.216 | F12: 3606257.779 | G12: 3760610.659 | H12: 3268509.484 | I12: 3251220.806 | J12: 2718652.605 | K12: 2776626.791 | L12: 2735513.36 | M12: 2917864.202 | N12: 3012790.82 | O12: 2613531.336 | P12: 2850530.104 | Q12: 3216267.192 | R12: 3689927.94 | S12: 3851458.583 | T12: 3282893.866 | U12: 3346700.522 | V12: 2827256.732 | W12: 2745897.103 | X12: 2858597.507 | Y12: 3033612.386 | Z12: 3052514.643 | AA12: 2747221.706 | AB12: 2850530.104 | AC12: 3216267.192 | AD12: 3689927.94 | AE12: 3851458.583 | AF12: 3282893.866 | AG12: 3346700.522 | AH12: 2827256.732 | AI12: 2745897.103 | AJ12: 2858597.507 | AK12: 3033612.386 | AL12: 3052514.643 | AM12: 2747221.706 | AN12: 2850530.104 | AO12: 3216267.192 | AP12: 3689927.94 | AQ12: 3851458.583 | AR12: 3282893.866 | AS12: 3346700.522 | AT12: 2827256.732 | AU12: 2745897.103 | AV12: 2858597.507 | AW12: 3033612.386 | AX12: 3052514.643 | AY12: 2747221.706 | AZ12: 2850530.104 | BA12: 3216267.192 | BB12: 3689927.94 | BC12: 3851458.583 | BD12: 3282893.866 | BE12: 3346700.522 | BF12: 2827256.732 | BG12: 2745897.103 | BH12: 2858597.507 | BI12: 3033612.386 | BJ12: 3052514.643 | BK12: 2747221.706 | BL12: 2850530.104 | BM12: 3216267.192 | BN12: 3689927.94 | BO12: 3851458.583 | BP12: 3282893.866 | BQ12: =+BQ6+BQ9 -> 3346700.522 | BR12: 2827256.732 | BS12: 2745897.103 | BT12: 2858597.507 | BU12: 3033612.386 | BV12: 3052514.643 | BW12: 2747221.706
B13: LLH | C13: PRE | D13: =+D7+D10 -> 1811819.205 | E13: 2184724 | F13: 2625701.135 | G13: 2589514.268 | H13: 2134510.279 | I13: 2208969.739 | J13: 1799104.006 | K13: 1878891.2 | L13: 1756621.42 | M13: 1961942.541 | N13: 1808354.831 | O13: 1866972.238 | P13: 1823081.254 | Q13: 2254008.722 | R13: 2702120.73 | S13: 2665847.051 | T13: 2168825.395 | U13: 2276267.825 | V13: 1869487.838 | W13: 1886661.727 | X13: 1822607.592 | Y13: 2048994.651 | Z13: 1925159.804 | AA13: 1891645.013 | AB13: 1823081.254 | AC13: 2254008.722 | AD13: 2702120.73 | AE13: 2665847.051 | AF13: 2168825.395 | AG13: 2276267.825 | AH13: 1869487.838 | AI13: 1886661.727 | AJ13: 1822607.592 | AK13: 2048994.651 | AL13: 1925159.804 | AM13: 1891645.013 | AN13: 1823081.254 | AO13: 2254008.722 | AP13: 2702120.73 | AQ13: 2665847.051 | AR13: 2168825.395 | AS13: 2276267.825 | AT13: 1869487.838 | AU13: 1886661.727 | AV13: 1822607.592 | AW13: 2048994.651 | AX13: 1925159.804 | AY13: 1891645.013 | AZ13: 1823081.254 | BA13: 2254008.722 | BB13: 2702120.73 | BC13: 2665847.051 | BD13: 2168825.395 | BE13: 2276267.825 | BF13: 1869487.838 | BG13: 1886661.727 | BH13: 1822607.592 | BI13: 2048994.651 | BJ13: 1925159.804 | BK13: 1891645.013 | BL13: 1823081.254 | BM13: 2254008.722 | BN13: 2702120.73 | BO13: 2665847.051 | BP13: =+BP7+BP10 -> 2168825.395 | BQ13: 2276267.825 | BR13: 1869487.838 | BS13: 1886661.727 | BT13: 1822607.592 | BU13: 2048994.651 | BV13: 1925159.804 | BW13: 1891645.013
B14: Tier 2 Load
B15: HLH | C15: PRE_T2 | D15: =+INDEX(Loads!$L:$CE,MATCH($C15,Loads!$D:$D,0),MATCH(D$4,Loads!$L$4:$CE$4,0)) -> 85038.65148 | E15: =+INDEX(Loads!$L:$CE,MATCH($C15,Loads!$D:$D,0),MATCH(E$4,Loads!$L$4:$CE$4,0)) -> 81684.95084 | F15: =+INDEX(Loads!$L:$CE,MATCH($C15,Loads!$D:$D,0),MATCH(F$4,Loads!$L$4:$CE$4,0)) -> 81834.76906 | G15: =+INDEX(Loads!$L:$CE,MATCH($C15,Loads!$D:$D,0),MATCH(G$4,Loads!$L$4:$CE$4,0)) -> 85077.89661 | H15: =+INDEX(Loads!$L:$CE,MATCH($C15,Loads!$D:$D,0),MATCH(H$4,Loads!$L$4:$CE$4,0)) -> 81910.41148 | I15: =+INDEX(Loads!$L:$CE,MATCH($C15,Loads!$D:$D,0),MATCH(I$4,Loads!$L$4:$CE$4,0)) -> 84939.90615 | J15: =+INDEX(Loads!$L:$CE,MATCH($C15,Loads!$D:$D,0),MATCH(J$4,Loads!$L$4:$CE$4,0)) -> 84888.65255 | K15: =+INDEX(Loads!$L:$CE,MATCH($C15,Loads!$D:$D,0),MATCH(K$4,Loads!$L$4:$CE$4,0)) -> 85060.15498 | L15: =+INDEX(Loads!$L:$CE,MATCH($C15,Loads!$D:$D,0),MATCH(L$4,Loads!$L$4:$CE$4,0)) -> 81698.49755 | M15: =+INDEX(Loads!$L:$CE,MATCH($C15,Loads!$D:$D,0),MATCH(M$4,Loads!$L$4:$CE$4,0)) -> 85155.76266 | N15: =+INDEX(Loads!$L:$CE,MATCH($C15,Loads!$D:$D,0),MATCH(N$4,Loads!$L$4:$CE$4,0)) -> 88323.23347 | O15: =+INDEX(Loads!$L:$CE,MATCH($C15,Loads!$D:$D,0),MATCH(O$4,Loads!$L$4:$CE$4,0)) -> 78668.01723 | P15: =+INDEX(Loads!$L:$CE,MATCH($C15,Loads!$D:$D,0),MATCH(P$4,Loads!$L$4:$CE$4,0)) -> 168316.9198 | Q15: =+INDEX(Loads!$L:$CE,MATCH($C15,Loads!$D:$D,0),MATCH(Q$4,Loads!$L$4:$CE$4,0)) -> 155790.775 | R15: =+INDEX(Loads!$L:$CE,MATCH($C15,Loads!$D:$D,0),MATCH(R$4,Loads!$L$4:$CE$4,0)) -> 155897.8875 | S15: =+INDEX(Loads!$L:$CE,MATCH($C15,Loads!$D:$D,0),MATCH(S$4,Loads!$L$4:$CE$4,0)) -> 162129.9881 | T15: =+INDEX(Loads!$L:$CE,MATCH($C15,Loads!$D:$D,0),MATCH(T$4,Loads!$L$4:$CE$4,0)) -> 149730.1434 | U15: =+INDEX(Loads!$L:$CE,MATCH($C15,Loads!$D:$D,0),MATCH(U$4,Loads!$L$4:$CE$4,0)) -> 162031.3318 | V15: =+INDEX(Loads!$L:$CE,MATCH($C15,Loads!$D:$D,0),MATCH(V$4,Loads!$L$4:$CE$4,0)) -> 161994.688 | W15: =+INDEX(Loads!$L:$CE,MATCH($C15,Loads!$D:$D,0),MATCH(W$4,Loads!$L$4:$CE$4,0)) -> 162117.3037 | X15: =+INDEX(Loads!$L:$CE,MATCH($C15,Loads!$D:$D,0),MATCH(X$4,Loads!$L$4:$CE$4,0)) -> 155817.668 | Y15: =+INDEX(Loads!$L:$CE,MATCH($C15,Loads!$D:$D,0),MATCH(Y$4,Loads!$L$4:$CE$4,0)) -> 162185.6584 | Z15: =+INDEX(Loads!$L:$CE,MATCH($C15,Loads!$D:$D,0),MATCH(Z$4,Loads!$L$4:$CE$4,0)) -> 162112.3709 | AA15: =+INDEX(Loads!$L:$CE,MATCH($C15,Loads!$D:$D,0),MATCH(AA$4,Loads!$L$4:$CE$4,0)) -> 155995.954 | AB15: =+INDEX(Loads!$L:$CE,MATCH($C15,Loads!$D:$D,0),MATCH(AB$4,Loads!$L$4:$CE$4,0)) -> 168316.9198 | AC15: =+INDEX(Loads!$L:$CE,MATCH($C15,Loads!$D:$D,0),MATCH(AC$4,Loads!$L$4:$CE$4,0)) -> 155790.775 | AD15: =+INDEX(Loads!$L:$CE,MATCH($C15,Loads!$D:$D,0),MATCH(AD$4,Loads!$L$4:$CE$4,0)) -> 155897.8875 | AE15: =+INDEX(Loads!$L:$CE,MATCH($C15,Loads!$D:$D,0),MATCH(AE$4,Loads!$L$4:$CE$4,0)) -> 162129.9881 | AF15: =+INDEX(Loads!$L:$CE,MATCH($C15,Loads!$D:$D,0),MATCH(AF$4,Loads!$L$4:$CE$4,0)) -> 149730.1434 | AG15: =+INDEX(Loads!$L:$CE,MATCH($C15,Loads!$D:$D,0),MATCH(AG$4,Loads!$L$4:$CE$4,0)) -> 162031.3318 | AH15: =+INDEX(Loads!$L:$CE,MATCH($C15,Loads!$D:$D,0),MATCH(AH$4,Loads!$L$4:$CE$4,0)) -> 161994.688 | AI15: =+INDEX(Loads!$L:$CE,MATCH($C15,Loads!$D:$D,0),MATCH(AI$4,Loads!$L$4:$CE$4,0)) -> 162117.3037 | AJ15: =+INDEX(Loads!$L:$CE,MATCH($C15,Loads!$D:$D,0),MATCH(AJ$4,Loads!$L$4:$CE$4,0)) -> 155817.668 | AK15: =+INDEX(Loads!$L:$CE,MATCH($C15,Loads!$D:$D,0),MATCH(AK$4,Loads!$L$4:$CE$4,0)) -> 162185.6584 | AL15: =+INDEX(Loads!$L:$CE,MATCH($C15,Loads!$D:$D,0),MATCH(AL$4,Loads!$L$4:$CE$4,0)) -> 162112.3709 | AM15: =+INDEX(Loads!$L:$CE,MATCH($C15,Loads!$D:$D,0),MATCH(AM$4,Loads!$L$4:$CE$4,0)) -> 155995.954 | AN15: =+INDEX(Loads!$L:$CE,MATCH($C15,Loads!$D:$D,0),MATCH(AN$4,Loads!$L$4:$CE$4,0)) -> 168316.9198 | AO15: =+INDEX(Loads!$L:$CE,MATCH($C15,Loads!$D:$D,0),MATCH(AO$4,Loads!$L$4:$CE$4,0)) -> 155790.775 | AP15: =+INDEX(Loads!$L:$CE,MATCH($C15,Loads!$D:$D,0),MATCH(AP$4,Loads!$L$4:$CE$4,0)) -> 155897.8875 | AQ15: =+INDEX(Loads!$L:$CE,MATCH($C15,Loads!$D:$D,0),MATCH(AQ$4,Loads!$L$4:$CE$4,0)) -> 162129.9881 | AR15: =+INDEX(Loads!$L:$CE,MATCH($C15,Loads!$D:$D,0),MATCH(AR$4,Loads!$L$4:$CE$4,0)) -> 149730.1434 | AS15: =+INDEX(Loads!$L:$CE,MATCH($C15,Loads!$D:$D,0),MATCH(AS$4,Loads!$L$4:$CE$4,0)) -> 162031.3318 | AT15: =+INDEX(Loads!$L:$CE,MATCH($C15,Loads!$D:$D,0),MATCH(AT$4,Loads!$L$4:$CE$4,0)) -> 161994.688 | AU15: =+INDEX(Loads!$L:$CE,MATCH($C15,Loads!$D:$D,0),MATCH(AU$4,Loads!$L$4:$CE$4,0)) -> 162117.3037 | AV15: =+INDEX(Loads!$L:$CE,MATCH($C15,Loads!$D:$D,0),MATCH(AV$4,Loads!$L$4:$CE$4,0)) -> 155817.668 | AW15: =+INDEX(Loads!$L:$CE,MATCH($C15,Loads!$D:$D,0),MATCH(AW$4,Loads!$L$4:$CE$4,0)) -> 162185.6584 | AX15: =+INDEX(Loads!$L:$CE,MATCH($C15,Loads!$D:$D,0),MATCH(AX$4,Loads!$L$4:$CE$4,0)) -> 162112.3709 | AY15: =+INDEX(Loads!$L:$CE,MATCH($C15,Loads!$D:$D,0),MATCH(AY$4,Loads!$L$4:$CE$4,0)) -> 155995.954 | AZ15: =+INDEX(Loads!$L:$CE,MATCH($C15,Loads!$D:$D,0),MATCH(AZ$4,Loads!$L$4:$CE$4,0)) -> 168316.9198 | BA15: =+INDEX(Loads!$L:$CE,MATCH($C15,Loads!$D:$D,0),MATCH(BA$4,Loads!$L$4:$CE$4,0)) -> 155790.775 | BB15: =+INDEX(Loads!$L:$CE,MATCH($C15,Loads!$D:$D,0),MATCH(BB$4,Loads!$L$4:$CE$4,0)) -> 155897.8875 | BC15: =+INDEX(Loads!$L:$CE,MATCH($C15,Loads!$D:$D,0),MATCH(BC$4,Loads!$L$4:$CE$4,0)) -> 162129.9881 | BD15: =+INDEX(Loads!$L:$CE,MATCH($C15,Loads!$D:$D,0),MATCH(BD$4,Loads!$L$4:$CE$4,0)) -> 149730.1434 | BE15: =+INDEX(Loads!$L:$CE,MATCH($C15,Loads!$D:$D,0),MATCH(BE$4,Loads!$L$4:$CE$4,0)) -> 162031.3318 | BF15: =+INDEX(Loads!$L:$CE,MATCH($C15,Loads!$D:$D,0),MATCH(BF$4,Loads!$L$4:$CE$4,0)) -> 161994.688 | BG15: =+INDEX(Loads!$L:$CE,MATCH($C15,Loads!$D:$D,0),MATCH(BG$4,Loads!$L$4:$CE$4,0)) -> 162117.3037 | BH15: =+INDEX(Loads!$L:$CE,MATCH($C15,Loads!$D:$D,0),MATCH(BH$4,Loads!$L$4:$CE$4,0)) -> 155817.668 | BI15: =+INDEX(Loads!$L:$CE,MATCH($C15,Loads!$D:$D,0),MATCH(BI$4,Loads!$L$4:$CE$4,0)) -> 162185.6584 | BJ15: =+INDEX(Loads!$L:$CE,MATCH($C15,Loads!$D:$D,0),MATCH(BJ$4,Loads!$L$4:$CE$4,0)) -> 162112.3709 | BK15: =+INDEX(Loads!$L:$CE,MATCH($C15,Loads!$D:$D,0),MATCH(BK$4,Loads!$L$4:$CE$4,0)) -> 155995.954 | BL15: =+INDEX(Loads!$L:$CE,MATCH($C15,Loads!$D:$D,0),MATCH(BL$4,Loads!$L$4:$CE$4,0)) -> 168316.9198 | BM15: =+INDEX(Loads!$L:$CE,MATCH($C15,Loads!$D:$D,0),MATCH(BM$4,Loads!$L$4:$CE$4,0)) -> 155790.775 | BN15: =+INDEX(Loads!$L:$CE,MATCH($C15,Loads!$D:$D,0),MATCH(BN$4,Loads!$L$4:$CE$4,0)) -> 155897.8875 | BO15: =+INDEX(Loads!$L:$CE,MATCH($C15,Loads!$D:$D,0),MATCH(BO$4,Loads!$L$4:$CE$4,0)) -> 162129.9881 | BP15: =+INDEX(Loads!$L:$CE,MATCH($C15,Loads!$D:$D,0),MATCH(BP$4,Loads!$L$4:$CE$4,0)) -> 149730.1434 | BQ15: =+INDEX(Loads!$L:$CE,MATCH($C15,Loads!$D:$D,0),MATCH(BQ$4,Loads!$L$4:$CE$4,0)) -> 162031.3318 | BR15: =+INDEX(Loads!$L:$CE,MATCH($C15,Loads!$D:$D,0),MATCH(BR$4,Loads!$L$4:$CE$4,0)) -> 161994.688 | BS15: =+INDEX(Loads!$L:$CE,MATCH($C15,Loads!$D:$D,0),MATCH(BS$4,Loads!$L$4:$CE$4,0)) -> 162117.3037 | BT15: =+INDEX(Loads!$L:$CE,MATCH($C15,Loads!$D:$D,0),MATCH(BT$4,Loads!$L$4:$CE$4,0)) -> 155817.668 | BU15: =+INDEX(Loads!$L:$CE,MATCH($C15,Loads!$D:$D,0),MATCH(BU$4,Loads!$L$4:$CE$4,0)) -> 162185.6584 | BV15: =+INDEX(Loads!$L:$CE,MATCH($C15,Loads!$D:$D,0),MATCH(BV$4,Loads!$L$4:$CE$4,0)) -> 162112.3709 | BW15: =+INDEX(Loads!$L:$CE,MATCH($C15,Loads!$D:$D,0),MATCH(BW$4,Loads!$L$4:$CE$4,0)) -> 155995.954
B16: LLH | C16: PRE_T2 | D16: =+INDEX(Loads!$CG:$EZ,MATCH($C16,Loads!$D:$D,0),MATCH(D$4,Loads!$CG$4:$EZ$4,0)) -> 67028.95357 | E16: =+INDEX(Loads!$CG:$EZ,MATCH($C16,Loads!$D:$D,0),MATCH(E$4,Loads!$CG$4:$EZ$4,0)) -> 65555.05643 | F16: =+INDEX(Loads!$CG:$EZ,MATCH($C16,Loads!$D:$D,0),MATCH(F$4,Loads!$CG$4:$EZ$4,0)) -> 70345.19966 | G16: =+INDEX(Loads!$CG:$EZ,MATCH($C16,Loads!$D:$D,0),MATCH(G$4,Loads!$CG$4:$EZ$4,0)) -> 67084.56792 | H16: =+INDEX(Loads!$CG:$EZ,MATCH($C16,Loads!$D:$D,0),MATCH(H$4,Loads!$CG$4:$EZ$4,0)) -> 60610.62154 | I16: =+INDEX(Loads!$CG:$EZ,MATCH($C16,Loads!$D:$D,0),MATCH(I$4,Loads!$CG$4:$EZ$4,0)) -> 66738.69605 | J16: =+INDEX(Loads!$CG:$EZ,MATCH($C16,Loads!$D:$D,0),MATCH(J$4,Loads!$CG$4:$EZ$4,0)) -> 62040.11765 | K16: =+INDEX(Loads!$CG:$EZ,MATCH($C16,Loads!$D:$D,0),MATCH(K$4,Loads!$CG$4:$EZ$4,0)) -> 67047.11337 | L16: =+INDEX(Loads!$CG:$EZ,MATCH($C16,Loads!$D:$D,0),MATCH(L$4,Loads!$CG$4:$EZ$4,0)) -> 65311.09563 | M16: =+INDEX(Loads!$CG:$EZ,MATCH($C16,Loads!$D:$D,0),MATCH(M$4,Loads!$CG$4:$EZ$4,0)) -> 67104.28085 | N16: =+INDEX(Loads!$CG:$EZ,MATCH($C16,Loads!$D:$D,0),MATCH(N$4,Loads!$CG$4:$EZ$4,0)) -> 63789.93443 | O16: =+INDEX(Loads!$CG:$EZ,MATCH($C16,Loads!$D:$D,0),MATCH(O$4,Loads!$CG$4:$EZ$4,0)) -> 68811.71485 | P16: =+INDEX(Loads!$CG:$EZ,MATCH($C16,Loads!$D:$D,0),MATCH(P$4,Loads!$CG$4:$EZ$4,0)) -> 121548.2764 | Q16: =+INDEX(Loads!$CG:$EZ,MATCH($C16,Loads!$D:$D,0),MATCH(Q$4,Loads!$CG$4:$EZ$4,0)) -> 125023.9147 | R16: =+INDEX(Loads!$CG:$EZ,MATCH($C16,Loads!$D:$D,0),MATCH(R$4,Loads!$CG$4:$EZ$4,0)) -> 134048.6431 | S16: =+INDEX(Loads!$CG:$EZ,MATCH($C16,Loads!$D:$D,0),MATCH(S$4,Loads!$CG$4:$EZ$4,0)) -> 127836.5974 | T16: =+INDEX(Loads!$CG:$EZ,MATCH($C16,Loads!$D:$D,0),MATCH(T$4,Loads!$CG$4:$EZ$4,0)) -> 112296.6528 | U16: =+INDEX(Loads!$CG:$EZ,MATCH($C16,Loads!$D:$D,0),MATCH(U$4,Loads!$CG$4:$EZ$4,0)) -> 127345.1417 | V16: =+INDEX(Loads!$CG:$EZ,MATCH($C16,Loads!$D:$D,0),MATCH(V$4,Loads!$CG$4:$EZ$4,0)) -> 118384.8822 | W16: =+INDEX(Loads!$CG:$EZ,MATCH($C16,Loads!$D:$D,0),MATCH(W$4,Loads!$CG$4:$EZ$4,0)) -> 127809.8193 | X16: =+INDEX(Loads!$CG:$EZ,MATCH($C16,Loads!$D:$D,0),MATCH(X$4,Loads!$CG$4:$EZ$4,0)) -> 124619.6866 | Y16: =+INDEX(Loads!$CG:$EZ,MATCH($C16,Loads!$D:$D,0),MATCH(Y$4,Loads!$CG$4:$EZ$4,0)) -> 127850.6912 | Z16: =+INDEX(Loads!$CG:$EZ,MATCH($C16,Loads!$D:$D,0),MATCH(Z$4,Loads!$CG$4:$EZ$4,0)) -> 127819.6849 | AA16: =+INDEX(Loads!$CG:$EZ,MATCH($C16,Loads!$D:$D,0),MATCH(AA$4,Loads!$CG$4:$EZ$4,0)) -> 124778.2413 | AB16: =+INDEX(Loads!$CG:$EZ,MATCH($C16,Loads!$D:$D,0),MATCH(AB$4,Loads!$CG$4:$EZ$4,0)) -> 121548.2764 | AC16: =+INDEX(Loads!$CG:$EZ,MATCH($C16,Loads!$D:$D,0),MATCH(AC$4,Loads!$CG$4:$EZ$4,0)) -> 125023.9147 | AD16: =+INDEX(Loads!$CG:$EZ,MATCH($C16,Loads!$D:$D,0),MATCH(AD$4,Loads!$CG$4:$EZ$4,0)) -> 134048.6431 | AE16: =+INDEX(Loads!$CG:$EZ,MATCH($C16,Loads!$D:$D,0),MATCH(AE$4,Loads!$CG$4:$EZ$4,0)) -> 127836.5974 | AF16: =+INDEX(Loads!$CG:$EZ,MATCH($C16,Loads!$D:$D,0),MATCH(AF$4,Loads!$CG$4:$EZ$4,0)) -> 112296.6528 | AG16: =+INDEX(Loads!$CG:$EZ,MATCH($C16,Loads!$D:$D,0),MATCH(AG$4,Loads!$CG$4:$EZ$4,0)) -> 127345.1417 | AH16: =+INDEX(Loads!$CG:$EZ,MATCH($C16,Loads!$D:$D,0),MATCH(AH$4,Loads!$CG$4:$EZ$4,0)) -> 118384.8822 | AI16: =+INDEX(Loads!$CG:$EZ,MATCH($C16,Loads!$D:$D,0),MATCH(AI$4,Loads!$CG$4:$EZ$4,0)) -> 127809.8193 | AJ16: =+INDEX(Loads!$CG:$EZ,MATCH($C16,Loads!$D:$D,0),MATCH(AJ$4,Loads!$CG$4:$EZ$4,0)) -> 124619.6866 | AK16: =+INDEX(Loads!$CG:$EZ,MATCH($C16,Loads!$D:$D,0),MATCH(AK$4,Loads!$CG$4:$EZ$4,0)) -> 127850.6912 | AL16: =+INDEX(Loads!$CG:$EZ,MATCH($C16,Loads!$D:$D,0),MATCH(AL$4,Loads!$CG$4:$EZ$4,0)) -> 127819.6849 | AM16: =+INDEX(Loads!$CG:$EZ,MATCH($C16,Loads!$D:$D,0),MATCH(AM$4,Loads!$CG$4:$EZ$4,0)) -> 124778.2413 | AN16: =+INDEX(Loads!$CG:$EZ,MATCH($C16,Loads!$D:$D,0),MATCH(AN$4,Loads!$CG$4:$EZ$4,0)) -> 121548.2764 | AO16: =+INDEX(Loads!$CG:$EZ,MATCH($C16,Loads!$D:$D,0),MATCH(AO$4,Loads!$CG$4:$EZ$4,0)) -> 125023.9147 | AP16: =+INDEX(Loads!$CG:$EZ,MATCH($C16,Loads!$D:$D,0),MATCH(AP$4,Loads!$CG$4:$EZ$4,0)) -> 134048.6431 | AQ16: =+INDEX(Loads!$CG:$EZ,MATCH($C16,Loads!$D:$D,0),MATCH(AQ$4,Loads!$CG$4:$EZ$4,0)) -> 127836.5974 | AR16: =+INDEX(Loads!$CG:$EZ,MATCH($C16,Loads!$D:$D,0),MATCH(AR$4,Loads!$CG$4:$EZ$4,0)) -> 112296.6528 | AS16: =+INDEX(Loads!$CG:$EZ,MATCH($C16,Loads!$D:$D,0),MATCH(AS$4,Loads!$CG$4:$EZ$4,0)) -> 127345.1417 | AT16: =+INDEX(Loads!$CG:$EZ,MATCH($C16,Loads!$D:$D,0),MATCH(AT$4,Loads!$CG$4:$EZ$4,0)) -> 118384.8822 | AU16: =+INDEX(Loads!$CG:$EZ,MATCH($C16,Loads!$D:$D,0),MATCH(AU$4,Loads!$CG$4:$EZ$4,0)) -> 127809.8193 | AV16: =+INDEX(Loads!$CG:$EZ,MATCH($C16,Loads!$D:$D,0),MATCH(AV$4,Loads!$CG$4:$EZ$4,0)) -> 124619.6866 | AW16: =+INDEX(Loads!$CG:$EZ,MATCH($C16,Loads!$D:$D,0),MATCH(AW$4,Loads!$CG$4:$EZ$4,0)) -> 127850.6912 | AX16: =+INDEX(Loads!$CG:$EZ,MATCH($C16,Loads!$D:$D,0),MATCH(AX$4,Loads!$CG$4:$EZ$4,0)) -> 127819.6849 | AY16: =+INDEX(Loads!$CG:$EZ,MATCH($C16,Loads!$D:$D,0),MATCH(AY$4,Loads!$CG$4:$EZ$4,0)) -> 124778.2413 | AZ16: =+INDEX(Loads!$CG:$EZ,MATCH($C16,Loads!$D:$D,0),MATCH(AZ$4,Loads!$CG$4:$EZ$4,0)) -> 121548.2764 | BA16: =+INDEX(Loads!$CG:$EZ,MATCH($C16,Loads!$D:$D,0),MATCH(BA$4,Loads!$CG$4:$EZ$4,0)) -> 125023.9147 | BB16: =+INDEX(Loads!$CG:$EZ,MATCH($C16,Loads!$D:$D,0),MATCH(BB$4,Loads!$CG$4:$EZ$4,0)) -> 134048.6431 | BC16: =+INDEX(Loads!$CG:$EZ,MATCH($C16,Loads!$D:$D,0),MATCH(BC$4,Loads!$CG$4:$EZ$4,0)) -> 127836.5974 | BD16: =+INDEX(Loads!$CG:$EZ,MATCH($C16,Loads!$D:$D,0),MATCH(BD$4,Loads!$CG$4:$EZ$4,0)) -> 112296.6528 | BE16: =+INDEX(Loads!$CG:$EZ,MATCH($C16,Loads!$D:$D,0),MATCH(BE$4,Loads!$CG$4:$EZ$4,0)) -> 127345.1417 | BF16: =+INDEX(Loads!$CG:$EZ,MATCH($C16,Loads!$D:$D,0),MATCH(BF$4,Loads!$CG$4:$EZ$4,0)) -> 118384.8822 | BG16: =+INDEX(Loads!$CG:$EZ,MATCH($C16,Loads!$D:$D,0),MATCH(BG$4,Loads!$CG$4:$EZ$4,0)) -> 127809.8193 | BH16: =+INDEX(Loads!$CG:$EZ,MATCH($C16,Loads!$D:$D,0),MATCH(BH$4,Loads!$CG$4:$EZ$4,0)) -> 124619.6866 | BI16: =+INDEX(Loads!$CG:$EZ,MATCH($C16,Loads!$D:$D,0),MATCH(BI$4,Loads!$CG$4:$EZ$4,0)) -> 127850.6912 | BJ16: =+INDEX(Loads!$CG:$EZ,MATCH($C16,Loads!$D:$D,0),MATCH(BJ$4,Loads!$CG$4:$EZ$4,0)) -> 127819.6849 | BK16: =+INDEX(Loads!$CG:$EZ,MATCH($C16,Loads!$D:$D,0),MATCH(BK$4,Loads!$CG$4:$EZ$4,0)) -> 124778.2413 | BL16: =+INDEX(Loads!$CG:$EZ,MATCH($C16,Loads!$D:$D,0),MATCH(BL$4,Loads!$CG$4:$EZ$4,0)) -> 121548.2764 | BM16: =+INDEX(Loads!$CG:$EZ,MATCH($C16,Loads!$D:$D,0),MATCH(BM$4,Loads!$CG$4:$EZ$4,0)) -> 125023.9147 | BN16: =+INDEX(Loads!$CG:$EZ,MATCH($C16,Loads!$D:$D,0),MATCH(BN$4,Loads!$CG$4:$EZ$4,0)) -> 134048.6431 | BO16: =+INDEX(Loads!$CG:$EZ,MATCH($C16,Loads!$D:$D,0),MATCH(BO$4,Loads!$CG$4:$EZ$4,0)) -> 127836.5974 | BP16: =+INDEX(Loads!$CG:$EZ,MATCH($C16,Loads!$D:$D,0),MATCH(BP$4,Loads!$CG$4:$EZ$4,0)) -> 112296.6528 | BQ16: =+INDEX(Loads!$CG:$EZ,MATCH($C16,Loads!$D:$D,0),MATCH(BQ$4,Loads!$CG$4:$EZ$4,0)) -> 127345.1417 | BR16: =+INDEX(Loads!$CG:$EZ,MATCH($C16,Loads!$D:$D,0),MATCH(BR$4,Loads!$CG$4:$EZ$4,0)) -> 118384.8822 | BS16: =+INDEX(Loads!$CG:$EZ,MATCH($C16,Loads!$D:$D,0),MATCH(BS$4,Loads!$CG$4:$EZ$4,0)) -> 127809.8193 | BT16: =+INDEX(Loads!$CG:$EZ,MATCH($C16,Loads!$D:$D,0),MATCH(BT$4,Loads!$CG$4:$EZ$4,0)) -> 124619.6866 | BU16: =+INDEX(Loads!$CG:$EZ,MATCH($C16,Loads!$D:$D,0),MATCH(BU$4,Loads!$CG$4:$EZ$4,0)) -> 127850.6912 | BV16: =+INDEX(Loads!$CG:$EZ,MATCH($C16,Loads!$D:$D,0),MATCH(BV$4,Loads!$CG$4:$EZ$4,0)) -> 127819.6849 | BW16: =+INDEX(Loads!$CG:$EZ,MATCH($C16,Loads!$D:$D,0),MATCH(BW$4,Loads!$CG$4:$EZ$4,0)) -> 124778.2413
B17: Demand
D18: =+INDEX(TRM_Billing!$Q$6:$Q$149,MATCH(D$4,TRM_Billing!$K$6:$K$149,0),1)/1000 -> 273.4729611 | E18: =+INDEX(TRM_Billing!$Q$6:$Q$149,MATCH(E$4,TRM_Billing!$K$6:$K$149,0),1)/1000 -> 339.13344 | F18: =+INDEX(TRM_Billing!$Q$6:$Q$149,MATCH(F$4,TRM_Billing!$K$6:$K$149,0),1)/1000 -> 610.434965 | G18: =+INDEX(TRM_Billing!$Q$6:$Q$149,MATCH(G$4,TRM_Billing!$K$6:$K$149,0),1)/1000 -> 590.1100538 | H18: =+INDEX(TRM_Billing!$Q$6:$Q$149,MATCH(H$4,TRM_Billing!$K$6:$K$149,0),1)/1000 -> 399.4337275 | I18: =+INDEX(TRM_Billing!$Q$6:$Q$149,MATCH(I$4,TRM_Billing!$K$6:$K$149,0),1)/1000 -> 533.4899981 | J18: =+INDEX(TRM_Billing!$Q$6:$Q$149,MATCH(J$4,TRM_Billing!$K$6:$K$149,0),1)/1000 -> 598.6488005 | K18: =+INDEX(TRM_Billing!$Q$6:$Q$149,MATCH(K$4,TRM_Billing!$K$6:$K$149,0),1)/1000 -> 431.5263154 | L18: =+INDEX(TRM_Billing!$Q$6:$Q$149,MATCH(L$4,TRM_Billing!$K$6:$K$149,0),1)/1000 -> 573.24317 | M18: =+INDEX(TRM_Billing!$Q$6:$Q$149,MATCH(M$4,TRM_Billing!$K$6:$K$149,0),1)/1000 -> 674.854162 | N18: =+INDEX(TRM_Billing!$Q$6:$Q$149,MATCH(N$4,TRM_Billing!$K$6:$K$149,0),1)/1000 -> 735.1391907 | O18: =+INDEX(TRM_Billing!$Q$6:$Q$149,MATCH(O$4,TRM_Billing!$K$6:$K$149,0),1)/1000 -> 414.5037099 | P18: =+INDEX(TRM_Billing!$Q$6:$Q$149,MATCH(P$4,TRM_Billing!$K$6:$K$149,0),1)/1000 -> 381.4791875 | Q18: =+INDEX(TRM_Billing!$Q$6:$Q$149,MATCH(Q$4,TRM_Billing!$K$6:$K$149,0),1)/1000 -> 350.6853225 | R18: =+INDEX(TRM_Billing!$Q$6:$Q$149,MATCH(R$4,TRM_Billing!$K$6:$K$149,0),1)/1000 -> 617.14974 | S18: =+INDEX(TRM_Billing!$Q$6:$Q$149,MATCH(S$4,TRM_Billing!$K$6:$K$149,0),1)/1000 -> 601.8450933 | T18: =+INDEX(TRM_Billing!$Q$6:$Q$149,MATCH(T$4,TRM_Billing!$K$6:$K$149,0),1)/1000 -> 381.4225115 | U18: =+INDEX(TRM_Billing!$Q$6:$Q$149,MATCH(U$4,TRM_Billing!$K$6:$K$149,0),1)/1000 -> 539.5556803 | V18: =+INDEX(TRM_Billing!$Q$6:$Q$149,MATCH(V$4,TRM_Billing!$K$6:$K$149,0),1)/1000 -> 639.9509495 | W18: =+INDEX(TRM_Billing!$Q$6:$Q$149,MATCH(W$4,TRM_Billing!$K$6:$K$149,0),1)/1000 -> 454.2321226 | X18: =+INDEX(TRM_Billing!$Q$6:$Q$149,MATCH(X$4,TRM_Billing!$K$6:$K$149,0),1)/1000 -> 579.8869575 | Y18: =+INDEX(TRM_Billing!$Q$6:$Q$149,MATCH(Y$4,TRM_Billing!$K$6:$K$149,0),1)/1000 -> 750.4469 | Z18: =+INDEX(TRM_Billing!$Q$6:$Q$149,MATCH(Z$4,TRM_Billing!$K$6:$K$149,0),1)/1000 -> 670.7999192 | AA18: =+INDEX(TRM_Billing!$Q$6:$Q$149,MATCH(AA$4,TRM_Billing!$K$6:$K$149,0),1)/1000 -> 484.3162325 | AB18: =+INDEX(TRM_Billing!$Q$6:$Q$149,MATCH(AB$4,TRM_Billing!$K$6:$K$149,0),1)/1000 -> 280.268387 | AC18: =+INDEX(TRM_Billing!$Q$6:$Q$149,MATCH(AC$4,TRM_Billing!$K$6:$K$149,0),1)/1000 -> 298.8409775 | AD18: =+INDEX(TRM_Billing!$Q$6:$Q$149,MATCH(AD$4,TRM_Billing!$K$6:$K$149,0),1)/1000 -> 542.57529 | AE18: =+INDEX(TRM_Billing!$Q$6:$Q$149,MATCH(AE$4,TRM_Billing!$K$6:$K$149,0),1)/1000 -> 590.3186635 | AF18: =+INDEX(TRM_Billing!$Q$6:$Q$149,MATCH(AF$4,TRM_Billing!$K$6:$K$149,0),1)/1000 -> 412.1137625 | AG18: =+INDEX(TRM_Billing!$Q$6:$Q$149,MATCH(AG$4,TRM_Billing!$K$6:$K$149,0),1)/1000 -> 514.9580409 | AH18: =+INDEX(TRM_Billing!$Q$6:$Q$149,MATCH(AH$4,TRM_Billing!$K$6:$K$149,0),1)/1000 -> 514.2077909 | AI18: =+INDEX(TRM_Billing!$Q$6:$Q$149,MATCH(AI$4,TRM_Billing!$K$6:$K$149,0),1)/1000 -> 386.4144495 | AJ18: =+INDEX(TRM_Billing!$Q$6:$Q$149,MATCH(AJ$4,TRM_Billing!$K$6:$K$149,0),1)/1000 -> 498.640715 | AK18: =+INDEX(TRM_Billing!$Q$6:$Q$149,MATCH(AK$4,TRM_Billing!$K$6:$K$149,0),1)/1000 -> 608.4289519 | AL18: =+INDEX(TRM_Billing!$Q$6:$Q$149,MATCH(AL$4,TRM_Billing!$K$6:$K$149,0),1)/1000 -> 679.098088 | AM18: =+INDEX(TRM_Billing!$Q$6:$Q$149,MATCH(AM$4,TRM_Billing!$K$6:$K$149,0),1)/1000 -> 372.4832057 | AN18: =+INDEX(TRM_Billing!$Q$6:$Q$149,MATCH(AN$4,TRM_Billing!$K$6:$K$149,0),1)/1000 -> 369.2565671 | AO18: =+INDEX(TRM_Billing!$Q$6:$Q$149,MATCH(AO$4,TRM_Billing!$K$6:$K$149,0),1)/1000 -> 320.80236 | AP18: =+INDEX(TRM_Billing!$Q$6:$Q$149,MATCH(AP$4,TRM_Billing!$K$6:$K$149,0),1)/1000 -> 580.91921 | AQ18: =+INDEX(TRM_Billing!$Q$6:$Q$149,MATCH(AQ$4,TRM_Billing!$K$6:$K$149,0),1)/1000 -> 609.5022524 | AR18: =+INDEX(TRM_Billing!$Q$6:$Q$149,MATCH(AR$4,TRM_Billing!$K$6:$K$149,0),1)/1000 -> 416.0656146 | AS18: =+INDEX(TRM_Billing!$Q$6:$Q$149,MATCH(AS$4,TRM_Billing!$K$6:$K$149,0),1)/1000 -> 536.6209784 | AT18: =+INDEX(TRM_Billing!$Q$6:$Q$149,MATCH(AT$4,TRM_Billing!$K$6:$K$149,0),1)/1000 -> 570.5304183 | AU18: =+INDEX(TRM_Billing!$Q$6:$Q$149,MATCH(AU$4,TRM_Billing!$K$6:$K$149,0),1)/1000 -> 412.1016779 | AV18: =+INDEX(TRM_Billing!$Q$6:$Q$149,MATCH(AV$4,TRM_Billing!$K$6:$K$149,0),1)/1000 -> 506.570045 | AW18: =+INDEX(TRM_Billing!$Q$6:$Q$149,MATCH(AW$4,TRM_Billing!$K$6:$K$149,0),1)/1000 -> 673.2420313 | AX18: =+INDEX(TRM_Billing!$Q$6:$Q$149,MATCH(AX$4,TRM_Billing!$K$6:$K$149,0),1)/1000 -> 627.2703438 | AY18: =+INDEX(TRM_Billing!$Q$6:$Q$149,MATCH(AY$4,TRM_Billing!$K$6:$K$149,0),1)/1000 -> 482.7404525 | AZ18: =+INDEX(TRM_Billing!$Q$6:$Q$149,MATCH(AZ$4,TRM_Billing!$K$6:$K$149,0),1)/1000 -> 280.268387 | BA18: =+INDEX(TRM_Billing!$Q$6:$Q$149,MATCH(BA$4,TRM_Billing!$K$6:$K$149,0),1)/1000 -> 298.8409775 | BB18: =+INDEX(TRM_Billing!$Q$6:$Q$149,MATCH(BB$4,TRM_Billing!$K$6:$K$149,0),1)/1000 -> 542.57529 | BC18: =+INDEX(TRM_Billing!$Q$6:$Q$149,MATCH(BC$4,TRM_Billing!$K$6:$K$149,0),1)/1000 -> 590.3186635 | BD18: =+INDEX(TRM_Billing!$Q$6:$Q$149,MATCH(BD$4,TRM_Billing!$K$6:$K$149,0),1)/1000 -> 412.1137625 | BE18: =+INDEX(TRM_Billing!$Q$6:$Q$149,MATCH(BE$4,TRM_Billing!$K$6:$K$149,0),1)/1000 -> 514.9580409 | BF18: =+INDEX(TRM_Billing!$Q$6:$Q$149,MATCH(BF$4,TRM_Billing!$K$6:$K$149,0),1)/1000 -> 514.2077909 | BG18: =+INDEX(TRM_Billing!$Q$6:$Q$149,MATCH(BG$4,TRM_Billing!$K$6:$K$149,0),1)/1000 -> 386.4144495 | BH18: =+INDEX(TRM_Billing!$Q$6:$Q$149,MATCH(BH$4,TRM_Billing!$K$6:$K$149,0),1)/1000 -> 498.640715 | BI18: =+INDEX(TRM_Billing!$Q$6:$Q$149,MATCH(BI$4,TRM_Billing!$K$6:$K$149,0),1)/1000 -> 608.4289519 | BJ18: =+INDEX(TRM_Billing!$Q$6:$Q$149,MATCH(BJ$4,TRM_Billing!$K$6:$K$149,0),1)/1000 -> 679.098088 | BK18: =+INDEX(TRM_Billing!$Q$6:$Q$149,MATCH(BK$4,TRM_Billing!$K$6:$K$149,0),1)/1000 -> 372.4832057 | BL18: =+INDEX(TRM_Billing!$Q$6:$Q$149,MATCH(BL$4,TRM_Billing!$K$6:$K$149,0),1)/1000 -> 369.2565671 | BM18: =+INDEX(TRM_Billing!$Q$6:$Q$149,MATCH(BM$4,TRM_Billing!$K$6:$K$149,0),1)/1000 -> 320.80236 | BN18: =+INDEX(TRM_Billing!$Q$6:$Q$149,MATCH(BN$4,TRM_Billing!$K$6:$K$149,0),1)/1000 -> 580.91921 | BO18: =+INDEX(TRM_Billing!$Q$6:$Q$149,MATCH(BO$4,TRM_Billing!$K$6:$K$149,0),1)/1000 -> 609.5022524 | BP18: =+INDEX(TRM_Billing!$Q$6:$Q$149,MATCH(BP$4,TRM_Billing!$K$6:$K$149,0),1)/1000 -> 416.0656146 | BQ18: =+INDEX(TRM_Billing!$Q$6:$Q$149,MATCH(BQ$4,TRM_Billing!$K$6:$K$149,0),1)/1000 -> 536.6209784 | BR18: =+INDEX(TRM_Billing!$Q$6:$Q$149,MATCH(BR$4,TRM_Billing!$K$6:$K$149,0),1)/1000 -> 570.5304183 | BS18: =+INDEX(TRM_Billing!$Q$6:$Q$149,MATCH(BS$4,TRM_Billing!$K$6:$K$149,0),1)/1000 -> 412.1016779 | BT18: =+INDEX(TRM_Billing!$Q$6:$Q$149,MATCH(BT$4,TRM_Billing!$K$6:$K$149,0),1)/1000 -> 506.570045 | BU18: =+INDEX(TRM_Billing!$Q$6:$Q$149,MATCH(BU$4,TRM_Billing!$K$6:$K$149,0),1)/1000 -> 673.2420313 | BV18: =+INDEX(TRM_Billing!$Q$6:$Q$149,MATCH(BV$4,TRM_Billing!$K$6:$K$149,0),1)/1000 -> 627.2703438 | BW18: =+INDEX(TRM_Billing!$Q$6:$Q$149,MATCH(BW$4,TRM_Billing!$K$6:$K$149,0),1)/1000 -> 482.7404525
B19: Load Shaping
C20: HLH | D20: =+INDEX(TRM_Billing!$R$6:$R$149,IF($C20="HLH",MATCH(D$4,TRM_Billing!$K$6:$K$149,0),MATCH(D$4,TRM_Billing!$K$6:$K$149,0)+1),1) -> 195370.0469 | E20: =+INDEX(TRM_Billing!$R$6:$R$149,IF($C20="HLH",MATCH(E$4,TRM_Billing!$K$6:$K$149,0),MATCH(E$4,TRM_Billing!$K$6:$K$149,0)+1),1) -> -64109.15324 | F20: =+INDEX(TRM_Billing!$R$6:$R$149,IF($C20="HLH",MATCH(F$4,TRM_Billing!$K$6:$K$149,0),MATCH(F$4,TRM_Billing!$K$6:$K$149,0)+1),1) -> 165559.6749 | G20: =+INDEX(TRM_Billing!$R$6:$R$149,IF($C20="HLH",MATCH(G$4,TRM_Billing!$K$6:$K$149,0),MATCH(G$4,TRM_Billing!$K$6:$K$149,0)+1),1) -> 111159.8726 | H20: =+INDEX(TRM_Billing!$R$6:$R$149,IF($C20="HLH",MATCH(H$4,TRM_Billing!$K$6:$K$149,0),MATCH(H$4,TRM_Billing!$K$6:$K$149,0)+1),1) -> 36539.96668 | I20: =+INDEX(TRM_Billing!$R$6:$R$149,IF($C20="HLH",MATCH(I$4,TRM_Billing!$K$6:$K$149,0),MATCH(I$4,TRM_Billing!$K$6:$K$149,0)+1),1) -> -122838.8597 | J20: =+INDEX(TRM_Billing!$R$6:$R$149,IF($C20="HLH",MATCH(J$4,TRM_Billing!$K$6:$K$149,0),MATCH(J$4,TRM_Billing!$K$6:$K$149,0)+1),1) -> 44514.39593 | K20: =+INDEX(TRM_Billing!$R$6:$R$149,IF($C20="HLH",MATCH(K$4,TRM_Billing!$K$6:$K$149,0),MATCH(K$4,TRM_Billing!$K$6:$K$149,0)+1),1) -> -586407.4882 | L20: =+INDEX(TRM_Billing!$R$6:$R$149,IF($C20="HLH",MATCH(L$4,TRM_Billing!$K$6:$K$149,0),MATCH(L$4,TRM_Billing!$K$6:$K$149,0)+1),1) -> -726747.4809 | M20: =+INDEX(TRM_Billing!$R$6:$R$149,IF($C20="HLH",MATCH(M$4,TRM_Billing!$K$6:$K$149,0),MATCH(M$4,TRM_Billing!$K$6:$K$149,0)+1),1) -> -82673.5289 | N20: =+INDEX(TRM_Billing!$R$6:$R$149,IF($C20="HLH",MATCH(N$4,TRM_Billing!$K$6:$K$149,0),MATCH(N$4,TRM_Billing!$K$6:$K$149,0)+1),1) -> 31699.05615 | O20: =+INDEX(TRM_Billing!$R$6:$R$149,IF($C20="HLH",MATCH(O$4,TRM_Billing!$K$6:$K$149,0),MATCH(O$4,TRM_Billing!$K$6:$K$149,0)+1),1) -> 50115.64395 | P20: =+INDEX(TRM_Billing!$R$6:$R$149,IF($C20="HLH",MATCH(P$4,TRM_Billing!$K$6:$K$149,0),MATCH(P$4,TRM_Billing!$K$6:$K$149,0)+1),1) -> 229530.0356 | Q20: =+INDEX(TRM_Billing!$R$6:$R$149,IF($C20="HLH",MATCH(Q$4,TRM_Billing!$K$6:$K$149,0),MATCH(Q$4,TRM_Billing!$K$6:$K$149,0)+1),1) -> -64990.23318 | R20: =+INDEX(TRM_Billing!$R$6:$R$149,IF($C20="HLH",MATCH(R$4,TRM_Billing!$K$6:$K$149,0),MATCH(R$4,TRM_Billing!$K$6:$K$149,0)+1),1) -> 163529.6075 | S20: =+INDEX(TRM_Billing!$R$6:$R$149,IF($C20="HLH",MATCH(S$4,TRM_Billing!$K$6:$K$149,0),MATCH(S$4,TRM_Billing!$K$6:$K$149,0)+1),1) -> 112974.2149 | T20: =+INDEX(TRM_Billing!$R$6:$R$149,IF($C20="HLH",MATCH(T$4,TRM_Billing!$K$6:$K$149,0),MATCH(T$4,TRM_Billing!$K$6:$K$149,0)+1),1) -> 83554.89692 | U20: =+INDEX(TRM_Billing!$R$6:$R$149,IF($C20="HLH",MATCH(U$4,TRM_Billing!$K$6:$K$149,0),MATCH(U$4,TRM_Billing!$K$6:$K$149,0)+1),1) -> -120687.6205 | V20: =+INDEX(TRM_Billing!$R$6:$R$149,IF($C20="HLH",MATCH(V$4,TRM_Billing!$K$6:$K$149,0),MATCH(V$4,TRM_Billing!$K$6:$K$149,0)+1),1) -> 50663.70828 | W20: =+INDEX(TRM_Billing!$R$6:$R$149,IF($C20="HLH",MATCH(W$4,TRM_Billing!$K$6:$K$149,0),MATCH(W$4,TRM_Billing!$K$6:$K$149,0)+1),1) -> -583431.1601 | X20: =+INDEX(TRM_Billing!$R$6:$R$149,IF($C20="HLH",MATCH(X$4,TRM_Billing!$K$6:$K$149,0),MATCH(X$4,TRM_Billing!$K$6:$K$149,0)+1),1) -> -721567.7563 | Y20: =+INDEX(TRM_Billing!$R$6:$R$149,IF($C20="HLH",MATCH(Y$4,TRM_Billing!$K$6:$K$149,0),MATCH(Y$4,TRM_Billing!$K$6:$K$149,0)+1),1) -> -75783.56929 | Z20: =+INDEX(TRM_Billing!$R$6:$R$149,IF($C20="HLH",MATCH(Z$4,TRM_Billing!$K$6:$K$149,0),MATCH(Z$4,TRM_Billing!$K$6:$K$149,0)+1),1) -> 13747.47122 | AA20: =+INDEX(TRM_Billing!$R$6:$R$149,IF($C20="HLH",MATCH(AA$4,TRM_Billing!$K$6:$K$149,0),MATCH(AA$4,TRM_Billing!$K$6:$K$149,0)+1),1) -> 77552.12651 | AB20: =+INDEX(TRM_Billing!$R$6:$R$149,IF($C20="HLH",MATCH(AB$4,TRM_Billing!$K$6:$K$149,0),MATCH(AB$4,TRM_Billing!$K$6:$K$149,0)+1),1) -> 178388.5448 | AC20: =+INDEX(TRM_Billing!$R$6:$R$149,IF($C20="HLH",MATCH(AC$4,TRM_Billing!$K$6:$K$149,0),MATCH(AC$4,TRM_Billing!$K$6:$K$149,0)+1),1) -> -57605.47467 | AD20: =+INDEX(TRM_Billing!$R$6:$R$149,IF($C20="HLH",MATCH(AD$4,TRM_Billing!$K$6:$K$149,0),MATCH(AD$4,TRM_Billing!$K$6:$K$149,0)+1),1) -> 141655.0818 | AE20: =+INDEX(TRM_Billing!$R$6:$R$149,IF($C20="HLH",MATCH(AE$4,TRM_Billing!$K$6:$K$149,0),MATCH(AE$4,TRM_Billing!$K$6:$K$149,0)+1),1) -> 102507.8338 | AF20: =+INDEX(TRM_Billing!$R$6:$R$149,IF($C20="HLH",MATCH(AF$4,TRM_Billing!$K$6:$K$149,0),MATCH(AF$4,TRM_Billing!$K$6:$K$149,0)+1),1) -> 26156.18671 | AG20: =+INDEX(TRM_Billing!$R$6:$R$149,IF($C20="HLH",MATCH(AG$4,TRM_Billing!$K$6:$K$149,0),MATCH(AG$4,TRM_Billing!$K$6:$K$149,0)+1),1) -> -140037.6094 | AH20: =+INDEX(TRM_Billing!$R$6:$R$149,IF($C20="HLH",MATCH(AH$4,TRM_Billing!$K$6:$K$149,0),MATCH(AH$4,TRM_Billing!$K$6:$K$149,0)+1),1) -> 33554.40351 | AI20: =+INDEX(TRM_Billing!$R$6:$R$149,IF($C20="HLH",MATCH(AI$4,TRM_Billing!$K$6:$K$149,0),MATCH(AI$4,TRM_Billing!$K$6:$K$149,0)+1),1) -> -579882.8071 | AJ20: =+INDEX(TRM_Billing!$R$6:$R$149,IF($C20="HLH",MATCH(AJ$4,TRM_Billing!$K$6:$K$149,0),MATCH(AJ$4,TRM_Billing!$K$6:$K$149,0)+1),1) -> -725398.3413 | AK20: =+INDEX(TRM_Billing!$R$6:$R$149,IF($C20="HLH",MATCH(AK$4,TRM_Billing!$K$6:$K$149,0),MATCH(AK$4,TRM_Billing!$K$6:$K$149,0)+1),1) -> -96048.31187 | AL20: =+INDEX(TRM_Billing!$R$6:$R$149,IF($C20="HLH",MATCH(AL$4,TRM_Billing!$K$6:$K$149,0),MATCH(AL$4,TRM_Billing!$K$6:$K$149,0)+1),1) -> 15108.65344 | AM20: =+INDEX(TRM_Billing!$R$6:$R$149,IF($C20="HLH",MATCH(AM$4,TRM_Billing!$K$6:$K$149,0),MATCH(AM$4,TRM_Billing!$K$6:$K$149,0)+1),1) -> 11080.53495 | AN20: =+INDEX(TRM_Billing!$R$6:$R$149,IF($C20="HLH",MATCH(AN$4,TRM_Billing!$K$6:$K$149,0),MATCH(AN$4,TRM_Billing!$K$6:$K$149,0)+1),1) -> 223650.6514 | AO20: =+INDEX(TRM_Billing!$R$6:$R$149,IF($C20="HLH",MATCH(AO$4,TRM_Billing!$K$6:$K$149,0),MATCH(AO$4,TRM_Billing!$K$6:$K$149,0)+1),1) -> -57741.36138 | AP20: =+INDEX(TRM_Billing!$R$6:$R$149,IF($C20="HLH",MATCH(AP$4,TRM_Billing!$K$6:$K$149,0),MATCH(AP$4,TRM_Billing!$K$6:$K$149,0)+1),1) -> 140752.1029 | AQ20: =+INDEX(TRM_Billing!$R$6:$R$149,IF($C20="HLH",MATCH(AQ$4,TRM_Billing!$K$6:$K$149,0),MATCH(AQ$4,TRM_Billing!$K$6:$K$149,0)+1),1) -> 105635.536 | AR20: =+INDEX(TRM_Billing!$R$6:$R$149,IF($C20="HLH",MATCH(AR$4,TRM_Billing!$K$6:$K$149,0),MATCH(AR$4,TRM_Billing!$K$6:$K$149,0)+1),1) -> 73025.09397 | AS20: =+INDEX(TRM_Billing!$R$6:$R$149,IF($C20="HLH",MATCH(AS$4,TRM_Billing!$K$6:$K$149,0),MATCH(AS$4,TRM_Billing!$K$6:$K$149,0)+1),1) -> -136949.4789 | AT20: =+INDEX(TRM_Billing!$R$6:$R$149,IF($C20="HLH",MATCH(AT$4,TRM_Billing!$K$6:$K$149,0),MATCH(AT$4,TRM_Billing!$K$6:$K$149,0)+1),1) -> 40289.02376 | AU20: =+INDEX(TRM_Billing!$R$6:$R$149,IF($C20="HLH",MATCH(AU$4,TRM_Billing!$K$6:$K$149,0),MATCH(AU$4,TRM_Billing!$K$6:$K$149,0)+1),1) -> -575909.7369 | AV20: =+INDEX(TRM_Billing!$R$6:$R$149,IF($C20="HLH",MATCH(AV$4,TRM_Billing!$K$6:$K$149,0),MATCH(AV$4,TRM_Billing!$K$6:$K$149,0)+1),1) -> -720715.1401 | AW20: =+INDEX(TRM_Billing!$R$6:$R$149,IF($C20="HLH",MATCH(AW$4,TRM_Billing!$K$6:$K$149,0),MATCH(AW$4,TRM_Billing!$K$6:$K$149,0)+1),1) -> -89449.61002 | AX20: =+INDEX(TRM_Billing!$R$6:$R$149,IF($C20="HLH",MATCH(AX$4,TRM_Billing!$K$6:$K$149,0),MATCH(AX$4,TRM_Billing!$K$6:$K$149,0)+1),1) -> -19943.47018 | AY20: =+INDEX(TRM_Billing!$R$6:$R$149,IF($C20="HLH",MATCH(AY$4,TRM_Billing!$K$6:$K$149,0),MATCH(AY$4,TRM_Billing!$K$6:$K$149,0)+1),1) -> 53167.76818 | AZ20: =+INDEX(TRM_Billing!$R$6:$R$149,IF($C20="HLH",MATCH(AZ$4,TRM_Billing!$K$6:$K$149,0),MATCH(AZ$4,TRM_Billing!$K$6:$K$149,0)+1),1) -> 178388.5448 | BA20: =+INDEX(TRM_Billing!$R$6:$R$149,IF($C20="HLH",MATCH(BA$4,TRM_Billing!$K$6:$K$149,0),MATCH(BA$4,TRM_Billing!$K$6:$K$149,0)+1),1) -> -57605.47467 | BB20: =+INDEX(TRM_Billing!$R$6:$R$149,IF($C20="HLH",MATCH(BB$4,TRM_Billing!$K$6:$K$149,0),MATCH(BB$4,TRM_Billing!$K$6:$K$149,0)+1),1) -> 141655.0818 | BC20: =+INDEX(TRM_Billing!$R$6:$R$149,IF($C20="HLH",MATCH(BC$4,TRM_Billing!$K$6:$K$149,0),MATCH(BC$4,TRM_Billing!$K$6:$K$149,0)+1),1) -> 102507.8338 | BD20: =+INDEX(TRM_Billing!$R$6:$R$149,IF($C20="HLH",MATCH(BD$4,TRM_Billing!$K$6:$K$149,0),MATCH(BD$4,TRM_Billing!$K$6:$K$149,0)+1),1) -> 26156.18671 | BE20: =+INDEX(TRM_Billing!$R$6:$R$149,IF($C20="HLH",MATCH(BE$4,TRM_Billing!$K$6:$K$149,0),MATCH(BE$4,TRM_Billing!$K$6:$K$149,0)+1),1) -> -140037.6094 | BF20: =+INDEX(TRM_Billing!$R$6:$R$149,IF($C20="HLH",MATCH(BF$4,TRM_Billing!$K$6:$K$149,0),MATCH(BF$4,TRM_Billing!$K$6:$K$149,0)+1),1) -> 33554.40351 | BG20: =+INDEX(TRM_Billing!$R$6:$R$149,IF($C20="HLH",MATCH(BG$4,TRM_Billing!$K$6:$K$149,0),MATCH(BG$4,TRM_Billing!$K$6:$K$149,0)+1),1) -> -579882.8071 | BH20: =+INDEX(TRM_Billing!$R$6:$R$149,IF($C20="HLH",MATCH(BH$4,TRM_Billing!$K$6:$K$149,0),MATCH(BH$4,TRM_Billing!$K$6:$K$149,0)+1),1) -> -725398.3413 | BI20: =+INDEX(TRM_Billing!$R$6:$R$149,IF($C20="HLH",MATCH(BI$4,TRM_Billing!$K$6:$K$149,0),MATCH(BI$4,TRM_Billing!$K$6:$K$149,0)+1),1) -> -96048.31187 | BJ20: =+INDEX(TRM_Billing!$R$6:$R$149,IF($C20="HLH",MATCH(BJ$4,TRM_Billing!$K$6:$K$149,0),MATCH(BJ$4,TRM_Billing!$K$6:$K$149,0)+1),1) -> 15108.65344 | BK20: =+INDEX(TRM_Billing!$R$6:$R$149,IF($C20="HLH",MATCH(BK$4,TRM_Billing!$K$6:$K$149,0),MATCH(BK$4,TRM_Billing!$K$6:$K$149,0)+1),1) -> 11080.53495 | BL20: =+INDEX(TRM_Billing!$R$6:$R$149,IF($C20="HLH",MATCH(BL$4,TRM_Billing!$K$6:$K$149,0),MATCH(BL$4,TRM_Billing!$K$6:$K$149,0)+1),1) -> 223650.6514 | BM20: =+INDEX(TRM_Billing!$R$6:$R$149,IF($C20="HLH",MATCH(BM$4,TRM_Billing!$K$6:$K$149,0),MATCH(BM$4,TRM_Billing!$K$6:$K$149,0)+1),1) -> -57741.36138 | BN20: =+INDEX(TRM_Billing!$R$6:$R$149,IF($C20="HLH",MATCH(BN$4,TRM_Billing!$K$6:$K$149,0),MATCH(BN$4,TRM_Billing!$K$6:$K$149,0)+1),1) -> 140752.1029 | BO20: =+INDEX(TRM_Billing!$R$6:$R$149,IF($C20="HLH",MATCH(BO$4,TRM_Billing!$K$6:$K$149,0),MATCH(BO$4,TRM_Billing!$K$6:$K$149,0)+1),1) -> 105635.536 | BP20: =+INDEX(TRM_Billing!$R$6:$R$149,IF($C20="HLH",MATCH(BP$4,TRM_Billing!$K$6:$K$149,0),MATCH(BP$4,TRM_Billing!$K$6:$K$149,0)+1),1) -> 73025.09397 | BQ20: =+INDEX(TRM_Billing!$R$6:$R$149,IF($C20="HLH",MATCH(BQ$4,TRM_Billing!$K$6:$K$149,0),MATCH(BQ$4,TRM_Billing!$K$6:$K$149,0)+1),1) -> -136949.4789 | BR20: =+INDEX(TRM_Billing!$R$6:$R$149,IF($C20="HLH",MATCH(BR$4,TRM_Billing!$K$6:$K$149,0),MATCH(BR$4,TRM_Billing!$K$6:$K$149,0)+1),1) -> 40289.02376 | BS20: =+INDEX(TRM_Billing!$R$6:$R$149,IF($C20="HLH",MATCH(BS$4,TRM_Billing!$K$6:$K$149,0),MATCH(BS$4,TRM_Billing!$K$6:$K$149,0)+1),1) -> -575909.7369 | BT20: =+INDEX(TRM_Billing!$R$6:$R$149,IF($C20="HLH",MATCH(BT$4,TRM_Billing!$K$6:$K$149,0),MATCH(BT$4,TRM_Billing!$K$6:$K$149,0)+1),1) -> -720715.1401 | BU20: =+INDEX(TRM_Billing!$R$6:$R$149,IF($C20="HLH",MATCH(BU$4,TRM_Billing!$K$6:$K$149,0),MATCH(BU$4,TRM_Billing!$K$6:$K$149,0)+1),1) -> -89449.61002 | BV20: =+INDEX(TRM_Billing!$R$6:$R$149,IF($C20="HLH",MATCH(BV$4,TRM_Billing!$K$6:$K$149,0),MATCH(BV$4,TRM_Billing!$K$6:$K$149,0)+1),1) -> -19943.47018 | BW20: =+INDEX(TRM_Billing!$R$6:$R$149,IF($C20="HLH",MATCH(BW$4,TRM_Billing!$K$6:$K$149,0),MATCH(BW$4,TRM_Billing!$K$6:$K$149,0)+1),1) -> 53167.76818
C21: LLH | D21: =+INDEX(TRM_Billing!$R$6:$R$149,IF($C21="HLH",MATCH(D$4,TRM_Billing!$K$6:$K$149,0),MATCH(D$4,TRM_Billing!$K$6:$K$149,0)+1),1) -> 146771.7368 | E21: =+INDEX(TRM_Billing!$R$6:$R$149,IF($C21="HLH",MATCH(E$4,TRM_Billing!$K$6:$K$149,0),MATCH(E$4,TRM_Billing!$K$6:$K$149,0)+1),1) -> 102091.1792 | F21: =+INDEX(TRM_Billing!$R$6:$R$149,IF($C21="HLH",MATCH(F$4,TRM_Billing!$K$6:$K$149,0),MATCH(F$4,TRM_Billing!$K$6:$K$149,0)+1),1) -> 376171.4136 | G21: =+INDEX(TRM_Billing!$R$6:$R$149,IF($C21="HLH",MATCH(G$4,TRM_Billing!$K$6:$K$149,0),MATCH(G$4,TRM_Billing!$K$6:$K$149,0)+1),1) -> 332597.5451 | H21: =+INDEX(TRM_Billing!$R$6:$R$149,IF($C21="HLH",MATCH(H$4,TRM_Billing!$K$6:$K$149,0),MATCH(H$4,TRM_Billing!$K$6:$K$149,0)+1),1) -> 271724.092 | I21: =+INDEX(TRM_Billing!$R$6:$R$149,IF($C21="HLH",MATCH(I$4,TRM_Billing!$K$6:$K$149,0),MATCH(I$4,TRM_Billing!$K$6:$K$149,0)+1),1) -> 26448.75153 | J21: =+INDEX(TRM_Billing!$R$6:$R$149,IF($C21="HLH",MATCH(J$4,TRM_Billing!$K$6:$K$149,0),MATCH(J$4,TRM_Billing!$K$6:$K$149,0)+1),1) -> 69047.56021 | K21: =+INDEX(TRM_Billing!$R$6:$R$149,IF($C21="HLH",MATCH(K$4,TRM_Billing!$K$6:$K$149,0),MATCH(K$4,TRM_Billing!$K$6:$K$149,0)+1),1) -> -295896.7 | L21: =+INDEX(TRM_Billing!$R$6:$R$149,IF($C21="HLH",MATCH(L$4,TRM_Billing!$K$6:$K$149,0),MATCH(L$4,TRM_Billing!$K$6:$K$149,0)+1),1) -> -321859.3575 | M21: =+INDEX(TRM_Billing!$R$6:$R$149,IF($C21="HLH",MATCH(M$4,TRM_Billing!$K$6:$K$149,0),MATCH(M$4,TRM_Billing!$K$6:$K$149,0)+1),1) -> 132443.9733 | N21: =+INDEX(TRM_Billing!$R$6:$R$149,IF($C21="HLH",MATCH(N$4,TRM_Billing!$K$6:$K$149,0),MATCH(N$4,TRM_Billing!$K$6:$K$149,0)+1),1) -> 94970.36789 | O21: =+INDEX(TRM_Billing!$R$6:$R$149,IF($C21="HLH",MATCH(O$4,TRM_Billing!$K$6:$K$149,0),MATCH(O$4,TRM_Billing!$K$6:$K$149,0)+1),1) -> 107529.4494 | P21: =+INDEX(TRM_Billing!$R$6:$R$149,IF($C21="HLH",MATCH(P$4,TRM_Billing!$K$6:$K$149,0),MATCH(P$4,TRM_Billing!$K$6:$K$149,0)+1),1) -> 114326.0398 | Q21: =+INDEX(TRM_Billing!$R$6:$R$149,IF($C21="HLH",MATCH(Q$4,TRM_Billing!$K$6:$K$149,0),MATCH(Q$4,TRM_Billing!$K$6:$K$149,0)+1),1) -> 101587.4401 | R21: =+INDEX(TRM_Billing!$R$6:$R$149,IF($C21="HLH",MATCH(R$4,TRM_Billing!$K$6:$K$149,0),MATCH(R$4,TRM_Billing!$K$6:$K$149,0)+1),1) -> 377608.6904 | S21: =+INDEX(TRM_Billing!$R$6:$R$149,IF($C21="HLH",MATCH(S$4,TRM_Billing!$K$6:$K$149,0),MATCH(S$4,TRM_Billing!$K$6:$K$149,0)+1),1) -> 334980.9526 | T21: =+INDEX(TRM_Billing!$R$6:$R$149,IF($C21="HLH",MATCH(T$4,TRM_Billing!$K$6:$K$149,0),MATCH(T$4,TRM_Billing!$K$6:$K$149,0)+1),1) -> 300296.8552 | U21: =+INDEX(TRM_Billing!$R$6:$R$149,IF($C21="HLH",MATCH(U$4,TRM_Billing!$K$6:$K$149,0),MATCH(U$4,TRM_Billing!$K$6:$K$149,0)+1),1) -> 28042.89435 | V21: =+INDEX(TRM_Billing!$R$6:$R$149,IF($C21="HLH",MATCH(V$4,TRM_Billing!$K$6:$K$149,0),MATCH(V$4,TRM_Billing!$K$6:$K$149,0)+1),1) -> 73608.48015 | W21: =+INDEX(TRM_Billing!$R$6:$R$149,IF($C21="HLH",MATCH(W$4,TRM_Billing!$K$6:$K$149,0),MATCH(W$4,TRM_Billing!$K$6:$K$149,0)+1),1) -> -294847.354 | X21: =+INDEX(TRM_Billing!$R$6:$R$149,IF($C21="HLH",MATCH(X$4,TRM_Billing!$K$6:$K$149,0),MATCH(X$4,TRM_Billing!$K$6:$K$149,0)+1),1) -> -320694.8923 | Y21: =+INDEX(TRM_Billing!$R$6:$R$149,IF($C21="HLH",MATCH(Y$4,TRM_Billing!$K$6:$K$149,0),MATCH(Y$4,TRM_Billing!$K$6:$K$149,0)+1),1) -> 138259.4986 | Z21: =+INDEX(TRM_Billing!$R$6:$R$149,IF($C21="HLH",MATCH(Z$4,TRM_Billing!$K$6:$K$149,0),MATCH(Z$4,TRM_Billing!$K$6:$K$149,0)+1),1) -> 121447.4028 | AA21: =+INDEX(TRM_Billing!$R$6:$R$149,IF($C21="HLH",MATCH(AA$4,TRM_Billing!$K$6:$K$149,0),MATCH(AA$4,TRM_Billing!$K$6:$K$149,0)+1),1) -> 86840.1978 | AB21: =+INDEX(TRM_Billing!$R$6:$R$149,IF($C21="HLH",MATCH(AB$4,TRM_Billing!$K$6:$K$149,0),MATCH(AB$4,TRM_Billing!$K$6:$K$149,0)+1),1) -> 167747.7289 | AC21: =+INDEX(TRM_Billing!$R$6:$R$149,IF($C21="HLH",MATCH(AC$4,TRM_Billing!$K$6:$K$149,0),MATCH(AC$4,TRM_Billing!$K$6:$K$149,0)+1),1) -> 118029.7302 | AD21: =+INDEX(TRM_Billing!$R$6:$R$149,IF($C21="HLH",MATCH(AD$4,TRM_Billing!$K$6:$K$149,0),MATCH(AD$4,TRM_Billing!$K$6:$K$149,0)+1),1) -> 384458.0349 | AE21: =+INDEX(TRM_Billing!$R$6:$R$149,IF($C21="HLH",MATCH(AE$4,TRM_Billing!$K$6:$K$149,0),MATCH(AE$4,TRM_Billing!$K$6:$K$149,0)+1),1) -> 334007.5599 | AF21: =+INDEX(TRM_Billing!$R$6:$R$149,IF($C21="HLH",MATCH(AF$4,TRM_Billing!$K$6:$K$149,0),MATCH(AF$4,TRM_Billing!$K$6:$K$149,0)+1),1) -> 265386.2215 | AG21: =+INDEX(TRM_Billing!$R$6:$R$149,IF($C21="HLH",MATCH(AG$4,TRM_Billing!$K$6:$K$149,0),MATCH(AG$4,TRM_Billing!$K$6:$K$149,0)+1),1) -> 37328.62535 | AH21: =+INDEX(TRM_Billing!$R$6:$R$149,IF($C21="HLH",MATCH(AH$4,TRM_Billing!$K$6:$K$149,0),MATCH(AH$4,TRM_Billing!$K$6:$K$149,0)+1),1) -> 68851.31899 | AI21: =+INDEX(TRM_Billing!$R$6:$R$149,IF($C21="HLH",MATCH(AI$4,TRM_Billing!$K$6:$K$149,0),MATCH(AI$4,TRM_Billing!$K$6:$K$149,0)+1),1) -> -275360.7236 | AJ21: =+INDEX(TRM_Billing!$R$6:$R$149,IF($C21="HLH",MATCH(AJ$4,TRM_Billing!$K$6:$K$149,0),MATCH(AJ$4,TRM_Billing!$K$6:$K$149,0)+1),1) -> -283717.2803 | AK21: =+INDEX(TRM_Billing!$R$6:$R$149,IF($C21="HLH",MATCH(AK$4,TRM_Billing!$K$6:$K$149,0),MATCH(AK$4,TRM_Billing!$K$6:$K$149,0)+1),1) -> 137695.918 | AL21: =+INDEX(TRM_Billing!$R$6:$R$149,IF($C21="HLH",MATCH(AL$4,TRM_Billing!$K$6:$K$149,0),MATCH(AL$4,TRM_Billing!$K$6:$K$149,0)+1),1) -> 101185.9193 | AM21: =+INDEX(TRM_Billing!$R$6:$R$149,IF($C21="HLH",MATCH(AM$4,TRM_Billing!$K$6:$K$149,0),MATCH(AM$4,TRM_Billing!$K$6:$K$149,0)+1),1) -> 126848.0504 | AN21: =+INDEX(TRM_Billing!$R$6:$R$149,IF($C21="HLH",MATCH(AN$4,TRM_Billing!$K$6:$K$149,0),MATCH(AN$4,TRM_Billing!$K$6:$K$149,0)+1),1) -> 125400.177 | AO21: =+INDEX(TRM_Billing!$R$6:$R$149,IF($C21="HLH",MATCH(AO$4,TRM_Billing!$K$6:$K$149,0),MATCH(AO$4,TRM_Billing!$K$6:$K$149,0)+1),1) -> 117976.6606 | AP21: =+INDEX(TRM_Billing!$R$6:$R$149,IF($C21="HLH",MATCH(AP$4,TRM_Billing!$K$6:$K$149,0),MATCH(AP$4,TRM_Billing!$K$6:$K$149,0)+1),1) -> 386639.3326 | AQ21: =+INDEX(TRM_Billing!$R$6:$R$149,IF($C21="HLH",MATCH(AQ$4,TRM_Billing!$K$6:$K$149,0),MATCH(AQ$4,TRM_Billing!$K$6:$K$149,0)+1),1) -> 337209.2011 | AR21: =+INDEX(TRM_Billing!$R$6:$R$149,IF($C21="HLH",MATCH(AR$4,TRM_Billing!$K$6:$K$149,0),MATCH(AR$4,TRM_Billing!$K$6:$K$149,0)+1),1) -> 296815.9908 | AS21: =+INDEX(TRM_Billing!$R$6:$R$149,IF($C21="HLH",MATCH(AS$4,TRM_Billing!$K$6:$K$149,0),MATCH(AS$4,TRM_Billing!$K$6:$K$149,0)+1),1) -> 39304.57562 | AT21: =+INDEX(TRM_Billing!$R$6:$R$149,IF($C21="HLH",MATCH(AT$4,TRM_Billing!$K$6:$K$149,0),MATCH(AT$4,TRM_Billing!$K$6:$K$149,0)+1),1) -> 74102.41293 | AU21: =+INDEX(TRM_Billing!$R$6:$R$149,IF($C21="HLH",MATCH(AU$4,TRM_Billing!$K$6:$K$149,0),MATCH(AU$4,TRM_Billing!$K$6:$K$149,0)+1),1) -> -273763.1373 | AV21: =+INDEX(TRM_Billing!$R$6:$R$149,IF($C21="HLH",MATCH(AV$4,TRM_Billing!$K$6:$K$149,0),MATCH(AV$4,TRM_Billing!$K$6:$K$149,0)+1),1) -> -282908.2395 | AW21: =+INDEX(TRM_Billing!$R$6:$R$149,IF($C21="HLH",MATCH(AW$4,TRM_Billing!$K$6:$K$149,0),MATCH(AW$4,TRM_Billing!$K$6:$K$149,0)+1),1) -> 143323.6497 | AX21: =+INDEX(TRM_Billing!$R$6:$R$149,IF($C21="HLH",MATCH(AX$4,TRM_Billing!$K$6:$K$149,0),MATCH(AX$4,TRM_Billing!$K$6:$K$149,0)+1),1) -> 143900.0292 | AY21: =+INDEX(TRM_Billing!$R$6:$R$149,IF($C21="HLH",MATCH(AY$4,TRM_Billing!$K$6:$K$149,0),MATCH(AY$4,TRM_Billing!$K$6:$K$149,0)+1),1) -> 89815.10991 | AZ21: =+INDEX(TRM_Billing!$R$6:$R$149,IF($C21="HLH",MATCH(AZ$4,TRM_Billing!$K$6:$K$149,0),MATCH(AZ$4,TRM_Billing!$K$6:$K$149,0)+1),1) -> 167747.7289 | BA21: =+INDEX(TRM_Billing!$R$6:$R$149,IF($C21="HLH",MATCH(BA$4,TRM_Billing!$K$6:$K$149,0),MATCH(BA$4,TRM_Billing!$K$6:$K$149,0)+1),1) -> 118029.7302 | BB21: =+INDEX(TRM_Billing!$R$6:$R$149,IF($C21="HLH",MATCH(BB$4,TRM_Billing!$K$6:$K$149,0),MATCH(BB$4,TRM_Billing!$K$6:$K$149,0)+1),1) -> 384458.0349 | BC21: =+INDEX(TRM_Billing!$R$6:$R$149,IF($C21="HLH",MATCH(BC$4,TRM_Billing!$K$6:$K$149,0),MATCH(BC$4,TRM_Billing!$K$6:$K$149,0)+1),1) -> 334007.5599 | BD21: =+INDEX(TRM_Billing!$R$6:$R$149,IF($C21="HLH",MATCH(BD$4,TRM_Billing!$K$6:$K$149,0),MATCH(BD$4,TRM_Billing!$K$6:$K$149,0)+1),1) -> 265386.2215 | BE21: =+INDEX(TRM_Billing!$R$6:$R$149,IF($C21="HLH",MATCH(BE$4,TRM_Billing!$K$6:$K$149,0),MATCH(BE$4,TRM_Billing!$K$6:$K$149,0)+1),1) -> 37328.62535 | BF21: =+INDEX(TRM_Billing!$R$6:$R$149,IF($C21="HLH",MATCH(BF$4,TRM_Billing!$K$6:$K$149,0),MATCH(BF$4,TRM_Billing!$K$6:$K$149,0)+1),1) -> 68851.31899 | BG21: =+INDEX(TRM_Billing!$R$6:$R$149,IF($C21="HLH",MATCH(BG$4,TRM_Billing!$K$6:$K$149,0),MATCH(BG$4,TRM_Billing!$K$6:$K$149,0)+1),1) -> -275360.7236 | BH21: =+INDEX(TRM_Billing!$R$6:$R$149,IF($C21="HLH",MATCH(BH$4,TRM_Billing!$K$6:$K$149,0),MATCH(BH$4,TRM_Billing!$K$6:$K$149,0)+1),1) -> -283717.2803 | BI21: =+INDEX(TRM_Billing!$R$6:$R$149,IF($C21="HLH",MATCH(BI$4,TRM_Billing!$K$6:$K$149,0),MATCH(BI$4,TRM_Billing!$K$6:$K$149,0)+1),1) -> 137695.918 | BJ21: =+INDEX(TRM_Billing!$R$6:$R$149,IF($C21="HLH",MATCH(BJ$4,TRM_Billing!$K$6:$K$149,0),MATCH(BJ$4,TRM_Billing!$K$6:$K$149,0)+1),1) -> 101185.9193 | BK21: =+INDEX(TRM_Billing!$R$6:$R$149,IF($C21="HLH",MATCH(BK$4,TRM_Billing!$K$6:$K$149,0),MATCH(BK$4,TRM_Billing!$K$6:$K$149,0)+1),1) -> 126848.0504 | BL21: =+INDEX(TRM_Billing!$R$6:$R$149,IF($C21="HLH",MATCH(BL$4,TRM_Billing!$K$6:$K$149,0),MATCH(BL$4,TRM_Billing!$K$6:$K$149,0)+1),1) -> 125400.177 | BM21: =+INDEX(TRM_Billing!$R$6:$R$149,IF($C21="HLH",MATCH(BM$4,TRM_Billing!$K$6:$K$149,0),MATCH(BM$4,TRM_Billing!$K$6:$K$149,0)+1),1) -> 117976.6606 | BN21: =+INDEX(TRM_Billing!$R$6:$R$149,IF($C21="HLH",MATCH(BN$4,TRM_Billing!$K$6:$K$149,0),MATCH(BN$4,TRM_Billing!$K$6:$K$149,0)+1),1) -> 386639.3326 | BO21: =+INDEX(TRM_Billing!$R$6:$R$149,IF($C21="HLH",MATCH(BO$4,TRM_Billing!$K$6:$K$149,0),MATCH(BO$4,TRM_Billing!$K$6:$K$149,0)+1),1) -> 337209.2011 | BP21: =+INDEX(TRM_Billing!$R$6:$R$149,IF($C21="HLH",MATCH(BP$4,TRM_Billing!$K$6:$K$149,0),MATCH(BP$4,TRM_Billing!$K$6:$K$149,0)+1),1) -> 296815.9908 | BQ21: =+INDEX(TRM_Billing!$R$6:$R$149,IF($C21="HLH",MATCH(BQ$4,TRM_Billing!$K$6:$K$149,0),MATCH(BQ$4,TRM_Billing!$K$6:$K$149,0)+1),1) -> 39304.57562 | BR21: =+INDEX(TRM_Billing!$R$6:$R$149,IF($C21="HLH",MATCH(BR$4,TRM_Billing!$K$6:$K$149,0),MATCH(BR$4,TRM_Billing!$K$6:$K$149,0)+1),1) -> 74102.41293 | BS21: =+INDEX(TRM_Billing!$R$6:$R$149,IF($C21="HLH",MATCH(BS$4,TRM_Billing!$K$6:$K$149,0),MATCH(BS$4,TRM_Billing!$K$6:$K$149,0)+1),1) -> -273763.1373 | BT21: =+INDEX(TRM_Billing!$R$6:$R$149,IF($C21="HLH",MATCH(BT$4,TRM_Billing!$K$6:$K$149,0),MATCH(BT$4,TRM_Billing!$K$6:$K$149,0)+1),1) -> -282908.2395 | BU21: =+INDEX(TRM_Billing!$R$6:$R$149,IF($C21="HLH",MATCH(BU$4,TRM_Billing!$K$6:$K$149,0),MATCH(BU$4,TRM_Billing!$K$6:$K$149,0)+1),1) -> 143323.6497 | BV21: =+INDEX(TRM_Billing!$R$6:$R$149,IF($C21="HLH",MATCH(BV$4,TRM_Billing!$K$6:$K$149,0),MATCH(BV$4,TRM_Billing!$K$6:$K$149,0)+1),1) -> 143900.0292 | BW21: =+INDEX(TRM_Billing!$R$6:$R$149,IF($C21="HLH",MATCH(BW$4,TRM_Billing!$K$6:$K$149,0),MATCH(BW$4,TRM_Billing!$K$6:$K$149,0)+1),1) -> 89815.10991
D24: =RateSummary!$C$10 -> 2024 | E24: =RateSummary!$D$10 -> 2025 | F24: =RateSummary!$E$10 -> 2026 | G24: =RateSummary!$F$10 -> 2027 | H24: =RateSummary!$G$10 -> 2028 | I24: =RateSummary!$H$10 -> 2029
C25: Public Load (MWh) | D25: =SUM(D12:O13) -> 61127527.83 | E25: =SUM(P12:AA13) -> 62837585.88 | F25: =SUM(AB12:AM13) -> 62837585.88 | G25: =SUM(AN12:AY13) -> 62837585.88 | H25: =SUM(AZ12:BK13) -> 62837585.88 | I25: =SUM(BL12:BW13) -> 62837585.88
C26: Public Load (aMW) | D26: =D25/VLOOKUP(D24,Init!$N$5:$P$38,3) -> 6958.96264 | E26: =E25/VLOOKUP(E24,Init!$N$5:$P$38,3) -> 7173.240398 | F26: =F25/VLOOKUP(F24,Init!$N$5:$P$38,3) -> 7173.240398 | G26: =G25/VLOOKUP(G24,Init!$N$5:$P$38,3) -> 7173.240398 | H26: =H25/VLOOKUP(H24,Init!$N$5:$P$38,3) -> 7153.64138 | I26: =I25/VLOOKUP(I24,Init!$N$5:$P$38,3) -> 7173.240398
C27: Demand (MW) | D27: =SUM(D18:O18) -> 6173.990494 | E27: =SUM(P18:AA18) -> 6451.770616 | F27: =SUM(AB18:AM18) -> 5698.348322 | G27: =SUM(AN18:AY18) -> 6105.621951 | H27: =SUM(AZ18:BK18) -> 5698.348322 | I27: =SUM(BL18:BW18) -> 6105.621951
D29: =RateSummary!$C$10 -> 2024 | E29: =RateSummary!$D$10 -> 2025 | F29: =RateSummary!$E$10 -> 2026 | G29: =RateSummary!$F$10 -> 2027 | H29: =RateSummary!$G$10 -> 2028 | I29: =RateSummary!$H$10 -> 2029
C30: Base | D30: =D26 -> 6958.96264 | E30: 7173.240398 | F30: 7173.240398 | G30: 7173.240398 | H30: 7153.64138 | I30: 7173.240398
D34: DEMAND: | E34: ENERGY: | F34: (GWh) | AE34: Total
E35: Oct | G35: Nov | I35: Dec | K35: Jan | M35: Feb | O35: Mar | Q35: Apr | S35: May | U35: Jun | W35: Jul | Y35: Aug | AA35: Sep | AC35: Total | AE35: Energy
D36: Annual | E36: LLH | F36: HLH | G36: LLH | H36: HLH | I36: LLH | J36: HLH | K36: LLH | L36: HLH | M36: LLH | N36: HLH | O36: LLH | P36: HLH | Q36: LLH | R36: HLH | S36: LLH | T36: HLH | U36: LLH | V36: HLH | W36: LLH | X36: HLH | Y36: LLH | Z36: HLH | AA36: LLH | AB36: HLH | AC36: LLH | AD36: HLH
B38: =RateSummary!$C$10 -> 2024 | D38: =Q49 -> 6173.990494 | E38: =D48 -> 1811.819205 | F38: =D47 -> 2706.689908 | G38: =E48 -> 2184.724 | H38: =E47 -> 3132.135216 | I38: =F48 -> 2625.701135 | J38: =F47 -> 3606.257779 | K38: =G48 -> 2589.514268 | L38: =G47 -> 3760.610659 | M38: =H48 -> 2134.510279 | N38: =H47 -> 3268.509484 | O38: =I48 -> 2208.969739 | P38: =I47 -> 3251.220806 | Q38: =J48 -> 1799.104006 | R38: =J47 -> 2718.652605 | S38: =K48 -> 1878.8912 | T38: =K47 -> 2776.626791 | U38: =L48 -> 1756.62142 | V38: =L47 -> 2735.51336 | W38: =M48 -> 1961.942541 | X38: =M47 -> 2917.864202 | Y38: =N48 -> 1808.354831 | Z38: =N47 -> 3012.79082 | AA38: =O48 -> 1866.972238 | AB38: =O47 -> 2613.531336 | AC38: =E38+G38+I38+K38+M38+O38+Q38+S38+U38+W38+Y38+AA38 -> 24627.12486 | AD38: =F38+H38+J38+L38+N38+P38+R38+T38+V38+X38+Z38+AB38 -> 36500.40297 | AE38: =AC38+AD38 -> 61127.52783
B39: =RateSummary!$D$10 -> 2025 | D39: =Q53 -> 6451.770616 | E39: =D52 -> 1823.081254 | F39: =D51 -> 2850.530104 | G39: =E52 -> 2254.008722 | H39: =E51 -> 3216.267192 | I39: =F52 -> 2702.12073 | J39: =F51 -> 3689.92794 | K39: =G52 -> 2665.847051 | L39: =G51 -> 3851.458583 | M39: =H52 -> 2168.825395 | N39: =H51 -> 3282.893866 | O39: =I52 -> 2276.267825 | P39: =I51 -> 3346.700522 | Q39: =J52 -> 1869.487838 | R39: =J51 -> 2827.256732 | S39: =K52 -> 1886.661727 | T39: =K51 -> 2745.897103 | U39: =L52 -> 1822.607592 | V39: =L51 -> 2858.597507 | W39: =M52 -> 2048.994651 | X39: =M51 -> 3033.612386 | Y39: =N52 -> 1925.159804 | Z39: =N51 -> 3052.514643 | AA39: =O52 -> 1891.645013 | AB39: =O51 -> 2747.221706 | AC39: 25334.7076 | AD39: 37502.87828 | AE39: 62837.58588
B40: =RateSummary!$E$10 -> 2026 | D40: =Q57 -> 5698.348322 | E40: =D56 -> 1823.081254 | F40: =D55 -> 2850.530104 | G40: =E56 -> 2254.008722 | H40: =E55 -> 3216.267192 | I40: =F56 -> 2702.12073 | J40: =F55 -> 3689.92794 | K40: =G56 -> 2665.847051 | L40: =G55 -> 3851.458583 | M40: =H56 -> 2168.825395 | N40: =H55 -> 3282.893866 | O40: =I56 -> 2276.267825 | P40: =I55 -> 3346.700522 | Q40: =J56 -> 1869.487838 | R40: =J55 -> 2827.256732 | S40: =K56 -> 1886.661727 | T40: =K55 -> 2745.897103 | U40: =L56 -> 1822.607592 | V40: =L55 -> 2858.597507 | W40: =M56 -> 2048.994651 | X40: =M55 -> 3033.612386 | Y40: =N56 -> 1925.159804 | Z40: =N55 -> 3052.514643 | AA40: =O56 -> 1891.645013 | AB40: =O55 -> 2747.221706 | AC40: 25334.7076 | AD40: 37502.87828 | AE40: 62837.58588
B41: =RateSummary!$F$10 -> 2027 | D41: =Q61 -> 6105.621951 | E41: =D60 -> 1823.081254 | F41: =D59 -> 2850.530104 | G41: =E60 -> 2254.008722 | H41: =E59 -> 3216.267192 | I41: =F60 -> 2702.12073 | J41: =F59 -> 3689.92794 | K41: =G60 -> 2665.847051 | L41: =G59 -> 3851.458583 | M41: =H60 -> 2168.825395 | N41: =H59 -> 3282.893866 | O41: =I60 -> 2276.267825 | P41: =I59 -> 3346.700522 | Q41: =J60 -> 1869.487838 | R41: =J59 -> 2827.256732 | S41: =K60 -> 1886.661727 | T41: =K59 -> 2745.897103 | U41: =L60 -> 1822.607592 | V41: =L59 -> 2858.597507 | W41: =M60 -> 2048.994651 | X41: =M59 -> 3033.612386 | Y41: =N60 -> 1925.159804 | Z41: =N59 -> 3052.514643 | AA41: =O60 -> 1891.645013 | AB41: =O59 -> 2747.221706 | AC41: 25334.7076 | AD41: 37502.87828 | AE41: 62837.58588
B42: =RateSummary!$G$10 -> 2028 | D42: =Q65 -> 5698.348322 | E42: =D64 -> 1823.081254 | F42: =D63 -> 2850.530104 | G42: =E64 -> 2254.008722 | H42: =E63 -> 3216.267192 | I42: =F64 -> 2702.12073 | J42: =F63 -> 3689.92794 | K42: =G64 -> 2665.847051 | L42: =G63 -> 3851.458583 | M42: =H64 -> 2168.825395 | N42: =H63 -> 3282.893866 | O42: =I64 -> 2276.267825 | P42: =I63 -> 3346.700522 | Q42: =J64 -> 1869.487838 | R42: =J63 -> 2827.256732 | S42: =K64 -> 1886.661727 | T42: =K63 -> 2745.897103 | U42: =L64 -> 1822.607592 | V42: =L63 -> 2858.597507 | W42: =M64 -> 2048.994651 | X42: =M63 -> 3033.612386 | Y42: =N64 -> 1925.159804 | Z42: =N63 -> 3052.514643 | AA42: =O64 -> 1891.645013 | AB42: =O63 -> 2747.221706 | AC42: 25334.7076 | AD42: 37502.87828 | AE42: 62837.58588
B43: =RateSummary!$H$10 -> 2029 | D43: =Q69 -> 6105.621951 | E43: =D68 -> 1823.081254 | F43: =D67 -> 2850.530104 | G43: =E68 -> 2254.008722 | H43: =E67 -> 3216.267192 | I43: =F68 -> 2702.12073 | J43: =F67 -> 3689.92794 | K43: =G68 -> 2665.847051 | L43: =G67 -> 3851.458583 | M43: =H68 -> 2168.825395 | N43: =H67 -> 3282.893866 | O43: =I68 -> 2276.267825 | P43: =I67 -> 3346.700522 | Q43: =J68 -> 1869.487838 | R43: =J67 -> 2827.256732 | S43: =K68 -> 1886.661727 | T43: =K67 -> 2745.897103 | U43: =L68 -> 1822.607592 | V43: =L67 -> 2858.597507 | W43: =M68 -> 2048.994651 | X43: =M67 -> 3033.612386 | Y43: =N68 -> 1925.159804 | Z43: =N67 -> 3052.514643 | AA43: =O68 -> 1891.645013 | AB43: =O67 -> 2747.221706 | AC43: 25334.7076 | AD43: 37502.87828 | AE43: 62837.58588
D46: =E35 -> Oct | E46: =G35 -> Nov | F46: =I35 -> Dec | G46: =K35 -> Jan | H46: =M35 -> Feb | I46: =O35 -> Mar | J46: =Q35 -> Apr | K46: =S35 -> May | L46: =U35 -> Jun | M46: =W35 -> Jul | N46: =Y35 -> Aug | O46: =AA35 -> Sep | U46: =D26 -> 6958.96264
B47: =B38 -> 2024 | C47: HLH | D47: =(D12)/1000*$V$48 -> 2706.689908 | E47: 3132.135216 | F47: 3606.257779 | G47: 3760.610659 | H47: 3268.509484 | I47: 3251.220806 | J47: 2718.652605 | K47: 2776.626791 | L47: 2735.51336 | M47: 2917.864202 | N47: 3012.79082 | O47: 2613.531336 | R47: HLH | S47: =B47 -> 2024 | T47: =SUM(D47:O48) -> 61127.52783 | U47: =T47/(VLOOKUP(S47,Init!$N$5:$P$38,3)/1000) -> 6958.96264
C48: LLH | D48: =(D13)/1000*$V$48 -> 1811.819205 | E48: 2184.724 | F48: 2625.701135 | G48: 2589.514268 | H48: 2134.510279 | I48: 2208.969739 | J48: 1799.104006 | K48: 1878.8912 | L48: 1756.62142 | M48: 1961.942541 | N48: 1808.354831 | O48: 1866.972238 | R48: LLH | U48: =D30 -> 6958.96264 | V48: =U48/U46 -> 1
C49: Demand | D49: =D18*$V$48 -> 273.4729611 | E49: 339.13344 | F49: 610.434965 | G49: 590.1100538 | H49: 399.4337275 | I49: 533.4899981 | J49: 598.6488005 | K49: 431.5263154 | L49: 573.24317 | M49: 674.854162 | N49: 735.1391907 | O49: 414.5037099 | P49: Annual = | Q49: =SUM(D49:P49) -> 6173.990494 | R49: Demand
D50: =D46 -> Oct | E50: Nov | F50: Dec | G50: Jan | H50: Feb | I50: Mar | J50: Apr | K50: May | L50: Jun | M50: Jul | N50: Aug | O50: Sep | U50: =E26 -> 7173.240398
B51: =B47+1 -> 2025 | C51: HLH | D51: =(P12)/1000*$V$52 -> 2850.530104 | E51: 3216.267192 | F51: 3689.92794 | G51: 3851.458583 | H51: 3282.893866 | I51: 3346.700522 | J51: 2827.256732 | K51: 2745.897103 | L51: 2858.597507 | M51: 3033.612386 | N51: 3052.514643 | O51: 2747.221706 | R51: HLH | S51: =B51 -> 2025 | T51: =SUM(D51:O52) -> 62837.58588 | U51: =T51/(VLOOKUP(S51,Init!$N$5:$P$38,3)/1000) -> 7173.240398
C52: LLH | D52: 1823.081254 | E52: 2254.008722 | F52: 2702.12073 | G52: 2665.847051 | H52: 2168.825395 | I52: 2276.267825 | J52: 1869.487838 | K52: 1886.661727 | L52: 1822.607592 | M52: 2048.994651 | N52: 1925.159804 | O52: 1891.645013 | R52: LLH | U52: =E30 -> 7173.240398 | V52: =U52/U50 -> 1
C53: Demand | D53: =P18*$V$52 -> 381.4791875 | E53: 350.6853225 | F53: 617.14974 | G53: 601.8450933 | H53: 381.4225115 | I53: 539.5556803 | J53: 639.9509495 | K53: 454.2321226 | L53: 579.8869575 | M53: 750.4469 | N53: 670.7999192 | O53: 484.3162325 | P53: Annual = | Q53: =SUM(D53:P53) -> 6451.770616 | R53: Demand
D54: =D50 -> Oct | E54: Nov | F54: Dec | G54: Jan | H54: Feb | I54: Mar | J54: Apr | K54: May | L54: Jun | M54: Jul | N54: Aug | O54: Sep | U54: =F26 -> 7173.240398
B55: =B51+1 -> 2026 | C55: HLH | D55: =(AB12)/1000*$V$56 -> 2850.530104 | E55: 3216.267192 | F55: 3689.92794 | G55: 3851.458583 | H55: 3282.893866 | I55: 3346.700522 | J55: 2827.256732 | K55: 2745.897103 | L55: 2858.597507 | M55: 3033.612386 | N55: 3052.514643 | O55: 2747.221706 | R55: HLH | S55: =B55 -> 2026 | T55: =SUM(D55:O56) -> 62837.58588 | U55: =T55/(VLOOKUP(S55,Init!$N$5:$P$38,3)/1000) -> 7173.240398
C56: LLH | D56: 1823.081254 | E56: 2254.008722 | F56: 2702.12073 | G56: 2665.847051 | H56: 2168.825395 | I56: 2276.267825 | J56: 1869.487838 | K56: 1886.661727 | L56: 1822.607592 | M56: 2048.994651 | N56: 1925.159804 | O56: 1891.645013 | R56: LLH | U56: =F30 -> 7173.240398 | V56: =U56/U54 -> 1
C57: Demand | D57: =AB18*$V$56 -> 280.268387 | E57: 298.8409775 | F57: 542.57529 | G57: 590.3186635 | H57: 412.1137625 | I57: 514.9580409 | J57: 514.2077909 | K57: 386.4144495 | L57: 498.640715 | M57: 608.4289519 | N57: 679.098088 | O57: 372.4832057 | P57: Annual = | Q57: =SUM(D57:P57) -> 5698.348322 | R57: Demand
D58: =D54 -> Oct | E58: Nov | F58: Dec | G58: Jan | H58: Feb | I58: Mar | J58: Apr | K58: May | L58: Jun | M58: Jul | N58: Aug | O58: Sep | U58: =G26 -> 7173.240398
B59: =B55+1 -> 2027 | C59: HLH | D59: =(AN12)/1000*$V$60 -> 2850.530104 | E59: 3216.267192 | F59: 3689.92794 | G59: 3851.458583 | H59: 3282.893866 | I59: 3346.700522 | J59: 2827.256732 | K59: 2745.897103 | L59: 2858.597507 | M59: 3033.612386 | N59: 3052.514643 | O59: 2747.221706 | R59: HLH | S59: =B59 -> 2027 | T59: =SUM(D59:O60) -> 62837.58588 | U59: =T59/(VLOOKUP(S59,Init!$N$5:$P$38,3)/1000) -> 7173.240398
C60: LLH | D60: 1823.081254 | E60: 2254.008722 | F60: 2702.12073 | G60: 2665.847051 | H60: 2168.825395 | I60: 2276.267825 | J60: 1869.487838 | K60: 1886.661727 | L60: 1822.607592 | M60: 2048.994651 | N60: 1925.159804 | O60: 1891.645013 | R60: LLH | U60: =G30 -> 7173.240398 | V60: =U60/U58 -> 1
C61: Demand | D61: =AN18*$V$60 -> 369.2565671 | E61: =AO18*$V$60 -> 320.80236 | F61: 580.91921 | G61: 609.5022524 | H61: 416.0656146 | I61: 536.6209784 | J61: 570.5304183 | K61: 412.1016779 | L61: 506.570045 | M61: 673.2420313 | N61: 627.2703438 | O61: 482.7404525 | P61: Annual = | Q61: =SUM(D61:P61) -> 6105.621951 | R61: Demand
D62: =D58 -> Oct | E62: Nov | F62: Dec | G62: Jan | H62: Feb | I62: Mar | J62: Apr | K62: May | L62: Jun | M62: Jul | N62: Aug | O62: Sep | U62: =H26 -> 7153.64138
B63: =B59+1 -> 2028 | C63: HLH | D63: =(AZ12)/1000*$V$64 -> 2850.530104 | E63: 3216.267192 | F63: 3689.92794 | G63: 3851.458583 | H63: 3282.893866 | I63: 3346.700522 | J63: 2827.256732 | K63: 2745.897103 | L63: 2858.597507 | M63: 3033.612386 | N63: 3052.514643 | O63: 2747.221706 | R63: HLH | S63: =B63 -> 2028 | T63: =SUM(D63:O64) -> 62837.58588 | U63: =T63/(VLOOKUP(S63,Init!$N$5:$P$38,3)/1000) -> 7153.64138
C64: LLH | D64: 1823.081254 | E64: 2254.008722 | F64: 2702.12073 | G64: 2665.847051 | H64: 2168.825395 | I64: 2276.267825 | J64: 1869.487838 | K64: 1886.661727 | L64: 1822.607592 | M64: 2048.994651 | N64: 1925.159804 | O64: 1891.645013 | R64: LLH | U64: =H30 -> 7153.64138 | V64: =U64/U62 -> 1
C65: Demand | D65: =AZ18*$V$64 -> 280.268387 | E65: =BA18*$V$64 -> 298.8409775 | F65: 542.57529 | G65: 590.3186635 | H65: 412.1137625 | I65: 514.9580409 | J65: 514.2077909 | K65: 386.4144495 | L65: 498.640715 | M65: 608.4289519 | N65: 679.098088 | O65: 372.4832057 | P65: Annual = | Q65: =SUM(D65:P65) -> 5698.348322 | R65: Demand
D66: =D62 -> Oct | E66: Nov | F66: Dec | G66: Jan | H66: Feb | I66: Mar | J66: Apr | K66: May | L66: Jun | M66: Jul | N66: Aug | O66: Sep | U66: =I26 -> 7173.240398
B67: =B63+1 -> 2029 | C67: HLH | D67: =(BL12)/1000*$V$68 -> 2850.530104 | E67: 3216.267192 | F67: 3689.92794 | G67: 3851.458583 | H67: 3282.893866 | I67: 3346.700522 | J67: 2827.256732 | K67: 2745.897103 | L67: 2858.597507 | M67: 3033.612386 | N67: 3052.514643 | O67: 2747.221706 | R67: HLH | S67: =B67 -> 2029 | T67: =SUM(D67:O68) -> 62837.58588 | U67: =T67/(VLOOKUP(S67,Init!$N$5:$P$38,3)/1000) -> 7173.240398
C68: LLH | D68: 1823.081254 | E68: 2254.008722 | F68: 2702.12073 | G68: 2665.847051 | H68: 2168.825395 | I68: 2276.267825 | J68: 1869.487838 | K68: 1886.661727 | L68: 1822.607592 | M68: 2048.994651 | N68: 1925.159804 | O68: 1891.645013 | R68: LLH | U68: =I30 -> 7173.240398 | V68: =U68/U66 -> 1
C69: Demand | D69: =BL18*$V$68 -> 369.2565671 | E69: 320.80236 | F69: 580.91921 | G69: 609.5022524 | H69: 416.0656146 | I69: 536.6209784 | J69: 570.5304183 | K69: 412.1016779 | L69: 506.570045 | M69: 673.2420313 | N69: 627.2703438 | O69: 482.7404525 | P69: Annual = | Q69: =SUM(D69:P69) -> 6105.621951 | R69: Demand
B72: Final PF Load Billing Determinants
D73: =RateSummary!$C$10 -> 2024 | E73: =RateSummary!$D$10 -> 2025 | F73: =RateSummary!$E$10 -> 2026 | G73: =RateSummary!$F$10 -> 2027 | H73: =RateSummary!$G$10 -> 2028 | I73: =RateSummary!$H$10 -> 2029
C75: Load forecast | D75: =U47 -> 6958.96264 | E75: =U51 -> 7173.240398 | F75: =U55 -> 7173.240398 | G75: =U59 -> 7173.240398 | H75: =U63 -> 7153.64138 | I75: =U67 -> 7173.240398
C77: Loads (GWh) | D77: =T47 -> 61127.52783 | E77: =T51 -> 62837.58588 | F77: =T55 -> 62837.58588 | G77: =T59 -> 62837.58588 | H77: =T63 -> 62837.58588 | I77: =T67 -> 62837.58588

Sheet PF Exchange
B1: Billing Determinants Needed for Rates Analysis Model | P1: Not printed in documentation.
A2: TOC | B2: =Cover!$C$14 -> RAMmodel_RAM2024 12.2.2022
A3: é
D4: =+DATE(Init!$C$9-1,10,1) -> 2023-10-01 | E4: =+EOMONTH(D4,0)+1 -> 2023-11-01 | F4: 2023-12-01 | G4: 2024-01-01 | H4: 2024-02-01 | I4: 2024-03-01 | J4: 2024-04-01 | K4: 2024-05-01 | L4: 2024-06-01 | M4: 2024-07-01 | N4: 2024-08-01 | O4: 2024-09-01 | P4: 2024-10-01 | Q4: 2024-11-01 | R4: 2024-12-01 | S4: 2025-01-01 | T4: 2025-02-01 | U4: 2025-03-01 | V4: 2025-04-01 | W4: 2025-05-01 | X4: 2025-06-01 | Y4: 2025-07-01 | Z4: 2025-08-01 | AA4: 2025-09-01 | AB4: 2025-10-01 | AC4: 2025-11-01 | AD4: 2025-12-01 | AE4: 2026-01-01 | AF4: 2026-02-01 | AG4: 2026-03-01 | AH4: 2026-04-01 | AI4: 2026-05-01 | AJ4: 2026-06-01 | AK4: =+EOMONTH(AJ4,0)+1 -> 2026-07-01 | AL4: 2026-08-01 | AM4: 2026-09-01 | AN4: 2026-10-01 | AO4: 2026-11-01 | AP4: 2026-12-01 | AQ4: 2027-01-01 | AR4: 2027-02-01 | AS4: 2027-03-01 | AT4: 2027-04-01 | AU4: 2027-05-01 | AV4: 2027-06-01 | AW4: 2027-07-01 | AX4: 2027-08-01 | AY4: 2027-09-01 | AZ4: 2027-10-01 | BA4: 2027-11-01 | BB4: 2027-12-01 | BC4: 2028-01-01 | BD4: 2028-02-01 | BE4: 2028-03-01 | BF4: 2028-04-01 | BG4: 2028-05-01 | BH4: 2028-06-01 | BI4: 2028-07-01 | BJ4: 2028-08-01 | BK4: 2028-09-01 | BL4: 2028-10-01 | BM4: 2028-11-01 | BN4: 2028-12-01 | BO4: 2029-01-01 | BP4: 2029-02-01 | BQ4: =+EOMONTH(BP4,0)+1 -> 2029-03-01 | BR4: 2029-04-01 | BS4: 2029-05-01 | BT4: 2029-06-01 | BU4: 2029-07-01 | BV4: 2029-08-01 | BW4: 2029-09-01
B5: Public Load
C6: HLH | D6: ='PF Public'!D12 -> 2706689.908 | E6: ='PF Public'!E12 -> 3132135.216 | F6: ='PF Public'!F12 -> 3606257.779 | G6: ='PF Public'!G12 -> 3760610.659 | H6: ='PF Public'!H12 -> 3268509.484 | I6: ='PF Public'!I12 -> 3251220.806 | J6: ='PF Public'!J12 -> 2718652.605 | K6: ='PF Public'!K12 -> 2776626.791 | L6: ='PF Public'!L12 -> 2735513.36 | M6: ='PF Public'!M12 -> 2917864.202 | N6: ='PF Public'!N12 -> 3012790.82 | O6: ='PF Public'!O12 -> 2613531.336 | P6: ='PF Public'!P12 -> 2850530.104 | Q6: ='PF Public'!Q12 -> 3216267.192 | R6: ='PF Public'!R12 -> 3689927.94 | S6: ='PF Public'!S12 -> 3851458.583 | T6: ='PF Public'!T12 -> 3282893.866 | U6: ='PF Public'!U12 -> 3346700.522 | V6: ='PF Public'!V12 -> 2827256.732 | W6: ='PF Public'!W12 -> 2745897.103 | X6: ='PF Public'!X12 -> 2858597.507 | Y6: ='PF Public'!Y12 -> 3033612.386 | Z6: ='PF Public'!Z12 -> 3052514.643 | AA6: ='PF Public'!AA12 -> 2747221.706 | AB6: ='PF Public'!AB12 -> 2850530.104 | AC6: ='PF Public'!AC12 -> 3216267.192 | AD6: ='PF Public'!AD12 -> 3689927.94 | AE6: ='PF Public'!AE12 -> 3851458.583 | AF6: ='PF Public'!AF12 -> 3282893.866 | AG6: ='PF Public'!AG12 -> 3346700.522 | AH6: ='PF Public'!AH12 -> 2827256.732 | AI6: ='PF Public'!AI12 -> 2745897.103 | AJ6: ='PF Public'!AJ12 -> 2858597.507 | AK6: ='PF Public'!AK12 -> 3033612.386 | AL6: ='PF Public'!AL12 -> 3052514.643 | AM6: ='PF Public'!AM12 -> 2747221.706 | AN6: ='PF Public'!AN12 -> 2850530.104 | AO6: ='PF Public'!AO12 -> 3216267.192 | AP6: ='PF Public'!AP12 -> 3689927.94 | AQ6: ='PF Public'!AQ12 -> 3851458.583 | AR6: ='PF Public'!AR12 -> 3282893.866 | AS6: ='PF Public'!AS12 -> 3346700.522 | AT6: ='PF Public'!AT12 -> 2827256.732 | AU6: ='PF Public'!AU12 -> 2745897.103 | AV6: ='PF Public'!AV12 -> 2858597.507 | AW6: ='PF Public'!AW12 -> 3033612.386 | AX6: ='PF Public'!AX12 -> 3052514.643 | AY6: ='PF Public'!AY12 -> 2747221.706 | AZ6: ='PF Public'!AZ12 -> 2850530.104 | BA6: ='PF Public'!BA12 -> 3216267.192 | BB6: ='PF Public'!BB12 -> 3689927.94 | BC6: ='PF Public'!BC12 -> 3851458.583 | BD6: ='PF Public'!BD12 -> 3282893.866 | BE6: ='PF Public'!BE12 -> 3346700.522 | BF6: ='PF Public'!BF12 -> 2827256.732 | BG6: ='PF Public'!BG12 -> 2745897.103 | BH6: ='PF Public'!BH12 -> 2858597.507 | BI6: ='PF Public'!BI12 -> 3033612.386 | BJ6: ='PF Public'!BJ12 -> 3052514.643 | BK6: ='PF Public'!BK12 -> 2747221.706 | BL6: ='PF Public'!BL12 -> 2850530.104 | BM6: ='PF Public'!BM12 -> 3216267.192 | BN6: ='PF Public'!BN12 -> 3689927.94 | BO6: ='PF Public'!BO12 -> 3851458.583 | BP6: ='PF Public'!BP12 -> 3282893.866 | BQ6: ='PF Public'!BQ12 -> 3346700.522 | BR6: ='PF Public'!BR12 -> 2827256.732 | BS6: ='PF Public'!BS12 -> 2745897.103 | BT6: ='PF Public'!BT12 -> 2858597.507 | BU6: ='PF Public'!BU12 -> 3033612.386 | BV6: ='PF Public'!BV12 -> 3052514.643 | BW6: ='PF Public'!BW12 -> 2747221.706
C7: LLH | D7: ='PF Public'!D13 -> 1811819.205 | E7: ='PF Public'!E13 -> 2184724 | F7: ='PF Public'!F13 -> 2625701.135 | G7: ='PF Public'!G13 -> 2589514.268 | H7: ='PF Public'!H13 -> 2134510.279 | I7: ='PF Public'!I13 -> 2208969.739 | J7: ='PF Public'!J13 -> 1799104.006 | K7: ='PF Public'!K13 -> 1878891.2 | L7: ='PF Public'!L13 -> 1756621.42 | M7: ='PF Public'!M13 -> 1961942.541 | N7: ='PF Public'!N13 -> 1808354.831 | O7: ='PF Public'!O13 -> 1866972.238 | P7: ='PF Public'!P13 -> 1823081.254 | Q7: ='PF Public'!Q13 -> 2254008.722 | R7: ='PF Public'!R13 -> 2702120.73 | S7: ='PF Public'!S13 -> 2665847.051 | T7: ='PF Public'!T13 -> 2168825.395 | U7: ='PF Public'!U13 -> 2276267.825 | V7: ='PF Public'!V13 -> 1869487.838 | W7: ='PF Public'!W13 -> 1886661.727 | X7: ='PF Public'!X13 -> 1822607.592 | Y7: ='PF Public'!Y13 -> 2048994.651 | Z7: ='PF Public'!Z13 -> 1925159.804 | AA7: ='PF Public'!AA13 -> 1891645.013 | AB7: ='PF Public'!AB13 -> 1823081.254 | AC7: ='PF Public'!AC13 -> 2254008.722 | AD7: ='PF Public'!AD13 -> 2702120.73 | AE7: ='PF Public'!AE13 -> 2665847.051 | AF7: ='PF Public'!AF13 -> 2168825.395 | AG7: ='PF Public'!AG13 -> 2276267.825 | AH7: ='PF Public'!AH13 -> 1869487.838 | AI7: ='PF Public'!AI13 -> 1886661.727 | AJ7: ='PF Public'!AJ13 -> 1822607.592 | AK7: ='PF Public'!AK13 -> 2048994.651 | AL7: ='PF Public'!AL13 -> 1925159.804 | AM7: ='PF Public'!AM13 -> 1891645.013 | AN7: ='PF Public'!AN13 -> 1823081.254 | AO7: ='PF Public'!AO13 -> 2254008.722 | AP7: ='PF Public'!AP13 -> 2702120.73 | AQ7: ='PF Public'!AQ13 -> 2665847.051 | AR7: ='PF Public'!AR13 -> 2168825.395 | AS7: ='PF Public'!AS13 -> 2276267.825 | AT7: ='PF Public'!AT13 -> 1869487.838 | AU7: ='PF Public'!AU13 -> 1886661.727 | AV7: ='PF Public'!AV13 -> 1822607.592 | AW7: ='PF Public'!AW13 -> 2048994.651 | AX7: ='PF Public'!AX13 -> 1925159.804 | AY7: ='PF Public'!AY13 -> 1891645.013 | AZ7: ='PF Public'!AZ13 -> 1823081.254 | BA7: ='PF Public'!BA13 -> 2254008.722 | BB7: ='PF Public'!BB13 -> 2702120.73 | BC7: ='PF Public'!BC13 -> 2665847.051 | BD7: ='PF Public'!BD13 -> 2168825.395 | BE7: ='PF Public'!BE13 -> 2276267.825 | BF7: ='PF Public'!BF13 -> 1869487.838 | BG7: ='PF Public'!BG13 -> 1886661.727 | BH7: ='PF Public'!BH13 -> 1822607.592 | BI7: ='PF Public'!BI13 -> 2048994.651 | BJ7: ='PF Public'!BJ13 -> 1925159.804 | BK7: ='PF Public'!BK13 -> 1891645.013 | BL7: ='PF Public'!BL13 -> 1823081.254 | BM7: ='PF Public'!BM13 -> 2254008.722 | BN7: ='PF Public'!BN13 -> 2702120.73 | BO7: ='PF Public'!BO13 -> 2665847.051 | BP7: ='PF Public'!BP13 -> 2168825.395 | BQ7: ='PF Public'!BQ13 -> 2276267.825 | BR7: ='PF Public'!BR13 -> 1869487.838 | BS7: ='PF Public'!BS13 -> 1886661.727 | BT7: ='PF Public'!BT13 -> 1822607.592 | BU7: ='PF Public'!BU13 -> 2048994.651 | BV7: ='PF Public'!BV13 -> 1925159.804 | BW7: ='PF Public'!BW13 -> 1891645.013
B9: Demand | D9: ='PF Public'!D18 -> 273.4729611 | E9: ='PF Public'!E18 -> 339.13344 | F9: ='PF Public'!F18 -> 610.434965 | G9: ='PF Public'!G18 -> 590.1100538 | H9: ='PF Public'!H18 -> 399.4337275 | I9: ='PF Public'!I18 -> 533.4899981 | J9: ='PF Public'!J18 -> 598.6488005 | K9: ='PF Public'!K18 -> 431.5263154 | L9: ='PF Public'!L18 -> 573.24317 | M9: ='PF Public'!M18 -> 674.854162 | N9: ='PF Public'!N18 -> 735.1391907 | O9: ='PF Public'!O18 -> 414.5037099 | P9: ='PF Public'!P18 -> 381.4791875 | Q9: ='PF Public'!Q18 -> 350.6853225 | R9: ='PF Public'!R18 -> 617.14974 | S9: ='PF Public'!S18 -> 601.8450933 | T9: ='PF Public'!T18 -> 381.4225115 | U9: ='PF Public'!U18 -> 539.5556803 | V9: ='PF Public'!V18 -> 639.9509495 | W9: ='PF Public'!W18 -> 454.2321226 | X9: ='PF Public'!X18 -> 579.8869575 | Y9: ='PF Public'!Y18 -> 750.4469 | Z9: ='PF Public'!Z18 -> 670.7999192 | AA9: ='PF Public'!AA18 -> 484.3162325 | AB9: ='PF Public'!AB18 -> 280.268387 | AC9: ='PF Public'!AC18 -> 298.8409775 | AD9: ='PF Public'!AD18 -> 542.57529 | AE9: ='PF Public'!AE18 -> 590.3186635 | AF9: ='PF Public'!AF18 -> 412.1137625 | AG9: ='PF Public'!AG18 -> 514.9580409 | AH9: ='PF Public'!AH18 -> 514.2077909 | AI9: ='PF Public'!AI18 -> 386.4144495 | AJ9: ='PF Public'!AJ18 -> 498.640715 | AK9: ='PF Public'!AK18 -> 608.4289519 | AL9: ='PF Public'!AL18 -> 679.098088 | AM9: ='PF Public'!AM18 -> 372.4832057 | AN9: ='PF Public'!AN18 -> 369.2565671 | AO9: ='PF Public'!AO18 -> 320.80236 | AP9: ='PF Public'!AP18 -> 580.91921 | AQ9: ='PF Public'!AQ18 -> 609.5022524 | AR9: ='PF Public'!AR18 -> 416.0656146 | AS9: ='PF Public'!AS18 -> 536.6209784 | AT9: ='PF Public'!AT18 -> 570.5304183 | AU9: ='PF Public'!AU18 -> 412.1016779 | AV9: ='PF Public'!AV18 -> 506.570045 | AW9: ='PF Public'!AW18 -> 673.2420313 | AX9: ='PF Public'!AX18 -> 627.2703438 | AY9: ='PF Public'!AY18 -> 482.7404525 | AZ9: ='PF Public'!AZ18 -> 280.268387 | BA9: ='PF Public'!BA18 -> 298.8409775 | BB9: ='PF Public'!BB18 -> 542.57529 | BC9: ='PF Public'!BC18 -> 590.3186635 | BD9: ='PF Public'!BD18 -> 412.1137625 | BE9: ='PF Public'!BE18 -> 514.9580409 | BF9: ='PF Public'!BF18 -> 514.2077909 | BG9: ='PF Public'!BG18 -> 386.4144495 | BH9: ='PF Public'!BH18 -> 498.640715 | BI9: ='PF Public'!BI18 -> 608.4289519 | BJ9: ='PF Public'!BJ18 -> 679.098088 | BK9: ='PF Public'!BK18 -> 372.4832057 | BL9: ='PF Public'!BL18 -> 369.2565671 | BM9: ='PF Public'!BM18 -> 320.80236 | BN9: ='PF Public'!BN18 -> 580.91921 | BO9: ='PF Public'!BO18 -> 609.5022524 | BP9: ='PF Public'!BP18 -> 416.0656146 | BQ9: ='PF Public'!BQ18 -> 536.6209784 | BR9: ='PF Public'!BR18 -> 570.5304183 | BS9: ='PF Public'!BS18 -> 412.1016779 | BT9: ='PF Public'!BT18 -> 506.570045 | BU9: ='PF Public'!BU18 -> 673.2420313 | BV9: ='PF Public'!BV18 -> 627.2703438 | BW9: ='PF Public'!BW18 -> 482.7404525
D11: =RateSummary!$C$10 -> 2024 | E11: =RateSummary!$D$10 -> 2025 | F11: =RateSummary!$E$10 -> 2026 | G11: =RateSummary!$F$10 -> 2027 | H11: =RateSummary!$G$10 -> 2028 | I11: =RateSummary!$H$10 -> 2029
C12: Public Load (MWh) | D12: =SUM(D6:O7) -> 61127527.83 | E12: =SUM(P6:AA7) -> 62837585.88 | F12: =SUM(AB6:AM7) -> 62837585.88 | G12: =SUM(AN6:AY7) -> 62837585.88 | H12: =SUM(AZ6:BK7) -> 62837585.88 | I12: =SUM(BL6:BW7) -> 62837585.88
C13: Public Load (aMW) | D13: =D12/VLOOKUP(D11,Init!$N$5:$P$38,3) -> 6958.96264 | E13: =E12/VLOOKUP(E11,Init!$N$5:$P$38,3) -> 7173.240398 | F13: =F12/VLOOKUP(F11,Init!$N$5:$P$38,3) -> 7173.240398 | G13: =G12/VLOOKUP(G11,Init!$N$5:$P$38,3) -> 7173.240398 | H13: =H12/VLOOKUP(H11,Init!$N$5:$P$38,3) -> 7153.64138 | I13: =I12/VLOOKUP(I11,Init!$N$5:$P$38,3) -> 7173.240398
C14: Demand (MW) | D14: =SUM(D9:O9) -> 6173.990494 | E14: =SUM(P9:AA9) -> 6451.770616 | F14: =SUM(AB9:AM9) -> 5698.348322 | G14: =SUM(AN9:AY9) -> 6105.621951 | H14: =SUM(AZ9:BK9) -> 5698.348322 | I14: =SUM(BL9:BW9) -> 6105.621951
D16: DEMAND: | E16: ENERGY: | F16: (GWh) | AE16: Total
E17: Oct | G17: Nov | I17: Dec | K17: Jan | M17: Feb | O17: Mar | Q17: Apr | S17: May | U17: Jun | W17: Jul | Y17: Aug | AA17: Sep | AC17: Total | AE17: Energy
D18: Annual | E18: LLH | F18: HLH | G18: LLH | H18: HLH | I18: LLH | J18: HLH | K18: LLH | L18: HLH | M18: LLH | N18: HLH | O18: LLH | P18: HLH | Q18: LLH | R18: HLH | S18: LLH | T18: HLH | U18: LLH | V18: HLH | W18: LLH | X18: HLH | Y18: LLH | Z18: HLH | AA18: LLH | AB18: HLH | AC18: LLH | AD18: HLH | AG18: check
B20: =RateSummary!$C$10 -> 2024 | D20: =Q31 -> 4674.947445 | E20: =D30 -> 1371.910043 | F20: =D29 -> 2049.506406 | G20: =E30 -> 1654.273665 | H20: =E29 -> 2371.653721 | I20: =F30 -> 1988.181683 | J20: =F29 -> 2730.659467 | K20: =G30 -> 1960.780977 | L20: =G29 -> 2847.535514 | M20: =H30 -> 1616.251821 | N20: =H29 -> 2474.916357 | O20: =I30 -> 1672.632546 | P20: =I29 -> 2461.825365 | Q20: =J30 -> 1362.28209 | R20: =J29 -> 2058.564564 | S20: =K30 -> 1422.696977 | T20: =K29 -> 2102.462635 | U20: =L30 -> 1330.114263 | V20: =L29 -> 2071.331532 | W20: =M30 -> 1485.583478 | X20: =M29 -> 2209.407645 | Y20: =N30 -> 1369.286818 | Z20: =N29 -> 2281.286108 | AA20: =O30 -> 1413.671936 | AB20: =O29 -> 1978.966708 | AC20: =E20+G20+I20+K20+M20+O20+Q20+S20+U20+W20+Y20+AA20 -> 18647.6663 | AD20: =F20+H20+J20+L20+N20+P20+R20+T20+V20+X20+Z20+AB20 -> 27638.11602 | AE20: =AC20+AD20 -> 46285.78232 | AG20: =T29 -> 46285.78232 | AH20: =AG20/(VLOOKUP($B20,Init!$N:$P,3,FALSE)/1000) -> 5269.328588
B21: =RateSummary!$D$10 -> 2025 | D21: =Q35 -> 4749.336611 | E21: =D34 -> 1342.023308 | F21: =D33 -> 2098.358387 | G21: =E34 -> 1659.241591 | H21: =E33 -> 2367.588129 | I21: =F34 -> 1989.109916 | J21: =F33 -> 2716.263627 | K21: =G34 -> 1962.407802 | L21: =G33 -> 2835.171047 | M21: =H34 -> 1596.535658 | N21: =H33 -> 2416.633968 | O21: =I34 -> 1675.627166 | P21: =I33 -> 2463.60391 | Q21: =J34 -> 1376.184549 | R21: =J33 -> 2081.226179 | S21: =K34 -> 1388.826749 | T21: =K33 -> 2021.334981 | U21: =L34 -> 1341.674631 | V21: =L33 -> 2104.297038 | W21: =M34 -> 1508.324751 | X21: =M33 -> 2233.130597 | Y21: =N34 -> 1417.166307 | Z21: =N33 -> 2247.045099 | AA21: =O34 -> 1392.495092 | AB21: =O33 -> 2022.310061 | AC21: 18649.61752 | AD21: 27606.96302 | AE21: 46256.58054 | AG21: =T33 -> 46256.58054 | AH21: =AG21/(VLOOKUP($B21,Init!$N:$P,3,FALSE)/1000) -> 5280.431569
B22: =RateSummary!$E$10 -> 2026 | D22: =Q39 -> 4262.436894 | E22: =D38 -> 1363.687925 | F22: =D37 -> 2132.23271 | G22: =E38 -> 1686.027142 | H22: =E37 -> 2405.808695 | I22: =F38 -> 2021.220613 | J22: =F37 -> 2760.112948 | K22: =G38 -> 1994.087441 | L22: =G37 -> 2880.93992 | M22: =H38 -> 1622.308932 | N22: =H37 -> 2455.646293 | O22: =I38 -> 1702.677234 | P22: =I37 -> 2503.374482 | Q22: =J38 -> 1398.400639 | R22: =J37 -> 2114.823932 | S22: =K38 -> 1411.246926 | T22: =K37 -> 2053.965896 | U22: =L38 -> 1363.333619 | V22: =L37 -> 2138.26723 | W22: =M38 -> 1532.674014 | X22: =M37 -> 2269.180581 | Y22: =N38 -> 1440.043976 | Z22: =N37 -> 2283.319709 | AA22: =O38 -> 1414.974487 | AB22: =O37 -> 2054.956717 | AC22: 18950.68295 | AD22: 28052.62911 | AE22: 47003.31206 | AG22: =T37 -> 47003.31206 | AH22: =AG22/(VLOOKUP($B22,Init!$N:$P,3,FALSE)/1000) -> 5365.674893
B23: =RateSummary!$F$10 -> 2027 | D23: =Q43 -> 4567.08274 | E23: =D42 -> 1363.687925 | F23: =D41 -> 2132.23271 | G23: =E42 -> 1686.027142 | H23: =E41 -> 2405.808695 | I23: =F42 -> 2021.220613 | J23: =F41 -> 2760.112948 | K23: =G42 -> 1994.087441 | L23: =G41 -> 2880.93992 | M23: =H42 -> 1622.308932 | N23: =H41 -> 2455.646293 | O23: =I42 -> 1702.677234 | P23: =I41 -> 2503.374482 | Q23: =J42 -> 1398.400639 | R23: =J41 -> 2114.823932 | S23: =K42 -> 1411.246926 | T23: =K41 -> 2053.965896 | U23: =L42 -> 1363.333619 | V23: =L41 -> 2138.26723 | W23: =M42 -> 1532.674014 | X23: =M41 -> 2269.180581 | Y23: =N42 -> 1440.043976 | Z23: =N41 -> 2283.319709 | AA23: =O42 -> 1414.974487 | AB23: =O41 -> 2054.956717 | AC23: 18950.68295 | AD23: 28052.62911 | AE23: 47003.31206 | AG23: =T41 -> 47003.31206 | AH23: =AG23/(VLOOKUP($B23,Init!$N:$P,3,FALSE)/1000) -> 5365.674893
B24: =RateSummary!$G$10 -> 2028 | D24: =Q47 -> 4003.544 | E24: =D46 -> 1280.859927 | F24: =D45 -> 2002.724658 | G24: =E46 -> 1583.620829 | H24: =E45 -> 2259.684121 | I24: =F46 -> 1898.455241 | J24: =F45 -> 2592.468559 | K24: =G46 -> 1872.970089 | L24: =G45 -> 2705.956714 | M24: =H46 -> 1523.772751 | N24: =H45 -> 2306.494672 | O24: =I46 -> 1599.259624 | P24: =I45 -> 2351.323934 | Q24: =J46 -> 1313.464253 | R24: =J45 -> 1986.373259 | S24: =K46 -> 1325.530278 | T24: =K45 -> 1929.211633 | U24: =L46 -> 1280.527141 | V24: =L45 -> 2008.392652 | W24: =M46 -> 1439.582099 | X24: =M45 -> 2131.354558 | Y24: =N46 -> 1352.578247 | Z24: =N45 -> 2144.6349 | AA24: =O46 -> 1329.031434 | AB24: =O45 -> 1930.142273 | AC24: 17799.65191 | AD24: 26348.76193 | AE24: 44148.41385 | AG24: =T45 -> 44148.41385 | AH24: =AG24/(VLOOKUP($B24,Init!$N:$P,3,FALSE)/1000) -> 5026.003398
B25: =RateSummary!$H$10 -> 2029 | D25: =Q51 -> 4277.965741 | E25: =D50 -> 1277.36031 | F25: =D49 -> 1997.252733 | G25: =E50 -> 1579.293997 | H25: =E49 -> 2253.51012 | I25: =F50 -> 1893.268205 | J25: =F49 -> 2585.385312 | K25: =G50 -> 1867.852685 | L25: =G49 -> 2698.56339 | M25: =H50 -> 1519.609437 | N25: =H49 -> 2300.192774 | O25: =I50 -> 1594.890062 | P25: =I49 -> 2344.899552 | Q25: =J50 -> 1309.875552 | R25: =J49 -> 1980.94601 | S25: =K50 -> 1321.908611 | T25: =K49 -> 1923.940563 | U25: =L50 -> 1277.028433 | V25: =L49 -> 2002.90524 | W25: =M50 -> 1435.648815 | X25: =M49 -> 2125.531185 | Y25: =N50 -> 1348.882678 | Z25: =N49 -> 2138.775242 | AA25: =O50 -> 1325.400201 | AB25: =O49 -> 1924.86866 | AC25: 17751.01898 | AD25: 26276.77078 | AE25: 44027.78976 | AG25: =T49 -> 44027.78976 | AH25: =AG25/(VLOOKUP($B25,Init!$N:$P,3,FALSE)/1000) -> 5026.003398
D28: =E17 -> Oct | E28: =G17 -> Nov | F28: =I17 -> Dec | G28: =K17 -> Jan | H28: =M17 -> Feb | I28: =O17 -> Mar | J28: =Q17 -> Apr | K28: =S17 -> May | L28: =U17 -> Jun | M28: =W17 -> Jul | N28: =Y17 -> Aug | O28: =AA17 -> Sep
B29: =B20 -> 2024 | C29: HLH | D29: =D6/1000*$V$30 -> 2049.506406 | E29: 2371.653721 | F29: 2730.659467 | G29: 2847.535514 | H29: 2474.916357 | I29: 2461.825365 | J29: 2058.564564 | K29: 2102.462635 | L29: 2071.331532 | M29: 2209.407645 | N29: 2281.286108 | O29: 1978.966708 | R29: HLH | S29: =B29 -> 2024 | T29: =SUM(D29:O30) -> 46285.78232 | U29: =T29/(VLOOKUP(S29,Init!$N$5:$P$38,3)/1000) -> 5269.328588 | V29: =D13 -> 6958.96264
C30: LLH | D30: =D7/1000*$V$30 -> 1371.910043 | E30: 1654.273665 | F30: 1988.181683 | G30: 1960.780977 | H30: 1616.251821 | I30: 1672.632546 | J30: 1362.28209 | K30: 1422.696977 | L30: 1330.114263 | M30: 1485.583478 | N30: 1369.286818 | O30: 1413.671936 | R30: LLH | U30: =D59 -> 5269.328588 | V30: =U30/V29 -> 0.7572002985
C31: Demand | D31: =D9*$V$30 -> 207.0738077 | E31: 256.791942 | F31: 462.2215377 | G31: 446.8315089 | H31: 302.4513377 | I31: 403.9587858 | J31: 453.2970504 | K31: 326.7518548 | L31: 434.0598994 | M31: 510.9997729 | N31: 556.6476147 | O31: 313.8623329 | P31: Annual = | Q31: =SUM(D31:P31) -> 4674.947445 | R31: Demand
D32: =D28 -> Oct | E32: Nov | F32: Dec | G32: Jan | H32: Feb | I32: Mar | J32: Apr | K32: May | L32: Jun | M32: Jul | N32: Aug | O32: Sep
B33: =B29+1 -> 2025 | C33: HLH | D33: =P6/1000*$V$34 -> 2098.358387 | E33: 2367.588129 | F33: 2716.263627 | G33: 2835.171047 | H33: 2416.633968 | I33: 2463.60391 | J33: 2081.226179 | K33: 2021.334981 | L33: 2104.297038 | M33: 2233.130597 | N33: 2247.045099 | O33: 2022.310061 | R33: HLH | S33: =B33 -> 2025 | T33: =SUM(D33:O34) -> 46256.58054 | U33: =T33/(VLOOKUP(S33,Init!$N$5:$P$38,3)/1000) -> 5280.431569 | V33: =E13 -> 7173.240398
C34: LLH | D34: 1342.023308 | E34: 1659.241591 | F34: 1989.109916 | G34: 1962.407802 | H34: 1596.535658 | I34: 1675.627166 | J34: 1376.184549 | K34: 1388.826749 | L34: 1341.674631 | M34: 1508.324751 | N34: 1417.166307 | O34: 1392.495092 | R34: LLH | U34: =E59 -> 5280.431569 | V34: =U34/V33 -> 0.7361291796
C35: Demand | D35: =P9*$V$34 -> 280.8179613 | E35: 258.1496987 | F35: 454.3019318 | G35: 443.0357347 | H35: 280.7762404 | I35: 397.1826803 | J35: 471.0865674 | K35: 334.3735197 | L35: 426.8717103 | M35: 552.4258608 | N35: 493.7953942 | O35: 356.5193109 | P35: Annual = | Q35: =SUM(D35:P35) -> 4749.336611 | R35: Demand
